{"text_format":"1","workbook":"xlsx","n_sheets":1,"sheets":["BASE 2023 FPS"],"not_rendered":{"charts":0,"images":0,"macros":1,"external_links":0,"defined_names":2,"comments":0,"pivot_tables":0},"unopened":[],"bounds":{"document_bytes":16777216,"sheet_cells":100000,"rows_first":2000,"rows_last":500,"rows_between":2000,"halvings":0,"cell_chars":16384,"cell_head_chars":4096},"cells_cut":0,"cells_raw":0,"read":"whole","date_system":"1900"}

{"sheet":"BASE 2023 FPS","index":0,"n_rows":249,"n_cols":120,"rows_kept":249,"cut":false,"hidden":false,"merged":[]}
["Año","CTO","ABOGADO RESPONSABLE","TERMINADO ANTICIPADAMENTE","SIRECI 2024","MODALIDAD DE SELECCIÓN","NÚMERO DE PROCESO DE SELECCIÓN","TIPO DE CONTRATO","PROFESIONALES / APOYO A LA GESTION","CONTRATISTA","Perfil requerido ","Area de Conocimiento","NATURALEZA JURIDICA","COONTRATISTA: TIPO DE IDENTIFICACIÓN","NUMERO DE IDENTIFICACION","CEDULA","NIT","CONTRATISTA: DÍGITO DE VERIFICACIÓN (NIT o RUT)","NOMBRE DEL REPRESENTANTE LEGAL DEL CONTRATISTA","TIPO DE IDENTIFICACIÓN DEL REPRESENTANTE LEGAL DEL CONTRATISTA","NÚMERO DE IDENTIFICACIÓN DEL REPRESENTANTE LEGAL DEL CONTRATISTA","ORDENADOR DEL GASTO","CDP","FECHA CDP","RP","FECHA RP","FUENTE DE FINANCIACIÓN","AFECTACIÓN DEL RECURSO","UNIDAD","DEPENDENCIA EJECUCION DEL CONTRATO GENERAL","DEPENDENCIA EJECUCION DEL CONTRATO ESPECIFICA","OBJETO   ","OBJETO\n(SIRECI)","HONORARIOS","VALOR SECOP","FECHA DE SUSCRIPCION DEL CONTRATO","MES DE PUBLICADO","CANTIDAD DE VECES REGISTRADO EN EL SIRECI","LUGAR DE EJECUCION -DEPARTAMENTO ","LUGAR DE EJECUCION -MUNICIPIO","TIPO DE SEGUIMIENTO","INTERVENTOR: NOMBRE COMPLETO","INTERVENTOR: TIPO DE IDENTIFICACIÓN","INTERVENTOR: NÚMERO DE IDENTIFICACIÓN","INTERVENTOR : DÍGITO DE VERIFICACIÓN (NIT o RUT)","SUPERVISOR: NÚMERO DE IDENTIFICACIÓN","SUPERVISOR: NOMBRE COMPLETO","SUPERVISOR: CARGO","DEPENDENCIA","REQUIERE  LIQUIDACIÓN","CÓDIGO UNSPSC","GARANTIAS","GARANTIAS RIESGOS ASEGURADOS","GARANTÍAS: NÚMERO DE POLIZA","GARANTÍAS: FECHA DE EXPEDICIÓN DE GARANTÍAS","GARANTÍAS: FECHA DE APROBACIÓN","FECHA DE SUSCRIPCION","FECHA INICIO","FECHA TERMINACION\n(INICIAL)","PLAZO DE EJECUCIÓN EN DÍAS (INICIAL)","PLAZO DE EJECUCIÓN EN MESES (INICIAL)","TERMINACION ANTICIPADA","REDUCCIÓN DEL VALOR DEL CONTRATO","REDUCCIÓN: FECHA DE SUSCRIPCIÓN","VALOR REDUCIDO","ADICIÓN\n(1)","FECHA DE SUSCRIPCIÓN\n(ADICIÓN)\n(1)","VALOR ADICION (EN NÚMEROS)\n(1)","ADICIÓN\n(2)","FECHA DE SUSCRIPCIÓN\n(ADICIÓN)\n(2)","VALOR ADICION (EN NÚMEROS)\n(2)","ADICIÓN\n(3)","FECHA DE SUSCRIPCIÓN\n(ADICIÓN)\n(3)","VALOR ADICION (EN NÚMEROS)\n(3)","TIEMPO PRÓRROGA\n(1)","FECHA DE SUSCRIPCIÓN\n(PRÓRROGA)\n(1)","TIEMPO PRORROGADO EN DÍAS\n(PRÓRROGA)\n(1)","TIEMPO PRORROGADO DESDE\n(1)","TIEMPO PRORROGADO HASTA\n(1)","PRÓRROGA\n(2)","FECHA DE SUSCRIPCIÓN\n(PRÓRROGA)\n(2)","TIEMPO PRORROGADO EN DÍAS\n(PRÓRROGA)\n(2)","TIEMPO PRORROGADO DESDE\n(2)","TIEMPO PRORROGADO HASTA\n(2)","PRÓRROGA\n(3)","FECHA DE SUSCRIPCIÓN\n(PRÓRROGA)\n(3)","TIEMPO PRORROGADO EN DÍAS\n(PRÓRROGA)\n(3)","TIEMPO PRORROGADO DESDE\n(3)","TIEMPO PRORROGADO HASTA\n(3)","SUSPENSIÓN","SUSPENSIÓN: FECHA DE SUSCRIPCIÓN","FECHA DE INICIO SUSPENSION","FECHA DE FIN SUSPENSIÓN","CANTIDAD DE DIAS","TERMINACIÓN ANTICIPADA","TERMINACIÓN ANTICIPADA: FECHA DE SUSCRIPCIÓN","VALOR EJECUTADO","VALOR A LIBERAR","FECHA DE EJECUCIÓN FINAL DEL CONTRATO\n(HASTA)","CESIÓN","FECHA DE FIRMA DE CESION","FECHA INICIO CESION","VALOR SIN EJECUTAR Y QUE SE CEDE","NOMBRE DEL CONTRATISTA  CEDENTE","CC/NIT CEDENTE","PLAZO DE EJECUCIÓN FINAL DEL CONTRATO\n(DESDE)","PLAZO DE EJECUCIÓN FINAL DEL CONTRATO\n(HASTA)","PLAZO DE EJECUCIÓN FINAL DEL CONTRATO\n(EN DÍAS)","VALOR TOTAL DE CONTRATO (ANTES DE LIQUIDACIÓN - LIBERACIÓN DE SALDOS)","ADICIONES","TIEMPO ADICIONADO EN DIAS","VALOR ADICIONADO O REDUCIDOEN PESOS","OBSERVACIONES","ESTADO ","TIPO DE LIQUIDACIÓN","FECHA DE LIQUIDACIÓN","% Ejecucion\nAgosto 2022","% Ejecucion\nNoviembre 2023","LINK SECOP","2022-11-30"]
[2024,"CPS-001-2024","Danilo Luis Lopez sanabria",null,"F5.1","2 CONTRATACIÓN DIRECTA","CPS-001-2024","14 PRESTACIÓN DE SERVICIOS","PROFESIONALES","FELIX ANDRES SOLANO GOMEZ","Formación requerida en una (1) carrera profesional y una  (1) especialización "," Economía, Administración, Contaduría y afines","1 PERSONA NATURAL","3 CÉDULA DE CIUDADANÍA",1140860405,1140860405,null,"11 NO SE DILIGENCIA INFORMACIÓN PARA ESTE FORMULARIO EN ESTE PERÍODO DE REPORTE","NO APLICA","NO APLICA","NO APLICA","LUZ FANY VACA GUTIERREZ",124,"2024-01-11",2823,"2023-01-13","A-02-02-02-008-003","Funcionamiento","19-14-02 FONDO PASIVO SOCIAL DE FERROCARRILES NACIONALES DE COLOMBIA - PENSIONES","DIRECCION GENERAL","DIRECCION GENERAL","PRESTAR LOS SERVICIOS PROFESIONALES COMO ADMINISTRADOR DE EMPRESAS PARA APOYAR LA GESTION ADMINISTRATIVA Y CONTRACTUAL EN LA DIRECCION GENERAL DEL FONDO DE PASIVO SOCIAL DE FERROCARRILES NACIONALES DE COLOMBIA",{"$f":"LEFT('BASE 2023 FPS'!$AF2,390)","v":"PRESTAR LOS SERVICIOS PROFESIONALES COMO ADMINISTRADOR DE EMPRESAS PARA APOYAR LA GESTION ADMINISTRATIVA Y CONTRACTUAL EN LA DIRECCION GENERAL DEL FONDO DE PASIVO SOCIAL DE FERROCARRILES NACIONALES DE COLOMBIA"},6096412,67060532,"2024-01-12",1,1,"COLOMBIA > Distrito Capital de Bogotá > Bogotá","COLOMBIA > Distrito Capital de Bogotá > Bogotá","2 SUPERVISOR","NO APLICA","5 NO SE TIENE ESTE TIPO DE SEGUIMIENTO EN EL CONTRATO","NO APLICA","11 NO SE DILIGENCIA INFORMACIÓN PARA ESTE FORMULARIO EN ESTE PERÍODO DE REPORTE",23621957,"LUZ FANNY VACA GUTIERREZ","DIRECCION GENERAL","DIRECCION GENERAL","NO",80111600,"POLIZA","Calidad del servicio - Cumplimiento del contrato","96-46-101016083","2024-01-12","2024-01-12","2024-01-12","2024-01-12","2024-12-11",330,{"$f":"DATEDIF('BASE 2023 FPS'!$BF2-1,'BASE 2023 FPS'!$BG2,\"m\")","v":11},null,null,null,null,null,null,null,null,null,null,null,null,null,null,null,null,null,null,null,null,null,null,null,null,null,null,null,null,null,null,null,null,null,null,null,null,null,null,null,null,null,null,null,null,null,null,null,null,null,null,null,null,null,null,null,null,null,"https://community.secop.gov.co/Public/Tendering/ContractNoticePhases/View?PPI=CO1.PPI.29170478&isFromPublicArea=True&isModal=False"]
[2024,"CPS-002-2024","Danilo Luis Lopez sanabria",null,"F5.1","2 CONTRATACIÓN DIRECTA","CPS-002-2024","14 PRESTACIÓN DE SERVICIOS","PROFESIONALES","LIZET PAOLA GARY HURTADO","Formación requerida en una (1) carrera profesional y una  (1) especialización "," Ciencias Sociales y Humanas","1 PERSONA NATURAL","3 CÉDULA DE CIUDADANÍA",45706558,45706558,null,"11 NO SE DILIGENCIA INFORMACIÓN PARA ESTE FORMULARIO EN ESTE PERÍODO DE REPORTE","NO APLICA","NO APLICA","NO APLICA","LUZ FANY VACA GUTIERREZ",124,"2024-01-11",null,null,null,null,null,"DIRECCION GENERAL","DIRECCION GENERAL","PRESTAR LOS SERVICIOS PROFESIONALES COMO ABOGADA ESPECIALISTA PARA APOYAR LA GESTIÓN JURÍDICA Y ADMINISTRATIVA QUE ADELANTA LA DIRECCIÓN GENERAL DEL FONDO PASIVO SOCIAL DE FERROCARRILES NACIONALES DE COLOMBIA.",{"$f":"LEFT('BASE 2023 FPS'!$AF3,390)","v":"PRESTAR LOS SERVICIOS PROFESIONALES COMO ABOGADA ESPECIALISTA PARA APOYAR LA GESTIÓN JURÍDICA Y ADMINISTRATIVA QUE ADELANTA LA DIRECCIÓN GENERAL DEL FONDO PASIVO SOCIAL DE FERROCARRILES NACIONALES DE COLOMBIA."},7889475,86784225,"2024-01-12",1,1,"COLOMBIA > Distrito Capital de Bogotá > Bogotá","COLOMBIA > Distrito Capital de Bogotá > Bogotá","2 SUPERVISOR","NO APLICA","5 NO SE TIENE ESTE TIPO DE SEGUIMIENTO EN EL CONTRATO","NO APLICA","11 NO SE DILIGENCIA INFORMACIÓN PARA ESTE FORMULARIO EN ESTE PERÍODO DE REPORTE",23621957,"LUZ FANNY VACA GUTIERREZ","DIRECCION GENERAL","DIRECCION GENERAL","NO",80111600,"POLIZA","Calidad del servicio - Cumplimiento del contrato","11-46-101042871","2024-01-12","2024-01-12","2024-01-12","2024-01-12","2024-12-11",330,{"$f":"DATEDIF('BASE 2023 FPS'!$BF3-1,'BASE 2023 FPS'!$BG3,\"m\")","v":11},null,null,null,null,null,null,null,null,null,null,null,null,null,null,null,null,null,null,null,null,null,null,null,null,null,null,null,null,null,null,null,null,null,null,null,null,null,null,null,null,null,null,null,null,null,null,null,null,null,null,null,null,null,null,null,null,null,"https://community.secop.gov.co/Public/Tendering/ContractNoticePhases/View?PPI=CO1.PPI.29172018&isFromPublicArea=True&isModal=False"]
[2024,"CPS-003-2024",null,null,"F5.1","2 CONTRATACIÓN DIRECTA","CPS-003-2024","14 PRESTACIÓN DE SERVICIOS","PROFESIONALES","DANILO IVAN LOPEZ SANABRIA","Apoyo a la gestion"," Ciencias Sociales y Humanas","1 PERSONA NATURAL","3 CÉDULA DE CIUDADANÍA",1013686712,1013686712,null,"11 NO SE DILIGENCIA INFORMACIÓN PARA ESTE FORMULARIO EN ESTE PERÍODO DE REPORTE","NO APLICA","NO APLICA","NO APLICA","LUZ FANY VACA GUTIERREZ",124,"2024-01-11",null,null,null,null,null,"SECRETARIO GENERAL","SECRETARIO GENERAL","PRESTAR LOS SERVICIOS DE APOYO A LA GESTIÓN COMO JUDICANTE, CON EL FIN DE ADELANTAR ACTIVIDADES RELACIONADAS CON LOS ASUNTOS ADMINISTRATIVOS Y LA GESTIÓN JURÍDICA CONTRACTUAL, (PRE CONTRACTUAL, CONTRACTUAL Y POST-CONTRACTUAL) QUE ADELANTA LA SECRETARIA GENERAL DEL FONDO DE PASIVO SOCIAL DE FERROCARRILES NACIONALES DE COLOMBIA",{"$f":"LEFT('BASE 2023 FPS'!$AF4,390)","v":"PRESTAR LOS SERVICIOS DE APOYO A LA GESTIÓN COMO JUDICANTE, CON EL FIN DE ADELANTAR ACTIVIDADES RELACIONADAS CON LOS ASUNTOS ADMINISTRATIVOS Y LA GESTIÓN JURÍDICA CONTRACTUAL, (PRE CONTRACTUAL, CONTRACTUAL Y POST-CONTRACTUAL) QUE ADELANTA LA SECRETARIA GENERAL DEL FONDO DE PASIVO SOCIAL DE FERROCARRILES NACIONALES DE COLOMBIA"},2450519,26955709,"2024-01-12",1,1,"COLOMBIA > Distrito Capital de Bogotá > Bogotá","COLOMBIA > Distrito Capital de Bogotá > Bogotá","2 SUPERVISOR","NO APLICA","5 NO SE TIENE ESTE TIPO DE SEGUIMIENTO EN EL CONTRATO","NO APLICA","11 NO SE DILIGENCIA INFORMACIÓN PARA ESTE FORMULARIO EN ESTE PERÍODO DE REPORTE",17956156,"CARLOS ANDRES TOVAR OROZCO","SECRETARIO GENERAL","SECRETARIA GENERAL","NO",80111600,"POLIZA","Calidad del servicio - Cumplimiento del contrato","11-46-101042890","2024-01-12","2024-01-12","2024-01-12","2024-01-12","2024-12-11",330,{"$f":"DATEDIF('BASE 2023 FPS'!$BF4-1,'BASE 2023 FPS'!$BG4,\"m\")","v":11},null,null,null,null,null,null,null,null,null,null,null,null,null,null,null,null,null,null,null,null,null,null,null,null,null,null,null,null,null,null,null,null,null,null,null,null,null,null,null,null,null,null,null,null,null,null,null,null,null,null,null,null,null,null,null,null,null,"https://community.secop.gov.co/Public/Tendering/ContractNoticePhases/View?PPI=CO1.PPI.29173016&isFromPublicArea=True&isModal=False"]
[2024,"CPS-004-2024",null,null,"F5.1","2 CONTRATACIÓN DIRECTA","CPS-004-2024","14 PRESTACIÓN DE SERVICIOS","PROFESIONALES","YELI ANDREA ACUÑA GUTIÉRREZ","Apoyo a la gestion"," Ciencias Sociales y Humanas","1 PERSONA NATURAL","3 CÉDULA DE CIUDADANÍA",1003242665,1003242665,null,"11 NO SE DILIGENCIA INFORMACIÓN PARA ESTE FORMULARIO EN ESTE PERÍODO DE REPORTE","NO APLICA","NO APLICA","NO APLICA","LUZ FANY VACA GUTIERREZ",124,"2024-01-11",null,null,null,null,null,"SECRETARIO GENERAL","SECRETARIO GENERAL","PRESTAR LOS SERVICIOS DE APOYO A LA GESTIÓN COMO JUDICANTE, CON EL FIN DE ADELANTAR ACTIVIDADES RELACIONADAS CON LOS ASUNTOS ADMINISTRATIVOS Y LA GESTIÓN JURÍDICA CONTRACTUAL, (PRE CONTRACTUAL, CONTRACTUAL Y POST-CONTRACTUAL) QUE ADELANTA LA SECRETARIA GENERAL DEL FONDO DE PASIVO SOCIAL DE FERROCARRILES NACIONALES DE COLOMBIA",{"$f":"LEFT('BASE 2023 FPS'!$AF5,390)","v":"PRESTAR LOS SERVICIOS DE APOYO A LA GESTIÓN COMO JUDICANTE, CON EL FIN DE ADELANTAR ACTIVIDADES RELACIONADAS CON LOS ASUNTOS ADMINISTRATIVOS Y LA GESTIÓN JURÍDICA CONTRACTUAL, (PRE CONTRACTUAL, CONTRACTUAL Y POST-CONTRACTUAL) QUE ADELANTA LA SECRETARIA GENERAL DEL FONDO DE PASIVO SOCIAL DE FERROCARRILES NACIONALES DE COLOMBIA"},2450519,26955709,"2024-01-12",1,1,"COLOMBIA > Distrito Capital de Bogotá > Bogotá","COLOMBIA > Distrito Capital de Bogotá > Bogotá","2 SUPERVISOR","NO APLICA","5 NO SE TIENE ESTE TIPO DE SEGUIMIENTO EN EL CONTRATO","NO APLICA","11 NO SE DILIGENCIA INFORMACIÓN PARA ESTE FORMULARIO EN ESTE PERÍODO DE REPORTE",17956156,"CARLOS ANDRES TOVAR OROZCO","SECRETARIO GENERAL","SECRETARIA GENERAL","NO",80111600,"POLIZA","Calidad del servicio - Cumplimiento del contrato",null,"2024-01-12","2024-01-12","2024-01-12","2024-01-12","2024-12-11",330,{"$f":"DATEDIF('BASE 2023 FPS'!$BF5-1,'BASE 2023 FPS'!$BG5,\"m\")","v":11},null,null,null,null,null,null,null,null,null,null,null,null,null,null,null,null,null,null,null,null,null,null,null,null,null,null,null,null,null,null,null,null,null,null,null,null,null,null,null,null,null,null,null,null,null,null,null,null,null,null,null,null,null,null,null,null,null,"https://community.secop.gov.co/Public/Tendering/ContractNoticePhases/View?PPI=CO1.PPI.29173273&isFromPublicArea=True&isModal=False"]
[2024,"CPS-005-2024",null,null,"F5.1","2 CONTRATACIÓN DIRECTA","CPS-005-2024","14 PRESTACIÓN DE SERVICIOS","PROFESIONALES","ANDRES SEBASTIAN MERLANO","Apoyo a la gestion"," Ciencias Sociales y Humanas","1 PERSONA NATURAL","3 CÉDULA DE CIUDADANÍA",1001900854,1001900854,null,"11 NO SE DILIGENCIA INFORMACIÓN PARA ESTE FORMULARIO EN ESTE PERÍODO DE REPORTE","NO APLICA","NO APLICA","NO APLICA","LUZ FANY VACA GUTIERREZ",124,"2024-01-11",null,null,null,null,null,"SECRETARIO GENERAL","SECRETARIO GENERAL","“PRESTAR LOS SERVICIOS DE APOYO A LA GESTIÓN COMO JUDICANTE, CON EL FIN DE ADELANTAR ACTIVIDADES RELACIONADAS CON LOS ASUNTOS JURÍDICOS Y ADMINISTRATIVO DESDE LA SECRETARIA GENERAL DEL FONDO DE PASIVO SOCIAL DE FERROCARRILES NACIONALES DE COLOMBIA”",{"$f":"LEFT('BASE 2023 FPS'!$AF6,390)","v":"“PRESTAR LOS SERVICIOS DE APOYO A LA GESTIÓN COMO JUDICANTE, CON EL FIN DE ADELANTAR ACTIVIDADES RELACIONADAS CON LOS ASUNTOS JURÍDICOS Y ADMINISTRATIVO DESDE LA SECRETARIA GENERAL DEL FONDO DE PASIVO SOCIAL DE FERROCARRILES NACIONALES DE COLOMBIA”"},2450519,26955709,"2024-01-12",1,1,"COLOMBIA > Distrito Capital de Bogotá > Bogotá","COLOMBIA > Distrito Capital de Bogotá > Bogotá","2 SUPERVISOR","NO APLICA","5 NO SE TIENE ESTE TIPO DE SEGUIMIENTO EN EL CONTRATO","NO APLICA","11 NO SE DILIGENCIA INFORMACIÓN PARA ESTE FORMULARIO EN ESTE PERÍODO DE REPORTE",17956156,"CARLOS ANDRES TOVAR OROZCO","SECRETARIO GENERAL","SECRETARIA GENERAL","NO",80111600,"POLIZA","Calidad del servicio - Cumplimiento del contrato","11-46-101042892","2024-01-12","2024-01-12","2024-01-12","2024-01-12","2024-12-11",330,{"$f":"DATEDIF('BASE 2023 FPS'!$BF6-1,'BASE 2023 FPS'!$BG6,\"m\")","v":11},null,null,null,null,null,null,null,null,null,null,null,null,null,null,null,null,null,null,null,null,null,null,null,null,null,null,null,null,null,null,null,null,null,null,null,null,null,null,null,null,null,null,null,null,null,null,null,null,null,null,null,null,null,null,null,null,null,"https://community.secop.gov.co/Public/Tendering/ContractNoticePhases/View?PPI=CO1.PPI.29173364&isFromPublicArea=True&isModal=False"]
[2024,"CPS-006-2024",null,null,"F5.1","2 CONTRATACIÓN DIRECTA","CPS-006-2024","14 PRESTACIÓN DE SERVICIOS","PROFESIONALES","JAIRLO LUIS QUICENO JIMENEZ","Formación requerida en una (1) carrera profesional y una  (1) especialización "," Ciencias Sociales y Humanas","1 PERSONA NATURAL","3 CÉDULA DE CIUDADANÍA",1094958556,1094958556,null,"11 NO SE DILIGENCIA INFORMACIÓN PARA ESTE FORMULARIO EN ESTE PERÍODO DE REPORTE","NO APLICA","NO APLICA","NO APLICA","LUZ FANY VACA GUTIERREZ",124,"2024-01-11",null,null,null,null,null,"DIRECCION GENERAL","DIRECCION GENERAL","PRESTAR LOS SERVICIOS PROFESIONALES COMO ABOGADO ESPECIALISTA PARA APOYAR LA GESTIÓN JURÍDICA Y ADMINISTRATIVA QUE ADELANTA LA DIRECCIÓN GENERAL DEL FONDO PASIVO SOCIAL DE FERROCARRILES NACIONALES DE COLOMBIA.",{"$f":"LEFT('BASE 2023 FPS'!$AF7,390)","v":"PRESTAR LOS SERVICIOS PROFESIONALES COMO ABOGADO ESPECIALISTA PARA APOYAR LA GESTIÓN JURÍDICA Y ADMINISTRATIVA QUE ADELANTA LA DIRECCIÓN GENERAL DEL FONDO PASIVO SOCIAL DE FERROCARRILES NACIONALES DE COLOMBIA."},7889475,31557900,"2024-01-12",1,1,"COLOMBIA > Distrito Capital de Bogotá > Bogotá","COLOMBIA > Distrito Capital de Bogotá > Bogotá","2 SUPERVISOR","NO APLICA","5 NO SE TIENE ESTE TIPO DE SEGUIMIENTO EN EL CONTRATO","NO APLICA","11 NO SE DILIGENCIA INFORMACIÓN PARA ESTE FORMULARIO EN ESTE PERÍODO DE REPORTE",23621957,"LUZ FANNY VACA GUTIERREZ","DIRECCION GENERAL","DIRECCION GENERAL","NO",80111600,"POLIZA","Calidad del servicio - Cumplimiento del contrato","11-46-101042892","2024-01-12","2024-01-12","2024-01-12","2024-01-12","2024-05-11",120,{"$f":"DATEDIF('BASE 2023 FPS'!$BF7-1,'BASE 2023 FPS'!$BG7,\"m\")","v":4},null,null,null,null,null,null,null,null,null,null,null,null,null,null,null,null,null,null,null,null,null,null,null,null,null,null,null,null,null,null,null,null,null,null,null,null,null,null,null,null,null,null,null,null,null,null,null,null,null,null,null,null,null,null,null,null,null,"https://community.secop.gov.co/Public/Tendering/ContractNoticePhases/View?PPI=CO1.PPI.29174317&isFromPublicArea=True&isModal=False"]
[2024,"CPS-010-2024",null,null,"F5.1","2 CONTRATACIÓN DIRECTA","CPS-010-2024","14 PRESTACIÓN DE SERVICIOS","PROFESIONALES","PAMELA CAROLINA PINTO ROSADO","Formación requerida en una (1) carrera profesional "," Ciencias Sociales y Humanas","1 PERSONA NATURAL","3 CÉDULA DE CIUDADANÍA",1003242449,1003242449,null,"11 NO SE DILIGENCIA INFORMACIÓN PARA ESTE FORMULARIO EN ESTE PERÍODO DE REPORTE","NO APLICA","NO APLICA","NO APLICA","LUZ FANY VACA GUTIERREZ",124,"2024-01-11",null,null,null,null,null,"SECRETARIO GENERAL","SECRETARIO GENERAL","“PRESTAR LOS SERVICIOS PROFESIONALES COMO ABOGADA PARA APOYAR LA GESTIÓN JURÍDICA Y ADMINISTRATIVA QUE ADELANTA LA SECRETARIA GENERAL DEL FONDO PASIVO SOCIAL DE FERROCARRILES NACIONALES DE COLOMBIA",{"$f":"LEFT('BASE 2023 FPS'!$AF8,390)","v":"“PRESTAR LOS SERVICIOS PROFESIONALES COMO ABOGADA PARA APOYAR LA GESTIÓN JURÍDICA Y ADMINISTRATIVA QUE ADELANTA LA SECRETARIA GENERAL DEL FONDO PASIVO SOCIAL DE FERROCARRILES NACIONALES DE COLOMBIA"},4303349,47336839,"2024-01-12",1,1,"COLOMBIA > Distrito Capital de Bogotá > Bogotá","COLOMBIA > Distrito Capital de Bogotá > Bogotá","2 SUPERVISOR","NO APLICA","5 NO SE TIENE ESTE TIPO DE SEGUIMIENTO EN EL CONTRATO","NO APLICA","11 NO SE DILIGENCIA INFORMACIÓN PARA ESTE FORMULARIO EN ESTE PERÍODO DE REPORTE",17956156,"CARLOS ANDRES TOVAR OROZCO","SECRETARIO GENERAL","SECRETARIA GENERAL","NO",80111600,"POLIZA","Calidad del servicio - Cumplimiento del contrato","11-46-101042902","2024-01-12","2024-01-12","2024-01-12","2024-01-12","2024-12-11",330,{"$f":"DATEDIF('BASE 2023 FPS'!$BF8-1,'BASE 2023 FPS'!$BG8,\"m\")","v":11},null,null,null,null,null,null,null,null,null,null,null,null,null,null,null,null,null,null,null,null,null,null,null,null,null,null,null,null,null,null,null,null,null,null,null,null,null,null,null,null,null,null,null,null,null,null,null,null,null,null,null,null,null,null,null,null,null,"https://community.secop.gov.co/Public/Tendering/ContractNoticePhases/View?PPI=CO1.PPI.29174628&isFromPublicArea=True&isModal=False"]
[2024,"CPS-012-2024",null,null,"F5.1","2 CONTRATACIÓN DIRECTA","CPS-012-2024","14 PRESTACIÓN DE SERVICIOS","PROFESIONALES","EMILIO SALEM","Formación requerida en una (1) carrera profesional y una  (1) especialización "," Economía, Administración, Contaduría y afines","1 PERSONA NATURAL","3 CÉDULA DE CIUDADANÍA",79684660,79684660,null,"11 NO SE DILIGENCIA INFORMACIÓN PARA ESTE FORMULARIO EN ESTE PERÍODO DE REPORTE","NO APLICA","NO APLICA","NO APLICA","LUZ FANY VACA GUTIERREZ",124,"2024-01-11",null,null,null,null,null,"SECRETARIO GENERAL","SECRETARIO GENERAL","PRESTAR LOS SERVICIOS PROFESIONALES COMO ADMINISTRADOR DE EMPRESAS PARA APOYAR LA GESTIÓN ADMINISTRATIVA QUE ADELANTA LA SECRETARIA GENERAL DEL FONDO DE PASIVO SOCIAL DE FERROCARRILES NACIONALES DE COLOMBIA",{"$f":"LEFT('BASE 2023 FPS'!$AF9,390)","v":"PRESTAR LOS SERVICIOS PROFESIONALES COMO ADMINISTRADOR DE EMPRESAS PARA APOYAR LA GESTIÓN ADMINISTRATIVA QUE ADELANTA LA SECRETARIA GENERAL DEL FONDO DE PASIVO SOCIAL DE FERROCARRILES NACIONALES DE COLOMBIA"},7889475,86784225,"2024-01-12",1,1,"COLOMBIA > Distrito Capital de Bogotá > Bogotá","COLOMBIA > Distrito Capital de Bogotá > Bogotá","2 SUPERVISOR","NO APLICA","5 NO SE TIENE ESTE TIPO DE SEGUIMIENTO EN EL CONTRATO","NO APLICA","11 NO SE DILIGENCIA INFORMACIÓN PARA ESTE FORMULARIO EN ESTE PERÍODO DE REPORTE",17956156,"CARLOS ANDRES TOVAR OROZCO","SECRETARIO GENERAL","SECRETARIA GENERAL","NO",80111600,"POLIZA","Calidad del servicio - Cumplimiento del contrato","11-46-101042919","2024-01-12","2024-01-12","2024-01-12","2024-01-12","2024-12-11",330,{"$f":"DATEDIF('BASE 2023 FPS'!$BF9-1,'BASE 2023 FPS'!$BG9,\"m\")","v":11},null,null,null,null,null,null,null,null,null,null,null,null,null,null,null,null,null,null,null,null,null,null,null,null,null,null,null,null,null,null,null,null,null,null,null,null,null,null,null,null,null,null,null,null,null,null,null,null,null,null,null,null,null,null,null,null,null,"https://community.secop.gov.co/Public/Tendering/ContractNoticePhases/View?PPI=CO1.PPI.29174669&isFromPublicArea=True&isModal=False"]
[2024,"CPS-013-2024",null,null,"F5.1","2 CONTRATACIÓN DIRECTA","CPS-013-2024","14 PRESTACIÓN DE SERVICIOS","PROFESIONALES","JUAN SARMIENTO BAQUERO","Formación requerida en una (1) carrera profesional "," Ciencias Sociales y Humanas","1 PERSONA NATURAL","3 CÉDULA DE CIUDADANÍA",1067947283,1067947283,null,"11 NO SE DILIGENCIA INFORMACIÓN PARA ESTE FORMULARIO EN ESTE PERÍODO DE REPORTE","NO APLICA","NO APLICA","NO APLICA","LUZ FANY VACA GUTIERREZ",124,"2024-01-11",null,null,null,null,null,"SUBDIRECCION FINANCIERA – GIT CARTERA","SUBDIRECCION FINANCIERA – GIT CARTERA","PRESTAR LOS SERVICIOS DE APOYO A LA GESTIÓN COMO ABOGADO, CON EL FIN DE ADELANTAR ACTIVIDADES RELACIONADAS CON LOS ASUNTOS JURÍDICOS Y ADMINISTRATIVOS EN LA SUBDIRECCIÓN FINANCIERA - GRUPO CARTERA DEL FONDO PASIVO SOCIAL DE FERROCARRILES NACIONALES DE COLOMBIA",{"$f":"LEFT('BASE 2023 FPS'!$AF10,390)","v":"PRESTAR LOS SERVICIOS DE APOYO A LA GESTIÓN COMO ABOGADO, CON EL FIN DE ADELANTAR ACTIVIDADES RELACIONADAS CON LOS ASUNTOS JURÍDICOS Y ADMINISTRATIVOS EN LA SUBDIRECCIÓN FINANCIERA - GRUPO CARTERA DEL FONDO PASIVO SOCIAL DE FERROCARRILES NACIONALES DE COLOMBIA"},4064275,44707025,"2024-01-12",1,1,"COLOMBIA > Distrito Capital de Bogotá > Bogotá","COLOMBIA > Distrito Capital de Bogotá > Bogotá","2 SUPERVISOR","NO APLICA","5 NO SE TIENE ESTE TIPO DE SEGUIMIENTO EN EL CONTRATO","NO APLICA","11 NO SE DILIGENCIA INFORMACIÓN PARA ESTE FORMULARIO EN ESTE PERÍODO DE REPORTE",23621957,"LUZ FANNY VACA GUTIERREZ","SUBDIRECCION FINANCIERA – GIT CARTERA","SUBDIRECCION FINANCIERA – GIT CARTERA","NO",80111600,"POLIZA","Calidad del servicio - Cumplimiento del contrato","11-46-101042916","2024-01-12","2024-01-12","2024-01-12","2024-01-12","2024-12-11",330,{"$f":"DATEDIF('BASE 2023 FPS'!$BF10-1,'BASE 2023 FPS'!$BG10,\"m\")","v":11},null,null,null,null,null,null,null,null,null,null,null,null,null,null,null,null,null,null,null,null,null,null,null,null,null,null,null,null,null,null,null,null,null,null,null,null,null,null,null,null,null,null,null,null,null,null,null,null,null,null,null,null,null,null,null,null,null,"https://community.secop.gov.co/Public/Tendering/ContractNoticePhases/View?PPI=CO1.PPI.29176107&isFromPublicArea=True&isModal=False"]
[2024,"CPS-014-2024",null,null,"F5.1","2 CONTRATACIÓN DIRECTA","CPS-014-2024","14 PRESTACIÓN DE SERVICIOS","PROFESIONALES","BENJAMIN EDILSON PIÑEROS RIOS","Formación requerida en una (1) carrera profesional y una  (1) especialización "," Ciencias Sociales y Humanas","1 PERSONA NATURAL","3 CÉDULA DE CIUDADANÍA",80108032,80108032,null,"11 NO SE DILIGENCIA INFORMACIÓN PARA ESTE FORMULARIO EN ESTE PERÍODO DE REPORTE","NO APLICA","NO APLICA","NO APLICA","LUZ FANY VACA GUTIERREZ",124,"2024-01-11",null,null,null,null,null,"DIRECCION GENERAL","DIRECCION GENERAL","PRESTAR LOS SERVICIOS PROFESIONALES COMO ABOGADO ESPECIALISTA PARA APOYAR LA GESTIÓN JURÍDICA Y ADMINISTRATIVA QUE ADELANTA LA DIRECCIÓN GENERAL DEL FONDO PASIVO SOCIAL DE FERROCARRILES NACIONALES DE COLOMBIA",{"$f":"LEFT('BASE 2023 FPS'!$AF11,390)","v":"PRESTAR LOS SERVICIOS PROFESIONALES COMO ABOGADO ESPECIALISTA PARA APOYAR LA GESTIÓN JURÍDICA Y ADMINISTRATIVA QUE ADELANTA LA DIRECCIÓN GENERAL DEL FONDO PASIVO SOCIAL DE FERROCARRILES NACIONALES DE COLOMBIA"},7889475,86784225,"2024-01-12",1,1,"COLOMBIA > Distrito Capital de Bogotá > Bogotá","COLOMBIA > Distrito Capital de Bogotá > Bogotá","2 SUPERVISOR","NO APLICA","5 NO SE TIENE ESTE TIPO DE SEGUIMIENTO EN EL CONTRATO","NO APLICA","11 NO SE DILIGENCIA INFORMACIÓN PARA ESTE FORMULARIO EN ESTE PERÍODO DE REPORTE",23621957,"LUZ FANNY VACA GUTIERREZ","DIRECCION GENERAL","DIRECCION GENERAL","NO",80111600,"POLIZA","Calidad del servicio - Cumplimiento del contrato","11-46-101042930","2024-01-12","2024-01-12","2024-01-12","2024-01-12","2024-12-11",330,{"$f":"DATEDIF('BASE 2023 FPS'!$BF11-1,'BASE 2023 FPS'!$BG11,\"m\")","v":11},null,null,null,null,null,null,null,null,null,null,null,null,null,null,null,null,null,null,null,null,null,null,null,null,null,null,null,null,null,null,null,null,null,null,null,null,null,null,null,null,null,null,null,null,null,null,null,null,null,null,null,null,null,null,null,null,null,"https://community.secop.gov.co/Public/Tendering/ContractNoticePhases/View?PPI=CO1.PPI.29173791&isFromPublicArea=True&isModal=False"]
[2024,"CPS-015-2024",null,null,"F5.1","2 CONTRATACIÓN DIRECTA","CPS-015-2024","14 PRESTACIÓN DE SERVICIOS","PROFESIONALES","LUZ ALEJANDRA MAESTRE RUMBO","Formación requerida en una (1) carrera profesional y una  (1) especialización "," Ciencias Sociales y Humanas","1 PERSONA NATURAL","3 CÉDULA DE CIUDADANÍA",40801821,40801821,null,"11 NO SE DILIGENCIA INFORMACIÓN PARA ESTE FORMULARIO EN ESTE PERÍODO DE REPORTE","NO APLICA","NO APLICA","NO APLICA","LUZ FANY VACA GUTIERREZ",124,"2024-01-11",null,null,null,null,null,"SECRETARIO GENERAL","SECRETARIO GENERAL","PRESTAR LOS SERVICIOS PROFESIONALES COMO ABOGADA, CON EL FIN DE ADELANTAR ACTIVIDADES RELACIONADAS CON LOS ASUNTOS JURÍDICOS Y ADMINISTRATIVOS DESDE LA SECRETARÍA GENERAL – ATENCIÓN AL CIUDADANO Y GESTIÓN DOCUMENTAL DEL FONDO DE PASIVO SOCIAL DE FERROCARRILES NACIONALES DE COLOMBIA",{"$f":"LEFT('BASE 2023 FPS'!$AF12,390)","v":"PRESTAR LOS SERVICIOS PROFESIONALES COMO ABOGADA, CON EL FIN DE ADELANTAR ACTIVIDADES RELACIONADAS CON LOS ASUNTOS JURÍDICOS Y ADMINISTRATIVOS DESDE LA SECRETARÍA GENERAL – ATENCIÓN AL CIUDADANO Y GESTIÓN DOCUMENTAL DEL FONDO DE PASIVO SOCIAL DE FERROCARRILES NACIONALES DE COLOMBIA"},6096412,67060532,"2024-01-12",1,1,"COLOMBIA > Distrito Capital de Bogotá > Bogotá","COLOMBIA > Distrito Capital de Bogotá > Bogotá","2 SUPERVISOR","NO APLICA","5 NO SE TIENE ESTE TIPO DE SEGUIMIENTO EN EL CONTRATO","NO APLICA","11 NO SE DILIGENCIA INFORMACIÓN PARA ESTE FORMULARIO EN ESTE PERÍODO DE REPORTE",17956156,"CARLOS ANDRES TOVAR OROZCO","SECRETARIO GENERAL","SECRETARIA GENERAL","NO",80111600,"POLIZA","Calidad del servicio - Cumplimiento del contrato","11-46-101042932","2024-01-12","2024-01-12","2024-01-12","2024-01-12","2024-12-11",330,{"$f":"DATEDIF('BASE 2023 FPS'!$BF12-1,'BASE 2023 FPS'!$BG12,\"m\")","v":11},null,null,null,null,null,null,null,null,null,null,null,null,null,null,null,null,null,null,null,null,null,null,null,null,null,null,null,null,null,null,null,null,null,null,null,null,null,null,null,null,null,null,null,null,null,null,null,null,null,null,null,null,null,null,null,null,null,"https://community.secop.gov.co/Public/Tendering/ContractNoticePhases/View?PPI=CO1.PPI.29174696&isFromPublicArea=True&isModal=False"]
[2024,"CPS-016-2024",null,null,"F5.1","2 CONTRATACIÓN DIRECTA","CPS-016-2024","14 PRESTACIÓN DE SERVICIOS","PROFESIONALES","ANA FRANCISCA GARCIA QUINTERO","Formación requerida en una (1) carrera profesional "," Ciencias de la Salud","1 PERSONA NATURAL","3 CÉDULA DE CIUDADANÍA",56097622,56097622,null,"11 NO SE DILIGENCIA INFORMACIÓN PARA ESTE FORMULARIO EN ESTE PERÍODO DE REPORTE","NO APLICA","NO APLICA","NO APLICA","LUZ FANY VACA GUTIERREZ",124,"2024-01-11",null,null,null,null,null,"COORDINADOR GIT GESTIÓN PRESTACIÓN DE SERVICIOS DE SALUD – DIVISIÓN CENTRAL","COORDINADOR GIT GESTIÓN PRESTACIÓN DE SERVICIOS DE SALUD – DIVISIÓN CENTRAL","PRESTAR LOS SERVICIOS PROFESIONALES COMO TRABAJADOR SOCIAL PARA APOYAR LA GESTIÓN ADMINISTRATIVA DE LA DIVISION CENTRAL DEL GIT SALUD DE LA SUBDIRECCION DE PRESTACIONES SOCIALES DEL FONDO DE PASIVO SOCIAL DE FERROCARRILES NACIONALES DE COLOMBIA",{"$f":"LEFT('BASE 2023 FPS'!$AF13,390)","v":"PRESTAR LOS SERVICIOS PROFESIONALES COMO TRABAJADOR SOCIAL PARA APOYAR LA GESTIÓN ADMINISTRATIVA DE LA DIVISION CENTRAL DEL GIT SALUD DE LA SUBDIRECCION DE PRESTACIONES SOCIALES DEL FONDO DE PASIVO SOCIAL DE FERROCARRILES NACIONALES DE COLOMBIA"},6096412,67060532,"2024-01-12",1,1,"COLOMBIA > Distrito Capital de Bogotá > Bogotá","COLOMBIA > Distrito Capital de Bogotá > Bogotá","2 SUPERVISOR","NO APLICA","5 NO SE TIENE ESTE TIPO DE SEGUIMIENTO EN EL CONTRATO","NO APLICA","11 NO SE DILIGENCIA INFORMACIÓN PARA ESTE FORMULARIO EN ESTE PERÍODO DE REPORTE",72001931,"XAVIER AUGUSTO NORIEGA SIRTORI","COORDINADOR GIT GESTIÓN PRESTACIÓN DE SERVICIOS DE SALUD – DIVISIÓN CENTRAL","GIT GESTIÓN PRESTACIÓN DE SERVICIOS DE SALUD – DIVISIÓN CENTRAL","NO",80111600,"POLIZA","Calidad del servicio - Cumplimiento del contrato","11-46-101042902","2024-01-12","2024-01-12","2024-01-12","2024-01-12","2024-12-11",330,{"$f":"DATEDIF('BASE 2023 FPS'!$BF13-1,'BASE 2023 FPS'!$BG13,\"m\")","v":11},null,null,null,null,null,null,null,null,null,null,null,null,null,null,null,null,null,null,null,null,null,null,null,null,null,null,null,null,null,null,null,null,null,null,null,null,null,null,null,null,null,null,null,null,null,null,null,null,null,null,null,null,null,null,null,null,null,"https://community.secop.gov.co/Public/Tendering/ContractNoticePhases/View?PPI=CO1.PPI.29176769&isFromPublicArea=True&isModal=False"]
[2024,"CPS-017-2024",null,null,"F5.1","2 CONTRATACIÓN DIRECTA","CPS-017-2024","14 PRESTACIÓN DE SERVICIOS","PROFESIONALES","DIANA LUCIA PINEDA TELLEZ","Formación requerida en una (1) carrera profesional "," Ciencias de la Salud","1 PERSONA NATURAL","3 CÉDULA DE CIUDADANÍA",1013581817,1013581817,null,"11 NO SE DILIGENCIA INFORMACIÓN PARA ESTE FORMULARIO EN ESTE PERÍODO DE REPORTE","NO APLICA","NO APLICA","NO APLICA","LUZ FANY VACA GUTIERREZ",124,"2024-01-11",null,null,null,null,null,"COORDINADOR GIT GESTIÓN PRESTACIÓN DE SERVICIOS DE SALUD – DIVISIÓN CENTRAL","COORDINADOR GIT GESTIÓN PRESTACIÓN DE SERVICIOS DE SALUD – DIVISIÓN CENTRAL","PRESTAR LOS SERVICIOS PROFESIONALES PARA APOYAR LA GESTIÓN ADMINISTRATIVA DE LA DIVISION CENTRAL DEL GIT SALUD DE LA SUBDIRECCION DE PRESTACIONES SOCIALES DEL FONDO DE PASIVO SOCIAL DE FERROCARRILES NACIONALES DE COLOMBIA",{"$f":"LEFT('BASE 2023 FPS'!$AF14,390)","v":"PRESTAR LOS SERVICIOS PROFESIONALES PARA APOYAR LA GESTIÓN ADMINISTRATIVA DE LA DIVISION CENTRAL DEL GIT SALUD DE LA SUBDIRECCION DE PRESTACIONES SOCIALES DEL FONDO DE PASIVO SOCIAL DE FERROCARRILES NACIONALES DE COLOMBIA"},6096412,67060532,"2024-01-12",1,1,"COLOMBIA > Distrito Capital de Bogotá > Bogotá","COLOMBIA > Distrito Capital de Bogotá > Bogotá","2 SUPERVISOR","NO APLICA","5 NO SE TIENE ESTE TIPO DE SEGUIMIENTO EN EL CONTRATO","NO APLICA","11 NO SE DILIGENCIA INFORMACIÓN PARA ESTE FORMULARIO EN ESTE PERÍODO DE REPORTE",72001931,"XAVIER AUGUSTO NORIEGA SIRTORI","COORDINADOR GIT GESTIÓN PRESTACIÓN DE SERVICIOS DE SALUD – DIVISIÓN CENTRAL","GIT GESTIÓN PRESTACIÓN DE SERVICIOS DE SALUD – DIVISIÓN CENTRAL","NO",80111600,"POLIZA","Calidad del servicio - Cumplimiento del contrato","11-46-101042986","2024-01-12","2024-01-12","2024-01-12","2024-01-12","2024-12-11",330,{"$f":"DATEDIF('BASE 2023 FPS'!$BF14-1,'BASE 2023 FPS'!$BG14,\"m\")","v":11},null,null,null,null,null,null,null,null,null,null,null,null,null,null,null,null,null,null,null,null,null,null,null,null,null,null,null,null,null,null,null,null,null,null,null,null,null,null,null,null,null,null,null,null,null,null,null,null,null,null,null,null,null,null,null,null,null,"https://community.secop.gov.co/Public/Tendering/ContractNoticePhases/View?PPI=CO1.PPI.29176770&isFromPublicArea=True&isModal=False"]
[2024,"CPS-018-2024",null,null,"F5.1","2 CONTRATACIÓN DIRECTA","CPS-018-2024","14 PRESTACIÓN DE SERVICIOS","TECNICOS","MIRY ALEJANDRA TUIRAN CARRASCAL","Apoyo a la gestion"," Ciencias de la Salud","1 PERSONA NATURAL","3 CÉDULA DE CIUDADANÍA",1063360413,1063360413,null,"11 NO SE DILIGENCIA INFORMACIÓN PARA ESTE FORMULARIO EN ESTE PERÍODO DE REPORTE","NO APLICA","NO APLICA","NO APLICA","LUZ FANY VACA GUTIERREZ",124,"2024-01-11",null,null,null,null,null,"COORDINADOR GIT GESTIÓN PRESTACIÓN DE SERVICIOS DE SALUD – DIVISIÓN CENTRAL","COORDINADOR GIT GESTIÓN PRESTACIÓN DE SERVICIOS DE SALUD – DIVISIÓN CENTRAL","PRESTAR LOS SERVICIOS COMO TECNICO DE AUDITORIA DE LA DIVISION CENTRAL DEL GIT SALUD DE LA SUBDIRECCION DE PRESTACIONES SOCIALES DEL FONDO DE PASIVO SOCIAL DE FERROCARRILES NACIONALES DE COLOMBIA",{"$f":"LEFT('BASE 2023 FPS'!$AF15,390)","v":"PRESTAR LOS SERVICIOS COMO TECNICO DE AUDITORIA DE LA DIVISION CENTRAL DEL GIT SALUD DE LA SUBDIRECCION DE PRESTACIONES SOCIALES DEL FONDO DE PASIVO SOCIAL DE FERROCARRILES NACIONALES DE COLOMBIA"},3705662,40762282,"2024-01-12",1,1,"COLOMBIA > Distrito Capital de Bogotá > Bogotá","COLOMBIA > Distrito Capital de Bogotá > Bogotá","2 SUPERVISOR","NO APLICA","5 NO SE TIENE ESTE TIPO DE SEGUIMIENTO EN EL CONTRATO","NO APLICA","11 NO SE DILIGENCIA INFORMACIÓN PARA ESTE FORMULARIO EN ESTE PERÍODO DE REPORTE",72001931,"XAVIER AUGUSTO NORIEGA SIRTORI","COORDINADOR GIT GESTIÓN PRESTACIÓN DE SERVICIOS DE SALUD – DIVISIÓN CENTRAL","GIT GESTIÓN PRESTACIÓN DE SERVICIOS DE SALUD – DIVISIÓN CENTRAL","NO",80111600,"POLIZA","Calidad del servicio - Cumplimiento del contrato","11-46-101042955","2024-01-12","2024-01-12","2024-01-12","2024-01-12","2024-12-11",330,{"$f":"DATEDIF('BASE 2023 FPS'!$BF15-1,'BASE 2023 FPS'!$BG15,\"m\")","v":11},null,null,null,null,null,null,null,null,null,null,null,null,null,null,null,null,null,null,null,null,null,null,null,null,null,null,null,null,null,null,null,null,null,null,null,null,null,null,null,null,null,null,null,null,null,null,null,null,null,null,null,null,null,null,null,null,null,"https://community.secop.gov.co/Public/Tendering/ContractNoticePhases/View?PPI=CO1.PPI.29176771&isFromPublicArea=True&isModal=False"]
[2024,"CPS-019-2024",null,null,"F5.1","2 CONTRATACIÓN DIRECTA","CPS-019-2024","14 PRESTACIÓN DE SERVICIOS","PROFESIONALES","ORIANA PAOLA GONZALEZ","Formación requerida en una (1) carrera profesional "," Ingeniería, Arquitectura, Urbanismo y afines","1 PERSONA NATURAL","3 CÉDULA DE CIUDADANÍA",1121040784,1121040784,null,"11 NO SE DILIGENCIA INFORMACIÓN PARA ESTE FORMULARIO EN ESTE PERÍODO DE REPORTE","NO APLICA","NO APLICA","NO APLICA","LUZ FANY VACA GUTIERREZ",124,"2024-01-11",null,null,null,null,null,"SUBDIRECCION FINANCIERA – GIT CARTERA","SUBDIRECCION FINANCIERA – GIT CARTERA","PRESTAR LOS SERVICIOS PROFESIONALES COMO INGENIERA INDUSTRIAL PARA APOYAR LA GESTIÓN ADMINISTRATIVA DE LA SUBDIRECCIÓN FINANCIERA DEL FONDO PASIVO SOCIAL DE FERROCARRILES NACIONALES DE COLOMBIA",{"$f":"LEFT('BASE 2023 FPS'!$AF16,390)","v":"PRESTAR LOS SERVICIOS PROFESIONALES COMO INGENIERA INDUSTRIAL PARA APOYAR LA GESTIÓN ADMINISTRATIVA DE LA SUBDIRECCIÓN FINANCIERA DEL FONDO PASIVO SOCIAL DE FERROCARRILES NACIONALES DE COLOMBIA"},7889475,86784225,"2024-01-12",1,1,"COLOMBIA > Distrito Capital de Bogotá > Bogotá","COLOMBIA > Distrito Capital de Bogotá > Bogotá","2 SUPERVISOR","NO APLICA","5 NO SE TIENE ESTE TIPO DE SEGUIMIENTO EN EL CONTRATO","NO APLICA","11 NO SE DILIGENCIA INFORMACIÓN PARA ESTE FORMULARIO EN ESTE PERÍODO DE REPORTE",23621957,"LUZ FANNY VACA GUTIERREZ","SUBDIRECCION FINANCIERA – GIT CARTERA","SUBDIRECCION FINANCIERA – GIT CARTERA","NO",80111600,"POLIZA","Calidad del servicio - Cumplimiento del contrato","11-46-101042931","2024-01-12","2024-01-12","2024-01-12","2024-01-12","2024-12-11",330,{"$f":"DATEDIF('BASE 2023 FPS'!$BF16-1,'BASE 2023 FPS'!$BG16,\"m\")","v":11},null,null,null,null,null,null,null,null,null,null,null,null,null,null,null,null,null,null,null,null,null,null,null,null,null,null,null,null,null,null,null,null,null,null,null,null,null,null,null,null,null,null,null,null,null,null,null,null,null,null,null,null,null,null,null,null,null,"https://community.secop.gov.co/Public/Tendering/ContractNoticePhases/View?PPI=CO1.PPI.29176713&isFromPublicArea=True&isModal=False"]
[2024,"CPS-020-2024",null,null,"F5.1","2 CONTRATACIÓN DIRECTA","CPS-020-2024","14 PRESTACIÓN DE SERVICIOS","PROFESIONALES","EIVIN CARRILLO","Formación requerida en una (1) carrera profesional "," Economía, Administración, Contaduría y afines","1 PERSONA NATURAL","3 CÉDULA DE CIUDADANÍA",17953567,17953567,null,"11 NO SE DILIGENCIA INFORMACIÓN PARA ESTE FORMULARIO EN ESTE PERÍODO DE REPORTE","NO APLICA","NO APLICA","NO APLICA","LUZ FANY VACA GUTIERREZ",124,"2024-01-11",null,null,null,null,null,"SECRETARIO GENERAL","SECRETARIO GENERAL","PRESTAR LOS SERVICIOS PROFESIONALES, CON EL FIN DE ADELANTAR ACTIVIDADES RELACIONADAS CON LOS ASUNTOS JURÍDICOS Y ADMINISTRATIVOS DESDE LA SECRETARÍA GENERAL DEL FONDO DE PASIVO SOCIAL DE FERROCARRILES NACIONALES DE COLOMBIA",{"$f":"LEFT('BASE 2023 FPS'!$AF17,390)","v":"PRESTAR LOS SERVICIOS PROFESIONALES, CON EL FIN DE ADELANTAR ACTIVIDADES RELACIONADAS CON LOS ASUNTOS JURÍDICOS Y ADMINISTRATIVOS DESDE LA SECRETARÍA GENERAL DEL FONDO DE PASIVO SOCIAL DE FERROCARRILES NACIONALES DE COLOMBIA"},6455025,71005275,"2024-01-13",1,1,"COLOMBIA > Distrito Capital de Bogotá > Bogotá","COLOMBIA > Distrito Capital de Bogotá > Bogotá","2 SUPERVISOR","NO APLICA","5 NO SE TIENE ESTE TIPO DE SEGUIMIENTO EN EL CONTRATO","NO APLICA","11 NO SE DILIGENCIA INFORMACIÓN PARA ESTE FORMULARIO EN ESTE PERÍODO DE REPORTE",17956156,"CARLOS ANDRES TOVAR OROZCO","SECRETARIO GENERAL","SECRETARIA GENERAL","NO",80111600,"POLIZA","Calidad del servicio - Cumplimiento del contrato","11-46-101042978","2024-01-13","2024-01-13","2024-01-13","2024-01-13","2024-12-12",330,{"$f":"DATEDIF('BASE 2023 FPS'!$BF17-1,'BASE 2023 FPS'!$BG17,\"m\")","v":11},null,null,null,null,null,null,null,null,null,null,null,null,null,null,null,null,null,null,null,null,null,null,null,null,null,null,null,null,null,null,null,null,null,null,null,null,null,null,null,null,null,null,null,null,null,null,null,null,null,null,null,null,null,null,null,null,null,"https://community.secop.gov.co/Public/Tendering/ContractNoticePhases/View?PPI=CO1.PPI.29183716&isFromPublicArea=True&isModal=False"]
[2024,"CPS-021-2024",null,null,"F5.1","2 CONTRATACIÓN DIRECTA","CPS-021-2024","14 PRESTACIÓN DE SERVICIOS","PROFESIONALES","MARTHA LILIANA GARCIA LEIVA","Formación requerida en una (1) carrera profesional "," Economía, Administración, Contaduría y afines","1 PERSONA NATURAL","3 CÉDULA DE CIUDADANÍA",33369883,33369883,null,"11 NO SE DILIGENCIA INFORMACIÓN PARA ESTE FORMULARIO EN ESTE PERÍODO DE REPORTE","NO APLICA","NO APLICA","NO APLICA","LUZ FANY VACA GUTIERREZ",124,"2024-01-11",null,null,null,null,null,"JEFE OFICINA ASESORA PLANEACION Y SISTEMAS","JEFE OFICINA ASESORA PLANEACION Y SISTEMAS","PRESTAR LOS SERVICIOS PROFESIONALES COMO ADMINISTRADOR DE EMPRESAS PARA APOYAR LA GESTIÓN ADMINISTRATIVA DESDE LA OFICINA ASESORA DE PLANEACIÓN Y SISTEMAS",{"$f":"LEFT('BASE 2023 FPS'!$AF18,390)","v":"PRESTAR LOS SERVICIOS PROFESIONALES COMO ADMINISTRADOR DE EMPRESAS PARA APOYAR LA GESTIÓN ADMINISTRATIVA DESDE LA OFICINA ASESORA DE PLANEACIÓN Y SISTEMAS"},7889475,86784225,"2024-01-13",1,1,"COLOMBIA > Distrito Capital de Bogotá > Bogotá","COLOMBIA > Distrito Capital de Bogotá > Bogotá","2 SUPERVISOR","NO APLICA","5 NO SE TIENE ESTE TIPO DE SEGUIMIENTO EN EL CONTRATO","NO APLICA","11 NO SE DILIGENCIA INFORMACIÓN PARA ESTE FORMULARIO EN ESTE PERÍODO DE REPORTE",24218560,"MARIA YANETH FARFAN CASALLAS","JEFE OFICINA ASESORA PLANEACION Y SISTEMAS","OFICINA ASESORA PLANEACION Y SISTEMAS","NO",80111600,"POLIZA","Calidad del servicio - Cumplimiento del contrato",null,"2024-01-13","2024-01-13","2024-01-13","2024-01-13","2024-12-12",330,{"$f":"DATEDIF('BASE 2023 FPS'!$BF18-1,'BASE 2023 FPS'!$BG18,\"m\")","v":11},null,null,null,null,null,null,null,null,null,null,null,null,null,null,null,null,null,null,null,null,null,null,null,null,null,null,null,null,null,null,null,null,null,null,null,null,null,null,null,null,null,null,null,null,null,null,null,null,null,null,null,null,null,null,null,null,null,"https://community.secop.gov.co/Public/Tendering/ContractNoticePhases/View?PPI=CO1.PPI.29180387&isFromPublicArea=True&isModal=False"]
[2024,"CPS-022-2024",null,null,"F5.1","2 CONTRATACIÓN DIRECTA","CPS-022-2024","14 PRESTACIÓN DE SERVICIOS","PROFESIONALES","GINA MARCELA GOMEZ","Formación requerida en una (1) carrera profesional y una  (1) especialización "," Ciencias Sociales y Humanas","1 PERSONA NATURAL","3 CÉDULA DE CIUDADANÍA",1094888185,1094888185,null,"11 NO SE DILIGENCIA INFORMACIÓN PARA ESTE FORMULARIO EN ESTE PERÍODO DE REPORTE","NO APLICA","NO APLICA","NO APLICA","LUZ FANY VACA GUTIERREZ",124,"2024-01-11",null,null,null,null,null,"SECRETARIA GENERAL – ATENCION AL CIUDADANO Y GESTION DOCUMENTAL","SECRETARIA GENERAL – ATENCION AL CIUDADANO Y GESTION DOCUMENTAL","PRESTAR LOS SERVICIOS PROFESIONALES DE APOYO A LA GESTIÓN AL G.I.T ATENCIÓN AL CIUDADANO DEL FONDO DE PASIVO SOCIAL DE FERROCARRILES NACIONALES DE COLOMBIA EN LO RELACIONADO CON LOS SERVICIOS DE SALUD",{"$f":"LEFT('BASE 2023 FPS'!$AF19,390)","v":"PRESTAR LOS SERVICIOS PROFESIONALES DE APOYO A LA GESTIÓN AL G.I.T ATENCIÓN AL CIUDADANO DEL FONDO DE PASIVO SOCIAL DE FERROCARRILES NACIONALES DE COLOMBIA EN LO RELACIONADO CON LOS SERVICIOS DE SALUD"},7172250,78894750,"2024-01-13",1,1,"COLOMBIA > Distrito Capital de Bogotá > Bogotá","COLOMBIA > Distrito Capital de Bogotá > Bogotá","2 SUPERVISOR","NO APLICA","5 NO SE TIENE ESTE TIPO DE SEGUIMIENTO EN EL CONTRATO","NO APLICA","11 NO SE DILIGENCIA INFORMACIÓN PARA ESTE FORMULARIO EN ESTE PERÍODO DE REPORTE",39526262,"NURY NAVARRO HERNADEZ","SECRETARIA GENERAL – ATENCION AL CIUDADANO Y GESTION DOCUMENTAL","SECRETARIA GENERAL – ATENCION AL CIUDADANO Y GESTION DOCUMENTAL","NO",80111600,"POLIZA","Calidad del servicio - Cumplimiento del contrato","11-46-101042980","2024-01-13","2024-01-13","2024-01-13","2024-01-13","2024-12-12",330,{"$f":"DATEDIF('BASE 2023 FPS'!$BF19-1,'BASE 2023 FPS'!$BG19,\"m\")","v":11},null,null,null,null,null,null,null,null,null,null,null,null,null,null,null,null,null,null,null,null,null,null,null,null,null,null,null,null,null,null,null,null,null,null,null,null,null,null,null,null,null,null,null,null,null,null,null,null,null,null,null,null,null,null,null,null,null,"https://community.secop.gov.co/Public/Tendering/ContractNoticePhases/View?PPI=CO1.PPI.29183758&isFromPublicArea=True&isModal=False"]
[2024,"CPS-023-2024",null,null,"F5.1","2 CONTRATACIÓN DIRECTA","CPS-023-2024","14 PRESTACIÓN DE SERVICIOS","TECNICOS","ANA PAOLA ANAYA GARCIA","Apoyo a la gestion"," Ciencias de la Salud","1 PERSONA NATURAL","3 CÉDULA DE CIUDADANÍA",36696858,36696858,null,"11 NO SE DILIGENCIA INFORMACIÓN PARA ESTE FORMULARIO EN ESTE PERÍODO DE REPORTE","NO APLICA","NO APLICA","NO APLICA","LUZ FANY VACA GUTIERREZ",124,"2024-01-11",null,null,null,null,null,"MEDICO ESPECIALISTA DIVISION MAGDALENA","MEDICO ESPECIALISTA DIVISION MAGDALENA","PRESTAR LOS SERVICIOS DE APOYO A LA GESTIÓN DEL GRUPO INTERNO DE TRABAJO GESTION PRESTACIÓN DE SERVICIOS DE SALUD EN LA DIVISIÓN MAGDALENA (CIUDAD SANTA MARTA) DEL FONDO DE PASIVO SOCIAL DE FERROCARRILES NACIONALES DE COLOMBIA EN LA REALIZACION DE LABORES TECNICAS DE AUDITORIA Y GENERACION DE INFORMES DE APOYO AL MEDICO ESPECIALISTA AUDITOR",{"$f":"LEFT('BASE 2023 FPS'!$AF20,390)","v":"PRESTAR LOS SERVICIOS DE APOYO A LA GESTIÓN DEL GRUPO INTERNO DE TRABAJO GESTION PRESTACIÓN DE SERVICIOS DE SALUD EN LA DIVISIÓN MAGDALENA (CIUDAD SANTA MARTA) DEL FONDO DE PASIVO SOCIAL DE FERROCARRILES NACIONALES DE COLOMBIA EN LA REALIZACION DE LABORES TECNICAS DE AUDITORIA Y GENERACION DE INFORMES DE APOYO AL MEDICO ESPECIALISTA AUDITOR"},3705662,40762282,"2024-01-13",1,1,"COLOMBIA > Distrito Capital de Bogotá > Bogotá","COLOMBIA > Distrito Capital de Bogotá > Bogotá","2 SUPERVISOR","NO APLICA","5 NO SE TIENE ESTE TIPO DE SEGUIMIENTO EN EL CONTRATO","NO APLICA","11 NO SE DILIGENCIA INFORMACIÓN PARA ESTE FORMULARIO EN ESTE PERÍODO DE REPORTE",35507261,"RAIMUNDO COHEN COGOLLO","MEDICO ESPECIALISTA DIVISION MAGDALENA","GIT GESTIÓN PRESTACIÓN SERVICIOS DE SALUD -  DIVISION MAGDALENA","NO",80111600,"POLIZA","Calidad del servicio - Cumplimiento del contrato","96-46-101016128","2024-01-13","2024-01-13","2024-01-13","2024-01-13","2024-12-12",330,{"$f":"DATEDIF('BASE 2023 FPS'!$BF20-1,'BASE 2023 FPS'!$BG20,\"m\")","v":11},null,null,null,null,null,null,null,null,null,null,null,null,null,null,null,null,null,null,null,null,null,null,null,null,null,null,null,null,null,null,null,null,null,null,null,null,null,null,null,null,null,null,null,null,null,null,null,null,null,null,null,null,null,null,null,null,null,"https://community.secop.gov.co/Public/Tendering/ContractNoticePhases/View?PPI=CO1.PPI.29183725&isFromPublicArea=True&isModal=False"]
[2024,"CPS-024-2024",null,null,"F5.1","2 CONTRATACIÓN DIRECTA","CPS-024-2024","14 PRESTACIÓN DE SERVICIOS","PROFESIONALES","JOSE ACEVEDO DIAZ","Formación requerida en una (1) carrera profesional "," Economía, Administración, Contaduría y afines","1 PERSONA NATURAL","3 CÉDULA DE CIUDADANÍA",1063359697,1063359697,null,"11 NO SE DILIGENCIA INFORMACIÓN PARA ESTE FORMULARIO EN ESTE PERÍODO DE REPORTE","NO APLICA","NO APLICA","NO APLICA","LUZ FANY VACA GUTIERREZ",124,"2024-01-11",null,null,null,null,null,"COORDINADOR GIT CONTABILIDAD","COORDINADOR GIT CONTABILIDAD","PRESTAR LOS SERVICIOS PROFESIONALES COMO CONTADOR PÚBLICO PARA APOYAR LA GESTIÓN ADMINISTRATIVA DEL GIT DE CONTABILIDAD DEL FONDO PASIVO SOCIAL DE FERROCARRILES NACIONALES DE COLOMBIA",{"$f":"LEFT('BASE 2023 FPS'!$AF21,390)","v":"PRESTAR LOS SERVICIOS PROFESIONALES COMO CONTADOR PÚBLICO PARA APOYAR LA GESTIÓN ADMINISTRATIVA DEL GIT DE CONTABILIDAD DEL FONDO PASIVO SOCIAL DE FERROCARRILES NACIONALES DE COLOMBIA"},5259650,57856150,"2024-01-13",1,1,"COLOMBIA > Distrito Capital de Bogotá > Bogotá","COLOMBIA > Distrito Capital de Bogotá > Bogotá","2 SUPERVISOR","NO APLICA","5 NO SE TIENE ESTE TIPO DE SEGUIMIENTO EN EL CONTRATO","NO APLICA","11 NO SE DILIGENCIA INFORMACIÓN PARA ESTE FORMULARIO EN ESTE PERÍODO DE REPORTE",40048297,"TULIA XIMENA DIAZ ROMERO","COORDINADOR GIT CONTABILIDAD","COORDINADOR GIT CONTABILIDAD","NO",80111600,"POLIZA","Calidad del servicio - Cumplimiento del contrato","96-46-101016125","2024-01-13","2024-01-13","2024-01-13","2024-01-13","2024-12-12",330,{"$f":"DATEDIF('BASE 2023 FPS'!$BF21-1,'BASE 2023 FPS'!$BG21,\"m\")","v":11},null,null,null,null,null,null,null,null,null,null,null,null,null,null,null,null,null,null,null,null,null,null,null,null,null,null,null,null,null,null,null,null,null,null,null,null,null,null,null,null,null,null,null,null,null,null,null,null,null,null,null,null,null,null,null,null,null,"https://community.secop.gov.co/Public/Tendering/ContractNoticePhases/View?PPI=CO1.PPI.29182952&isFromPublicArea=True&isModal=False"]
[2024,"CPS-025-2024",null,null,"F5.1","2 CONTRATACIÓN DIRECTA","CPS-025-2024","14 PRESTACIÓN DE SERVICIOS","TECNICOS","KAREN PAOLA ZAPATA GARCIA","Apoyo a la gestion"," Ciencias de la Salud","1 PERSONA NATURAL","3 CÉDULA DE CIUDADANÍA",1050004213,1050004213,null,"11 NO SE DILIGENCIA INFORMACIÓN PARA ESTE FORMULARIO EN ESTE PERÍODO DE REPORTE","NO APLICA","NO APLICA","NO APLICA","LUZ FANY VACA GUTIERREZ",124,"2024-01-11",null,null,null,null,null,"MEDICO ESPECIALISTA DIVISION MAGDALENA","MEDICO ESPECIALISTA DIVISION MAGDALENA","PRESTAR LOS SERVICIOS DE APOYO A LA GESTIÓN DEL GRUPO INTERNO DE TRABAJO GESTION PRESTACIÓN DE SERVICIOS DE SALUD EN LA DIVISIÓN MAGDALENA (CIUDAD CARTAGENA) DEL FONDO DE PASIVO SOCIAL DE FERROCARRILES NACIONALES DE COLOMBIA EN LA REALIZACION DE LABORES TECNICAS DE AUDITORIA Y GENERACION DE INFORMES DE APOYO AL MEDICO ESPECIALISTA AUDITOR",{"$f":"LEFT('BASE 2023 FPS'!$AF22,390)","v":"PRESTAR LOS SERVICIOS DE APOYO A LA GESTIÓN DEL GRUPO INTERNO DE TRABAJO GESTION PRESTACIÓN DE SERVICIOS DE SALUD EN LA DIVISIÓN MAGDALENA (CIUDAD CARTAGENA) DEL FONDO DE PASIVO SOCIAL DE FERROCARRILES NACIONALES DE COLOMBIA EN LA REALIZACION DE LABORES TECNICAS DE AUDITORIA Y GENERACION DE INFORMES DE APOYO AL MEDICO ESPECIALISTA AUDITOR"},3705662,40762282,"2024-01-13",1,1,"COLOMBIA > Distrito Capital de Bogotá > Bogotá","COLOMBIA > Distrito Capital de Bogotá > Bogotá","2 SUPERVISOR","NO APLICA","5 NO SE TIENE ESTE TIPO DE SEGUIMIENTO EN EL CONTRATO","NO APLICA","11 NO SE DILIGENCIA INFORMACIÓN PARA ESTE FORMULARIO EN ESTE PERÍODO DE REPORTE",35507261,"RAIMUNDO COHEN COGOLLO","MEDICO ESPECIALISTA DIVISION MAGDALENA","GIT GESTIÓN PRESTACIÓN SERVICIOS DE SALUD -  DIVISION MAGDALENA","NO",80111600,"POLIZA","Calidad del servicio - Cumplimiento del contrato","11-46-101042981","2024-01-13","2024-01-13","2024-01-13","2024-01-13","2024-12-12",330,{"$f":"DATEDIF('BASE 2023 FPS'!$BF22-1,'BASE 2023 FPS'!$BG22,\"m\")","v":11},null,null,null,null,null,null,null,null,null,null,null,null,null,null,null,null,null,null,null,null,null,null,null,null,null,null,null,null,null,null,null,null,null,null,null,null,null,null,null,null,null,null,null,null,null,null,null,null,null,null,null,null,null,null,null,null,null,"https://community.secop.gov.co/Public/Tendering/ContractNoticePhases/View?PPI=CO1.PPI.29183752&isFromPublicArea=True&isModal=False"]
[2024,"CPS-026-2024",null,null,"F5.1","2 CONTRATACIÓN DIRECTA","CPS-026-2024","14 PRESTACIÓN DE SERVICIOS","PROFESIONALES","LIGIA ESPERANZA MARANTA CONTRERAS","Formación requerida en una (1) carrera profesional y una  (1) especialización "," Economía, Administración, Contaduría y afines","1 PERSONA NATURAL","3 CÉDULA DE CIUDADANÍA",23824015,23824015,null,"11 NO SE DILIGENCIA INFORMACIÓN PARA ESTE FORMULARIO EN ESTE PERÍODO DE REPORTE","NO APLICA","NO APLICA","NO APLICA","LUZ FANY VACA GUTIERREZ",124,"2024-01-11",null,null,null,null,null,"COORDINADOR GIT CONTABILIDAD","COORDINADOR GIT CONTABILIDAD","PRESTAR LOS SERVICIOS COMO PROFESIONAL ESPECIALIZADO EN ADMINISTRACIÓN FINANCIERA PARA APOYAR LA GESTIÓN ADMINISTRATIVA EN LA COORDINACIÓN DEL GIT\nDE CONTABILIDAD DEL FONDO PASIVO SOCIAL DE FERROCARRILES NACIONALES DE COLOMBIA",{"$f":"LEFT('BASE 2023 FPS'!$AF23,390)","v":"PRESTAR LOS SERVICIOS COMO PROFESIONAL ESPECIALIZADO EN ADMINISTRACIÓN FINANCIERA PARA APOYAR LA GESTIÓN ADMINISTRATIVA EN LA COORDINACIÓN DEL GIT\nDE CONTABILIDAD DEL FONDO PASIVO SOCIAL DE FERROCARRILES NACIONALES DE COLOMBIA"},7889475,86784225,"2024-01-13",1,1,"COLOMBIA > Distrito Capital de Bogotá > Bogotá","COLOMBIA > Distrito Capital de Bogotá > Bogotá","2 SUPERVISOR","NO APLICA","5 NO SE TIENE ESTE TIPO DE SEGUIMIENTO EN EL CONTRATO","NO APLICA","11 NO SE DILIGENCIA INFORMACIÓN PARA ESTE FORMULARIO EN ESTE PERÍODO DE REPORTE",40048297,"TULIA XIMENA DIAZ ROMERO","COORDINADOR GIT CONTABILIDAD","COORDINADOR GIT CONTABILIDAD","NO",80111600,"POLIZA","Calidad del servicio - Cumplimiento del contrato",null,"2024-01-13","2024-01-13","2024-01-13","2024-01-13","2024-12-12",330,{"$f":"DATEDIF('BASE 2023 FPS'!$BF23-1,'BASE 2023 FPS'!$BG23,\"m\")","v":11},null,null,null,null,null,null,null,null,null,null,null,null,null,null,null,null,null,null,null,null,null,null,null,null,null,null,null,null,null,null,null,null,null,null,null,null,null,null,null,null,null,null,null,null,null,null,null,null,null,null,null,null,null,null,null,null,null,"https://community.secop.gov.co/Public/Tendering/ContractNoticePhases/View?PPI=CO1.PPI.29183702&isFromPublicArea=True&isModal=False"]
[2024,"CPS-027-2024",null,null,"F5.1","2 CONTRATACIÓN DIRECTA","CPS-027-2024","14 PRESTACIÓN DE SERVICIOS","PROFESIONALES","RUBIELA QUICENO ECHEVERRY","Apoyo a la gestion"," Economía, Administración, Contaduría y afines","1 PERSONA NATURAL","3 CÉDULA DE CIUDADANÍA",24573090,24573090,null,"11 NO SE DILIGENCIA INFORMACIÓN PARA ESTE FORMULARIO EN ESTE PERÍODO DE REPORTE","NO APLICA","NO APLICA","NO APLICA","LUZ FANY VACA GUTIERREZ",124,"2024-01-11",null,null,null,null,null,"SUBDIRECCION FINANCIERA – GIT CARTERA","SUBDIRECCION FINANCIERA – GIT CARTERA","PRESTAR LOS SERVICIOS DE APOYO A LA GESTION CON EL FIN DE ADELANTAR ACTIVIDADES RELACIONADAS CON LOS ASUNTOS ADMINISTRATIVOS DESDE LA SUBDIRECCION FINANCIERA GIT PRESUPUESTO DEL FONDO DE PASIVO SOCIAL DE FERROCARRILES NACIONALES DE COLOMBIA",{"$f":"LEFT('BASE 2023 FPS'!$AF24,390)","v":"PRESTAR LOS SERVICIOS DE APOYO A LA GESTION CON EL FIN DE ADELANTAR ACTIVIDADES RELACIONADAS CON LOS ASUNTOS ADMINISTRATIVOS DESDE LA SUBDIRECCION FINANCIERA GIT PRESUPUESTO DEL FONDO DE PASIVO SOCIAL DE FERROCARRILES NACIONALES DE COLOMBIA"},3107975,34187725,"2024-01-13",1,1,"COLOMBIA > Distrito Capital de Bogotá > Bogotá","COLOMBIA > Distrito Capital de Bogotá > Bogotá","2 SUPERVISOR","NO APLICA","5 NO SE TIENE ESTE TIPO DE SEGUIMIENTO EN EL CONTRATO","NO APLICA","11 NO SE DILIGENCIA INFORMACIÓN PARA ESTE FORMULARIO EN ESTE PERÍODO DE REPORTE",23621957,"LUZ FANNY VACA GUTIERREZ","SUBDIRECCION FINANCIERA – GIT CARTERA","SUBDIRECCION FINANCIERA – GIT CARTERA","NO",80111600,"POLIZA","Calidad del servicio - Cumplimiento del contrato","11-46-101042977","2024-01-13","2024-01-13","2024-01-13","2024-01-13","2024-12-12",330,{"$f":"DATEDIF('BASE 2023 FPS'!$BF24-1,'BASE 2023 FPS'!$BG24,\"m\")","v":11},null,null,null,null,null,null,null,null,null,null,null,null,null,null,null,null,null,null,null,null,null,null,null,null,null,null,null,null,null,null,null,null,null,null,null,null,null,null,null,null,null,null,null,null,null,null,null,null,null,null,null,null,null,null,null,null,null,"https://community.secop.gov.co/Public/Tendering/ContractNoticePhases/View?PPI=CO1.PPI.29182830&isFromPublicArea=True&isModal=False"]
[2024,"CPS-028-2024",null,null,"F5.1","2 CONTRATACIÓN DIRECTA","CPS-028-2024","14 PRESTACIÓN DE SERVICIOS","PROFESIONALES","RUBEN MONTENEGRO","Formación requerida en una (1) carrera profesional y una  (1) especialización "," Economía, Administración, Contaduría y afines","1 PERSONA NATURAL","3 CÉDULA DE CIUDADANÍA",19295939,19295939,null,"11 NO SE DILIGENCIA INFORMACIÓN PARA ESTE FORMULARIO EN ESTE PERÍODO DE REPORTE","NO APLICA","NO APLICA","NO APLICA","LUZ FANY VACA GUTIERREZ",124,"2024-01-11",null,null,null,null,null,"SUBDIRECCION FINANCIERA – GIT CARTERA","SUBDIRECCION FINANCIERA – GIT CARTERA","PRESTAR LOS SERVICIOS PROFESIONALES PARA EL SEGUIMIENTO A LA GESTIÓN FINANCIERA Y PRESUPUESTAL DESDE LA SUBDIRECCION FINANCIERA DEL FONDO DE PASIVO SOCIAL DE FERROCARRILES NACIONALES DE COLOMBIA",{"$f":"LEFT('BASE 2023 FPS'!$AF25,390)","v":"PRESTAR LOS SERVICIOS PROFESIONALES PARA EL SEGUIMIENTO A LA GESTIÓN FINANCIERA Y PRESUPUESTAL DESDE LA SUBDIRECCION FINANCIERA DEL FONDO DE PASIVO SOCIAL DE FERROCARRILES NACIONALES DE COLOMBIA"},7889475,86784225,"2024-01-13",1,1,"COLOMBIA > Distrito Capital de Bogotá > Bogotá","COLOMBIA > Distrito Capital de Bogotá > Bogotá","2 SUPERVISOR","NO APLICA","5 NO SE TIENE ESTE TIPO DE SEGUIMIENTO EN EL CONTRATO","NO APLICA","11 NO SE DILIGENCIA INFORMACIÓN PARA ESTE FORMULARIO EN ESTE PERÍODO DE REPORTE",23621957,"LUZ FANNY VACA GUTIERREZ","SUBDIRECCION FINANCIERA – GIT CARTERA","SUBDIRECCION FINANCIERA – GIT CARTERA","NO",80111600,"POLIZA","Calidad del servicio - Cumplimiento del contrato",3.40479940000502E+16,"2024-01-13","2024-01-13","2024-01-13","2024-01-13","2024-12-12",330,{"$f":"DATEDIF('BASE 2023 FPS'!$BF25-1,'BASE 2023 FPS'!$BG25,\"m\")","v":11},null,null,null,null,null,null,null,null,null,null,null,null,null,null,null,null,null,null,null,null,null,null,null,null,null,null,null,null,null,null,null,null,null,null,null,null,null,null,null,null,null,null,null,null,null,null,null,null,null,null,null,null,null,null,null,null,null,"https://community.secop.gov.co/Public/Tendering/ContractNoticePhases/View?PPI=CO1.PPI.29183166&isFromPublicArea=True&isModal=False"]
[2024,"CPS-029-2024",null,null,"F5.1","2 CONTRATACIÓN DIRECTA","CPS-029-2024","14 PRESTACIÓN DE SERVICIOS","PROFESIONALES","NELSON MIGUEL AMAYA","Formación requerida en una (1) carrera profesional "," Ciencias Sociales y Humanas","1 PERSONA NATURAL","3 CÉDULA DE CIUDADANÍA",1121332735,1121332735,null,"11 NO SE DILIGENCIA INFORMACIÓN PARA ESTE FORMULARIO EN ESTE PERÍODO DE REPORTE","NO APLICA","NO APLICA","NO APLICA","LUZ FANY VACA GUTIERREZ",124,"2024-01-11",null,null,null,null,null,"SUBDIRECCION FINANCIERA – GIT CARTERA","SUBDIRECCION FINANCIERA – GIT CARTERA","PRESTAR LOS SERVICIOS PROFESIONALES COMO ABOGADO, CON EL FIN DE ADELANTAR ACTIVIDADES RELACIONADAS CON LOS ASUNTOS JURÍDICOS Y ADMINISTRATIVOS EN LA SUBDIRECCIÓN FINANCIERA - GRUPO CARTERA DEL FONDO PASIVO SOCIAL DE FERROCARRILES NACIONALES DE COLOMBIA",{"$f":"LEFT('BASE 2023 FPS'!$AF26,390)","v":"PRESTAR LOS SERVICIOS PROFESIONALES COMO ABOGADO, CON EL FIN DE ADELANTAR ACTIVIDADES RELACIONADAS CON LOS ASUNTOS JURÍDICOS Y ADMINISTRATIVOS EN LA SUBDIRECCIÓN FINANCIERA - GRUPO CARTERA DEL FONDO PASIVO SOCIAL DE FERROCARRILES NACIONALES DE COLOMBIA"},3705662,40762282,"2024-01-13",1,1,"COLOMBIA > Distrito Capital de Bogotá > Bogotá","COLOMBIA > Distrito Capital de Bogotá > Bogotá","2 SUPERVISOR","NO APLICA","5 NO SE TIENE ESTE TIPO DE SEGUIMIENTO EN EL CONTRATO","NO APLICA","11 NO SE DILIGENCIA INFORMACIÓN PARA ESTE FORMULARIO EN ESTE PERÍODO DE REPORTE",23621957,"LUZ FANNY VACA GUTIERREZ","SUBDIRECCION FINANCIERA – GIT CARTERA","SUBDIRECCION FINANCIERA – GIT CARTERA","NO",80111600,"POLIZA","Calidad del servicio - Cumplimiento del contrato","11-46-101042979","2024-01-13","2024-01-13","2024-01-13","2024-01-13","2024-12-12",330,{"$f":"DATEDIF('BASE 2023 FPS'!$BF26-1,'BASE 2023 FPS'!$BG26,\"m\")","v":11},null,null,null,null,null,null,null,null,null,null,null,null,null,null,null,null,null,null,null,null,null,null,null,null,null,null,null,null,null,null,null,null,null,null,null,null,null,null,null,null,null,null,null,null,null,null,null,null,null,null,null,null,null,null,null,null,null,"https://community.secop.gov.co/Public/Tendering/ContractNoticePhases/View?PPI=CO1.PPI.29182897&isFromPublicArea=True&isModal=False"]
[2024,"CPS-030-2024",null,null,"F5.1","2 CONTRATACIÓN DIRECTA","CPS-030-2024","14 PRESTACIÓN DE SERVICIOS","PROFESIONALES","DIANA CAROLINA TORRES DIAZ","Apoyo a la gestion"," Ciencias de la Salud","1 PERSONA NATURAL","3 CÉDULA DE CIUDADANÍA",1111769572,1111769572,null,"11 NO SE DILIGENCIA INFORMACIÓN PARA ESTE FORMULARIO EN ESTE PERÍODO DE REPORTE","NO APLICA","NO APLICA","NO APLICA","LUZ FANY VACA GUTIERREZ",124,"2024-01-11",null,null,null,null,null,"COORDINADORA GIT GESTIÓN PRESTACIÓN SERVICIOS DE SALUD","COORDINADORA GIT GESTIÓN PRESTACIÓN SERVICIOS DE SALUD","PRESTAR LOS SERVICIOS DE APOYO A LA GESTIÓN EN LA REALIZACIÓN DE LABORES TÉCNICAS DE AUDITORÍA Y GENERACIÓN DE INFORMES DE APOYO AL MÉDICO ESPECIALISTA O AUDITOR DESDE EL GRUPO INTERNO DE TRABAJO GESTIÓN PRESTACIÓN SERVICIOS DE SALUD EN LA DIVISIÓN PACIFICO – (CIUDAD BUENAVENTURA) DEL FONDO DE PASIVO SOCIAL DE FERROCARRILES NACIONALES DE COLOMBIA",{"$f":"LEFT('BASE 2023 FPS'!$AF27,390)","v":"PRESTAR LOS SERVICIOS DE APOYO A LA GESTIÓN EN LA REALIZACIÓN DE LABORES TÉCNICAS DE AUDITORÍA Y GENERACIÓN DE INFORMES DE APOYO AL MÉDICO ESPECIALISTA O AUDITOR DESDE EL GRUPO INTERNO DE TRABAJO GESTIÓN PRESTACIÓN SERVICIOS DE SALUD EN LA DIVISIÓN PACIFICO – (CIUDAD BUENAVENTURA) DEL FONDO DE PASIVO SOCIAL DE FERROCARRILES NACIONALES DE COLOMBIA"},3705662,40762282,"2024-01-13",1,1,"COLOMBIA > Distrito Capital de Bogotá > Bogotá","COLOMBIA > Distrito Capital de Bogotá > Bogotá","2 SUPERVISOR","NO APLICA","5 NO SE TIENE ESTE TIPO DE SEGUIMIENTO EN EL CONTRATO","NO APLICA","11 NO SE DILIGENCIA INFORMACIÓN PARA ESTE FORMULARIO EN ESTE PERÍODO DE REPORTE",24326606,"ISABEL CRISTINA GALLO MEJIA","COORDINADORA GIT GESTIÓN PRESTACIÓN SERVICIOS DE SALUD","GIT GESTIÓN PRESTACIÓN SERVICIOS DE SALUD","NO",80111600,"POLIZA","Calidad del servicio - Cumplimiento del contrato","340 47 994000050291","2024-01-13","2024-01-13","2024-01-13","2024-01-13","2024-12-12",330,{"$f":"DATEDIF('BASE 2023 FPS'!$BF27-1,'BASE 2023 FPS'!$BG27,\"m\")","v":11},null,null,null,null,null,null,null,null,null,null,null,null,null,null,null,null,null,null,null,null,null,null,null,null,null,null,null,null,null,null,null,null,null,null,null,null,null,null,null,null,null,null,null,null,null,null,null,null,null,null,null,null,null,null,null,null,null,"https://community.secop.gov.co/Public/Tendering/ContractNoticePhases/View?PPI=CO1.PPI.29182554&isFromPublicArea=True&isModal=False"]
[2024,"CPS-031-2024",null,null,"F5.1","2 CONTRATACIÓN DIRECTA","CPS-031-2024","14 PRESTACIÓN DE SERVICIOS","PROFESIONALES","YOLIMA VILLANUEVA JIMÉNEZ","Apoyo a la gestion"," Ciencias de la Salud","1 PERSONA NATURAL","3 CÉDULA DE CIUDADANÍA",32860172,32860172,null,"11 NO SE DILIGENCIA INFORMACIÓN PARA ESTE FORMULARIO EN ESTE PERÍODO DE REPORTE","NO APLICA","NO APLICA","NO APLICA","LUZ FANY VACA GUTIERREZ",124,"2024-01-11",null,null,null,null,null,"MEDICO ESPECIALISTA DIVISION MAGDALENA","MEDICO ESPECIALISTA DIVISION MAGDALENA","PRESTAR LOS SERVICIOS DE APOYO A LA GESTIÓN DEL GRUPO INTERNO DE TRABAJO GESTION PRESTACIÓN DE SERVICIOS DE SALUD EN LA DIVISIÓN MAGDALENA (CIUDAD BARRANQUILLA) DEL FONDO DE PASIVO SOCIAL DE FERROCARRILES NACIONALES DE COLOMBIA EN LA REALIZACION DE LABORES TECNICAS DE AUDITORIA Y GENERACION DE INFORMES DE APOYO AL MEDICO ESPECIALISTA AUDITOR",{"$f":"LEFT('BASE 2023 FPS'!$AF28,390)","v":"PRESTAR LOS SERVICIOS DE APOYO A LA GESTIÓN DEL GRUPO INTERNO DE TRABAJO GESTION PRESTACIÓN DE SERVICIOS DE SALUD EN LA DIVISIÓN MAGDALENA (CIUDAD BARRANQUILLA) DEL FONDO DE PASIVO SOCIAL DE FERROCARRILES NACIONALES DE COLOMBIA EN LA REALIZACION DE LABORES TECNICAS DE AUDITORIA Y GENERACION DE INFORMES DE APOYO AL MEDICO ESPECIALISTA AUDITOR"},3705662,40762282,"2024-01-13",1,1,"COLOMBIA > Distrito Capital de Bogotá > Bogotá","COLOMBIA > Distrito Capital de Bogotá > Bogotá","2 SUPERVISOR","NO APLICA","5 NO SE TIENE ESTE TIPO DE SEGUIMIENTO EN EL CONTRATO","NO APLICA","11 NO SE DILIGENCIA INFORMACIÓN PARA ESTE FORMULARIO EN ESTE PERÍODO DE REPORTE",35507261,"RAIMUNDO COHEN COGOLLO","MEDICO ESPECIALISTA DIVISION MAGDALENA","GIT GESTIÓN PRESTACIÓN SERVICIOS DE SALUD -  DIVISION MAGDALENA","NO",80111600,"POLIZA","Calidad del servicio - Cumplimiento del contrato","96-46-101016123","2024-01-13","2024-01-13","2024-01-13","2024-01-13","2024-12-12",330,{"$f":"DATEDIF('BASE 2023 FPS'!$BF28-1,'BASE 2023 FPS'!$BG28,\"m\")","v":11},null,null,null,null,null,null,null,null,null,null,null,null,null,null,null,null,null,null,null,null,null,null,null,null,null,null,null,null,null,null,null,null,null,null,null,null,null,null,null,null,null,null,null,null,null,null,null,null,null,null,null,null,null,null,null,null,null,"https://community.secop.gov.co/Public/Tendering/ContractNoticePhases/View?PPI=CO1.PPI.29183761&isFromPublicArea=True&isModal=False"]
[2024,"CPS-032-2024",null,null,"F5.1","2 CONTRATACIÓN DIRECTA","CPS-032-2024","14 PRESTACIÓN DE SERVICIOS","PROFESIONALES","SEBASTIAN RUIZ","Formación requerida en una (1) carrera profesional y una  (1) especialización "," Economía, Administración, Contaduría y afines","1 PERSONA NATURAL","3 CÉDULA DE CIUDADANÍA",1066746015,1066746015,null,"11 NO SE DILIGENCIA INFORMACIÓN PARA ESTE FORMULARIO EN ESTE PERÍODO DE REPORTE","NO APLICA","NO APLICA","NO APLICA","LUZ FANY VACA GUTIERREZ",124,"2024-01-11",null,null,null,null,null,"COORDINADOR GIT CONTABILIDAD","COORDINADOR GIT CONTABILIDAD","PRESTAR LOS SERVICIOS PROFESIONALES COMO CONTADOR PÚBLICO PARA APOYAR LA GESTIÓN ADMINISTRATIVA DEL GIT DE CONTABILIDAD DEL FONDO PASIVO SOCIAL DE\nFERROCARRILES NACIONALES DE COLOMBIA",{"$f":"LEFT('BASE 2023 FPS'!$AF29,390)","v":"PRESTAR LOS SERVICIOS PROFESIONALES COMO CONTADOR PÚBLICO PARA APOYAR LA GESTIÓN ADMINISTRATIVA DEL GIT DE CONTABILIDAD DEL FONDO PASIVO SOCIAL DE\nFERROCARRILES NACIONALES DE COLOMBIA"},6258984,68848824,"2024-01-13",1,1,"COLOMBIA > Distrito Capital de Bogotá > Bogotá","COLOMBIA > Distrito Capital de Bogotá > Bogotá","2 SUPERVISOR","NO APLICA","5 NO SE TIENE ESTE TIPO DE SEGUIMIENTO EN EL CONTRATO","NO APLICA","11 NO SE DILIGENCIA INFORMACIÓN PARA ESTE FORMULARIO EN ESTE PERÍODO DE REPORTE",40048297,"TULIA XIMENA DIAZ ROMERO","COORDINADOR GIT CONTABILIDAD","COORDINADOR GIT CONTABILIDAD","NO",80111600,"POLIZA","Calidad del servicio - Cumplimiento del contrato"," 96-46-101016162","2024-01-13","2024-01-13","2024-01-13","2024-01-13","2024-12-12",330,{"$f":"DATEDIF('BASE 2023 FPS'!$BF29-1,'BASE 2023 FPS'!$BG29,\"m\")","v":11},null,null,null,null,null,null,null,null,null,null,null,null,null,null,null,null,null,null,null,null,null,null,null,null,null,null,null,null,null,null,null,null,null,null,null,null,null,null,null,null,null,null,null,null,null,null,null,null,null,null,null,null,null,null,null,null,null,"https://community.secop.gov.co/Public/Tendering/ContractNoticePhases/View?PPI=CO1.PPI.29183563&isFromPublicArea=True&isModal=False"]
[2024,"CPS-033-2024",null,null,"F5.1","2 CONTRATACIÓN DIRECTA","CPS-033-2024","14 PRESTACIÓN DE SERVICIOS","PROFESIONALES","JHON JAIME ACOSTA","Formación requerida en una (1) carrera profesional y una  (1) especialización "," Economía, Administración, Contaduría y afines","1 PERSONA NATURAL","3 CÉDULA DE CIUDADANÍA",79368894,79368894,null,"11 NO SE DILIGENCIA INFORMACIÓN PARA ESTE FORMULARIO EN ESTE PERÍODO DE REPORTE","NO APLICA","NO APLICA","NO APLICA","LUZ FANY VACA GUTIERREZ",124,"2024-01-11",null,null,null,null,null,"COORDINADORA GIT GESTIÓN PRESTACIÓN SERVICIOS DE SALUD","COORDINADORA GIT GESTIÓN PRESTACIÓN SERVICIOS DE SALUD","PRESTAR LOS SERVICIOS PROFESIONALES PARA APOYAR EL PROCESO DEL GIT GESTIÓN PRESTACIÓN DE SERVICIOS DE SALUD DEL FONDO DE PASIVO SOCIAL DE FERROCARRILES NACIONALES DE COLOMBIA COMO REFERENTE DE SISTEMAS DE INFORMACIÓN, ENCARGADO DEL COTNROL Y SEGUIMIENTO A LA PRESENTACIÓN DE INFORMES ANTE ENTES DE CONTROL",{"$f":"LEFT('BASE 2023 FPS'!$AF30,390)","v":"PRESTAR LOS SERVICIOS PROFESIONALES PARA APOYAR EL PROCESO DEL GIT GESTIÓN PRESTACIÓN DE SERVICIOS DE SALUD DEL FONDO DE PASIVO SOCIAL DE FERROCARRILES NACIONALES DE COLOMBIA COMO REFERENTE DE SISTEMAS DE INFORMACIÓN, ENCARGADO DEL COTNROL Y SEGUIMIENTO A LA PRESENTACIÓN DE INFORMES ANTE ENTES DE CONTROL"},7172250,78894750,"2024-01-13",1,1,"COLOMBIA > Distrito Capital de Bogotá > Bogotá","COLOMBIA > Distrito Capital de Bogotá > Bogotá","2 SUPERVISOR","NO APLICA","5 NO SE TIENE ESTE TIPO DE SEGUIMIENTO EN EL CONTRATO","NO APLICA","11 NO SE DILIGENCIA INFORMACIÓN PARA ESTE FORMULARIO EN ESTE PERÍODO DE REPORTE",35507261,"LUZ HELENA GUTIERREZ SUAREZ","COORDINADORA GIT GESTIÓN PRESTACIÓN SERVICIOS DE SALUD","GIT GESTIÓN PRESTACIÓN SERVICIOS DE SALUD","NO",80111600,"POLIZA","Calidad del servicio - Cumplimiento del contrato",null,"2024-01-13","2024-01-13","2024-01-13","2024-01-13","2024-12-12",330,{"$f":"DATEDIF('BASE 2023 FPS'!$BF30-1,'BASE 2023 FPS'!$BG30,\"m\")","v":11},null,null,null,null,null,null,null,null,null,null,null,null,null,null,null,null,null,null,null,null,null,null,null,null,null,null,null,null,null,null,null,null,null,null,null,null,null,null,null,null,null,null,null,null,null,null,null,null,null,null,null,null,null,null,null,null,null,"https://community.secop.gov.co/Public/Tendering/ContractNoticePhases/View?PPI=CO1.PPI.29184730&isFromPublicArea=True&isModal=False"]
[2024,"CPS-034-2024",null,null,"F5.1","2 CONTRATACIÓN DIRECTA","CPS-034-2024","14 PRESTACIÓN DE SERVICIOS","PROFESIONALES","MARIA JUDITH PINTO","Formación requerida en una (1) carrera profesional "," Ciencias de la Salud","1 PERSONA NATURAL","3 CÉDULA DE CIUDADANÍA",51786731,51786731,null,"11 NO SE DILIGENCIA INFORMACIÓN PARA ESTE FORMULARIO EN ESTE PERÍODO DE REPORTE","NO APLICA","NO APLICA","NO APLICA","LUZ FANY VACA GUTIERREZ",124,"2024-01-11",null,null,null,null,null,"COORDINADORA GIT GESTIÓN PRESTACIÓN SERVICIOS DE SALUD","COORDINADORA GIT GESTIÓN PRESTACIÓN SERVICIOS DE SALUD","PRESTAR LOS SERVICIOS PROFESIONALES PARA APOYAR LA IMPLEMENTACIÓN DEL PROCESO DE AUTORIZACIÓN, HABILITACIÓN Y PERMANENCIA DE LA ENTIDAD DE ACUERDO A LA NORMATIVIDAD VIGENTE EN SALUD PARA EL FONDO DE PASIVO SOCIAL- FERROCARRILES NACIONALES DE COLOMBIA, LA HABILITACION Y EL SEGUIMIENTO A LA COMPLETITUD DE LAS REDES INTEGRALES DE PRESTACION DE SERVICIOS DE SALUD",{"$f":"LEFT('BASE 2023 FPS'!$AF31,390)","v":"PRESTAR LOS SERVICIOS PROFESIONALES PARA APOYAR LA IMPLEMENTACIÓN DEL PROCESO DE AUTORIZACIÓN, HABILITACIÓN Y PERMANENCIA DE LA ENTIDAD DE ACUERDO A LA NORMATIVIDAD VIGENTE EN SALUD PARA EL FONDO DE PASIVO SOCIAL- FERROCARRILES NACIONALES DE COLOMBIA, LA HABILITACION Y EL SEGUIMIENTO A LA COMPLETITUD DE LAS REDES INTEGRALES DE PRESTACION DE SERVICIOS DE SALUD"},6455025,71005275,"2024-01-13",1,1,"COLOMBIA > Distrito Capital de Bogotá > Bogotá","COLOMBIA > Distrito Capital de Bogotá > Bogotá","2 SUPERVISOR","NO APLICA","5 NO SE TIENE ESTE TIPO DE SEGUIMIENTO EN EL CONTRATO","NO APLICA","11 NO SE DILIGENCIA INFORMACIÓN PARA ESTE FORMULARIO EN ESTE PERÍODO DE REPORTE",35507261,"LUZ HELENA GUTIERREZ SUAREZ","COORDINADORA GIT GESTIÓN PRESTACIÓN SERVICIOS DE SALUD","GIT GESTIÓN PRESTACIÓN SERVICIOS DE SALUD","NO",80111600,"POLIZA","Calidad del servicio - Cumplimiento del contrato","11-46-101042994","2024-01-13","2024-01-13","2024-01-13","2024-01-13","2024-12-12",330,{"$f":"DATEDIF('BASE 2023 FPS'!$BF31-1,'BASE 2023 FPS'!$BG31,\"m\")","v":11},null,null,null,null,null,null,null,null,null,null,null,null,null,null,null,null,null,null,null,null,null,null,null,null,null,null,null,null,null,null,null,null,null,null,null,null,null,null,null,null,null,null,null,null,null,null,null,null,null,null,null,null,null,null,null,null,null,"https://community.secop.gov.co/Public/Tendering/ContractNoticePhases/View?PPI=CO1.PPI.29184493&isFromPublicArea=True&isModal=False"]
[2024,"CPS-035-2024",null,null,"F5.1","2 CONTRATACIÓN DIRECTA","CPS-035-2024","14 PRESTACIÓN DE SERVICIOS","PROFESIONALES","ANDRES CASTRO","Apoyo a la gestion"," Economía, Administración, Contaduría y afines","1 PERSONA NATURAL","3 CÉDULA DE CIUDADANÍA",80015564,80015564,null,"11 NO SE DILIGENCIA INFORMACIÓN PARA ESTE FORMULARIO EN ESTE PERÍODO DE REPORTE","NO APLICA","NO APLICA","NO APLICA","LUZ FANY VACA GUTIERREZ",124,"2024-01-11",null,null,null,null,null,"COORDINADORA GIT GESTIÓN PRESTACIÓN SERVICIOS DE SALUD","COORDINADORA GIT GESTIÓN PRESTACIÓN SERVICIOS DE SALUD","PRESTAR LOS SERVICIOS DE APOYO A LA GESTIÓN ADMINISTRATIVA DEL GIT GESTION DE SERVICIOS DE SALUD DEL FONDO DE PASIVO SOCIAL DE FERROCARRILES NACIONALES DE\nCOLOMBIA EN EL PROCESAMIENTO DE INFORMACIÓN Y GENERACIÓN DE INDICADORES E INFORMES DE SALUD DE LA ENTIDAD",{"$f":"LEFT('BASE 2023 FPS'!$AF32,390)","v":"PRESTAR LOS SERVICIOS DE APOYO A LA GESTIÓN ADMINISTRATIVA DEL GIT GESTION DE SERVICIOS DE SALUD DEL FONDO DE PASIVO SOCIAL DE FERROCARRILES NACIONALES DE\nCOLOMBIA EN EL PROCESAMIENTO DE INFORMACIÓN Y GENERACIÓN DE INDICADORES E INFORMES DE SALUD DE LA ENTIDAD"},3705662,40762282,"2024-01-13",1,1,"COLOMBIA > Distrito Capital de Bogotá > Bogotá","COLOMBIA > Distrito Capital de Bogotá > Bogotá","2 SUPERVISOR","NO APLICA","5 NO SE TIENE ESTE TIPO DE SEGUIMIENTO EN EL CONTRATO","NO APLICA","11 NO SE DILIGENCIA INFORMACIÓN PARA ESTE FORMULARIO EN ESTE PERÍODO DE REPORTE",35507261,"LUZ HELENA GUTIERREZ SUAREZ","COORDINADORA GIT GESTIÓN PRESTACIÓN SERVICIOS DE SALUD","GIT GESTIÓN PRESTACIÓN SERVICIOS DE SALUD","NO",80111600,"POLIZA","Calidad del servicio - Cumplimiento del contrato","11-46-101042989","2024-01-13","2024-01-13","2024-01-13","2024-01-13","2024-12-12",330,{"$f":"DATEDIF('BASE 2023 FPS'!$BF32-1,'BASE 2023 FPS'!$BG32,\"m\")","v":11},null,null,null,null,null,null,null,null,null,null,null,null,null,null,null,null,null,null,null,null,null,null,null,null,null,null,null,null,null,null,null,null,null,null,null,null,null,null,null,null,null,null,null,null,null,null,null,null,null,null,null,null,null,null,null,null,null,"https://community.secop.gov.co/Public/Tendering/ContractNoticePhases/View?PPI=CO1.PPI.29184495&isFromPublicArea=True&isModal=False"]
[2024,"CPS-036-2024",null,null,"F5.1","2 CONTRATACIÓN DIRECTA","CPS-036-2024","14 PRESTACIÓN DE SERVICIOS","PROFESIONALES","HUGO RODRIGUEZ","Apoyo a la gestion"," Matemáticas y Ciencias Naturales","1 PERSONA NATURAL","3 CÉDULA DE CIUDADANÍA",1022349031,1022349031,null,"11 NO SE DILIGENCIA INFORMACIÓN PARA ESTE FORMULARIO EN ESTE PERÍODO DE REPORTE","NO APLICA","NO APLICA","NO APLICA","LUZ FANY VACA GUTIERREZ",124,"2024-01-11",null,null,null,null,null,"COORDINADOR GIT CONTABILIDAD","COORDINADOR GIT CONTABILIDAD","PRESTAR LOS SERVICIOS COMO PROFESIONAL EN ACTUARIA PARA APOYAR LA GESTIÓN ADMINISTRATIVA DEL GIT CONTABILIDAD DEL FONDO DE PASIVO SOCIAL DE FERROCARRILES NACIONALES DE COLOMBIA",{"$f":"LEFT('BASE 2023 FPS'!$AF33,390)","v":"PRESTAR LOS SERVICIOS COMO PROFESIONAL EN ACTUARIA PARA APOYAR LA GESTIÓN ADMINISTRATIVA DEL GIT CONTABILIDAD DEL FONDO DE PASIVO SOCIAL DE FERROCARRILES NACIONALES DE COLOMBIA"},7172250,78894750,"2024-01-13",1,1,"COLOMBIA > Distrito Capital de Bogotá > Bogotá","COLOMBIA > Distrito Capital de Bogotá > Bogotá","2 SUPERVISOR","NO APLICA","5 NO SE TIENE ESTE TIPO DE SEGUIMIENTO EN EL CONTRATO","NO APLICA","11 NO SE DILIGENCIA INFORMACIÓN PARA ESTE FORMULARIO EN ESTE PERÍODO DE REPORTE",40048297,"TULIA XIMENA DIAZ ROMERO","COORDINADOR GIT CONTABILIDAD","COORDINADOR GIT CONTABILIDAD","NO",80111600,"POLIZA","Calidad del servicio - Cumplimiento del contrato","96-46-101016121","2024-01-13","2024-01-13","2024-01-13","2024-01-13","2024-12-12",330,{"$f":"DATEDIF('BASE 2023 FPS'!$BF33-1,'BASE 2023 FPS'!$BG33,\"m\")","v":11},null,null,null,null,null,null,null,null,null,null,null,null,null,null,null,null,null,null,null,null,null,null,null,null,null,null,null,null,null,null,null,null,null,null,null,null,null,null,null,null,null,null,null,null,null,null,null,null,null,null,null,null,null,null,null,null,null,"https://community.secop.gov.co/Public/Tendering/ContractNoticePhases/View?PPI=CO1.PPI.29183570&isFromPublicArea=True&isModal=False"]
[2024,"CPS-037-2024",null,null,"F5.1","2 CONTRATACIÓN DIRECTA","CPS-037-2024","14 PRESTACIÓN DE SERVICIOS","PROFESIONALES","IVONNE ARELIS DIAZ RODRIGUEZ","Formación requerida en una (1) carrera profesional y una  (1) especialización "," Economía, Administración, Contaduría y afines","1 PERSONA NATURAL","3 CÉDULA DE CIUDADANÍA",63514972,63514972,null,"11 NO SE DILIGENCIA INFORMACIÓN PARA ESTE FORMULARIO EN ESTE PERÍODO DE REPORTE","NO APLICA","NO APLICA","NO APLICA","LUZ FANY VACA GUTIERREZ",124,"2024-01-11",null,null,null,null,null,"SECRETARIA GENERAL – ATENCION AL CIUDADANO Y GESTION DOCUMENTAL","SECRETARIA GENERAL – ATENCION AL CIUDADANO Y GESTION DOCUMENTAL","PRESTAR LOS SERVICIOS PROFESIONALES DE APOYO A LA GESTIÓN DEL G.I.T ATENCIÓN AL CIUDADANO DEL FONDO DE PASIVO SOCIAL DE FERROCARRILES NACIONALES DE COLOMBIA EN LO RELACIONADO CON LOS SERVICIOS DE SALUD\n",{"$f":"LEFT('BASE 2023 FPS'!$AF34,390)","v":"PRESTAR LOS SERVICIOS PROFESIONALES DE APOYO A LA GESTIÓN DEL G.I.T ATENCIÓN AL CIUDADANO DEL FONDO DE PASIVO SOCIAL DE FERROCARRILES NACIONALES DE COLOMBIA EN LO RELACIONADO CON LOS SERVICIOS DE SALUD\n"},7172250,78894750,"2024-01-15",1,1,"COLOMBIA > Distrito Capital de Bogotá > Bogotá","COLOMBIA > Distrito Capital de Bogotá > Bogotá","2 SUPERVISOR","NO APLICA","5 NO SE TIENE ESTE TIPO DE SEGUIMIENTO EN EL CONTRATO","NO APLICA","11 NO SE DILIGENCIA INFORMACIÓN PARA ESTE FORMULARIO EN ESTE PERÍODO DE REPORTE",39526262,"NURY NAVARRO HERNADEZ","SECRETARIA GENERAL – ATENCION AL CIUDADANO Y GESTION DOCUMENTAL","SECRETARIA GENERAL – ATENCION AL CIUDADANO Y GESTION DOCUMENTAL","NO",80111600,"POLIZA","Calidad del servicio - Cumplimiento del contrato","11-46-101043299","2024-01-15","2024-01-15","2024-01-15","2024-01-15","2024-12-14",330,{"$f":"DATEDIF('BASE 2023 FPS'!$BF34-1,'BASE 2023 FPS'!$BG34,\"m\")","v":11}]
[2024,"CPS-038-2024",null,null,"F5.1","2 CONTRATACIÓN DIRECTA","CPS-038-2024","14 PRESTACIÓN DE SERVICIOS","PROFESIONALES","DAYANA PEREZ BUELVAS","Formación requerida en una (1) carrera profesional y una  (1) especialización "," Ciencias Sociales y Humanas","1 PERSONA NATURAL","3 CÉDULA DE CIUDADANÍA",1102233650,1102233650,null,"11 NO SE DILIGENCIA INFORMACIÓN PARA ESTE FORMULARIO EN ESTE PERÍODO DE REPORTE","NO APLICA","NO APLICA","NO APLICA","LUZ FANY VACA GUTIERREZ",124,"2024-01-11",null,null,null,null,null,"SECRETARIA GENERAL – ATENCION AL CIUDADANO Y GESTION DOCUMENTAL","SECRETARIA GENERAL – ATENCION AL CIUDADANO Y GESTION DOCUMENTAL","PRESTAR LOS SERVICIOS PROFESIONALES COMO ABOGADA ESPECIALIZADA, CON EL FIN DE ADELANTAR ACTIVIDADES RELACIONADAS CON LOS ASUNTOS JURÍDICOS Y ADMINISTRATIVOS DESDE LA SECRETARÍA GENERAL DEL FONDO DE PASIVO SOCIAL DE FERROCARRILES NACIONALES DE COLOMBIA",{"$f":"LEFT('BASE 2023 FPS'!$AF35,390)","v":"PRESTAR LOS SERVICIOS PROFESIONALES COMO ABOGADA ESPECIALIZADA, CON EL FIN DE ADELANTAR ACTIVIDADES RELACIONADAS CON LOS ASUNTOS JURÍDICOS Y ADMINISTRATIVOS DESDE LA SECRETARÍA GENERAL DEL FONDO DE PASIVO SOCIAL DE FERROCARRILES NACIONALES DE COLOMBIA"},6096412,67060532,"2024-01-13",1,1,"COLOMBIA > Distrito Capital de Bogotá > Bogotá","COLOMBIA > Distrito Capital de Bogotá > Bogotá","2 SUPERVISOR","NO APLICA","5 NO SE TIENE ESTE TIPO DE SEGUIMIENTO EN EL CONTRATO","NO APLICA","11 NO SE DILIGENCIA INFORMACIÓN PARA ESTE FORMULARIO EN ESTE PERÍODO DE REPORTE",39526262,"NURY NAVARRO HERNADEZ","SECRETARIA GENERAL – ATENCION AL CIUDADANO Y GESTION DOCUMENTAL","SECRETARIA GENERAL – ATENCION AL CIUDADANO Y GESTION DOCUMENTAL","NO",80111600,"POLIZA","Calidad del servicio - Cumplimiento del contrato",null,"2024-01-13","2024-01-13","2024-01-13","2024-01-13","2024-12-12",330,{"$f":"DATEDIF('BASE 2023 FPS'!$BF35-1,'BASE 2023 FPS'!$BG35,\"m\")","v":11},null,null,null,null,null,null,null,null,null,null,null,null,null,null,null,null,null,null,null,null,null,null,null,null,null,null,null,null,null,null,null,null,null,null,null,null,null,null,null,null,null,null,null,null,null,null,null,null,null,null,null,null,null,null,null,null,null,"https://community.secop.gov.co/Public/Tendering/ContractNoticePhases/View?PPI=CO1.PPI.29184117&isFromPublicArea=True&isModal=False"]
[2024,"CPS-039-2024",null,null,"F5.1","2 CONTRATACIÓN DIRECTA","CPS-039-2024","14 PRESTACIÓN DE SERVICIOS","PROFESIONALES","JHONY ALVEIRO HERNANDEZ","Formación requerida en una (1) carrera profesional "," Economía, Administración, Contaduría y afines","1 PERSONA NATURAL","3 CÉDULA DE CIUDADANÍA",1032399783,1032399783,null,"11 NO SE DILIGENCIA INFORMACIÓN PARA ESTE FORMULARIO EN ESTE PERÍODO DE REPORTE","NO APLICA","NO APLICA","NO APLICA","LUZ FANY VACA GUTIERREZ",124,"2024-01-11",null,null,null,null,null,"SECRETARIA GENERAL – ATENCION AL CIUDADANO Y GESTION DOCUMENTAL","SECRETARIA GENERAL – ATENCION AL CIUDADANO Y GESTION DOCUMENTAL","PRESTAR LOS SERVICIOS PROFESIONALES PARA APOYAR AL GIT ATENCIÓN AL CIUDADANO Y GESTIÓN DOCUMENTAL DE LA SECRETARIA GENERAL DEL FONDO DE PASIVO SOCIAL DE FERROCARRILES NACIONALES DE COLOMBIA",{"$f":"LEFT('BASE 2023 FPS'!$AF36,390)","v":"PRESTAR LOS SERVICIOS PROFESIONALES PARA APOYAR AL GIT ATENCIÓN AL CIUDADANO Y GESTIÓN DOCUMENTAL DE LA SECRETARIA GENERAL DEL FONDO DE PASIVO SOCIAL DE FERROCARRILES NACIONALES DE COLOMBIA"},4901037,53911407,"2024-01-13",1,1,"COLOMBIA > Distrito Capital de Bogotá > Bogotá","COLOMBIA > Distrito Capital de Bogotá > Bogotá","2 SUPERVISOR","NO APLICA","5 NO SE TIENE ESTE TIPO DE SEGUIMIENTO EN EL CONTRATO","NO APLICA","11 NO SE DILIGENCIA INFORMACIÓN PARA ESTE FORMULARIO EN ESTE PERÍODO DE REPORTE",39526262,"NURY NAVARRO HERNADEZ","SECRETARIA GENERAL – ATENCION AL CIUDADANO Y GESTION DOCUMENTAL","SECRETARIA GENERAL – ATENCION AL CIUDADANO Y GESTION DOCUMENTAL","NO",80111600,"POLIZA","Calidad del servicio - Cumplimiento del contrato",null,"2024-01-13","2024-01-13","2024-01-13","2024-01-13","2024-12-12",330,{"$f":"DATEDIF('BASE 2023 FPS'!$BF36-1,'BASE 2023 FPS'!$BG36,\"m\")","v":11},null,null,null,null,null,null,null,null,null,null,null,null,null,null,null,null,null,null,null,null,null,null,null,null,null,null,null,null,null,null,null,null,null,null,null,null,null,null,null,null,null,null,null,null,null,null,null,null,null,null,null,null,null,null,null,null,null,"https://community.secop.gov.co/Public/Tendering/ContractNoticePhases/View?PPI=CO1.PPI.29184118&isFromPublicArea=True&isModal=False"]
[2024,"CPS-040-2024",null,null,"F5.1","2 CONTRATACIÓN DIRECTA","CPS-040-2024","14 PRESTACIÓN DE SERVICIOS","PROFESIONALES","PAOLA JIMENEZ RIOS","Apoyo a la gestion"," Ciencias de la Salud","1 PERSONA NATURAL","3 CÉDULA DE CIUDADANÍA",43151160,43151160,null,"11 NO SE DILIGENCIA INFORMACIÓN PARA ESTE FORMULARIO EN ESTE PERÍODO DE REPORTE","NO APLICA","NO APLICA","NO APLICA","LUZ FANY VACA GUTIERREZ",124,"2024-01-11",null,null,null,null,null,"COORDINADORA GIT GESTIÓN PRESTACIÓN SERVICIOS DE SALUD","COORDINADORA GIT GESTIÓN PRESTACIÓN SERVICIOS DE SALUD","PRESTAR LOS SERVICIOS DE APOYO A LA GESTIÓN EN LA REALIZACIÓN DE LABORES TÉCNICAS DE AUDITORÍA Y GENERACIÓN DE INFORMES DE APOYO AL MÉDICO ESPECIALISTA O AUDITOR DESDE EL GRUPO INTERNO DE TRABAJO GESTIÓN PRESTACIÓN SERVICIOS DE SALUD EN LA DIVISIÓN ANTIOQUIA – (CIUDAD MEDELLÍN) DEL FONDO DE PASIVO SOCIAL DE FERROCARRILES NACIONALES DE COLOMBIA",{"$f":"LEFT('BASE 2023 FPS'!$AF37,390)","v":"PRESTAR LOS SERVICIOS DE APOYO A LA GESTIÓN EN LA REALIZACIÓN DE LABORES TÉCNICAS DE AUDITORÍA Y GENERACIÓN DE INFORMES DE APOYO AL MÉDICO ESPECIALISTA O AUDITOR DESDE EL GRUPO INTERNO DE TRABAJO GESTIÓN PRESTACIÓN SERVICIOS DE SALUD EN LA DIVISIÓN ANTIOQUIA – (CIUDAD MEDELLÍN) DEL FONDO DE PASIVO SOCIAL DE FERROCARRILES NACIONALES DE COLOMBIA"},3705662,40762282,"2024-01-13",1,1,"COLOMBIA > Distrito Capital de Bogotá > Bogotá","COLOMBIA > Distrito Capital de Bogotá > Bogotá","2 SUPERVISOR","NO APLICA","5 NO SE TIENE ESTE TIPO DE SEGUIMIENTO EN EL CONTRATO","NO APLICA","11 NO SE DILIGENCIA INFORMACIÓN PARA ESTE FORMULARIO EN ESTE PERÍODO DE REPORTE",35507261,"LUZ HELENA GUTIERREZ SUAREZ","COORDINADORA GIT GESTIÓN PRESTACIÓN SERVICIOS DE SALUD","GIT GESTIÓN PRESTACIÓN SERVICIOS DE SALUD","NO",80111600,"POLIZA","Calidad del servicio - Cumplimiento del contrato",null,"2024-01-13","2024-01-13","2024-01-13","2024-01-13","2024-12-12",330,{"$f":"DATEDIF('BASE 2023 FPS'!$BF37-1,'BASE 2023 FPS'!$BG37,\"m\")","v":11},null,null,null,null,null,null,null,null,null,null,null,null,null,null,null,null,null,null,null,null,null,null,null,null,null,null,null,null,null,null,null,null,null,null,null,null,null,null,null,null,null,null,null,null,null,null,null,null,null,null,null,null,null,null,null,null,null,"https://community.secop.gov.co/Public/Tendering/ContractNoticePhases/View?PPI=CO1.PPI.29185203&isFromPublicArea=True&isModal=False"]
[2024,"CPS-041-2024",null,null,"F5.1","2 CONTRATACIÓN DIRECTA","CPS-041-2024","14 PRESTACIÓN DE SERVICIOS","PROFESIONALES","ENRIQUE LUIS PEÑALOZA","Formación requerida en una (1) carrera profesional y una  (1) especialización "," Economía, Administración, Contaduría y afines","1 PERSONA NATURAL","3 CÉDULA DE CIUDADANÍA",17971594,17971594,null,"11 NO SE DILIGENCIA INFORMACIÓN PARA ESTE FORMULARIO EN ESTE PERÍODO DE REPORTE","NO APLICA","NO APLICA","NO APLICA","LUZ FANY VACA GUTIERREZ",124,"2024-01-11",null,null,null,null,null,"SECRETARIO GENERAL","SECRETARIO GENERAL","PRESTAR LOS SERVICIOS COMO PROFESIONAL ESPECIALIZADO EN CONTADURÍA PÚBLICA PARA APOYAR LA GESTIÓN ADMINISTRATIVA EN LA SECRETARIA GENERAL DEL FONDO PASIVO SOCIAL DE FERROCARRILES NACIONALES DE COLOMBIA",{"$f":"LEFT('BASE 2023 FPS'!$AF38,390)","v":"PRESTAR LOS SERVICIOS COMO PROFESIONAL ESPECIALIZADO EN CONTADURÍA PÚBLICA PARA APOYAR LA GESTIÓN ADMINISTRATIVA EN LA SECRETARIA GENERAL DEL FONDO PASIVO SOCIAL DE FERROCARRILES NACIONALES DE COLOMBIA"},7889475,86784225,"2024-01-13",1,1,"COLOMBIA > Distrito Capital de Bogotá > Bogotá","COLOMBIA > Distrito Capital de Bogotá > Bogotá","2 SUPERVISOR","NO APLICA","5 NO SE TIENE ESTE TIPO DE SEGUIMIENTO EN EL CONTRATO","NO APLICA","11 NO SE DILIGENCIA INFORMACIÓN PARA ESTE FORMULARIO EN ESTE PERÍODO DE REPORTE",17956156,"CARLOS ANDRES TOVAR OROZCO","SECRETARIO GENERAL","SECRETARIA GENERAL","NO",80111600,"POLIZA","Calidad del servicio - Cumplimiento del contrato","11-46-101043075","2024-01-13","2024-01-13","2024-01-13","2024-01-13","2024-12-12",330,{"$f":"DATEDIF('BASE 2023 FPS'!$BF38-1,'BASE 2023 FPS'!$BG38,\"m\")","v":11},null,null,null,null,null,null,null,null,null,null,null,null,null,null,null,null,null,null,null,null,null,null,null,null,null,null,null,null,null,null,null,null,null,null,null,null,null,null,null,null,null,null,null,null,null,null,null,null,null,null,null,null,null,null,null,null,null,"https://community.secop.gov.co/Public/Tendering/ContractNoticePhases/View?PPI=CO1.PPI.29184107&isFromPublicArea=True&isModal=False"]
[2024,"CPS-042-2024",null,null,"F5.1","2 CONTRATACIÓN DIRECTA","CPS-042-2024","14 PRESTACIÓN DE SERVICIOS","PROFESIONALES","BELLA CELEDON","Formación requerida en una (1) carrera profesional "," Ciencias Sociales y Humanas","1 PERSONA NATURAL","3 CÉDULA DE CIUDADANÍA",1045743427,1045743427,null,"11 NO SE DILIGENCIA INFORMACIÓN PARA ESTE FORMULARIO EN ESTE PERÍODO DE REPORTE","NO APLICA","NO APLICA","NO APLICA","LUZ FANY VACA GUTIERREZ",124,"2024-01-11",null,null,null,null,null,"GIT TALENTO HUMANO","GIT TALENTO HUMANO","“PRESTAR LOS SERVICIOS DE APOYO A LA GESTIÓN COMO JUDICANTE, CON EL FIN DE ADELANTAR ACTIVIDADES RELACIONADAS CON LOS ASUNTOS JURÍDICOS Y ADMINISTRATIVOS DESDE LA SECRETARÍA GENERAL – GIT GESTION TALENTO HUMANO DEL FONDO DE PASIVO SOCIAL DE FERROCARRILES NACIONALES DE COLOMBIA",{"$f":"LEFT('BASE 2023 FPS'!$AF39,390)","v":"“PRESTAR LOS SERVICIOS DE APOYO A LA GESTIÓN COMO JUDICANTE, CON EL FIN DE ADELANTAR ACTIVIDADES RELACIONADAS CON LOS ASUNTOS JURÍDICOS Y ADMINISTRATIVOS DESDE LA SECRETARÍA GENERAL – GIT GESTION TALENTO HUMANO DEL FONDO DE PASIVO SOCIAL DE FERROCARRILES NACIONALES DE COLOMBIA"},2450519,26955709,"2024-01-13",1,1,"COLOMBIA > Distrito Capital de Bogotá > Bogotá","COLOMBIA > Distrito Capital de Bogotá > Bogotá","2 SUPERVISOR","NO APLICA","5 NO SE TIENE ESTE TIPO DE SEGUIMIENTO EN EL CONTRATO","NO APLICA","11 NO SE DILIGENCIA INFORMACIÓN PARA ESTE FORMULARIO EN ESTE PERÍODO DE REPORTE",1014212108,"TATIANA PEREZ SIERRA","GIT TALENTO HUMANO","GIT TALENTO HUMANO","NO",80111600,"POLIZA","Calidad del servicio - Cumplimiento del contrato","11-46-101042985","2024-01-13","2024-01-13","2024-01-13","2024-01-13","2024-12-12",330,{"$f":"DATEDIF('BASE 2023 FPS'!$BF39-1,'BASE 2023 FPS'!$BG39,\"m\")","v":11},null,null,null,null,null,null,null,null,null,null,null,null,null,null,null,null,null,null,null,null,null,null,null,null,null,null,null,null,null,null,null,null,null,null,null,null,null,null,null,null,null,null,null,null,null,null,null,null,null,null,null,null,null,null,null,null,null,"https://community.secop.gov.co/Public/Tendering/ContractNoticePhases/View?PPI=CO1.PPI.29183784&isFromPublicArea=True&isModal=False"]
[2024,"CPS-043-2024",null,null,"F5.1","2 CONTRATACIÓN DIRECTA","CPS-043-2024","14 PRESTACIÓN DE SERVICIOS","PROFESIONALES","LUZ DARY DE LA CRUZ HERRERA","Formación requerida en una (1) carrera profesional y una  (1) especialización "," Ciencias de la Salud","1 PERSONA NATURAL","3 CÉDULA DE CIUDADANÍA",32610599,32610599,null,"11 NO SE DILIGENCIA INFORMACIÓN PARA ESTE FORMULARIO EN ESTE PERÍODO DE REPORTE","NO APLICA","NO APLICA","NO APLICA","LUZ FANY VACA GUTIERREZ",124,"2024-01-11",null,null,null,null,null,"MEDICO ESPECIALISTA DIVISION MAGDALENA","GIT GESTIÓN PRESTACIÓN SERVICIOS DE SALUD -  DIVISION MAGDALENA","PRESTAR LOS SERVICIOS PROFESIONALES COMO MEDICO AUDITOR PARA APOYAR LA GESTIÓN ADMINISTRATIVA DESDE EL GRUPO INTERNO DE TRABAJO GESTION PRESTACION DE SERVICIOS DE SALUD, DESDE LA DIVISIÓN MAGDALENA - (CIUDAD BARRANQUILLA) DEL FONDO DE PASIVO SOCIAL DE FERROCARRILES NACIONALES DE COLOMBIA",{"$f":"LEFT('BASE 2023 FPS'!$AF40,390)","v":"PRESTAR LOS SERVICIOS PROFESIONALES COMO MEDICO AUDITOR PARA APOYAR LA GESTIÓN ADMINISTRATIVA DESDE EL GRUPO INTERNO DE TRABAJO GESTION PRESTACION DE SERVICIOS DE SALUD, DESDE LA DIVISIÓN MAGDALENA - (CIUDAD BARRANQUILLA) DEL FONDO DE PASIVO SOCIAL DE FERROCARRILES NACIONALES DE COLOMBIA"},7889475,86784225,"2024-01-15",1,1,"COLOMBIA > Distrito Capital de Bogotá > Bogotá","COLOMBIA > Distrito Capital de Bogotá > Bogotá","2 SUPERVISOR","NO APLICA","5 NO SE TIENE ESTE TIPO DE SEGUIMIENTO EN EL CONTRATO","NO APLICA","11 NO SE DILIGENCIA INFORMACIÓN PARA ESTE FORMULARIO EN ESTE PERÍODO DE REPORTE",35507261,"RAIMUNDO COHEN COGOLLO","MEDICO ESPECIALISTA DIVISION MAGDALENA","GIT GESTIÓN PRESTACIÓN SERVICIOS DE SALUD -  DIVISION MAGDALENA","NO",80111600,"POLIZA","Calidad del servicio - Cumplimiento del contrato","11-46-101043273","2024-01-15","2024-01-15","2024-01-15","2024-01-15","2024-12-14",330,{"$f":"DATEDIF('BASE 2023 FPS'!$BF40-1,'BASE 2023 FPS'!$BG40,\"m\")","v":11}]
[2024,"CPS-044-2024",null,null,"F5.1","2 CONTRATACIÓN DIRECTA","CPS-044-2024","14 PRESTACIÓN DE SERVICIOS","PROFESIONALES","SANDRA PATRICIA MORENO ORTEGA","Formación requerida en una (1) carrera profesional y una  (1) especialización "," Ciencias de la Salud","1 PERSONA NATURAL","3 CÉDULA DE CIUDADANÍA",30738831,30738831,null,"11 NO SE DILIGENCIA INFORMACIÓN PARA ESTE FORMULARIO EN ESTE PERÍODO DE REPORTE","NO APLICA","NO APLICA","NO APLICA","LUZ FANY VACA GUTIERREZ",124,"2024-01-11",null,null,null,null,null,"COORDINADORA GIT GESTIÓN PRESTACIÓN SERVICIOS DE SALUD","COORDINADORA GIT GESTIÓN PRESTACIÓN SERVICIOS DE SALUD","PRESTAR LOS SERVICIOS PROFESIONALES COMO MEDICO AUDITOR PARA APOYAR LA GESTIÓN ADMINISTRATIVA DESDE EL GRUPO INTERNO DE TRABAJO GESTION PRESTACION DE SERVICIOS DE SALUD, DESDE LA DIVISIÓN PACÍFICO DEL FONDO DE PASIVO SOCIAL DE FERROCARRILES NACIONALES DE COLOMBIA",{"$f":"LEFT('BASE 2023 FPS'!$AF41,390)","v":"PRESTAR LOS SERVICIOS PROFESIONALES COMO MEDICO AUDITOR PARA APOYAR LA GESTIÓN ADMINISTRATIVA DESDE EL GRUPO INTERNO DE TRABAJO GESTION PRESTACION DE SERVICIOS DE SALUD, DESDE LA DIVISIÓN PACÍFICO DEL FONDO DE PASIVO SOCIAL DE FERROCARRILES NACIONALES DE COLOMBIA"},7889475,86784225,"2024-01-13",1,1,"COLOMBIA > Distrito Capital de Bogotá > Bogotá","COLOMBIA > Distrito Capital de Bogotá > Bogotá","2 SUPERVISOR","NO APLICA","5 NO SE TIENE ESTE TIPO DE SEGUIMIENTO EN EL CONTRATO","NO APLICA","11 NO SE DILIGENCIA INFORMACIÓN PARA ESTE FORMULARIO EN ESTE PERÍODO DE REPORTE",24326606,"ISABEL CRISTINA GALLO MEJIA","COORDINADORA GIT GESTIÓN PRESTACIÓN SERVICIOS DE SALUD","GIT GESTIÓN PRESTACIÓN SERVICIOS DE SALUD","NO",80111600,"POLIZA","Calidad del servicio - Cumplimiento del contrato","11-46-101043265","2024-01-13","2024-01-13","2024-01-13","2024-01-13","2024-12-12",330,{"$f":"DATEDIF('BASE 2023 FPS'!$BF41-1,'BASE 2023 FPS'!$BG41,\"m\")","v":11},null,null,null,null,null,null,null,null,null,null,null,null,null,null,null,null,null,null,null,null,null,null,null,null,null,null,null,null,null,null,null,null,null,null,null,null,null,null,null,null,null,null,null,null,null,null,null,null,null,null,null,null,null,null,null,null,null,"https://community.secop.gov.co/Public/Tendering/ContractNoticePhases/View?PPI=CO1.PPI.29184190&isFromPublicArea=True&isModal=False"]
[2024,"CPS-045-2024",null,null,"F5.1","2 CONTRATACIÓN DIRECTA","CPS-045-2024","14 PRESTACIÓN DE SERVICIOS","PROFESIONALES","EDDY OLIVARES","Formación requerida en una (1) carrera profesional "," Economía, Administración, Contaduría y afines","1 PERSONA NATURAL","3 CÉDULA DE CIUDADANÍA",1121328655,1121328655,null,"11 NO SE DILIGENCIA INFORMACIÓN PARA ESTE FORMULARIO EN ESTE PERÍODO DE REPORTE","NO APLICA","NO APLICA","NO APLICA","LUZ FANY VACA GUTIERREZ",124,"2024-01-11",null,null,null,null,null,"GIT TALENTO HUMANO","GIT TALENTO HUMANO","PRESTAR LOS SERVICIOS PROFESIONALES COMO ADMINISTRADORA DE EMPRESAS PARA APOYAR LA GESTIÓN ADMINISTRATIVA DE LA SECRETARIA GENERAL - GIT TALENTO HUMANO DEL FONDO DE PASIVO SOCIAL DE FERROCARRILES NACIONALES DE COLOMBIA",{"$f":"LEFT('BASE 2023 FPS'!$AF42,390)","v":"PRESTAR LOS SERVICIOS PROFESIONALES COMO ADMINISTRADORA DE EMPRESAS PARA APOYAR LA GESTIÓN ADMINISTRATIVA DE LA SECRETARIA GENERAL - GIT TALENTO HUMANO DEL FONDO DE PASIVO SOCIAL DE FERROCARRILES NACIONALES DE COLOMBIA"},7530862,82839482,"2024-01-15",1,1,"COLOMBIA > Distrito Capital de Bogotá > Bogotá","COLOMBIA > Distrito Capital de Bogotá > Bogotá","2 SUPERVISOR","NO APLICA","5 NO SE TIENE ESTE TIPO DE SEGUIMIENTO EN EL CONTRATO","NO APLICA","11 NO SE DILIGENCIA INFORMACIÓN PARA ESTE FORMULARIO EN ESTE PERÍODO DE REPORTE",1014212108,"TATIANA PEREZ SIERRA","GIT TALENTO HUMANO","GIT TALENTO HUMANO","NO",80111600,"POLIZA","Calidad del servicio - Cumplimiento del contrato","340 47 994000050342","2024-01-15","2024-01-15","2024-01-15","2024-01-15","2024-12-14",330,{"$f":"DATEDIF('BASE 2023 FPS'!$BF42-1,'BASE 2023 FPS'!$BG42,\"m\")","v":11}]
[2024,"CPS-046-2024",null,null,"F5.1","2 CONTRATACIÓN DIRECTA","CPS-046-2024","14 PRESTACIÓN DE SERVICIOS","PROFESIONALES","SONIA SOCHE","Formación requerida en una (1) carrera profesional y una  (1) especialización "," Ingeniería, Arquitectura, Urbanismo y afines","1 PERSONA NATURAL","3 CÉDULA DE CIUDADANÍA",52874464,52874464,null,"11 NO SE DILIGENCIA INFORMACIÓN PARA ESTE FORMULARIO EN ESTE PERÍODO DE REPORTE","NO APLICA","NO APLICA","NO APLICA","LUZ FANY VACA GUTIERREZ",124,"2024-01-11",null,null,null,null,null,"GIT TALENTO HUMANO","GIT TALENTO HUMANO","PRESTAR LOS SERVICIOS PROFESIONALES PARA APOYAR EL FORTALECIMIENTO DEL SG-SST, DESDE LA SECRETARÍA GENERAL- GIT GESTIÓN DE TALENTO HUMANO DEL FONDO DE PASIVO SOCIAL DE FERROCARRILES NACIONALES DE COLOMBIA",{"$f":"LEFT('BASE 2023 FPS'!$AF43,390)","v":"PRESTAR LOS SERVICIOS PROFESIONALES PARA APOYAR EL FORTALECIMIENTO DEL SG-SST, DESDE LA SECRETARÍA GENERAL- GIT GESTIÓN DE TALENTO HUMANO DEL FONDO DE PASIVO SOCIAL DE FERROCARRILES NACIONALES DE COLOMBIA"},4661962,51281582,"2024-01-13",1,1,"COLOMBIA > Distrito Capital de Bogotá > Bogotá","COLOMBIA > Distrito Capital de Bogotá > Bogotá","2 SUPERVISOR","NO APLICA","5 NO SE TIENE ESTE TIPO DE SEGUIMIENTO EN EL CONTRATO","NO APLICA","11 NO SE DILIGENCIA INFORMACIÓN PARA ESTE FORMULARIO EN ESTE PERÍODO DE REPORTE",1014212108,"TATIANA PEREZ SIERRA","GIT TALENTO HUMANO","GIT TALENTO HUMANO","NO",80111600,"POLIZA","Calidad del servicio - Cumplimiento del contrato",null,"2024-01-13","2024-01-13","2024-01-13","2024-01-13","2024-12-12",330,{"$f":"DATEDIF('BASE 2023 FPS'!$BF43-1,'BASE 2023 FPS'!$BG43,\"m\")","v":11},null,null,null,null,null,null,null,null,null,null,null,null,null,null,null,null,null,null,null,null,null,null,null,null,null,null,null,null,null,null,null,null,null,null,null,null,null,null,null,null,null,null,null,null,null,null,null,null,null,null,null,null,null,null,null,null,null,"https://community.secop.gov.co/Public/Tendering/ContractNoticePhases/View?PPI=CO1.PPI.29184100&isFromPublicArea=True&isModal=False"]
[2024,"CPS-047-2024",null,null,"F5.1","2 CONTRATACIÓN DIRECTA","CPS-047-2024","14 PRESTACIÓN DE SERVICIOS","PROFESIONALES","JENNIFER HENAO","Apoyo a la gestion"," Economía, Administración, Contaduría y afines","1 PERSONA NATURAL","3 CÉDULA DE CIUDADANÍA",1104706750,1104706750,null,"11 NO SE DILIGENCIA INFORMACIÓN PARA ESTE FORMULARIO EN ESTE PERÍODO DE REPORTE","NO APLICA","NO APLICA","NO APLICA","LUZ FANY VACA GUTIERREZ",124,"2024-01-11",null,null,null,null,null,"GIT TALENTO HUMANO","GIT TALENTO HUMANO","APOYAR LA GESTIÓN ADMINISTRATIVA DEL GIT TALENTO HUMANO DE LA SECRETARÍA GENERAL DEL FONDO DE PASIVO SOCIAL DE FERROCARRILES NACIONALES DE COLOMBIA",{"$f":"LEFT('BASE 2023 FPS'!$AF44,390)","v":"APOYAR LA GESTIÓN ADMINISTRATIVA DEL GIT TALENTO HUMANO DE LA SECRETARÍA GENERAL DEL FONDO DE PASIVO SOCIAL DE FERROCARRILES NACIONALES DE COLOMBIA"},3705662,40762282,"2024-01-15",1,1,"COLOMBIA > Distrito Capital de Bogotá > Bogotá","COLOMBIA > Distrito Capital de Bogotá > Bogotá","2 SUPERVISOR","NO APLICA","5 NO SE TIENE ESTE TIPO DE SEGUIMIENTO EN EL CONTRATO","NO APLICA","11 NO SE DILIGENCIA INFORMACIÓN PARA ESTE FORMULARIO EN ESTE PERÍODO DE REPORTE",1014212108,"TATIANA PEREZ SIERRA","GIT TALENTO HUMANO","GIT TALENTO HUMANO","NO",80111600,"POLIZA","Calidad del servicio - Cumplimiento del contrato","11-46-101043151","2024-01-15","2024-01-15","2024-01-15","2024-01-15","2024-12-14",330,{"$f":"DATEDIF('BASE 2023 FPS'!$BF44-1,'BASE 2023 FPS'!$BG44,\"m\")","v":11}]
[2024,"CPS-048-2024",null,null,"F5.1","2 CONTRATACIÓN DIRECTA","CPS-048-2024","14 PRESTACIÓN DE SERVICIOS","PROFESIONALES","CARLOS EDUARDO LEON GUERRERO","Formación requerida en una (1) carrera profesional "," Ciencias Sociales y Humanas","1 PERSONA NATURAL","3 CÉDULA DE CIUDADANÍA",80223971,80223971,null,"11 NO SE DILIGENCIA INFORMACIÓN PARA ESTE FORMULARIO EN ESTE PERÍODO DE REPORTE","NO APLICA","NO APLICA","NO APLICA","LUZ FANY VACA GUTIERREZ",124,"2024-01-11",null,null,null,null,null,"GIT TALENTO HUMANO","GIT TALENTO HUMANO","PRESTAR LOS SERVICIOS PROFESIONALES COMO COMUNICADOR SOCIAL PARA APOYAR LA GESTIÓN ADMINISTRATIVA DEL GIT TALENTO HUMANO DE LA SECRETARÍA GENERAL DEL FONDO DE PASIVO SOCIAL DE FERROCARRILES NACIONALES DE COLOMBIA",{"$f":"LEFT('BASE 2023 FPS'!$AF45,390)","v":"PRESTAR LOS SERVICIOS PROFESIONALES COMO COMUNICADOR SOCIAL PARA APOYAR LA GESTIÓN ADMINISTRATIVA DEL GIT TALENTO HUMANO DE LA SECRETARÍA GENERAL DEL FONDO DE PASIVO SOCIAL DE FERROCARRILES NACIONALES DE COLOMBIA"},4064275,44707025,"2024-01-13",1,1,"COLOMBIA > Distrito Capital de Bogotá > Bogotá","COLOMBIA > Distrito Capital de Bogotá > Bogotá","2 SUPERVISOR","NO APLICA","5 NO SE TIENE ESTE TIPO DE SEGUIMIENTO EN EL CONTRATO","NO APLICA","11 NO SE DILIGENCIA INFORMACIÓN PARA ESTE FORMULARIO EN ESTE PERÍODO DE REPORTE",1014212108,"TATIANA PEREZ SIERRA","GIT TALENTO HUMANO","GIT TALENTO HUMANO","NO",80111600,"POLIZA","Calidad del servicio - Cumplimiento del contrato",1146101043203,"2024-01-13","2024-01-13","2024-01-13","2024-01-13","2024-12-12",330,{"$f":"DATEDIF('BASE 2023 FPS'!$BF45-1,'BASE 2023 FPS'!$BG45,\"m\")","v":11},null,null,null,null,null,null,null,null,null,null,null,null,null,null,null,null,null,null,null,null,null,null,null,null,null,null,null,null,null,null,null,null,null,null,null,null,null,null,null,null,null,null,null,null,null,null,null,null,null,null,null,null,null,null,null,null,null,"https://community.secop.gov.co/Public/Tendering/ContractNoticePhases/View?PPI=CO1.PPI.29184721&isFromPublicArea=True&isModal=False"]
[2024,"CPS-049-2024","Danilo Luis Lopez sanabria",null,"F5.1","2 CONTRATACIÓN DIRECTA","CPS-049-2024","14 PRESTACIÓN DE SERVICIOS","PROFESIONALES","FRANCIS LILIANA BARON","Formación requerida en una (1) carrera profesional "," Ciencias Sociales y Humanas","1 PERSONA NATURAL","3 CÉDULA DE CIUDADANÍA",52444065,52444065,null,"11 NO SE DILIGENCIA INFORMACIÓN PARA ESTE FORMULARIO EN ESTE PERÍODO DE REPORTE","NO APLICA","NO APLICA","NO APLICA","LUZ FANY VACA GUTIERREZ",124,"2024-01-11",null,null,null,null,null,"GIT TALENTO HUMANO","GIT TALENTO HUMANO","PRESTAR LOS SERVICIOS PROFESIONALES COMO ABOGADO PARA APOYAR LA GESTIÓN ADMINISTRATIVA DEL GIT TALENTO HUMANO DE LA SECRETARÍA GENERAL DEL FONDO DE PASIVO SOCIAL DE FERROCARRILES NACIONALES DE COLOMBIA",{"$f":"LEFT('BASE 2023 FPS'!$AF46,390)","v":"PRESTAR LOS SERVICIOS PROFESIONALES COMO ABOGADO PARA APOYAR LA GESTIÓN ADMINISTRATIVA DEL GIT TALENTO HUMANO DE LA SECRETARÍA GENERAL DEL FONDO DE PASIVO SOCIAL DE FERROCARRILES NACIONALES DE COLOMBIA"},4303349,47336839,"2024-01-15",1,1,"COLOMBIA > Distrito Capital de Bogotá > Bogotá","COLOMBIA > Distrito Capital de Bogotá > Bogotá","2 SUPERVISOR","NO APLICA","5 NO SE TIENE ESTE TIPO DE SEGUIMIENTO EN EL CONTRATO","NO APLICA","11 NO SE DILIGENCIA INFORMACIÓN PARA ESTE FORMULARIO EN ESTE PERÍODO DE REPORTE",1014212108,"TATIANA PEREZ SIERRA","GIT TALENTO HUMANO","GIT TALENTO HUMANO","NO",80111600,"POLIZA","Calidad del servicio - Cumplimiento del contrato",null,"2024-01-15","2024-01-15","2024-01-15","2024-01-15","2024-12-14",330,{"$f":"DATEDIF('BASE 2023 FPS'!$BF46-1,'BASE 2023 FPS'!$BG46,\"m\")","v":11},null,null,null,null,null,null,null,null,null,null,null,null,null,null,null,null,null,null,null,null,null,null,null,null,null,null,null,null,null,null,null,null,null,null,null,null,null,null,null,null,null,null,null,null,null,null,null,null,null,null,null,null,null,null,null,null,null,"https://community.secop.gov.co/Public/Tendering/ContractNoticePhases/View?PPI=CO1.PPI.29194093&isFromPublicArea=True&isModal=False"]
[2024,"CPS-050-2024",null,null,"F5.1","2 CONTRATACIÓN DIRECTA","CPS-050-2024","14 PRESTACIÓN DE SERVICIOS","PROFESIONALES","CRISTIAN CAMILO HOYOS","Apoyo a la gestion"," Economía, Administración, Contaduría y afines","1 PERSONA NATURAL","3 CÉDULA DE CIUDADANÍA",1067846317,1067846317,null,"11 NO SE DILIGENCIA INFORMACIÓN PARA ESTE FORMULARIO EN ESTE PERÍODO DE REPORTE","NO APLICA","NO APLICA","NO APLICA","LUZ FANY VACA GUTIERREZ",124,"2024-01-11",null,null,null,null,null,"COORDINADOR GIT CONTABILIDAD","COORDINADOR GIT CONTABILIDAD","PRESTAR LOS SERVICIOS TÉCNICOS PARA APOYAR EL TRMITE DE OBLIGACIONES A CONTRATISTAS EN LA GESTIÓN DE CENTRAL DE CUENTAS DEL GIT DE CONTABILIDAD DEL FONDO DE PASIVO DE FERROCARRILES NACIONALES DE COLOMBIA",{"$f":"LEFT('BASE 2023 FPS'!$AF47,390)","v":"PRESTAR LOS SERVICIOS TÉCNICOS PARA APOYAR EL TRMITE DE OBLIGACIONES A CONTRATISTAS EN LA GESTIÓN DE CENTRAL DE CUENTAS DEL GIT DE CONTABILIDAD DEL FONDO DE PASIVO DE FERROCARRILES NACIONALES DE COLOMBIA"},3107975,34187725,"2024-01-13",1,1,"COLOMBIA > Distrito Capital de Bogotá > Bogotá","COLOMBIA > Distrito Capital de Bogotá > Bogotá","2 SUPERVISOR","NO APLICA","5 NO SE TIENE ESTE TIPO DE SEGUIMIENTO EN EL CONTRATO","NO APLICA","11 NO SE DILIGENCIA INFORMACIÓN PARA ESTE FORMULARIO EN ESTE PERÍODO DE REPORTE",40048297,"TULIA XIMENA DIAZ ROMERO","COORDINADOR GIT CONTABILIDAD","COORDINADOR GIT CONTABILIDAD","NO",80111600,"POLIZA","Calidad del servicio - Cumplimiento del contrato","96-46-101016124","2024-01-13","2024-01-13","2024-01-13","2024-01-13","2024-12-12",330,{"$f":"DATEDIF('BASE 2023 FPS'!$BF47-1,'BASE 2023 FPS'!$BG47,\"m\")","v":11},null,null,null,null,null,null,null,null,null,null,null,null,null,null,null,null,null,null,null,null,null,null,null,null,null,null,null,null,null,null,null,null,null,null,null,null,null,null,null,null,null,null,null,null,null,null,null,null,null,null,null,null,null,null,null,null,null,"https://community.secop.gov.co/Public/Tendering/ContractNoticePhases/View?PPI=CO1.PPI.29183777&isFromPublicArea=True&isModal=False"]
[2024,"CPS-051-2024",null,null,"F5.1","2 CONTRATACIÓN DIRECTA","CPS-051-2024","14 PRESTACIÓN DE SERVICIOS","PROFESIONALES","JAIME ESCOBAR","Formación requerida en una (1) carrera profesional y una  (1) especialización "," Economía, Administración, Contaduría y afines","1 PERSONA NATURAL","3 CÉDULA DE CIUDADANÍA",5172282,5172282,null,"11 NO SE DILIGENCIA INFORMACIÓN PARA ESTE FORMULARIO EN ESTE PERÍODO DE REPORTE","NO APLICA","NO APLICA","NO APLICA","LUZ FANY VACA GUTIERREZ",124,"2024-01-11",null,null,null,null,null,"SUBDIRECCION FINANCIERA – GIT CARTERA","SUBDIRECCION FINANCIERA – GIT CARTERA","PRESTAR LOS SERVICIOS PROFESIONALES COMO CONTADOR PUBLICO PARA QUE APOYE LA GESTIÓN ADMINISTRATIVA DE LA ENTIDAD RESPECTO DE LOS ASPECTOS TÉCNICOS Y FINANCIEROS EN RELACIÓN CON LAS FUNCIONES ASIGNADAS AL DEL FONDO PASIVO SOCIAL DE FERROCARRILES NACIONALES DE COLOMBIA DESDE LA SUBDIRECCIÓN FINANCIERA",{"$f":"LEFT('BASE 2023 FPS'!$AF48,390)","v":"PRESTAR LOS SERVICIOS PROFESIONALES COMO CONTADOR PUBLICO PARA QUE APOYE LA GESTIÓN ADMINISTRATIVA DE LA ENTIDAD RESPECTO DE LOS ASPECTOS TÉCNICOS Y FINANCIEROS EN RELACIÓN CON LAS FUNCIONES ASIGNADAS AL DEL FONDO PASIVO SOCIAL DE FERROCARRILES NACIONALES DE COLOMBIA DESDE LA SUBDIRECCIÓN FINANCIERA"},7889475,86784225,"2024-01-13",1,1,"COLOMBIA > Distrito Capital de Bogotá > Bogotá","COLOMBIA > Distrito Capital de Bogotá > Bogotá","2 SUPERVISOR","NO APLICA","5 NO SE TIENE ESTE TIPO DE SEGUIMIENTO EN EL CONTRATO","NO APLICA","11 NO SE DILIGENCIA INFORMACIÓN PARA ESTE FORMULARIO EN ESTE PERÍODO DE REPORTE",23621957,"LUZ FANNY VACA GUTIERREZ","SUBDIRECCION FINANCIERA – GIT CARTERA","SUBDIRECCION FINANCIERA – GIT CARTERA","NO",80111600,"POLIZA","Calidad del servicio - Cumplimiento del contrato","11-46-101042987","2024-01-13","2024-01-13","2024-01-13","2024-01-13","2024-12-12",330,{"$f":"DATEDIF('BASE 2023 FPS'!$BF48-1,'BASE 2023 FPS'!$BG48,\"m\")","v":11},null,null,null,null,null,null,null,null,null,null,null,null,null,null,null,null,null,null,null,null,null,null,null,null,null,null,null,null,null,null,null,null,null,null,null,null,null,null,null,null,null,null,null,null,null,null,null,null,null,null,null,null,null,null,null,null,null,"https://community.secop.gov.co/Public/Tendering/ContractNoticePhases/View?PPI=CO1.PPI.29184060&isFromPublicArea=True&isModal=False"]
[2024,"CPS-052-2024",null,null,"F5.1","2 CONTRATACIÓN DIRECTA","CPS-052-2024","14 PRESTACIÓN DE SERVICIOS","PROFESIONALES","IVAN FRANCISCO FUENTES","Formación requerida en una (1) carrera profesional y una  (1) especialización "," Ciencias Sociales y Humanas","1 PERSONA NATURAL","3 CÉDULA DE CIUDADANÍA",1136883859,1136883859,null,"11 NO SE DILIGENCIA INFORMACIÓN PARA ESTE FORMULARIO EN ESTE PERÍODO DE REPORTE","NO APLICA","NO APLICA","NO APLICA","LUZ FANY VACA GUTIERREZ",124,"2024-01-11",null,null,null,null,null,"SECRETARIO GENERAL","SECRETARIO GENERAL","PRESTAR LOS SERVICIOS PROFESIONALES COMO ABOGADO ESPECIALISTA PARA APOYAR LA GESTIÓN JURÍDICA Y ADMINISTRATIVA QUE ADELANTA LA SECRETARIA GENERAL DEL FONDO PASIVO SOCIAL DE FERROCARRILES NACIONALES DE COLOMBIA.",{"$f":"LEFT('BASE 2023 FPS'!$AF49,390)","v":"PRESTAR LOS SERVICIOS PROFESIONALES COMO ABOGADO ESPECIALISTA PARA APOYAR LA GESTIÓN JURÍDICA Y ADMINISTRATIVA QUE ADELANTA LA SECRETARIA GENERAL DEL FONDO PASIVO SOCIAL DE FERROCARRILES NACIONALES DE COLOMBIA."},7889475,86784225,"2024-01-13",1,1,"COLOMBIA > Distrito Capital de Bogotá > Bogotá","COLOMBIA > Distrito Capital de Bogotá > Bogotá","2 SUPERVISOR","NO APLICA","5 NO SE TIENE ESTE TIPO DE SEGUIMIENTO EN EL CONTRATO","NO APLICA","11 NO SE DILIGENCIA INFORMACIÓN PARA ESTE FORMULARIO EN ESTE PERÍODO DE REPORTE",17956156,"CARLOS ANDRES TOVAR OROZCO","SECRETARIO GENERAL","SECRETARIA GENERAL","NO",80111600,"POLIZA","Calidad del servicio - Cumplimiento del contrato",null,"2024-01-13","2024-01-13","2024-01-13","2024-01-13","2024-12-12",330,{"$f":"DATEDIF('BASE 2023 FPS'!$BF49-1,'BASE 2023 FPS'!$BG49,\"m\")","v":11},null,null,null,null,null,null,null,null,null,null,null,null,null,null,null,null,null,null,null,null,null,null,null,null,null,null,null,null,null,null,null,null,null,null,null,null,null,null,null,null,null,null,null,null,null,null,null,null,null,null,null,null,null,null,null,null,null,"https://community.secop.gov.co/Public/Tendering/ContractNoticePhases/View?PPI=CO1.PPI.29184111&isFromPublicArea=True&isModal=False"]
[2024,"CPS-053-2024",null,null,"F5.1","2 CONTRATACIÓN DIRECTA","CPS-053-2024","14 PRESTACIÓN DE SERVICIOS","PROFESIONALES","RICHARD GARZON","Formación requerida en una (1) carrera profesional "," Economía, Administración, Contaduría y afines","1 PERSONA NATURAL","3 CÉDULA DE CIUDADANÍA",1024493018,1024493018,null,"11 NO SE DILIGENCIA INFORMACIÓN PARA ESTE FORMULARIO EN ESTE PERÍODO DE REPORTE","NO APLICA","NO APLICA","NO APLICA","LUZ FANY VACA GUTIERREZ",124,"2024-01-11",null,null,null,null,null,"SECRETARIA GENERAL – ATENCION AL CIUDADANO Y GESTION DOCUMENTAL","SECRETARIA GENERAL – ATENCION AL CIUDADANO Y GESTION DOCUMENTAL","PRESTAR LOS SERVICIOS PROFESIONALES COMO ARCHIVISTA AL GIT ATENCIÓN AL CIUDADANO Y GESTIÓN DOCUMENTAL DEL FONDO DE PASIVO SOCIAL DE FERROCARRILES NACIONALES DE COLOMBIA",{"$f":"LEFT('BASE 2023 FPS'!$AF50,390)","v":"PRESTAR LOS SERVICIOS PROFESIONALES COMO ARCHIVISTA AL GIT ATENCIÓN AL CIUDADANO Y GESTIÓN DOCUMENTAL DEL FONDO DE PASIVO SOCIAL DE FERROCARRILES NACIONALES DE COLOMBIA"},5259650,57856150,"2024-01-15",1,1,"COLOMBIA > Distrito Capital de Bogotá > Bogotá","COLOMBIA > Distrito Capital de Bogotá > Bogotá","2 SUPERVISOR","NO APLICA","5 NO SE TIENE ESTE TIPO DE SEGUIMIENTO EN EL CONTRATO","NO APLICA","11 NO SE DILIGENCIA INFORMACIÓN PARA ESTE FORMULARIO EN ESTE PERÍODO DE REPORTE",39526262,"NURY NAVARRO HERNADEZ","SECRETARIA GENERAL – ATENCION AL CIUDADANO Y GESTION DOCUMENTAL","SECRETARIA GENERAL – ATENCION AL CIUDADANO Y GESTION DOCUMENTAL","NO",80111600,"POLIZA","Calidad del servicio - Cumplimiento del contrato","11-46-101043091","2024-01-15","2024-01-15","2024-01-15","2024-01-15","2024-12-14",330,{"$f":"DATEDIF('BASE 2023 FPS'!$BF50-1,'BASE 2023 FPS'!$BG50,\"m\")","v":11},null,null,null,null,null,null,null,null,null,null,null,null,null,null,null,null,null,null,null,null,null,null,null,null,null,null,null,null,null,null,null,null,null,null,null,null,null,null,null,null,null,null,null,null,null,null,null,null,null,null,null,null,null,null,null,null,null,"https://community.secop.gov.co/Public/Tendering/ContractNoticePhases/View?PPI=CO1.PPI.29183884&isFromPublicArea=True&isModal=False"]
[2024,"CPS-054-2024",null,null,"F5.1","2 CONTRATACIÓN DIRECTA","CPS-054-2024","14 PRESTACIÓN DE SERVICIOS","PROFESIONALES","DARLY ZULAY ROSERO ENRIQUEZ","Formacion Tecnica"," Ciencias de la Salud","1 PERSONA NATURAL","3 CÉDULA DE CIUDADANÍA",59674842,59674842,null,"11 NO SE DILIGENCIA INFORMACIÓN PARA ESTE FORMULARIO EN ESTE PERÍODO DE REPORTE","NO APLICA","NO APLICA","NO APLICA","LUZ FANY VACA GUTIERREZ",124,"2024-01-11",null,null,null,null,null,"DIVISION PACIFICO","DIVISION PACIFICO","PRESTAR LOS SERVICIOS TÉCNICOS AL GIT GESTION DE PRESTACION DE SERVICIOS DE SALUD EN LA DIVISIÓN PACIFICO (CIUDAD TUMACO) DEL FONDO DE PASIVO SOCIAL DE FERROCARRILES NACIONALES DE COLOMBIA",{"$f":"LEFT('BASE 2023 FPS'!$AF51,390)","v":"PRESTAR LOS SERVICIOS TÉCNICOS AL GIT GESTION DE PRESTACION DE SERVICIOS DE SALUD EN LA DIVISIÓN PACIFICO (CIUDAD TUMACO) DEL FONDO DE PASIVO SOCIAL DE FERROCARRILES NACIONALES DE COLOMBIA"},3107975,34187725,"2024-01-15",1,1,"COLOMBIA > Distrito Capital de Bogotá > Bogotá","COLOMBIA > Distrito Capital de Bogotá > Bogotá","2 SUPERVISOR","NO APLICA","5 NO SE TIENE ESTE TIPO DE SEGUIMIENTO EN EL CONTRATO","NO APLICA","11 NO SE DILIGENCIA INFORMACIÓN PARA ESTE FORMULARIO EN ESTE PERÍODO DE REPORTE",24326606,"ISABEL CRISTINA GALLO MEJIA","COORDINADORA GIT GESTIÓN PRESTACIÓN SERVICIOS DE SALUD","GIT GESTIÓN PRESTACIÓN SERVICIOS DE SALUD","NO",80111600,"POLIZA","Calidad del servicio - Cumplimiento del contrato","11-46-101043095","2024-01-15","2024-01-15","2024-01-15","2024-01-15","2024-12-14",330,{"$f":"DATEDIF('BASE 2023 FPS'!$BF51-1,'BASE 2023 FPS'!$BG51,\"m\")","v":11}]
[2024,"CPS-055-2024",null,null,"F5.1","2 CONTRATACIÓN DIRECTA","CPS-055-2024","14 PRESTACIÓN DE SERVICIOS","PROFESIONALES","CLAUDIA XIMENA PEREZ AGUILAR","Apoyo a la gestion"," Ciencias de la Salud","1 PERSONA NATURAL","3 CÉDULA DE CIUDADANÍA",25280210,25280210,null,"11 NO SE DILIGENCIA INFORMACIÓN PARA ESTE FORMULARIO EN ESTE PERÍODO DE REPORTE","NO APLICA","NO APLICA","NO APLICA","LUZ FANY VACA GUTIERREZ",124,"2024-01-11",null,null,null,null,null,"DIVISION PACIFICO","DIVISION PACIFICO","PRESTAR LOS SERVICIOS LOGISTICOS PARA REALIZAR LAS ACTIVIDADES DE SOPORTE ADMINISTRATIVO PARA APOYAR EL CUMPLIMIENTO DE LAS FUNCIONES Y COMPETENCIAS DEL GRUPO INTERNO DE TRABAJO GESTIÓN DE PRESTACIÓN DE SERVICIOS DE SALUD EN LA DIVISIÓN PACIFICO (CIUDAD DE BUENAVENTURA) DEL FONDO PASIVO SOCIAL DE FERROCARRIELS NACIONALES DE COLOMBIA.",{"$f":"LEFT('BASE 2023 FPS'!$AF52,390)","v":"PRESTAR LOS SERVICIOS LOGISTICOS PARA REALIZAR LAS ACTIVIDADES DE SOPORTE ADMINISTRATIVO PARA APOYAR EL CUMPLIMIENTO DE LAS FUNCIONES Y COMPETENCIAS DEL GRUPO INTERNO DE TRABAJO GESTIÓN DE PRESTACIÓN DE SERVICIOS DE SALUD EN LA DIVISIÓN PACIFICO (CIUDAD DE BUENAVENTURA) DEL FONDO PASIVO SOCIAL DE FERROCARRIELS NACIONALES DE COLOMBIA."},3107975,34187725,"2024-01-15",1,1,"COLOMBIA > Distrito Capital de Bogotá > Bogotá","COLOMBIA > Distrito Capital de Bogotá > Bogotá","2 SUPERVISOR","NO APLICA","5 NO SE TIENE ESTE TIPO DE SEGUIMIENTO EN EL CONTRATO","NO APLICA","11 NO SE DILIGENCIA INFORMACIÓN PARA ESTE FORMULARIO EN ESTE PERÍODO DE REPORTE",24326606,"ISABEL CRISTINA GALLO MEJIA","COORDINADORA GIT GESTIÓN PRESTACIÓN SERVICIOS DE SALUD","GIT GESTIÓN PRESTACIÓN SERVICIOS DE SALUD","NO",80111600,"POLIZA","Calidad del servicio - Cumplimiento del contrato",null,"2024-01-15","2024-01-15","2024-01-15","2024-01-15","2024-12-14",330,{"$f":"DATEDIF('BASE 2023 FPS'!$BF52-1,'BASE 2023 FPS'!$BG52,\"m\")","v":11}]
[2024,"CPS-056-2024",null,null,"F5.1","2 CONTRATACIÓN DIRECTA","CPS-056-2024","14 PRESTACIÓN DE SERVICIOS","PROFESIONALES","MARITZA HELENA SALINAS RONCANCIO","Formación requerida en una (1) carrera profesional "," Ciencias Sociales y Humanas","1 PERSONA NATURAL","3 CÉDULA DE CIUDADANÍA",23492636,23492636,null,"11 NO SE DILIGENCIA INFORMACIÓN PARA ESTE FORMULARIO EN ESTE PERÍODO DE REPORTE","NO APLICA","NO APLICA","NO APLICA","LUZ FANY VACA GUTIERREZ",124,"2024-01-11",null,null,null,null,null,"SUBDIRECCION DE PRESTACIONES SOCIALES","SUBDIRECCION DE PRESTACIONES SOCIALES","PRESTAR LOS SERVICIOS PROFESIONALES PARA APOYAR LA GESTIÓN ADMINISTRATIVA EN EL SEGUIMIENTO Y CONTROL DE LOS PROCESOS Y PROCEDIMIENTOS DE AFILIACIONES Y COMPENSACIÓN DESDE LA SUBDIRECCIÓN DE PRESTACIONES SOCIALES - AFILIACIONES Y COMPENSACIÓN DEL FONDO PASIVO SOCIAL DE FERROCARRILES NACIONALES DE COLOMBIA",{"$f":"LEFT('BASE 2023 FPS'!$AF53,390)","v":"PRESTAR LOS SERVICIOS PROFESIONALES PARA APOYAR LA GESTIÓN ADMINISTRATIVA EN EL SEGUIMIENTO Y CONTROL DE LOS PROCESOS Y PROCEDIMIENTOS DE AFILIACIONES Y COMPENSACIÓN DESDE LA SUBDIRECCIÓN DE PRESTACIONES SOCIALES - AFILIACIONES Y COMPENSACIÓN DEL FONDO PASIVO SOCIAL DE FERROCARRILES NACIONALES DE COLOMBIA"},7889475,86784225,"2024-01-15",1,1,"COLOMBIA > Distrito Capital de Bogotá > Bogotá","COLOMBIA > Distrito Capital de Bogotá > Bogotá","2 SUPERVISOR","NO APLICA","5 NO SE TIENE ESTE TIPO DE SEGUIMIENTO EN EL CONTRATO","NO APLICA","11 NO SE DILIGENCIA INFORMACIÓN PARA ESTE FORMULARIO EN ESTE PERÍODO DE REPORTE",17956156,"CARLOS ANDRES TOVAR OROZCO","SUBDIRECCION DE PRESTACIONES SOCIALES","SUBDIRECCION DE PRESTACIONES SOCIALES","NO",80111600,"POLIZA","Calidad del servicio - Cumplimiento del contrato","11-46-101043164","2024-01-15","2024-01-15","2024-01-15","2024-01-15","2024-12-14",330,{"$f":"DATEDIF('BASE 2023 FPS'!$BF53-1,'BASE 2023 FPS'!$BG53,\"m\")","v":11}]
[2024,"CPS-057-2024",null,null,"F5.1","2 CONTRATACIÓN DIRECTA","CPS-057-2024","14 PRESTACIÓN DE SERVICIOS","PROFESIONALES","MARIA NUBIA CIFUENTES","Formacion Tecnica"," Economía, Administración, Contaduría y afines","1 PERSONA NATURAL","3 CÉDULA DE CIUDADANÍA",28837856,28837856,null,"11 NO SE DILIGENCIA INFORMACIÓN PARA ESTE FORMULARIO EN ESTE PERÍODO DE REPORTE","NO APLICA","NO APLICA","NO APLICA","LUZ FANY VACA GUTIERREZ",124,"2024-01-11",null,null,null,null,null,"SUBDIRECCION FINANCIERA – GIT CARTERA","SUBDIRECCION FINANCIERA – GIT CARTERA","PRESTAR LOS SERVICIOS TÉCNICOS PARA APOYAR LA GESTIÓN ADMINISTRATIVA EN LA SUBDIRECCIÓN FINANCIERA – GRUPO CARTERA DEL FONDO PASIVO SOCIAL DE FERROCARRILES NACIONALES DE COLOMBIA",{"$f":"LEFT('BASE 2023 FPS'!$AF54,390)","v":"PRESTAR LOS SERVICIOS TÉCNICOS PARA APOYAR LA GESTIÓN ADMINISTRATIVA EN LA SUBDIRECCIÓN FINANCIERA – GRUPO CARTERA DEL FONDO PASIVO SOCIAL DE FERROCARRILES NACIONALES DE COLOMBIA"},3107975,34187725,"2024-01-15",1,1,"COLOMBIA > Distrito Capital de Bogotá > Bogotá","COLOMBIA > Distrito Capital de Bogotá > Bogotá","2 SUPERVISOR","NO APLICA","5 NO SE TIENE ESTE TIPO DE SEGUIMIENTO EN EL CONTRATO","NO APLICA","11 NO SE DILIGENCIA INFORMACIÓN PARA ESTE FORMULARIO EN ESTE PERÍODO DE REPORTE",23621957,"LUZ FANNY VACA GUTIERREZ","SUBDIRECCION FINANCIERA – GIT CARTERA","SUBDIRECCION FINANCIERA – GIT CARTERA","NO",80111600,"POLIZA","Calidad del servicio - Cumplimiento del contrato",null,"2024-01-15","2024-01-15","2024-01-15","2024-01-15","2024-12-14",330,{"$f":"DATEDIF('BASE 2023 FPS'!$BF54-1,'BASE 2023 FPS'!$BG54,\"m\")","v":11}]
[2024,"CPS-058-2024",null,null,"F5.1","2 CONTRATACIÓN DIRECTA","CPS-058-2024","14 PRESTACIÓN DE SERVICIOS","PROFESIONALES","MANUEL ALEJANDRO VENCE QUINTERO","Formacion Tecnica"," Economía, Administración, Contaduría y afines","1 PERSONA NATURAL","3 CÉDULA DE CIUDADANÍA",1121335954,1121335954,null,"11 NO SE DILIGENCIA INFORMACIÓN PARA ESTE FORMULARIO EN ESTE PERÍODO DE REPORTE","NO APLICA","NO APLICA","NO APLICA","LUZ FANY VACA GUTIERREZ",124,"2024-01-11",null,null,null,null,null,"SUBDIRECCION FINANCIERA – GIT CARTERA","SUBDIRECCION FINANCIERA – GIT CARTERA","PRESTAR LOS SERVICIOS DE APOYO A LA GESTIÓN COMO TÉCNICO, CON EL FIN DE ADELANTAR ACTIVIDADES RELACIONADAS CON LOS ASUNTOS ADMINISTRATIVOS EN LA SUBDIRECCIÓN FINANCIERA - GRUPO CARTERA DEL FONDO PASIVO SOCIAL DE FERROCARRILES NACIONALES DE COLOMBIA",{"$f":"LEFT('BASE 2023 FPS'!$AF55,390)","v":"PRESTAR LOS SERVICIOS DE APOYO A LA GESTIÓN COMO TÉCNICO, CON EL FIN DE ADELANTAR ACTIVIDADES RELACIONADAS CON LOS ASUNTOS ADMINISTRATIVOS EN LA SUBDIRECCIÓN FINANCIERA - GRUPO CARTERA DEL FONDO PASIVO SOCIAL DE FERROCARRILES NACIONALES DE COLOMBIA"},2868899,31557889,"2024-01-15",1,1,"COLOMBIA > Distrito Capital de Bogotá > Bogotá","COLOMBIA > Distrito Capital de Bogotá > Bogotá","2 SUPERVISOR","NO APLICA","5 NO SE TIENE ESTE TIPO DE SEGUIMIENTO EN EL CONTRATO","NO APLICA","11 NO SE DILIGENCIA INFORMACIÓN PARA ESTE FORMULARIO EN ESTE PERÍODO DE REPORTE",23621957,"LUZ FANNY VACA GUTIERREZ","SUBDIRECCION FINANCIERA – GIT CARTERA","SUBDIRECCION FINANCIERA – GIT CARTERA","NO",80111600,"POLIZA","Calidad del servicio - Cumplimiento del contrato",null,"2024-01-15","2024-01-15","2024-01-15","2024-01-15","2024-12-14",330,{"$f":"DATEDIF('BASE 2023 FPS'!$BF55-1,'BASE 2023 FPS'!$BG55,\"m\")","v":11}]
[2024,"CPS-059-2024",null,null,"F5.1","2 CONTRATACIÓN DIRECTA","CPS-059-2024","14 PRESTACIÓN DE SERVICIOS","PROFESIONALES","SEBASTIAN TORRES SANCHEZ","Apoyo a la gestion"," Economía, Administración, Contaduría y afines","1 PERSONA NATURAL","3 CÉDULA DE CIUDADANÍA",1018510325,1018510325,null,"11 NO SE DILIGENCIA INFORMACIÓN PARA ESTE FORMULARIO EN ESTE PERÍODO DE REPORTE","NO APLICA","NO APLICA","NO APLICA","LUZ FANY VACA GUTIERREZ",124,"2024-01-11",null,null,null,null,null,"GIT GESTION PRESTACIONES ECONOMICAS","GIT GESTION PRESTACIONES ECONOMICAS","PRESTAR LOS SERVICIOS DE APOYO A LA GESTIÓN COMO JUDICANTE, CON EL FIN DE ADELANTAR ACTIVIDADES RELACIONADAS CON LOS ASUNTOS JURÍDICOS Y ADMINISTRATIVOS DESDE LA SUBDIRECCIÓN DE PRESTACIONES SOCIALES - GIT GESTIÓN PRESTACIONES ECONÓMICAS DEL FONDO DE PASIVO SOCIAL DE FERROCARRILES NACIONALES DE COLOMBIA.",{"$f":"LEFT('BASE 2023 FPS'!$AF56,390)","v":"PRESTAR LOS SERVICIOS DE APOYO A LA GESTIÓN COMO JUDICANTE, CON EL FIN DE ADELANTAR ACTIVIDADES RELACIONADAS CON LOS ASUNTOS JURÍDICOS Y ADMINISTRATIVOS DESDE LA SUBDIRECCIÓN DE PRESTACIONES SOCIALES - GIT GESTIÓN PRESTACIONES ECONÓMICAS DEL FONDO DE PASIVO SOCIAL DE FERROCARRILES NACIONALES DE COLOMBIA."},2450519,26955709,"2024-01-15",1,1,"COLOMBIA > Distrito Capital de Bogotá > Bogotá","COLOMBIA > Distrito Capital de Bogotá > Bogotá","2 SUPERVISOR","NO APLICA","5 NO SE TIENE ESTE TIPO DE SEGUIMIENTO EN EL CONTRATO","NO APLICA","11 NO SE DILIGENCIA INFORMACIÓN PARA ESTE FORMULARIO EN ESTE PERÍODO DE REPORTE",49607561,"LEIVIS MARIANA BOTINA MONTERO","GIT GESTION PRESTACIONES ECONOMICAS","GIT GESTION PRESTACIONES ECONOMICAS","NO",80111600,"POLIZA","Calidad del servicio - Cumplimiento del contrato",null,"2024-01-15","2024-01-15","2024-01-15","2024-01-15","2024-12-14",330,{"$f":"DATEDIF('BASE 2023 FPS'!$BF56-1,'BASE 2023 FPS'!$BG56,\"m\")","v":11}]
[2024,"CPS-060-2024",null,null,"F5.1","2 CONTRATACIÓN DIRECTA","CPS-060-2024","14 PRESTACIÓN DE SERVICIOS","PROFESIONALES","RICARDO ANDRES TOLEDO PINTO","Formación requerida en una (1) carrera profesional "," Ingeniería, Arquitectura, Urbanismo y afines","1 PERSONA NATURAL","3 CÉDULA DE CIUDADANÍA",1121041122,1121041122,null,"11 NO SE DILIGENCIA INFORMACIÓN PARA ESTE FORMULARIO EN ESTE PERÍODO DE REPORTE","NO APLICA","NO APLICA","NO APLICA","LUZ FANY VACA GUTIERREZ",124,"2024-01-11",null,null,null,null,null,"GIT GESTION PRESTACIONES ECONOMICAS","GIT GESTION PRESTACIONES ECONOMICAS","PRESTAR LOS SERVICIOS PROFESIONALES COMO INGENIERO DE SISTEMAS PARA APOYAR LA GESTIÓN ADMINISTRATIVA DEL GIT GESTIÓN PRESTACIONES ECONÓMICAS DEL FONDO DE PASIVO SOCIAL DE FERROCARRILES NACIONALES DE COLOMBIA",{"$f":"LEFT('BASE 2023 FPS'!$AF57,390)","v":"PRESTAR LOS SERVICIOS PROFESIONALES COMO INGENIERO DE SISTEMAS PARA APOYAR LA GESTIÓN ADMINISTRATIVA DEL GIT GESTIÓN PRESTACIONES ECONÓMICAS DEL FONDO DE PASIVO SOCIAL DE FERROCARRILES NACIONALES DE COLOMBIA"},4303349,47336839,"2024-01-15",1,1,"COLOMBIA > Distrito Capital de Bogotá > Bogotá","COLOMBIA > Distrito Capital de Bogotá > Bogotá","2 SUPERVISOR","NO APLICA","5 NO SE TIENE ESTE TIPO DE SEGUIMIENTO EN EL CONTRATO","NO APLICA","11 NO SE DILIGENCIA INFORMACIÓN PARA ESTE FORMULARIO EN ESTE PERÍODO DE REPORTE",49607561,"LEIVIS MARIANA BOTINA MONTERO","GIT GESTION PRESTACIONES ECONOMICAS","GIT GESTION PRESTACIONES ECONOMICAS","NO",80111600,"POLIZA","Calidad del servicio - Cumplimiento del contrato","340 47 994000050340","2024-01-15","2024-01-15","2024-01-15","2024-01-15","2024-12-14",330,{"$f":"DATEDIF('BASE 2023 FPS'!$BF57-1,'BASE 2023 FPS'!$BG57,\"m\")","v":11}]
[2024,"CPS-061-2024",null,null,"F5.1","2 CONTRATACIÓN DIRECTA","CPS-061-2024","14 PRESTACIÓN DE SERVICIOS","PROFESIONALES","NELSON RICARDO CARREÑO","Formación requerida en una (1) carrera profesional "," Ciencias Sociales y Humanas","1 PERSONA NATURAL","3 CÉDULA DE CIUDADANÍA",80133605,80133605,null,"11 NO SE DILIGENCIA INFORMACIÓN PARA ESTE FORMULARIO EN ESTE PERÍODO DE REPORTE","NO APLICA","NO APLICA","NO APLICA","LUZ FANY VACA GUTIERREZ",124,"2024-01-11",null,null,null,null,null,"SUBDIRECCION DE PRESTACIONES SOCIALES","SUBDIRECCION DE PRESTACIONES SOCIALES","PRESTAR LOS SERVICIOS PROFESIONALES EN ASUNTOS RELACIONADOS CON LA GESTIÓN ADMINISTRATIVA DEL PROCESO DE COMPENSACIÓN DESDE LA SUBDIRECCIÓN DE PRESTACIONES SOCIALES – AFILIACIONES Y COMPENSACIÓN DEL FONDO PASIVO SOCIAL DE FERROCARRILES NACIONALES DE COLOMBIA",{"$f":"LEFT('BASE 2023 FPS'!$AF58,390)","v":"PRESTAR LOS SERVICIOS PROFESIONALES EN ASUNTOS RELACIONADOS CON LA GESTIÓN ADMINISTRATIVA DEL PROCESO DE COMPENSACIÓN DESDE LA SUBDIRECCIÓN DE PRESTACIONES SOCIALES – AFILIACIONES Y COMPENSACIÓN DEL FONDO PASIVO SOCIAL DE FERROCARRILES NACIONALES DE COLOMBIA"},7172250,78894750,"2024-01-15",1,1,"COLOMBIA > Distrito Capital de Bogotá > Bogotá","COLOMBIA > Distrito Capital de Bogotá > Bogotá","2 SUPERVISOR","NO APLICA","5 NO SE TIENE ESTE TIPO DE SEGUIMIENTO EN EL CONTRATO","NO APLICA","11 NO SE DILIGENCIA INFORMACIÓN PARA ESTE FORMULARIO EN ESTE PERÍODO DE REPORTE",17956156,"CARLOS ANDRES TOVAR OROZCO","SUBDIRECCION DE PRESTACIONES SOCIALES","SUBDIRECCION DE PRESTACIONES SOCIALES","NO",80111600,"POLIZA","Calidad del servicio - Cumplimiento del contrato",null,"2024-01-15","2024-01-15","2024-01-15","2024-01-15","2024-12-14",330,{"$f":"DATEDIF('BASE 2023 FPS'!$BF58-1,'BASE 2023 FPS'!$BG58,\"m\")","v":11}]
[2024,"CPS-062-2024",null,null,"F5.1","2 CONTRATACIÓN DIRECTA","CPS-062-2024","14 PRESTACIÓN DE SERVICIOS","PROFESIONALES","NATALIA GIULIANA DACHIARDI MATTA","Apoyo a la gestion"," Ciencias Sociales y Humanas","1 PERSONA NATURAL","3 CÉDULA DE CIUDADANÍA",1019093758,1019093758,null,"11 NO SE DILIGENCIA INFORMACIÓN PARA ESTE FORMULARIO EN ESTE PERÍODO DE REPORTE","NO APLICA","NO APLICA","NO APLICA","LUZ FANY VACA GUTIERREZ",124,"2024-01-11",null,null,null,null,null,"GIT GESTION PRESTACIONES ECONOMICAS","GIT GESTION PRESTACIONES ECONOMICAS","PRESTAR LOS SERVICIOS DE APOYO A LA GESTIÓN AL G.IT GESTIÓN PRESTACIONES ECONÓMICAS DEL FONDO DE PASIVO SOCIAL DE FERROCARRILES NACIONALES DE COLOMBIA",{"$f":"LEFT('BASE 2023 FPS'!$AF59,390)","v":"PRESTAR LOS SERVICIOS DE APOYO A LA GESTIÓN AL G.IT GESTIÓN PRESTACIONES ECONÓMICAS DEL FONDO DE PASIVO SOCIAL DE FERROCARRILES NACIONALES DE COLOMBIA"},3705662,40762282,"2024-01-15",1,1,"COLOMBIA > Distrito Capital de Bogotá > Bogotá","COLOMBIA > Distrito Capital de Bogotá > Bogotá","2 SUPERVISOR","NO APLICA","5 NO SE TIENE ESTE TIPO DE SEGUIMIENTO EN EL CONTRATO","NO APLICA","11 NO SE DILIGENCIA INFORMACIÓN PARA ESTE FORMULARIO EN ESTE PERÍODO DE REPORTE",49607561,"LEIVIS MARIANA BOTINA MONTERO","GIT GESTION PRESTACIONES ECONOMICAS","GIT GESTION PRESTACIONES ECONOMICAS","NO",80111600,"POLIZA","Calidad del servicio - Cumplimiento del contrato","340-47-994000050363","2024-01-15","2024-01-15","2024-01-15","2024-01-15","2024-12-14",330,{"$f":"DATEDIF('BASE 2023 FPS'!$BF59-1,'BASE 2023 FPS'!$BG59,\"m\")","v":11}]
[2024,"CPS-063-2024",null,null,"F5.1","2 CONTRATACIÓN DIRECTA","CPS-063-2024","14 PRESTACIÓN DE SERVICIOS","PROFESIONALES","CATHERINE IVETTE NAVAS","Formación requerida en una (1) carrera profesional y una  (1) especialización "," Ciencias Sociales y Humanas","1 PERSONA NATURAL","3 CÉDULA DE CIUDADANÍA",40042229,40042229,null,"11 NO SE DILIGENCIA INFORMACIÓN PARA ESTE FORMULARIO EN ESTE PERÍODO DE REPORTE","NO APLICA","NO APLICA","NO APLICA","LUZ FANY VACA GUTIERREZ",124,"2024-01-11",null,null,null,null,null,"OFICINA ASESORA JURÍDICA","OFICINA ASESORA JURÍDICA","PRESTAR LOS SERVICIOS PROFESIONALES COMO ABOGADA ESPECIALISTA PARA APOYAR A LA OFICINA ASESORA JURÍDICA EN LAS ACTIVIDADES JURÍDICAS, ADMINISTRATIVAS Y DE COBRO COACTIVO DEL FONDO DE PASIVO SOCIAL DE FERROCARRILES NACIONALES DE COLOMBIA.",{"$f":"LEFT('BASE 2023 FPS'!$AF60,390)","v":"PRESTAR LOS SERVICIOS PROFESIONALES COMO ABOGADA ESPECIALISTA PARA APOYAR A LA OFICINA ASESORA JURÍDICA EN LAS ACTIVIDADES JURÍDICAS, ADMINISTRATIVAS Y DE COBRO COACTIVO DEL FONDO DE PASIVO SOCIAL DE FERROCARRILES NACIONALES DE COLOMBIA."},7889475,86784225,"2024-01-15",1,1,"COLOMBIA > Distrito Capital de Bogotá > Bogotá","COLOMBIA > Distrito Capital de Bogotá > Bogotá","2 SUPERVISOR","NO APLICA","5 NO SE TIENE ESTE TIPO DE SEGUIMIENTO EN EL CONTRATO","NO APLICA","11 NO SE DILIGENCIA INFORMACIÓN PARA ESTE FORMULARIO EN ESTE PERÍODO DE REPORTE",65767422,"ANDREA ALDANA TRUJILLO","OFICINA ASESORA JURÍDICA","OFICINA ASESORA JURÍDICA","NO",80111600,"POLIZA","Calidad del servicio - Cumplimiento del contrato","11-46-101043322","2024-01-15","2024-01-15","2024-01-15","2024-01-15","2024-12-14",330,{"$f":"DATEDIF('BASE 2023 FPS'!$BF60-1,'BASE 2023 FPS'!$BG60,\"m\")","v":11}]
[2024,"CPS-064-2024",null,null,"F5.1","2 CONTRATACIÓN DIRECTA","CPS-064-2024","14 PRESTACIÓN DE SERVICIOS","PROFESIONALES","DIANA VALENTINA SERRATO","Formación requerida en una (1) carrera profesional "," Ciencias Sociales y Humanas","1 PERSONA NATURAL","3 CÉDULA DE CIUDADANÍA",1098802852,1098802852,null,"11 NO SE DILIGENCIA INFORMACIÓN PARA ESTE FORMULARIO EN ESTE PERÍODO DE REPORTE","NO APLICA","NO APLICA","NO APLICA","LUZ FANY VACA GUTIERREZ",124,"2024-01-11",null,null,null,null,null,"OFICINA ASESORA JURÍDICA","OFICINA ASESORA JURÍDICA","PRESTAR LOS SERVICIOS PROFESIONALES COMO ABOGADO PARA APOYAR LAS ACTIVIDADES RELACIONADAS CON LOS ASUNTOS JURÍDICOS Y ADMINISTRATIVOS DESDE LA OFICINA ASESORA JURÍDICA DEL FONDO DE PASIVO SOCIAL DE FERROCARRILES NACIONALES DE COLOMBIA",{"$f":"LEFT('BASE 2023 FPS'!$AF61,390)","v":"PRESTAR LOS SERVICIOS PROFESIONALES COMO ABOGADO PARA APOYAR LAS ACTIVIDADES RELACIONADAS CON LOS ASUNTOS JURÍDICOS Y ADMINISTRATIVOS DESDE LA OFICINA ASESORA JURÍDICA DEL FONDO DE PASIVO SOCIAL DE FERROCARRILES NACIONALES DE COLOMBIA"},5259860,57856150,"2024-01-16",1,1,"COLOMBIA > Distrito Capital de Bogotá > Bogotá","COLOMBIA > Distrito Capital de Bogotá > Bogotá","2 SUPERVISOR","NO APLICA","5 NO SE TIENE ESTE TIPO DE SEGUIMIENTO EN EL CONTRATO","NO APLICA","11 NO SE DILIGENCIA INFORMACIÓN PARA ESTE FORMULARIO EN ESTE PERÍODO DE REPORTE",65767422,"ANDREA ALDANA TRUJILLO","OFICINA ASESORA JURÍDICA","OFICINA ASESORA JURÍDICA","NO",80111600,"POLIZA","Calidad del servicio - Cumplimiento del contrato",null,"2024-01-16","2024-01-16","2024-01-16","2024-01-16","2024-12-15",330,{"$f":"DATEDIF('BASE 2023 FPS'!$BF61-1,'BASE 2023 FPS'!$BG61,\"m\")","v":11}]
[2024,"CPS-067-2024",null,null,"F5.1","2 CONTRATACIÓN DIRECTA","CPS-067-2024","14 PRESTACIÓN DE SERVICIOS","PROFESIONALES","BEATRIZ LEIVA","Apoyo a la gestion"," Economía, Administración, Contaduría y afines","1 PERSONA NATURAL","3 CÉDULA DE CIUDADANÍA",24218645,24218645,null,"11 NO SE DILIGENCIA INFORMACIÓN PARA ESTE FORMULARIO EN ESTE PERÍODO DE REPORTE","NO APLICA","NO APLICA","NO APLICA","LUZ FANY VACA GUTIERREZ",124,"2024-01-11",null,null,null,null,null,"GIT GESTION PRESTACIONES ECONOMICAS","GIT GESTION PRESTACIONES ECONOMICAS","PRESTAR LOS SERVICIOS DE APOYO A LA GESTIÓN ADMINISTRATIVA DESDE EL G.IT GESTIÓN PRESTACIONES ECONÓMICAS DEL FONDO DE PASIVO SOCIAL DE FERROCARRILES NACIONALES DE COLOMBIA",{"$f":"LEFT('BASE 2023 FPS'!$AF62,390)","v":"PRESTAR LOS SERVICIOS DE APOYO A LA GESTIÓN ADMINISTRATIVA DESDE EL G.IT GESTIÓN PRESTACIONES ECONÓMICAS DEL FONDO DE PASIVO SOCIAL DE FERROCARRILES NACIONALES DE COLOMBIA"},3705662,40762282,"2024-01-15",1,1,"COLOMBIA > Distrito Capital de Bogotá > Bogotá","COLOMBIA > Distrito Capital de Bogotá > Bogotá","2 SUPERVISOR","NO APLICA","5 NO SE TIENE ESTE TIPO DE SEGUIMIENTO EN EL CONTRATO","NO APLICA","11 NO SE DILIGENCIA INFORMACIÓN PARA ESTE FORMULARIO EN ESTE PERÍODO DE REPORTE",49607561,"LEIVIS MARIANA BOTINA MONTERO","GIT GESTION PRESTACIONES ECONOMICAS","GIT GESTION PRESTACIONES ECONOMICAS","NO",80111600,"POLIZA","Calidad del servicio - Cumplimiento del contrato","340 47 994000050356","2024-01-15","2024-01-15","2024-01-15","2024-01-15","2024-12-14",330,{"$f":"DATEDIF('BASE 2023 FPS'!$BF62-1,'BASE 2023 FPS'!$BG62,\"m\")","v":11}]
[2024,"CPS-068-2024",null,null,"F5.1","2 CONTRATACIÓN DIRECTA","CPS-068-2024","14 PRESTACIÓN DE SERVICIOS","PROFESIONALES","DAVID ALONSO MARIN GIRALDO","Formación requerida en una (1) carrera profesional y una  (1) especialización "," Ciencias Sociales y Humanas","1 PERSONA NATURAL","3 CÉDULA DE CIUDADANÍA",1094906235,1094906235,null,"11 NO SE DILIGENCIA INFORMACIÓN PARA ESTE FORMULARIO EN ESTE PERÍODO DE REPORTE","NO APLICA","NO APLICA","NO APLICA","LUZ FANY VACA GUTIERREZ",124,"2024-01-11",null,null,null,null,null,"OFICINA ASESORA JURÍDICA","OFICINA ASESORA JURÍDICA","PRESTAR LOS SERVICIOS PROFESIONALES COMO ABOGADO ESPECIALISTA PARA APOYAR LA GESTIÓN CONTRACTURAL, (PRE- CONTRACTUAL, CONTRACTUAL Y POST- CONTRACTUAL) QUE ADELANTA LA OFICINA ASESORA JURÍDICA DEL FONDO DE PASIVO SOCIAL DE FERROCARRILES NACIONALES DE COLOMBIA.",{"$f":"LEFT('BASE 2023 FPS'!$AF63,390)","v":"PRESTAR LOS SERVICIOS PROFESIONALES COMO ABOGADO ESPECIALISTA PARA APOYAR LA GESTIÓN CONTRACTURAL, (PRE- CONTRACTUAL, CONTRACTUAL Y POST- CONTRACTUAL) QUE ADELANTA LA OFICINA ASESORA JURÍDICA DEL FONDO DE PASIVO SOCIAL DE FERROCARRILES NACIONALES DE COLOMBIA."},7530862,45185172,"2024-01-15",1,1,"COLOMBIA > Distrito Capital de Bogotá > Bogotá","COLOMBIA > Distrito Capital de Bogotá > Bogotá","2 SUPERVISOR","NO APLICA","5 NO SE TIENE ESTE TIPO DE SEGUIMIENTO EN EL CONTRATO","NO APLICA","11 NO SE DILIGENCIA INFORMACIÓN PARA ESTE FORMULARIO EN ESTE PERÍODO DE REPORTE",65767422,"ANDREA ALDANA TRUJILLO","OFICINA ASESORA JURÍDICA","OFICINA ASESORA JURÍDICA","NO",80111600,"POLIZA","Calidad del servicio - Cumplimiento del contrato","11-46-101043264","2024-01-15","2024-01-15","2024-01-15","2024-01-15","2024-07-14",180,{"$f":"DATEDIF('BASE 2023 FPS'!$BF63-1,'BASE 2023 FPS'!$BG63,\"m\")","v":6}]
[2024,"CPS-069-2024",null,null,"F5.1","2 CONTRATACIÓN DIRECTA","CPS-069-2024","14 PRESTACIÓN DE SERVICIOS","PROFESIONALES","YUJEIRIS PEDRAZA","Formación requerida en una (1) carrera profesional "," Economía, Administración, Contaduría y afines","1 PERSONA NATURAL","3 CÉDULA DE CIUDADANÍA",52292918,52292918,null,"11 NO SE DILIGENCIA INFORMACIÓN PARA ESTE FORMULARIO EN ESTE PERÍODO DE REPORTE","NO APLICA","NO APLICA","NO APLICA","LUZ FANY VACA GUTIERREZ",124,"2024-01-11",null,null,null,null,null,"SUBDIRECCION FINANCIERA – GIT CARTERA","SUBDIRECCION FINANCIERA – GIT CARTERA","PRESTAR LOS SERVICIOS PROFESIONALES PARA LA GESTIÓN DE LA RADICACION DE FACTURAS MEDICAS DESDE LA SUBDIRECCIÓN FINANCIERA DEL FONDO DE PASIVO SOCIAL DE FERROCARRILES NACIONALES DE COLOMBIA.",{"$f":"LEFT('BASE 2023 FPS'!$AF64,390)","v":"PRESTAR LOS SERVICIOS PROFESIONALES PARA LA GESTIÓN DE LA RADICACION DE FACTURAS MEDICAS DESDE LA SUBDIRECCIÓN FINANCIERA DEL FONDO DE PASIVO SOCIAL DE FERROCARRILES NACIONALES DE COLOMBIA."},7889475,86784225,"2024-01-15",1,1,"COLOMBIA > Distrito Capital de Bogotá > Bogotá","COLOMBIA > Distrito Capital de Bogotá > Bogotá","2 SUPERVISOR","NO APLICA","5 NO SE TIENE ESTE TIPO DE SEGUIMIENTO EN EL CONTRATO","NO APLICA","11 NO SE DILIGENCIA INFORMACIÓN PARA ESTE FORMULARIO EN ESTE PERÍODO DE REPORTE",23621957,"LUZ FANNY VACA GUTIERREZ","SUBDIRECCION FINANCIERA – GIT CARTERA","SUBDIRECCION FINANCIERA – GIT CARTERA","NO",80111600,"POLIZA","Calidad del servicio - Cumplimiento del contrato","11-46-101043243","2024-01-15","2024-01-15","2024-01-15","2024-01-15","2024-12-14",330,{"$f":"DATEDIF('BASE 2023 FPS'!$BF64-1,'BASE 2023 FPS'!$BG64,\"m\")","v":11}]
[2024,"CPS-070-2024",null,null,"F5.1","2 CONTRATACIÓN DIRECTA","CPS-070-2024","14 PRESTACIÓN DE SERVICIOS","PROFESIONALES","PAOLA LEON","Formación requerida en una (1) carrera profesional y una  (1) especialización "," Ingeniería, Arquitectura, Urbanismo y afines","1 PERSONA NATURAL","3 CÉDULA DE CIUDADANÍA",52216303,52216303,null,"11 NO SE DILIGENCIA INFORMACIÓN PARA ESTE FORMULARIO EN ESTE PERÍODO DE REPORTE","NO APLICA","NO APLICA","NO APLICA","LUZ FANY VACA GUTIERREZ",124,"2024-01-11",null,null,null,null,null,"SUBDIRECCION FINANCIERA – GIT CARTERA","SUBDIRECCION FINANCIERA – GIT CARTERA","PRESTAR LOS SERVICIOS PROFESIONALES ESPECIALIZADOS COMO INGENIERA DE SISTEMAS, PARA COORDINAR LA GESTIÓN ADMINISTRATIVA EN EL ANÁLISIS DE LIQUIDACIONES DE CUENTAS DE LOS NEGOCIOS DE APORTES PATRONO LABORALES, CUOTAS PARTES PENSIONALES, BONOS PENSIONALES Y PRESTACIONES ECONÓMICAS DESDE LA SUBDIRECCIÓN FINANCIERA DEL FONDO PASIVO SOCIAL DE FERROCARRILES NACIONALES DE COLOMBIA.",{"$f":"LEFT('BASE 2023 FPS'!$AF65,390)","v":"PRESTAR LOS SERVICIOS PROFESIONALES ESPECIALIZADOS COMO INGENIERA DE SISTEMAS, PARA COORDINAR LA GESTIÓN ADMINISTRATIVA EN EL ANÁLISIS DE LIQUIDACIONES DE CUENTAS DE LOS NEGOCIOS DE APORTES PATRONO LABORALES, CUOTAS PARTES PENSIONALES, BONOS PENSIONALES Y PRESTACIONES ECONÓMICAS DESDE LA SUBDIRECCIÓN FINANCIERA DEL FONDO PASIVO SOCIAL DE FERROCARRILES NACIONALES DE COLOMBIA."},7889475,86784225,"2024-01-15",1,1,"COLOMBIA > Distrito Capital de Bogotá > Bogotá","COLOMBIA > Distrito Capital de Bogotá > Bogotá","2 SUPERVISOR","NO APLICA","5 NO SE TIENE ESTE TIPO DE SEGUIMIENTO EN EL CONTRATO","NO APLICA","11 NO SE DILIGENCIA INFORMACIÓN PARA ESTE FORMULARIO EN ESTE PERÍODO DE REPORTE",23621957,"LUZ FANNY VACA GUTIERREZ","SUBDIRECCION FINANCIERA – GIT CARTERA","SUBDIRECCION FINANCIERA – GIT CARTERA","NO",80111600,"POLIZA","Calidad del servicio - Cumplimiento del contrato","11-46-101043271","2024-01-15","2024-01-15","2024-01-15","2024-01-15","2024-12-14",330,{"$f":"DATEDIF('BASE 2023 FPS'!$BF65-1,'BASE 2023 FPS'!$BG65,\"m\")","v":11}]
[2024,"CPS-071-2024",null,null,"F5.1","2 CONTRATACIÓN DIRECTA","CPS-071-2024","14 PRESTACIÓN DE SERVICIOS","PROFESIONALES","CAMILO NADER","Formación requerida en una (1) carrera profesional "," Ciencias Sociales y Humanas","1 PERSONA NATURAL","3 CÉDULA DE CIUDADANÍA",80189522,80189522,null,"11 NO SE DILIGENCIA INFORMACIÓN PARA ESTE FORMULARIO EN ESTE PERÍODO DE REPORTE","NO APLICA","NO APLICA","NO APLICA","LUZ FANY VACA GUTIERREZ",124,"2024-01-11",null,null,null,null,null,"SUBDIRECCION DE PRESTACIONES SOCIALES","SUBDIRECCION DE PRESTACIONES SOCIALES","PRESTAR LOS SERVICIOS DE APOYO A LA GESTIÓN EN LOS ASUNTOS ADMINISTRATIVOS DE LA SUBDIRECCIÓN DE PRESTACIONES SOCIALES– AFILIACIONES Y COMPENSACIÓN DEL FONDO PASIVO SOCIAL DE LOS FERROCARRILES NACIONALES",{"$f":"LEFT('BASE 2023 FPS'!$AF66,390)","v":"PRESTAR LOS SERVICIOS DE APOYO A LA GESTIÓN EN LOS ASUNTOS ADMINISTRATIVOS DE LA SUBDIRECCIÓN DE PRESTACIONES SOCIALES– AFILIACIONES Y COMPENSACIÓN DEL FONDO PASIVO SOCIAL DE LOS FERROCARRILES NACIONALES"},3705662,40762282,"2024-01-15",1,1,"COLOMBIA > Distrito Capital de Bogotá > Bogotá","COLOMBIA > Distrito Capital de Bogotá > Bogotá","2 SUPERVISOR","NO APLICA","5 NO SE TIENE ESTE TIPO DE SEGUIMIENTO EN EL CONTRATO","NO APLICA","11 NO SE DILIGENCIA INFORMACIÓN PARA ESTE FORMULARIO EN ESTE PERÍODO DE REPORTE",17956156,"CARLOS ANDRES TOVAR OROZCO","SUBDIRECCION DE PRESTACIONES SOCIALES","SUBDIRECCION DE PRESTACIONES SOCIALES","NO",80111600,"POLIZA","Calidad del servicio - Cumplimiento del contrato","11-46-101043259","2024-01-15","2024-01-15","2024-01-15","2024-01-15","2024-12-14",330,{"$f":"DATEDIF('BASE 2023 FPS'!$BF66-1,'BASE 2023 FPS'!$BG66,\"m\")","v":11}]
[2024,"CPS-072-2024",null,null,"F5.1","2 CONTRATACIÓN DIRECTA","CPS-072-2024","14 PRESTACIÓN DE SERVICIOS","PROFESIONALES","ANDRES EDUARDO HINOJOSA MENDOZA","Formación requerida en una (1) carrera profesional y una  (1) especialización "," Ciencias de la Salud","1 PERSONA NATURAL","3 CÉDULA DE CIUDADANÍA",5164610,5164610,null,"11 NO SE DILIGENCIA INFORMACIÓN PARA ESTE FORMULARIO EN ESTE PERÍODO DE REPORTE","NO APLICA","NO APLICA","NO APLICA","LUZ FANY VACA GUTIERREZ",124,"2024-01-11",null,null,null,null,null,"GIT PRESTACIÓN DE SERVICIOS DE SALUD – DIVISIÓN SANTANDER Y ANTIOQUIA","GIT PRESTACIÓN DE SERVICIOS DE SALUD – DIVISIÓN SANTANDER Y ANTIOQUIA","PRESTAR LOS SERVICIOS PROFESIONALES COMO MEDICO AUDITOR PARA APOYAR LA GESTIÓN ADMINISTRATIVA DESDE EL GRUPO INTERNO DE TRABAJO GESTION PRESTACION DE SERVICIOS DE SALUD - DIVISIÓN SANTANDER DEL FONDO DE PASIVO SOCIAL DE FERROCARRILES NACIONALES DE COLOMBIA",{"$f":"LEFT('BASE 2023 FPS'!$AF67,390)","v":"PRESTAR LOS SERVICIOS PROFESIONALES COMO MEDICO AUDITOR PARA APOYAR LA GESTIÓN ADMINISTRATIVA DESDE EL GRUPO INTERNO DE TRABAJO GESTION PRESTACION DE SERVICIOS DE SALUD - DIVISIÓN SANTANDER DEL FONDO DE PASIVO SOCIAL DE FERROCARRILES NACIONALES DE COLOMBIA"},7889475,86784225,"2024-01-15",1,1,"COLOMBIA > Distrito Capital de Bogotá > Bogotá","COLOMBIA > Distrito Capital de Bogotá > Bogotá","2 SUPERVISOR","NO APLICA","5 NO SE TIENE ESTE TIPO DE SEGUIMIENTO EN EL CONTRATO","NO APLICA","11 NO SE DILIGENCIA INFORMACIÓN PARA ESTE FORMULARIO EN ESTE PERÍODO DE REPORTE",13836378,"BENJAMIN HERRERA VESGA","GIT PRESTACIÓN DE SERVICIOS DE SALUD – DIVISIÓN SANTANDER Y ANTIOQUIA","GIT PRESTACIÓN DE SERVICIOS DE SALUD – DIVISIÓN SANTANDER Y ANTIOQUIA","NO",80111600,"POLIZA","Calidad del servicio - Cumplimiento del contrato",null,"2024-01-15","2024-01-15","2024-01-15","2024-01-15","2024-12-14",330,{"$f":"DATEDIF('BASE 2023 FPS'!$BF67-1,'BASE 2023 FPS'!$BG67,\"m\")","v":11}]
[2024,"CPS-073-2024",null,null,"F5.1","2 CONTRATACIÓN DIRECTA","CPS-073-2024","14 PRESTACIÓN DE SERVICIOS","PROFESIONALES","ESTEBAN ALBERTO RESTREPO PAVA","Formación requerida en una (1) carrera profesional "," Economía, Administración, Contaduría y afines","1 PERSONA NATURAL","3 CÉDULA DE CIUDADANÍA",18420627,18420627,null,"11 NO SE DILIGENCIA INFORMACIÓN PARA ESTE FORMULARIO EN ESTE PERÍODO DE REPORTE","NO APLICA","NO APLICA","NO APLICA","LUZ FANY VACA GUTIERREZ",124,"2024-01-11",null,null,null,null,null,"GIT GESTION PRESTACIONES ECONOMICAS","GIT GESTION PRESTACIONES ECONOMICAS","PRESTAR LOS SERVICIOS PROFESIONALES COMO ADMINISTRADOR DE EMPRESAS DESDE EL GIT GESTIÓN PRESTACIONES ECONÓMICAS DEL FONDO PASIVO SOCIAL DE FERROCARRILES NACIONALES DE COLOMBIA",{"$f":"LEFT('BASE 2023 FPS'!$AF68,390)","v":"PRESTAR LOS SERVICIOS PROFESIONALES COMO ADMINISTRADOR DE EMPRESAS DESDE EL GIT GESTIÓN PRESTACIONES ECONÓMICAS DEL FONDO PASIVO SOCIAL DE FERROCARRILES NACIONALES DE COLOMBIA"},4661962,51281582,"2024-01-15",1,1,"COLOMBIA > Distrito Capital de Bogotá > Bogotá","COLOMBIA > Distrito Capital de Bogotá > Bogotá","2 SUPERVISOR","NO APLICA","5 NO SE TIENE ESTE TIPO DE SEGUIMIENTO EN EL CONTRATO","NO APLICA","11 NO SE DILIGENCIA INFORMACIÓN PARA ESTE FORMULARIO EN ESTE PERÍODO DE REPORTE",49607561,"LEIVIS MARIANA BOTINA MONTERO","GIT GESTION PRESTACIONES ECONOMICAS","GIT GESTION PRESTACIONES ECONOMICAS","NO",80111600,"POLIZA","Calidad del servicio - Cumplimiento del contrato","340-47-994000050389-0","2024-01-15","2024-01-15","2024-01-15","2024-01-15","2024-12-14",330,{"$f":"DATEDIF('BASE 2023 FPS'!$BF68-1,'BASE 2023 FPS'!$BG68,\"m\")","v":11}]
[2024,"CPS-074-2024",null,null,"F5.1","2 CONTRATACIÓN DIRECTA","CPS-074-2024","14 PRESTACIÓN DE SERVICIOS","PROFESIONALES","ELVIS CASTRO HERRERA","Formación requerida en una (1) carrera profesional y una  (1) especialización "," Economía, Administración, Contaduría y afines","1 PERSONA NATURAL","3 CÉDULA DE CIUDADANÍA",74150385,74150385,null,"11 NO SE DILIGENCIA INFORMACIÓN PARA ESTE FORMULARIO EN ESTE PERÍODO DE REPORTE","NO APLICA","NO APLICA","NO APLICA","LUZ FANY VACA GUTIERREZ",124,"2024-01-11",null,null,null,null,null,"SUBDIRECCION FINANCIERA – GIT CARTERA","SUBDIRECCION FINANCIERA – GIT CARTERA","PRESTAR LOS SERVICIOS PROFESIONALES COMO ADMINISTRADOR DE EMPRESAS ESPECIALIZADO EN LOS ASUNTOS RELACIONADOS CON LOS ASPECTOS TÉCNICOS Y FINANCIEROS DE LA SUBDIRECCIÓN FINANCIERA DEL FONDO DE PASIVO SOCIAL DE FERROCARRILES DE COLOMBIA.",{"$f":"LEFT('BASE 2023 FPS'!$AF69,390)","v":"PRESTAR LOS SERVICIOS PROFESIONALES COMO ADMINISTRADOR DE EMPRESAS ESPECIALIZADO EN LOS ASUNTOS RELACIONADOS CON LOS ASPECTOS TÉCNICOS Y FINANCIEROS DE LA SUBDIRECCIÓN FINANCIERA DEL FONDO DE PASIVO SOCIAL DE FERROCARRILES DE COLOMBIA."},6096412,67060532,"2024-01-15",1,1,"COLOMBIA > Distrito Capital de Bogotá > Bogotá","COLOMBIA > Distrito Capital de Bogotá > Bogotá","2 SUPERVISOR","NO APLICA","5 NO SE TIENE ESTE TIPO DE SEGUIMIENTO EN EL CONTRATO","NO APLICA","11 NO SE DILIGENCIA INFORMACIÓN PARA ESTE FORMULARIO EN ESTE PERÍODO DE REPORTE",23621957,"LUZ FANNY VACA GUTIERREZ","SUBDIRECCION FINANCIERA – GIT CARTERA","SUBDIRECCION FINANCIERA – GIT CARTERA","NO",80111600,"POLIZA","Calidad del servicio - Cumplimiento del contrato",101043270,"2024-01-15","2024-01-15","2024-01-15","2024-01-15","2024-12-14",330,{"$f":"DATEDIF('BASE 2023 FPS'!$BF69-1,'BASE 2023 FPS'!$BG69,\"m\")","v":11}]
[2024,"CPS-075-2024",null,null,"F5.1","2 CONTRATACIÓN DIRECTA","CPS-075-2024","14 PRESTACIÓN DE SERVICIOS","PROFESIONALES","SANDRA MILENA BENAVIDES MARTINEZ","Formación requerida en una (1) carrera profesional "," Economía, Administración, Contaduría y afines","1 PERSONA NATURAL","3 CÉDULA DE CIUDADANÍA",39625629,39625629,null,"11 NO SE DILIGENCIA INFORMACIÓN PARA ESTE FORMULARIO EN ESTE PERÍODO DE REPORTE","NO APLICA","NO APLICA","NO APLICA","LUZ FANY VACA GUTIERREZ",124,"2024-01-11",null,null,null,null,null,"SUBDIRECCION FINANCIERA – GIT CARTERA","SUBDIRECCION FINANCIERA – GIT CARTERA","PRESTAR LOS SERVICIOS DE APOYO A LA GESTIÓN COMO ADMINISTRADOR DE EMPRESAS, CON EL FIN DE ADELANTAR ACTIVIDADES RELACIONADAS CON LOS ASUNTOS ADMINISTRATIVOS EN LA SUBDIRECCIÓN FINANCIERA DEL FONDO PASIVO SOCIAL DE FERROCARRILES NACIONALES DE COLOMBIA",{"$f":"LEFT('BASE 2023 FPS'!$AF70,390)","v":"PRESTAR LOS SERVICIOS DE APOYO A LA GESTIÓN COMO ADMINISTRADOR DE EMPRESAS, CON EL FIN DE ADELANTAR ACTIVIDADES RELACIONADAS CON LOS ASUNTOS ADMINISTRATIVOS EN LA SUBDIRECCIÓN FINANCIERA DEL FONDO PASIVO SOCIAL DE FERROCARRILES NACIONALES DE COLOMBIA"},6455025,71005275,"2024-01-15",1,1,"COLOMBIA > Distrito Capital de Bogotá > Bogotá","COLOMBIA > Distrito Capital de Bogotá > Bogotá","2 SUPERVISOR","NO APLICA","5 NO SE TIENE ESTE TIPO DE SEGUIMIENTO EN EL CONTRATO","NO APLICA","11 NO SE DILIGENCIA INFORMACIÓN PARA ESTE FORMULARIO EN ESTE PERÍODO DE REPORTE",23621957,"LUZ FANNY VACA GUTIERREZ","SUBDIRECCION FINANCIERA – GIT CARTERA","SUBDIRECCION FINANCIERA – GIT CARTERA","NO",80111600,"POLIZA","Calidad del servicio - Cumplimiento del contrato",null,"2024-01-15","2024-01-15","2024-01-15","2024-01-15","2024-12-14",330,{"$f":"DATEDIF('BASE 2023 FPS'!$BF70-1,'BASE 2023 FPS'!$BG70,\"m\")","v":11}]
[2024,"CPS-076-2024",null,null,"F5.1","2 CONTRATACIÓN DIRECTA","CPS-076-2024","14 PRESTACIÓN DE SERVICIOS","PROFESIONALES","STHEFANIA PUENTES LEON","Formación requerida en una (1) carrera profesional "," Economía, Administración, Contaduría y afines","1 PERSONA NATURAL","3 CÉDULA DE CIUDADANÍA",1013651328,1013651328,null,"11 NO SE DILIGENCIA INFORMACIÓN PARA ESTE FORMULARIO EN ESTE PERÍODO DE REPORTE","NO APLICA","NO APLICA","NO APLICA","LUZ FANY VACA GUTIERREZ",124,"2024-01-11",null,null,null,null,null,"SUBDIRECCION FINANCIERA – GIT CARTERA","SUBDIRECCION FINANCIERA – GIT CARTERA","PRESTAR LOS SERVICIOS PROFESIONALES COMO INTERNACIONALISTA QUE APOYE LA GESTIÓN ADMINISTRATIVA DE LA ENTIDAD RESPECTO DE LOS ASPECTOS TÉCNICOS Y FINANCIEROS EN RELACIÓN CON LAS FUNCIONES ASIGNADAS AL FONDO DE PASIVO SOCIAL DE FERROCARRILES NACIONALES DE COLOMBIA DESDE LA SUBDIRECCIÓN FINANCIERA",{"$f":"LEFT('BASE 2023 FPS'!$AF71,390)","v":"PRESTAR LOS SERVICIOS PROFESIONALES COMO INTERNACIONALISTA QUE APOYE LA GESTIÓN ADMINISTRATIVA DE LA ENTIDAD RESPECTO DE LOS ASPECTOS TÉCNICOS Y FINANCIEROS EN RELACIÓN CON LAS FUNCIONES ASIGNADAS AL FONDO DE PASIVO SOCIAL DE FERROCARRILES NACIONALES DE COLOMBIA DESDE LA SUBDIRECCIÓN FINANCIERA"},4661962,51281582,"2024-01-15",1,1,"COLOMBIA > Distrito Capital de Bogotá > Bogotá","COLOMBIA > Distrito Capital de Bogotá > Bogotá","2 SUPERVISOR","NO APLICA","5 NO SE TIENE ESTE TIPO DE SEGUIMIENTO EN EL CONTRATO","NO APLICA","11 NO SE DILIGENCIA INFORMACIÓN PARA ESTE FORMULARIO EN ESTE PERÍODO DE REPORTE",23621957,"LUZ FANNY VACA GUTIERREZ","SUBDIRECCION FINANCIERA – GIT CARTERA","SUBDIRECCION FINANCIERA – GIT CARTERA","NO",80111600,"POLIZA","Calidad del servicio - Cumplimiento del contrato","11-46-101043272","2024-01-15","2024-01-15","2024-01-15","2024-01-15","2024-12-14",330,{"$f":"DATEDIF('BASE 2023 FPS'!$BF71-1,'BASE 2023 FPS'!$BG71,\"m\")","v":11}]
[2024,"CPS-077-2024",null,null,"F5.1","2 CONTRATACIÓN DIRECTA","CPS-077-2024","14 PRESTACIÓN DE SERVICIOS","PROFESIONALES","LUIS GABIEL MARTINEZ","Formación requerida en una (1) carrera profesional y una  (1) especialización "," Ciencias Sociales y Humanas","1 PERSONA NATURAL","3 CÉDULA DE CIUDADANÍA",78037225,78037225,null,"11 NO SE DILIGENCIA INFORMACIÓN PARA ESTE FORMULARIO EN ESTE PERÍODO DE REPORTE","NO APLICA","NO APLICA","NO APLICA","LUZ FANY VACA GUTIERREZ",124,"2024-01-11",null,null,null,null,null,"GIT GESTION PRESTACIONES ECONOMICAS","GIT GESTION PRESTACIONES ECONOMICAS","PRESTAR LOS SERVICIOS COMO ABOGADO CON EL FIN DE ADELANTAR ACTIVIDADES RELACIONADAS CON LOS ASUNTOS JURÍDICOS Y ADMINISTRATIVOS DESDE EL GIT GESTIÓN\nPRESTACIONES ECONÓMICAS DEL FONDO DE PASIVO SOCIAL DE FERROCARRILES NACIONALES DE COLOMBIA",{"$f":"LEFT('BASE 2023 FPS'!$AF72,390)","v":"PRESTAR LOS SERVICIOS COMO ABOGADO CON EL FIN DE ADELANTAR ACTIVIDADES RELACIONADAS CON LOS ASUNTOS JURÍDICOS Y ADMINISTRATIVOS DESDE EL GIT GESTIÓN\nPRESTACIONES ECONÓMICAS DEL FONDO DE PASIVO SOCIAL DE FERROCARRILES NACIONALES DE COLOMBIA"},6455025,71005275,"2024-01-15",1,1,"COLOMBIA > Distrito Capital de Bogotá > Bogotá","COLOMBIA > Distrito Capital de Bogotá > Bogotá","2 SUPERVISOR","NO APLICA","5 NO SE TIENE ESTE TIPO DE SEGUIMIENTO EN EL CONTRATO","NO APLICA","11 NO SE DILIGENCIA INFORMACIÓN PARA ESTE FORMULARIO EN ESTE PERÍODO DE REPORTE",49607561,"LEIVIS MARIANA BOTINA MONTERO","GIT GESTION PRESTACIONES ECONOMICAS","GIT GESTION PRESTACIONES ECONOMICAS","NO",80111600,"POLIZA","Calidad del servicio - Cumplimiento del contrato","340 - 47 - 994000050408","2024-01-15","2024-01-15","2024-01-15","2024-01-15","2024-12-14",330,{"$f":"DATEDIF('BASE 2023 FPS'!$BF72-1,'BASE 2023 FPS'!$BG72,\"m\")","v":11}]
[2024,"CPS-078-2024",null,null,"F5.1","2 CONTRATACIÓN DIRECTA","CPS-078-2024","14 PRESTACIÓN DE SERVICIOS","PROFESIONALES","CAMILO JOSE RODRIGUEZ","Formación requerida en una (1) carrera profesional y una  (1) especialización "," Ingeniería, Arquitectura, Urbanismo y afines","1 PERSONA NATURAL","3 CÉDULA DE CIUDADANÍA",1084729091,1084729091,null,"11 NO SE DILIGENCIA INFORMACIÓN PARA ESTE FORMULARIO EN ESTE PERÍODO DE REPORTE","NO APLICA","NO APLICA","NO APLICA","LUZ FANY VACA GUTIERREZ",124,"2024-01-11",null,null,null,null,null,"OFICINA ASESORA DE PLANEACIÓN Y SISTEMAS","OFICINA ASESORA DE PLANEACIÓN Y SISTEMAS","PRESTAR LOS SERVICIOS PROFESIONALES COMO INGENIERO INDUSTRIAL PARA APOYAR EL MEJORAMIENTO DE LOS SISTEMAS DE GESTIÓN DE LA ENTIDAD EN EL MARCO DEL PROYECTO DE INVERSIÓN DENOMINADO “MEJORAMIENTO DE LA GESTIÓN ADMINSITRATIVA Y TÉCNOLOGICA DE LA UNIDAD PENSIONES DEL FPS-FNC”. BPIN 202300000000341\n",{"$f":"LEFT('BASE 2023 FPS'!$AF73,390)","v":"PRESTAR LOS SERVICIOS PROFESIONALES COMO INGENIERO INDUSTRIAL PARA APOYAR EL MEJORAMIENTO DE LOS SISTEMAS DE GESTIÓN DE LA ENTIDAD EN EL MARCO DEL PROYECTO DE INVERSIÓN DENOMINADO “MEJORAMIENTO DE LA GESTIÓN ADMINSITRATIVA Y TÉCNOLOGICA DE LA UNIDAD PENSIONES DEL FPS-FNC”. BPIN 202300000000341\n"},6096412,67060532,"2024-01-15",1,1,"COLOMBIA > Distrito Capital de Bogotá > Bogotá","COLOMBIA > Distrito Capital de Bogotá > Bogotá","2 SUPERVISOR","NO APLICA","5 NO SE TIENE ESTE TIPO DE SEGUIMIENTO EN EL CONTRATO","NO APLICA","11 NO SE DILIGENCIA INFORMACIÓN PARA ESTE FORMULARIO EN ESTE PERÍODO DE REPORTE",24218560,"MARIA YANETH FARFAN CASALLAS","OFICINA ASESORA PLANEACIÓN Y SISTEMAS","OFICINA ASESORA PLANEACIÓN Y SISTEMAS","NO",80111600,"POLIZA","Calidad del servicio - Cumplimiento del contrato",null,"2024-01-16","2024-01-16","2024-01-16","2024-01-16","2024-12-15",330,{"$f":"DATEDIF('BASE 2023 FPS'!$BF73-1,'BASE 2023 FPS'!$BG73,\"m\")","v":11}]
[2024,"CPS-079-2024",null,null,"F5.1","2 CONTRATACIÓN DIRECTA","CPS-079-2024","14 PRESTACIÓN DE SERVICIOS","PROFESIONALES","CARLOS JULIO RAMOS RAMIREZ","Formación requerida en una (1) carrera profesional y una  (1) especialización "," Ciencias Sociales y Humanas","1 PERSONA NATURAL","3 CÉDULA DE CIUDADANÍA",1065840872,1065840872,null,"11 NO SE DILIGENCIA INFORMACIÓN PARA ESTE FORMULARIO EN ESTE PERÍODO DE REPORTE","NO APLICA","NO APLICA","NO APLICA","LUZ FANY VACA GUTIERREZ",124,"2024-01-11",null,null,null,null,null,"OFICINA ASESORA JURÍDICA","OFICINA ASESORA JURÍDICA","PRESTAR LOS SERVICIOS PROFESIONALES COMO ABOGADO ESPECIALISTA PARA APOYAR LAS ACTIVIDADES JURÍDICAS Y ADMINISTRATIVAS DE LA OFICINA ASESORA JURÍDICA DEL FONDO DE PASIVO SOCIAL DE FERROCARRILES NACIONALES DE COLOMBIA\n",{"$f":"LEFT('BASE 2023 FPS'!$AF74,390)","v":"PRESTAR LOS SERVICIOS PROFESIONALES COMO ABOGADO ESPECIALISTA PARA APOYAR LAS ACTIVIDADES JURÍDICAS Y ADMINISTRATIVAS DE LA OFICINA ASESORA JURÍDICA DEL FONDO DE PASIVO SOCIAL DE FERROCARRILES NACIONALES DE COLOMBIA\n"},6455025,71005275,"2024-01-15",1,1,"COLOMBIA > Distrito Capital de Bogotá > Bogotá","COLOMBIA > Distrito Capital de Bogotá > Bogotá","2 SUPERVISOR","NO APLICA","5 NO SE TIENE ESTE TIPO DE SEGUIMIENTO EN EL CONTRATO","NO APLICA","11 NO SE DILIGENCIA INFORMACIÓN PARA ESTE FORMULARIO EN ESTE PERÍODO DE REPORTE",65767422,"ANDREA ALDANA TRUJILLO","OFICINA ASESORA JURÍDICA","OFICINA ASESORA JURÍDICA","NO",80111600,"POLIZA","Calidad del servicio - Cumplimiento del contrato",null,"2024-01-15","2024-01-15","2024-01-15","2024-01-15","2024-12-14",330,{"$f":"DATEDIF('BASE 2023 FPS'!$BF74-1,'BASE 2023 FPS'!$BG74,\"m\")","v":11}]
[2024,"CPS-080-2024",null,null,"F5.1","2 CONTRATACIÓN DIRECTA","CPS-080-2024","14 PRESTACIÓN DE SERVICIOS","PROFESIONALES","YAIRA ALEJANDRA SANTOS","Apoyo a la gestion"," Ingeniería, Arquitectura, Urbanismo y afines","1 PERSONA NATURAL","3 CÉDULA DE CIUDADANÍA",1018432583,1018432583,null,"11 NO SE DILIGENCIA INFORMACIÓN PARA ESTE FORMULARIO EN ESTE PERÍODO DE REPORTE","NO APLICA","NO APLICA","NO APLICA","LUZ FANY VACA GUTIERREZ",124,"2024-01-11",null,null,null,null,null,"OFICINA ASESORA DE PLANEACIÓN Y SISTEMAS","OFICINA ASESORA DE PLANEACIÓN Y SISTEMAS","PRESTAR LOS SERVICIOS TÉCNICOS EN SISTEMAS PARA APOYAR LA GESTIÓN ADMINISTRATIVA DE LA OFICINA ASESORA DE PLANEACIÓN Y SISTEMAS DEL FONDO PASIVO SOCIAL DE FERROCARRILES NACIONALES DE COLOMBIA.",{"$f":"LEFT('BASE 2023 FPS'!$AF75,390)","v":"PRESTAR LOS SERVICIOS TÉCNICOS EN SISTEMAS PARA APOYAR LA GESTIÓN ADMINISTRATIVA DE LA OFICINA ASESORA DE PLANEACIÓN Y SISTEMAS DEL FONDO PASIVO SOCIAL DE FERROCARRILES NACIONALES DE COLOMBIA."},3107975,34187725,"2024-01-16",1,1,"COLOMBIA > Distrito Capital de Bogotá > Bogotá","COLOMBIA > Distrito Capital de Bogotá > Bogotá","2 SUPERVISOR","NO APLICA","5 NO SE TIENE ESTE TIPO DE SEGUIMIENTO EN EL CONTRATO","NO APLICA","11 NO SE DILIGENCIA INFORMACIÓN PARA ESTE FORMULARIO EN ESTE PERÍODO DE REPORTE",24218560,"MARIA YANETH FARFAN CASALLAS","OFICINA ASESORA PLANEACIÓN Y SISTEMAS","OFICINA ASESORA PLANEACIÓN Y SISTEMAS","NO",80111600,"POLIZA","Calidad del servicio - Cumplimiento del contrato","11-46-101043417","2024-01-16","2024-01-16","2024-01-16","2024-01-16","2024-12-15",330,{"$f":"DATEDIF('BASE 2023 FPS'!$BF75-1,'BASE 2023 FPS'!$BG75,\"m\")","v":11}]
[2024,"CPS-081-2024",null,null,"F5.1","2 CONTRATACIÓN DIRECTA","CPS-081-2024","14 PRESTACIÓN DE SERVICIOS","PROFESIONALES","CARLOS ALBERTO MARTINEZ CRUZ","Formación requerida en una (1) carrera profesional y una  (1) especialización "," Economía, Administración, Contaduría y afines","1 PERSONA NATURAL","3 CÉDULA DE CIUDADANÍA",86040091,86040091,null,"11 NO SE DILIGENCIA INFORMACIÓN PARA ESTE FORMULARIO EN ESTE PERÍODO DE REPORTE","NO APLICA","NO APLICA","NO APLICA","LUZ FANY VACA GUTIERREZ",124,"2024-01-11",null,null,null,null,null,"OFICINA ASESORA JURÍDICA","OFICINA ASESORA JURÍDICA","PRESTAR LOS SERVICIOS PROFESIONALES ESPECIALIZADOS COMO ECONOMISTA PARA APOYAR FINANCIERAMENTE LA GESTIÓN DE LA OFICINA DE LA ASESORA JURÍDICA DEL FONDO PASIVO SOCIAL DE FERROCARRILES NACIONALES DE COLOMBIA",{"$f":"LEFT('BASE 2023 FPS'!$AF76,390)","v":"PRESTAR LOS SERVICIOS PROFESIONALES ESPECIALIZADOS COMO ECONOMISTA PARA APOYAR FINANCIERAMENTE LA GESTIÓN DE LA OFICINA DE LA ASESORA JURÍDICA DEL FONDO PASIVO SOCIAL DE FERROCARRILES NACIONALES DE COLOMBIA"},6455025,71005275,"2024-01-15",1,1,"COLOMBIA > Distrito Capital de Bogotá > Bogotá","COLOMBIA > Distrito Capital de Bogotá > Bogotá","2 SUPERVISOR","NO APLICA","5 NO SE TIENE ESTE TIPO DE SEGUIMIENTO EN EL CONTRATO","NO APLICA","11 NO SE DILIGENCIA INFORMACIÓN PARA ESTE FORMULARIO EN ESTE PERÍODO DE REPORTE",65767422,"ANDREA ALDANA TRUJILLO","OFICINA ASESORA JURÍDICA","OFICINA ASESORA JURÍDICA","NO",80111600,"POLIZA","Calidad del servicio - Cumplimiento del contrato","11-46-101043269","2024-01-15","2024-01-15","2024-01-15","2024-01-15","2024-12-14",330,{"$f":"DATEDIF('BASE 2023 FPS'!$BF76-1,'BASE 2023 FPS'!$BG76,\"m\")","v":11}]
[2024,"CPS-082-2024",null,null,"F5.1","2 CONTRATACIÓN DIRECTA","CPS-082-2024","14 PRESTACIÓN DE SERVICIOS","PROFESIONALES","LUIS ALBERTO MORALES HERNANDEZ","Formación requerida en una (1) carrera profesional "," Ciencias Sociales y Humanas","1 PERSONA NATURAL","3 CÉDULA DE CIUDADANÍA",1102831381,1102831381,null,"11 NO SE DILIGENCIA INFORMACIÓN PARA ESTE FORMULARIO EN ESTE PERÍODO DE REPORTE","NO APLICA","NO APLICA","NO APLICA","LUZ FANY VACA GUTIERREZ",124,"2024-01-11",null,null,null,null,null,"OFICINA ASESORA JURÍDICA","OFICINA ASESORA JURÍDICA","PRESTAR LOS SERVICIOS DE APOYO A LA GESTIÓN COMO JUDICANTE EN EL DESARROLLO DE LAS ACTIVADES ADMINISTRATIVAS Y JURÍDICAS DESDE LA SECRETARÍA GENERAL - GIT GESTIÓN BIENES, COMPRAS Y SERVICIOS ADMINISTRATIVOS DEL FONDO DE PASIVO SOCIAL DE FERROCARRILES NACIONALES DE COLOMBIA",{"$f":"LEFT('BASE 2023 FPS'!$AF77,390)","v":"PRESTAR LOS SERVICIOS DE APOYO A LA GESTIÓN COMO JUDICANTE EN EL DESARROLLO DE LAS ACTIVADES ADMINISTRATIVAS Y JURÍDICAS DESDE LA SECRETARÍA GENERAL - GIT GESTIÓN BIENES, COMPRAS Y SERVICIOS ADMINISTRATIVOS DEL FONDO DE PASIVO SOCIAL DE FERROCARRILES NACIONALES DE COLOMBIA"},2450519,12252595,"2024-01-16",1,1,"COLOMBIA > Distrito Capital de Bogotá > Bogotá","COLOMBIA > Distrito Capital de Bogotá > Bogotá","2 SUPERVISOR","NO APLICA","5 NO SE TIENE ESTE TIPO DE SEGUIMIENTO EN EL CONTRATO","NO APLICA","11 NO SE DILIGENCIA INFORMACIÓN PARA ESTE FORMULARIO EN ESTE PERÍODO DE REPORTE",65767422,"ANDREA ALDANA TRUJILLO","OFICINA ASESORA JURÍDICA","OFICINA ASESORA JURÍDICA","NO",80111600,"POLIZA","Calidad del servicio - Cumplimiento del contrato","11-46-101043367","2024-01-16","2024-01-16","2024-01-16","2024-01-16","2024-06-15",120,{"$f":"DATEDIF('BASE 2023 FPS'!$BF77-1,'BASE 2023 FPS'!$BG77,\"m\")","v":5}]
[2024,"CPS-083-2024",null,null,"F5.1","2 CONTRATACIÓN DIRECTA","CPS-083-2024","14 PRESTACIÓN DE SERVICIOS","PROFESIONALES","RODRÍGO ALFONSO ARIZA ORTÍZ","Formación requerida en una (1) carrera profesional y una  (1) especialización "," Ciencias Sociales y Humanas","1 PERSONA NATURAL","3 CÉDULA DE CIUDADANÍA",1120740182,1120740182,null,"11 NO SE DILIGENCIA INFORMACIÓN PARA ESTE FORMULARIO EN ESTE PERÍODO DE REPORTE","NO APLICA","NO APLICA","NO APLICA","LUZ FANY VACA GUTIERREZ",124,"2024-01-11",null,null,null,null,null,"OFICINA ASESORA JURÍDICA","OFICINA ASESORA JURÍDICA","PRESTAR LOS SERVICIOS PROFESIONALES COMO ABOGADO ESPECIALISTA PARA APOYAR A LA OFICINA ASESORA JURÍDICA EN LAS ACTIVIDADES JURÍDICAS Y ADMINISTRATIVAS DEL FONDO DE PASIVO SOCIAL DE FERROCARRILES NACIONALES DE COLOMBIA",{"$f":"LEFT('BASE 2023 FPS'!$AF78,390)","v":"PRESTAR LOS SERVICIOS PROFESIONALES COMO ABOGADO ESPECIALISTA PARA APOYAR A LA OFICINA ASESORA JURÍDICA EN LAS ACTIVIDADES JURÍDICAS Y ADMINISTRATIVAS DEL FONDO DE PASIVO SOCIAL DE FERROCARRILES NACIONALES DE COLOMBIA"},7889475,86784225,"2024-01-16",1,1,"COLOMBIA > Distrito Capital de Bogotá > Bogotá","COLOMBIA > Distrito Capital de Bogotá > Bogotá","2 SUPERVISOR","NO APLICA","5 NO SE TIENE ESTE TIPO DE SEGUIMIENTO EN EL CONTRATO","NO APLICA","11 NO SE DILIGENCIA INFORMACIÓN PARA ESTE FORMULARIO EN ESTE PERÍODO DE REPORTE",65767422,"ANDREA ALDANA TRUJILLO","OFICINA ASESORA JURÍDICA","OFICINA ASESORA JURÍDICA","NO",80111600,"POLIZA","Calidad del servicio - Cumplimiento del contrato",null,"2024-01-16","2024-01-16","2024-01-16","2024-01-16","2024-12-15",330,{"$f":"DATEDIF('BASE 2023 FPS'!$BF78-1,'BASE 2023 FPS'!$BG78,\"m\")","v":11}]
[2024,"CPS-084-2024",null,null,"F5.1","2 CONTRATACIÓN DIRECTA","CPS-084-2024","14 PRESTACIÓN DE SERVICIOS","PROFESIONALES","MARTIN BERNIER PELAEZ","Formación requerida en una (1) carrera profesional y una  (1) especialización "," Ciencias Sociales y Humanas","1 PERSONA NATURAL","3 CÉDULA DE CIUDADANÍA",1121331993,1121331993,null,"11 NO SE DILIGENCIA INFORMACIÓN PARA ESTE FORMULARIO EN ESTE PERÍODO DE REPORTE","NO APLICA","NO APLICA","NO APLICA","LUZ FANY VACA GUTIERREZ",124,"2024-01-11",null,null,null,null,null,"GIT TALENTO HUMANO","GIT TALENTO HUMANO","PRESTAR LOS SERVICIOS PROFESIONALES COMO ABOGADO PARA APOYAR LA GESTIÓN ADMINISTRATIVA DEL GIT TALENTO HUMANO DE LA SECRETARÍA GENERAL DEL FONDO DE PASIVO SOCIAL DE FERROCARRILES NACIONALES DE COLOMBIA",{"$f":"LEFT('BASE 2023 FPS'!$AF79,390)","v":"PRESTAR LOS SERVICIOS PROFESIONALES COMO ABOGADO PARA APOYAR LA GESTIÓN ADMINISTRATIVA DEL GIT TALENTO HUMANO DE LA SECRETARÍA GENERAL DEL FONDO DE PASIVO SOCIAL DE FERROCARRILES NACIONALES DE COLOMBIA"},4901037,53911407,"2024-01-16",1,1,"COLOMBIA > Distrito Capital de Bogotá > Bogotá","COLOMBIA > Distrito Capital de Bogotá > Bogotá","2 SUPERVISOR","NO APLICA","5 NO SE TIENE ESTE TIPO DE SEGUIMIENTO EN EL CONTRATO","NO APLICA","11 NO SE DILIGENCIA INFORMACIÓN PARA ESTE FORMULARIO EN ESTE PERÍODO DE REPORTE",1014212108,"TATIANA PEREZ SIERRA","GIT TALENTO HUMANO","GIT TALENTO HUMANO","NO",80111600,"POLIZA","Calidad del servicio - Cumplimiento del contrato",null,"2024-01-16","2024-01-16","2024-01-16","2024-01-16","2024-12-15",330,{"$f":"DATEDIF('BASE 2023 FPS'!$BF79-1,'BASE 2023 FPS'!$BG79,\"m\")","v":11}]
[2024,"CPS-085-2024",null,null,"F5.1","2 CONTRATACIÓN DIRECTA","CPS-085-2024","14 PRESTACIÓN DE SERVICIOS","PROFESIONALES","RITA OMAIRA MARTINEZ","Formación requerida en una (1) carrera profesional y una  (1) especialización "," Economía, Administración, Contaduría y afines","1 PERSONA NATURAL","3 CÉDULA DE CIUDADANÍA",20677597,20677597,null,"11 NO SE DILIGENCIA INFORMACIÓN PARA ESTE FORMULARIO EN ESTE PERÍODO DE REPORTE","NO APLICA","NO APLICA","NO APLICA","LUZ FANY VACA GUTIERREZ",124,"2024-01-11",null,null,null,null,null,"SUBDIRECCION FINANCIERA","SUBDIRECCION FINANCIERA"," PRESTAR LOS SERVICIOS PROFESIONALES PARA EL SEGUIMIENTO DESDE LA SUBDIRECCIÓN FINANCIERA GENERAL A LA GESTIÓN ADMINISTRATIVA DEL FONDO DE PASIVO SOCIAL DE FERROCARRILES NACIONALES DE COLOMBIA",{"$f":"LEFT('BASE 2023 FPS'!$AF80,390)","v":" PRESTAR LOS SERVICIOS PROFESIONALES PARA EL SEGUIMIENTO DESDE LA SUBDIRECCIÓN FINANCIERA GENERAL A LA GESTIÓN ADMINISTRATIVA DEL FONDO DE PASIVO SOCIAL DE FERROCARRILES NACIONALES DE COLOMBIA"},7889475,86784225,"2024-01-16",1,1,"COLOMBIA > Distrito Capital de Bogotá > Bogotá","COLOMBIA > Distrito Capital de Bogotá > Bogotá","2 SUPERVISOR","NO APLICA","5 NO SE TIENE ESTE TIPO DE SEGUIMIENTO EN EL CONTRATO","NO APLICA","11 NO SE DILIGENCIA INFORMACIÓN PARA ESTE FORMULARIO EN ESTE PERÍODO DE REPORTE",23621957,"LUZ FANNY VACA GUTIERREZ","SUBDIRECCION FINANCIERA ","SUBDIRECCION FINANCIERA ","NO",80111600,"POLIZA","Calidad del servicio - Cumplimiento del contrato","340 47994000050446","2024-01-16","2024-01-16","2024-01-16","2024-01-16","2024-07-15",120,{"$f":"DATEDIF('BASE 2023 FPS'!$BF80-1,'BASE 2023 FPS'!$BG80,\"m\")","v":6}]
[2024,"CPS-086-2024",null,null,"F5.1","2 CONTRATACIÓN DIRECTA","CPS-086-2024","14 PRESTACIÓN DE SERVICIOS","PROFESIONALES","JORGE LUIS PERALTA","Formación requerida en una (1) carrera profesional y una  (1) especialización "," Economía, Administración, Contaduría y afines","1 PERSONA NATURAL","3 CÉDULA DE CIUDADANÍA",1120751778,1120751778,null,"11 NO SE DILIGENCIA INFORMACIÓN PARA ESTE FORMULARIO EN ESTE PERÍODO DE REPORTE","NO APLICA","NO APLICA","NO APLICA","LUZ FANY VACA GUTIERREZ",124,"2024-01-11",null,null,null,null,null,"SECRETARIA GENERAL – ATENCION AL CIUDADANO Y GESTION DOCUMENTAL","SECRETARIA GENERAL – ATENCION AL CIUDADANO Y GESTION DOCUMENTAL","PRESTAR LOS SERVICIOS PROFESIONALES PARA APOYAR LA GESTIÓN ADMINISTRATIVA DESDE EL GIT ATENCIÓN AL CIUDADANO Y GESTIÓN DOCUMENTAL DEL FONDO DE PASIVO SOCIAL DE FERROCARRILES NACIONALES DE COLOMBIA",{"$f":"LEFT('BASE 2023 FPS'!$AF81,390)","v":"PRESTAR LOS SERVICIOS PROFESIONALES PARA APOYAR LA GESTIÓN ADMINISTRATIVA DESDE EL GIT ATENCIÓN AL CIUDADANO Y GESTIÓN DOCUMENTAL DEL FONDO DE PASIVO SOCIAL DE FERROCARRILES NACIONALES DE COLOMBIA"},7889475,86784225,"2024-01-16",1,1,"COLOMBIA > Distrito Capital de Bogotá > Bogotá","COLOMBIA > Distrito Capital de Bogotá > Bogotá","2 SUPERVISOR","NO APLICA","5 NO SE TIENE ESTE TIPO DE SEGUIMIENTO EN EL CONTRATO","NO APLICA","11 NO SE DILIGENCIA INFORMACIÓN PARA ESTE FORMULARIO EN ESTE PERÍODO DE REPORTE",39526262,"NURY NAVARRO HERNADEZ","SECRETARIA GENERAL – ATENCION AL CIUDADANO Y GESTION DOCUMENTAL","SECRETARIA GENERAL – ATENCION AL CIUDADANO Y GESTION DOCUMENTAL","NO",80111600,"POLIZA","Calidad del servicio - Cumplimiento del contrato",null,"2024-01-16","2024-01-16","2024-01-16","2024-01-16","2024-12-15",330,{"$f":"DATEDIF('BASE 2023 FPS'!$BF81-1,'BASE 2023 FPS'!$BG81,\"m\")","v":11}]
[2024,"CPS-087-2024",null,null,"F5.1","2 CONTRATACIÓN DIRECTA","CPS-087-2024","14 PRESTACIÓN DE SERVICIOS","PROFESIONALES","LUIS EDUARDO CARRASCAL VEGA","Formación requerida en una (1) carrera profesional "," Ciencias Sociales y Humanas","1 PERSONA NATURAL","3 CÉDULA DE CIUDADANÍA",1091665848,1091665848,null,"11 NO SE DILIGENCIA INFORMACIÓN PARA ESTE FORMULARIO EN ESTE PERÍODO DE REPORTE","NO APLICA","NO APLICA","NO APLICA","LUZ FANY VACA GUTIERREZ",124,"2024-01-11",null,null,null,null,null,"SECRETARIA GENERAL – ATENCION AL CIUDADANO Y GESTION DOCUMENTAL","SECRETARIA GENERAL – ATENCION AL CIUDADANO Y GESTION DOCUMENTAL","PRESTAR LOS SERVICIOS PROFESIONALES COMO ABOGADO AL GRUPO INTERNO DE TRABAJO DE ATENCIÓN A CIUDADANO Y GESTIÓN DOCUMENTAL DEL FONDO DE PASIVO SOCIAL DE FERROCARRILES NACIONALES DE COLOMBIA",{"$f":"LEFT('BASE 2023 FPS'!$AF82,390)","v":"PRESTAR LOS SERVICIOS PROFESIONALES COMO ABOGADO AL GRUPO INTERNO DE TRABAJO DE ATENCIÓN A CIUDADANO Y GESTIÓN DOCUMENTAL DEL FONDO DE PASIVO SOCIAL DE FERROCARRILES NACIONALES DE COLOMBIA"},6096412,67060532,"2024-01-16",1,1,"COLOMBIA > Distrito Capital de Bogotá > Bogotá","COLOMBIA > Distrito Capital de Bogotá > Bogotá","2 SUPERVISOR","NO APLICA","5 NO SE TIENE ESTE TIPO DE SEGUIMIENTO EN EL CONTRATO","NO APLICA","11 NO SE DILIGENCIA INFORMACIÓN PARA ESTE FORMULARIO EN ESTE PERÍODO DE REPORTE",39526262,"NURY NAVARRO HERNADEZ","SECRETARIA GENERAL – ATENCION AL CIUDADANO Y GESTION DOCUMENTAL","SECRETARIA GENERAL – ATENCION AL CIUDADANO Y GESTION DOCUMENTAL","NO",80111600,"POLIZA","Calidad del servicio - Cumplimiento del contrato","11-46-101043468","2024-01-16","2024-01-16","2024-01-16","2024-01-16","2024-12-15",330,{"$f":"DATEDIF('BASE 2023 FPS'!$BF82-1,'BASE 2023 FPS'!$BG82,\"m\")","v":11}]
[2024,"CPS-088-2024",null,null,"F5.1","2 CONTRATACIÓN DIRECTA","CPS-088-2024","14 PRESTACIÓN DE SERVICIOS","PROFESIONALES","ELIETH VANESSA QUINTERO BARBOSA","Formación requerida en una (1) carrera profesional "," Ciencias Sociales y Humanas","1 PERSONA NATURAL","3 CÉDULA DE CIUDADANÍA",1004819657,1004819657,null,"11 NO SE DILIGENCIA INFORMACIÓN PARA ESTE FORMULARIO EN ESTE PERÍODO DE REPORTE","NO APLICA","NO APLICA","NO APLICA","LUZ FANY VACA GUTIERREZ",124,"2024-01-11",null,null,null,null,null,"SECRETARIA GENERAL – ATENCION AL CIUDADANO Y GESTION DOCUMENTAL","SECRETARIA GENERAL – ATENCION AL CIUDADANO Y GESTION DOCUMENTAL","PRESTAR LOS SERVICIOS PROFESIONALES COMO ABOGADO AL GRUPO INTERNO DE TRABAJO DE ATENCIÓN AL CIUDADANO Y GESTIÓN DOCUMENTAL DEL FONDO DE PASIVO SOCIAL DE FERROCARRILES NACIONALES DE COLOMBIA",{"$f":"LEFT('BASE 2023 FPS'!$AF83,390)","v":"PRESTAR LOS SERVICIOS PROFESIONALES COMO ABOGADO AL GRUPO INTERNO DE TRABAJO DE ATENCIÓN AL CIUDADANO Y GESTIÓN DOCUMENTAL DEL FONDO DE PASIVO SOCIAL DE FERROCARRILES NACIONALES DE COLOMBIA"},6096412,67060532,"2024-01-16",1,1,"COLOMBIA > Distrito Capital de Bogotá > Bogotá","COLOMBIA > Distrito Capital de Bogotá > Bogotá","2 SUPERVISOR","NO APLICA","5 NO SE TIENE ESTE TIPO DE SEGUIMIENTO EN EL CONTRATO","NO APLICA","11 NO SE DILIGENCIA INFORMACIÓN PARA ESTE FORMULARIO EN ESTE PERÍODO DE REPORTE",39526262,"NURY NAVARRO HERNADEZ","SECRETARIA GENERAL – ATENCION AL CIUDADANO Y GESTION DOCUMENTAL","SECRETARIA GENERAL – ATENCION AL CIUDADANO Y GESTION DOCUMENTAL","NO",80111600,"POLIZA","Calidad del servicio - Cumplimiento del contrato","11-46-101043477","2024-01-16","2024-01-16","2024-01-16","2024-01-16","2024-12-15",330,{"$f":"DATEDIF('BASE 2023 FPS'!$BF83-1,'BASE 2023 FPS'!$BG83,\"m\")","v":11}]
[2024,"CPS-089-2024",null,null,"F5.1","2 CONTRATACIÓN DIRECTA","CPS-089-2024","14 PRESTACIÓN DE SERVICIOS","PROFESIONALES","ROBERTH JOSE ANGULO SANTOS","Formación requerida en una (1) carrera profesional "," Ciencias Sociales y Humanas","1 PERSONA NATURAL","3 CÉDULA DE CIUDADANÍA",15620786,15620786,null,"11 NO SE DILIGENCIA INFORMACIÓN PARA ESTE FORMULARIO EN ESTE PERÍODO DE REPORTE","NO APLICA","NO APLICA","NO APLICA","LUZ FANY VACA GUTIERREZ",124,"2024-01-11",null,null,null,null,null,"SECRETARIA GENERAL – ATENCION AL CIUDADANO Y GESTION DOCUMENTAL","SECRETARIA GENERAL – ATENCION AL CIUDADANO Y GESTION DOCUMENTAL","PRESTAR LOS SERVICIOS PROFESIONALES COMO ABOGADO AL GRUPO INTERNO DE TRABAJO DE ATENCIÓN AL CIUDADANO Y GESTIÓN DOCUMENTAL DEL FONDO DE PASIVO SOCIAL DE FERROCARRILES NACIONALES DE COLOMBIA",{"$f":"LEFT('BASE 2023 FPS'!$AF84,390)","v":"PRESTAR LOS SERVICIOS PROFESIONALES COMO ABOGADO AL GRUPO INTERNO DE TRABAJO DE ATENCIÓN AL CIUDADANO Y GESTIÓN DOCUMENTAL DEL FONDO DE PASIVO SOCIAL DE FERROCARRILES NACIONALES DE COLOMBIA"},7172250,78894750,"2024-01-16",1,1,"COLOMBIA > Distrito Capital de Bogotá > Bogotá","COLOMBIA > Distrito Capital de Bogotá > Bogotá","2 SUPERVISOR","NO APLICA","5 NO SE TIENE ESTE TIPO DE SEGUIMIENTO EN EL CONTRATO","NO APLICA","11 NO SE DILIGENCIA INFORMACIÓN PARA ESTE FORMULARIO EN ESTE PERÍODO DE REPORTE",39526262,"NURY NAVARRO HERNADEZ","SECRETARIA GENERAL – ATENCION AL CIUDADANO Y GESTION DOCUMENTAL","SECRETARIA GENERAL – ATENCION AL CIUDADANO Y GESTION DOCUMENTAL","NO",80111600,"POLIZA","Calidad del servicio - Cumplimiento del contrato","11-46-101043453","2024-01-16","2024-01-16","2024-01-16","2024-01-16","2024-12-15",330,{"$f":"DATEDIF('BASE 2023 FPS'!$BF84-1,'BASE 2023 FPS'!$BG84,\"m\")","v":11}]
[2024,"CPS-090-2024",null,null,"F5.1","2 CONTRATACIÓN DIRECTA","CPS-090-2024","14 PRESTACIÓN DE SERVICIOS","PROFESIONALES","JAVIER GREGORIO DENICHE","Formación requerida en una (1) carrera profesional y una  (1) especialización "," Ciencias Sociales y Humanas","1 PERSONA NATURAL","3 CÉDULA DE CIUDADANÍA",1047416167,1047416167,null,"11 NO SE DILIGENCIA INFORMACIÓN PARA ESTE FORMULARIO EN ESTE PERÍODO DE REPORTE","NO APLICA","NO APLICA","NO APLICA","LUZ FANY VACA GUTIERREZ",124,"2024-01-11",null,null,null,null,null,"SECRETARIO GENERAL","SECRETARIO GENERAL","PRESTAR LOS SERVICIOS PROFESIONALES COMO ABOGADO ESPECIALISTA PARA APOYAR LA GESTIÓN JURÍDICA Y ADMINISTRATIVA QUE ADELANTA LA SECRETARIA GENERAL DEL FONDO PASIVO SOCIAL DE FERROCARRILES NACIONALES DE COLOMBIA",{"$f":"LEFT('BASE 2023 FPS'!$AF85,390)","v":"PRESTAR LOS SERVICIOS PROFESIONALES COMO ABOGADO ESPECIALISTA PARA APOYAR LA GESTIÓN JURÍDICA Y ADMINISTRATIVA QUE ADELANTA LA SECRETARIA GENERAL DEL FONDO PASIVO SOCIAL DE FERROCARRILES NACIONALES DE COLOMBIA"},6096412,67060532,"2024-01-16",1,1,"COLOMBIA > Distrito Capital de Bogotá > Bogotá","COLOMBIA > Distrito Capital de Bogotá > Bogotá","2 SUPERVISOR","NO APLICA","5 NO SE TIENE ESTE TIPO DE SEGUIMIENTO EN EL CONTRATO","NO APLICA","11 NO SE DILIGENCIA INFORMACIÓN PARA ESTE FORMULARIO EN ESTE PERÍODO DE REPORTE",17956156,"CARLOS ANDRES TOVAR OROZCO","SECRETARIO GENERAL","SECRETARIA GENERAL","NO",80111600,"POLIZA","Calidad del servicio - Cumplimiento del contrato",null,"2024-01-16","2024-01-16","2024-01-16","2024-01-16","2024-12-15",330,{"$f":"DATEDIF('BASE 2023 FPS'!$BF85-1,'BASE 2023 FPS'!$BG85,\"m\")","v":11}]
[2024,"CPS-091-2024",null,null,"F5.1","2 CONTRATACIÓN DIRECTA","CPS-091-2024","14 PRESTACIÓN DE SERVICIOS","PROFESIONALES","MARIA CAMILA ARRIETA","Formación requerida en una (1) carrera profesional "," Ciencias Sociales y Humanas","1 PERSONA NATURAL","3 CÉDULA DE CIUDADANÍA",1102834880,1102834880,null,"11 NO SE DILIGENCIA INFORMACIÓN PARA ESTE FORMULARIO EN ESTE PERÍODO DE REPORTE","NO APLICA","NO APLICA","NO APLICA","LUZ FANY VACA GUTIERREZ",124,"2024-01-11",null,null,null,null,null,"SECRETARIO GENERAL","SECRETARIO GENERAL","PRESTAR LOS SERVICIOS PROFESIONALES PARA APOYAR LA GESTIÓN ADMINISTRATIVA DE LA SECRETARIA GENERAL DEL FONDO DE PASIVO SOCIAL DE FERROCARRILES NACIONALES DE COLOMBIA",{"$f":"LEFT('BASE 2023 FPS'!$AF86,390)","v":"PRESTAR LOS SERVICIOS PROFESIONALES PARA APOYAR LA GESTIÓN ADMINISTRATIVA DE LA SECRETARIA GENERAL DEL FONDO DE PASIVO SOCIAL DE FERROCARRILES NACIONALES DE COLOMBIA"},6096412,67060532,"2024-01-16",1,1,"COLOMBIA > Distrito Capital de Bogotá > Bogotá","COLOMBIA > Distrito Capital de Bogotá > Bogotá","2 SUPERVISOR","NO APLICA","5 NO SE TIENE ESTE TIPO DE SEGUIMIENTO EN EL CONTRATO","NO APLICA","11 NO SE DILIGENCIA INFORMACIÓN PARA ESTE FORMULARIO EN ESTE PERÍODO DE REPORTE",17956156,"CARLOS ANDRES TOVAR OROZCO","SECRETARIO GENERAL","SECRETARIA GENERAL","NO",80111600,"POLIZA","Calidad del servicio - Cumplimiento del contrato","11-46-101043471","2024-01-16","2024-01-16","2024-01-16","2024-01-16","2024-12-15",330,{"$f":"DATEDIF('BASE 2023 FPS'!$BF86-1,'BASE 2023 FPS'!$BG86,\"m\")","v":11}]
[2024,"CPS-092-2024",null,null,"F5.1","2 CONTRATACIÓN DIRECTA","CPS-092-2024","14 PRESTACIÓN DE SERVICIOS","PROFESIONALES","MARYIN DARIANI CARRASCAL","Formación requerida en una (1) carrera profesional "," Ciencias Sociales y Humanas","1 PERSONA NATURAL","3 CÉDULA DE CIUDADANÍA",1004864011,1004864011,null,"11 NO SE DILIGENCIA INFORMACIÓN PARA ESTE FORMULARIO EN ESTE PERÍODO DE REPORTE","NO APLICA","NO APLICA","NO APLICA","LUZ FANY VACA GUTIERREZ",124,"2024-01-11",null,null,null,null,null,"SECRETARIO GENERAL","SECRETARIO GENERAL","PRESTAR LOS SERVICIOS ESPECIALIZADOS COMO ABOGADO, CON EL FIN DE ADELANTAR ACTIVIDADES RELACIONADAS CON LOS ASUNTOS JURÍDICOS Y ADMINISTRATIVOS DESDELA SECRETARÍA GENERAL DEL FONDO DE PASIVO SOCIAL DE FERROCARRILES NACIONALES DE COLOMBIA",{"$f":"LEFT('BASE 2023 FPS'!$AF87,390)","v":"PRESTAR LOS SERVICIOS ESPECIALIZADOS COMO ABOGADO, CON EL FIN DE ADELANTAR ACTIVIDADES RELACIONADAS CON LOS ASUNTOS JURÍDICOS Y ADMINISTRATIVOS DESDELA SECRETARÍA GENERAL DEL FONDO DE PASIVO SOCIAL DE FERROCARRILES NACIONALES DE COLOMBIA"},6096412,67060532,"2024-01-16",1,1,"COLOMBIA > Distrito Capital de Bogotá > Bogotá","COLOMBIA > Distrito Capital de Bogotá > Bogotá","2 SUPERVISOR","NO APLICA","5 NO SE TIENE ESTE TIPO DE SEGUIMIENTO EN EL CONTRATO","NO APLICA","11 NO SE DILIGENCIA INFORMACIÓN PARA ESTE FORMULARIO EN ESTE PERÍODO DE REPORTE",17956156,"CARLOS ANDRES TOVAR OROZCO","SECRETARIO GENERAL","SECRETARIA GENERAL","NO",80111600,"POLIZA","Calidad del servicio - Cumplimiento del contrato",null,"2024-01-16","2024-01-16","2024-01-16","2024-01-16","2024-12-15",330,{"$f":"DATEDIF('BASE 2023 FPS'!$BF87-1,'BASE 2023 FPS'!$BG87,\"m\")","v":11}]
[2024,"CPS-093-2024",null,null,"F5.1","2 CONTRATACIÓN DIRECTA","CPS-093-2024","14 PRESTACIÓN DE SERVICIOS","PROFESIONALES","WILSON CEPEDA RUBIANO","Formación requerida en una (1) carrera profesional y una  (1) especialización "," Ciencias Sociales y Humanas","1 PERSONA NATURAL","3 CÉDULA DE CIUDADANÍA",80858223,80858223,null,"11 NO SE DILIGENCIA INFORMACIÓN PARA ESTE FORMULARIO EN ESTE PERÍODO DE REPORTE","NO APLICA","NO APLICA","NO APLICA","LUZ FANY VACA GUTIERREZ",124,"2024-01-11",null,null,null,null,null,"SECRETARIO GENERAL","SECRETARIO GENERAL","PRESTAR LOS SERVICIOS ESPECIALIZADOS COMO ABOGADO, CON EL FIN DE ADELANTAR ACTIVIDADES RELACIONADAS CON LOS ASUNTOS JURÍDICOS Y ADMINISTRATIVOS DESDE LA SECRETARÍA GENERAL DEL FONDO DE PASIVO SOCIAL DE FERROCARRILES NACIONALES DE COLOMBIA",{"$f":"LEFT('BASE 2023 FPS'!$AF88,390)","v":"PRESTAR LOS SERVICIOS ESPECIALIZADOS COMO ABOGADO, CON EL FIN DE ADELANTAR ACTIVIDADES RELACIONADAS CON LOS ASUNTOS JURÍDICOS Y ADMINISTRATIVOS DESDE LA SECRETARÍA GENERAL DEL FONDO DE PASIVO SOCIAL DE FERROCARRILES NACIONALES DE COLOMBIA"},6096412,67060532,"2024-01-16",1,1,"COLOMBIA > Distrito Capital de Bogotá > Bogotá","COLOMBIA > Distrito Capital de Bogotá > Bogotá","2 SUPERVISOR","NO APLICA","5 NO SE TIENE ESTE TIPO DE SEGUIMIENTO EN EL CONTRATO","NO APLICA","11 NO SE DILIGENCIA INFORMACIÓN PARA ESTE FORMULARIO EN ESTE PERÍODO DE REPORTE",17956156,"CARLOS ANDRES TOVAR OROZCO","SECRETARIO GENERAL","SECRETARIA GENERAL","NO",80111600,"POLIZA","Calidad del servicio - Cumplimiento del contrato",null,"2024-01-16","2024-01-16","2024-01-16","2024-01-16","2024-12-15",330,{"$f":"DATEDIF('BASE 2023 FPS'!$BF88-1,'BASE 2023 FPS'!$BG88,\"m\")","v":11}]
[2024,"CPS-094-2024",null,null,"F5.1","2 CONTRATACIÓN DIRECTA","CPS-094-2024","14 PRESTACIÓN DE SERVICIOS","PROFESIONALES","WILSON DANIEL ELLES ","Formación requerida en una (1) carrera profesional "," Ciencias Sociales y Humanas","1 PERSONA NATURAL","3 CÉDULA DE CIUDADANÍA",1065815790,1065815790,null,"11 NO SE DILIGENCIA INFORMACIÓN PARA ESTE FORMULARIO EN ESTE PERÍODO DE REPORTE","NO APLICA","NO APLICA","NO APLICA","LUZ FANY VACA GUTIERREZ",124,"2024-01-11",null,null,null,null,null,"COORDINADOR DEL GIT DE DEFENSA JUDICIAL","GIT DE DEFENSA JUDICIAL","PRESTAR LOS SERVICIOS PROFESIONALES COMO ABOGADO PARA ADELANTAR LAS ACTIVIDADES RELACIONADAS CON LOS ASUNTOS JURÍDICOS Y ADMINISTRATIVOS DESDE EL GIT DE DEFENSA JUDICIAL DE LA OFICINA ASESORA JURÍDICA DEL FONDO DE PASIVO SOCIAL DE FERROCARRILES NACIONALES DE COLOMBIA",{"$f":"LEFT('BASE 2023 FPS'!$AF89,390)","v":"PRESTAR LOS SERVICIOS PROFESIONALES COMO ABOGADO PARA ADELANTAR LAS ACTIVIDADES RELACIONADAS CON LOS ASUNTOS JURÍDICOS Y ADMINISTRATIVOS DESDE EL GIT DE DEFENSA JUDICIAL DE LA OFICINA ASESORA JURÍDICA DEL FONDO DE PASIVO SOCIAL DE FERROCARRILES NACIONALES DE COLOMBIA"},4661962,51281582,"2024-01-17",1,1,"COLOMBIA > Distrito Capital de Bogotá > Bogotá","COLOMBIA > Distrito Capital de Bogotá > Bogotá","2 SUPERVISOR","NO APLICA","5 NO SE TIENE ESTE TIPO DE SEGUIMIENTO EN EL CONTRATO","NO APLICA","11 NO SE DILIGENCIA INFORMACIÓN PARA ESTE FORMULARIO EN ESTE PERÍODO DE REPORTE",79202895,"HUMBERTO MALAVER PINZÓN","COORDINADOR DEL GIT DE DEFENSA JUDICIAL","GIT DE DEFENSA JUDICIAL","NO",80111600,"POLIZA","Calidad del servicio - Cumplimiento del contrato",null,"2024-01-17","2024-01-17","2024-01-17","2024-01-17","2024-12-16",330,{"$f":"DATEDIF('BASE 2023 FPS'!$BF89-1,'BASE 2023 FPS'!$BG89,\"m\")","v":11}]
[2024,"CPS-095-2024",null,null,"F5.1","2 CONTRATACIÓN DIRECTA","CPS-095-2024","14 PRESTACIÓN DE SERVICIOS","PROFESIONALES","JHORDIN STIVEN SUAREZ","Formación requerida en una (1) carrera profesional "," Ciencias Sociales y Humanas","1 PERSONA NATURAL","3 CÉDULA DE CIUDADANÍA",1010014681,1010014681,null,"11 NO SE DILIGENCIA INFORMACIÓN PARA ESTE FORMULARIO EN ESTE PERÍODO DE REPORTE","NO APLICA","NO APLICA","NO APLICA","LUZ FANY VACA GUTIERREZ",124,"2024-01-11",null,null,null,null,null,"COORDINADOR DEL GIT DE DEFENSA JUDICIAL","GIT DE DEFENSA JUDICIAL","PRESTAR LOS SERVICIOS PROFESIONALES COMO ABOGADO PARA ADELANTAR LAS ACTIVIDADES RELACIONADAS CON LOS ASUNTOS JURÍDICOS Y ADMINISTRATIVOS DESDE EL GIT DE DEFENSA JUDICIAL DE LA OFICINA ASESORA JURÍDICA DEL FONDO DE PASIVO SOCIAL DE FERROCARRILES NACIONALES DE COLOMBIA",{"$f":"LEFT('BASE 2023 FPS'!$AF90,390)","v":"PRESTAR LOS SERVICIOS PROFESIONALES COMO ABOGADO PARA ADELANTAR LAS ACTIVIDADES RELACIONADAS CON LOS ASUNTOS JURÍDICOS Y ADMINISTRATIVOS DESDE EL GIT DE DEFENSA JUDICIAL DE LA OFICINA ASESORA JURÍDICA DEL FONDO DE PASIVO SOCIAL DE FERROCARRILES NACIONALES DE COLOMBIA"},4901037,53911407,"2024-01-17",1,1,"COLOMBIA > Distrito Capital de Bogotá > Bogotá","COLOMBIA > Distrito Capital de Bogotá > Bogotá","2 SUPERVISOR","NO APLICA","5 NO SE TIENE ESTE TIPO DE SEGUIMIENTO EN EL CONTRATO","NO APLICA","11 NO SE DILIGENCIA INFORMACIÓN PARA ESTE FORMULARIO EN ESTE PERÍODO DE REPORTE",79202895,"HUMBERTO MALAVER PINZÓN","COORDINADOR DEL GIT DE DEFENSA JUDICIAL","GIT DE DEFENSA JUDICIAL","NO",80111600,"POLIZA","Calidad del servicio - Cumplimiento del contrato",null,"2024-01-17","2024-01-17","2024-01-17","2024-01-17","2024-12-16",330,{"$f":"DATEDIF('BASE 2023 FPS'!$BF90-1,'BASE 2023 FPS'!$BG90,\"m\")","v":11}]
[2024,"CPS-096-2024",null,null,"F5.1","2 CONTRATACIÓN DIRECTA","CPS-096-2024","14 PRESTACIÓN DE SERVICIOS","PROFESIONALES","MANUEL JOSE MERCADO SOTO","Formación requerida en una (1) carrera profesional "," Ciencias Sociales y Humanas","1 PERSONA NATURAL","3 CÉDULA DE CIUDADANÍA",1143383429,1143383429,null,"11 NO SE DILIGENCIA INFORMACIÓN PARA ESTE FORMULARIO EN ESTE PERÍODO DE REPORTE","NO APLICA","NO APLICA","NO APLICA","LUZ FANY VACA GUTIERREZ",124,"2024-01-11",null,null,null,null,null,"SECRETARIA GENERAL – ATENCION AL CIUDADANO Y GESTION DOCUMENTAL","SECRETARIA GENERAL – ATENCION AL CIUDADANO Y GESTION DOCUMENTAL","PRESTAR LOS SERVICIOS PROFESIONALES COMO ABOGADO AL GRUPO INTERNO DE TRABAJO DE ATENCIÓN AL CIUDADANO Y GESTIÓN DOCUMENTAL DEL FONDO DE PASIVO SOCIAL DE FERROCARRILES NACIONALES DE COLOMBIA",{"$f":"LEFT('BASE 2023 FPS'!$AF91,390)","v":"PRESTAR LOS SERVICIOS PROFESIONALES COMO ABOGADO AL GRUPO INTERNO DE TRABAJO DE ATENCIÓN AL CIUDADANO Y GESTIÓN DOCUMENTAL DEL FONDO DE PASIVO SOCIAL DE FERROCARRILES NACIONALES DE COLOMBIA"},6096412,67060532,"2024-01-16",1,1,"COLOMBIA > Distrito Capital de Bogotá > Bogotá","COLOMBIA > Distrito Capital de Bogotá > Bogotá","2 SUPERVISOR","NO APLICA","5 NO SE TIENE ESTE TIPO DE SEGUIMIENTO EN EL CONTRATO","NO APLICA","11 NO SE DILIGENCIA INFORMACIÓN PARA ESTE FORMULARIO EN ESTE PERÍODO DE REPORTE",39526262,"NURY NAVARRO HERNADEZ","SECRETARIA GENERAL – ATENCION AL CIUDADANO Y GESTION DOCUMENTAL","SECRETARIA GENERAL – ATENCION AL CIUDADANO Y GESTION DOCUMENTAL","NO",80111600,"POLIZA","Calidad del servicio - Cumplimiento del contrato",null,"2024-01-16","2024-01-16","2024-01-16","2024-01-16","2024-12-15",330,{"$f":"DATEDIF('BASE 2023 FPS'!$BF91-1,'BASE 2023 FPS'!$BG91,\"m\")","v":11},null,null,null,null,null,null,null,null,null,null,null,null,null,null,null,null,null,null,null,null,null,null,null,null,null,null,null,null,null,null,null,null,null,null,null,null,null,null,null,null,null,null,null,null,{"$f":"'BASE 2023 FPS'!$BF91","v":"2024-01-16"},{"$f":"'BASE 2023 FPS'!$DG91+'BASE 2023 FPS'!$BG91","v":"2024-12-15"},null,{"$f":"AI91+'BASE 2023 FPS'!$DH91","v":67060532},null,null,null,null,{"$f":"_xlfn.IFS(Table_1[[#This Row],[PLAZO DE EJECUCIÓN FINAL DEL CONTRATO\n(HASTA)]]<=TODAY(),\"FINALIZADO\",Table_1[[#This Row],[PLAZO DE EJECUCIÓN FINAL DEL CONTRATO\n(HASTA)]]>=TODAY(),\"EN EJECUCION\")","v":{"$error":"#NAME?"}},null,null,null,{"$f":"_xlfn.IFS(Table_1[[#This Row],[% Ejecucion\nAgosto 2022]]<100,Table_1[[#This Row],[% Ejecucion\nAgosto 2022]],Table_1[[#This Row],[% Ejecucion\nAgosto 2022]]>=100,\"100\")","v":{"$error":"#NAME?"}}]
[2024,"CPS-097-2024",null,null,"F5.1","2 CONTRATACIÓN DIRECTA","CPS-097-2024","14 PRESTACIÓN DE SERVICIOS","PROFESIONALES","MILAGRO GAMARRA RUEDA","Formación requerida en una (1) carrera profesional "," Ciencias Sociales y Humanas","1 PERSONA NATURAL","3 CÉDULA DE CIUDADANÍA",1143424711,1143424711,null,"11 NO SE DILIGENCIA INFORMACIÓN PARA ESTE FORMULARIO EN ESTE PERÍODO DE REPORTE","NO APLICA","NO APLICA","NO APLICA","LUZ FANY VACA GUTIERREZ",124,"2024-01-11",null,null,null,null,null,"SECRETARIA GENERAL – ATENCION AL CIUDADANO Y GESTION DOCUMENTAL","SECRETARIA GENERAL – ATENCION AL CIUDADANO Y GESTION DOCUMENTAL","PRESTAR LOS SERVICIOS PROFESIONALES COMO ABOGADO AL GRUPO INTERNO DE TRABAJO DE ATENCIÓN AL CIUDADANO Y GESTIÓN DOCUMENTAL DEL FONDO DE PASIVO SOCIAL DE FERROCARRILES NACIONALES DE COLOMBIA",{"$f":"LEFT('BASE 2023 FPS'!$AF92,390)","v":"PRESTAR LOS SERVICIOS PROFESIONALES COMO ABOGADO AL GRUPO INTERNO DE TRABAJO DE ATENCIÓN AL CIUDADANO Y GESTIÓN DOCUMENTAL DEL FONDO DE PASIVO SOCIAL DE FERROCARRILES NACIONALES DE COLOMBIA"},6096412,67060532,"2024-01-16",1,1,"COLOMBIA > Distrito Capital de Bogotá > Bogotá","COLOMBIA > Distrito Capital de Bogotá > Bogotá","2 SUPERVISOR","NO APLICA","5 NO SE TIENE ESTE TIPO DE SEGUIMIENTO EN EL CONTRATO","NO APLICA","11 NO SE DILIGENCIA INFORMACIÓN PARA ESTE FORMULARIO EN ESTE PERÍODO DE REPORTE",39526262,"NURY NAVARRO HERNADEZ","SECRETARIA GENERAL – ATENCION AL CIUDADANO Y GESTION DOCUMENTAL","SECRETARIA GENERAL – ATENCION AL CIUDADANO Y GESTION DOCUMENTAL","NO",80111600,"POLIZA","Calidad del servicio - Cumplimiento del contrato",null,"2024-01-16","2024-01-16","2024-01-16","2024-01-16","2024-12-15",330,{"$f":"DATEDIF('BASE 2023 FPS'!$BF92-1,'BASE 2023 FPS'!$BG92,\"m\")","v":11}]
[2024,"CPS-098-2024",null,null,"F5.1","2 CONTRATACIÓN DIRECTA","CPS-098-2024","14 PRESTACIÓN DE SERVICIOS","PROFESIONALES","LILIBETH ESCORCIA PARDO","Formación requerida en una (1) carrera profesional "," Ciencias Sociales y Humanas","1 PERSONA NATURAL","3 CÉDULA DE CIUDADANÍA",52795952,52795952,null,"11 NO SE DILIGENCIA INFORMACIÓN PARA ESTE FORMULARIO EN ESTE PERÍODO DE REPORTE","NO APLICA","NO APLICA","NO APLICA","LUZ FANY VACA GUTIERREZ",124,"2024-01-11",null,null,null,null,null,"OFICINA ASESORA JURÍDICA","OFICINA ASESORA JURÍDICA","PRESTAR LOS SERVICIOS DE APOYO A LA GESTIÓN ADMINISTRATIVA Y DOCUMENTAL EN LA OFICINA ASESORA JURÍDICA DEL FONDO DE PASIVO SOCIAL DE FERROCARRILES NACIONALES DE COLOMBIA",{"$f":"LEFT('BASE 2023 FPS'!$AF93,390)","v":"PRESTAR LOS SERVICIOS DE APOYO A LA GESTIÓN ADMINISTRATIVA Y DOCUMENTAL EN LA OFICINA ASESORA JURÍDICA DEL FONDO DE PASIVO SOCIAL DE FERROCARRILES NACIONALES DE COLOMBIA"},3107975,34187725,"2024-01-16",1,1,"COLOMBIA > Distrito Capital de Bogotá > Bogotá","COLOMBIA > Distrito Capital de Bogotá > Bogotá","2 SUPERVISOR","NO APLICA","5 NO SE TIENE ESTE TIPO DE SEGUIMIENTO EN EL CONTRATO","NO APLICA","11 NO SE DILIGENCIA INFORMACIÓN PARA ESTE FORMULARIO EN ESTE PERÍODO DE REPORTE",65767422,"ANDREA ALDANA TRUJILLO","OFICINA ASESORA JURÍDICA","OFICINA ASESORA JURÍDICA","NO",80111600,"POLIZA","Calidad del servicio - Cumplimiento del contrato",null,"2024-01-16","2024-01-16","2024-01-16","2024-01-16","2024-12-15",330,{"$f":"DATEDIF('BASE 2023 FPS'!$BF93-1,'BASE 2023 FPS'!$BG93,\"m\")","v":11}]
[2024,"CPS-099-2024",null,null,"F5.1","2 CONTRATACIÓN DIRECTA","CPS-099-2024","14 PRESTACIÓN DE SERVICIOS","PROFESIONALES","ANA MARIA ZARRATE BUITRAGO","Formación requerida en una (1) carrera profesional "," Ciencias Sociales y Humanas","1 PERSONA NATURAL","3 CÉDULA DE CIUDADANÍA",1110518502,1110518502,null,"11 NO SE DILIGENCIA INFORMACIÓN PARA ESTE FORMULARIO EN ESTE PERÍODO DE REPORTE","NO APLICA","NO APLICA","NO APLICA","LUZ FANY VACA GUTIERREZ",124,"2024-01-11",null,null,null,null,null,"OFICINA ASESORA JURÍDICA","OFICINA ASESORA JURÍDICA","PRESTAR LOS SERVICIOS PROFESIONALES COMO ABOGADO PARA APOYAR LAS ACTIVIDADES RELACIONADAS CON LOS ASUNTOS JURÍDICOS Y ADMINISTRATIVOS DESDE LA OFICINA ASESORA JURÍDICA DEL FONDO DE PASIVO SOCIAL DE FERROCARRILES NACIONALES DE COLOMBIA.",{"$f":"LEFT('BASE 2023 FPS'!$AF94,390)","v":"PRESTAR LOS SERVICIOS PROFESIONALES COMO ABOGADO PARA APOYAR LAS ACTIVIDADES RELACIONADAS CON LOS ASUNTOS JURÍDICOS Y ADMINISTRATIVOS DESDE LA OFICINA ASESORA JURÍDICA DEL FONDO DE PASIVO SOCIAL DE FERROCARRILES NACIONALES DE COLOMBIA."},7889475,86784225,"2024-01-16",1,1,"COLOMBIA > Distrito Capital de Bogotá > Bogotá","COLOMBIA > Distrito Capital de Bogotá > Bogotá","2 SUPERVISOR","NO APLICA","5 NO SE TIENE ESTE TIPO DE SEGUIMIENTO EN EL CONTRATO","NO APLICA","11 NO SE DILIGENCIA INFORMACIÓN PARA ESTE FORMULARIO EN ESTE PERÍODO DE REPORTE",65767422,"ANDREA ALDANA TRUJILLO","OFICINA ASESORA JURÍDICA","OFICINA ASESORA JURÍDICA","NO",80111600,"POLIZA","Calidad del servicio - Cumplimiento del contrato",null,"2024-01-16","2024-01-16","2024-01-16","2024-01-16","2024-12-15",330,{"$f":"DATEDIF('BASE 2023 FPS'!$BF94-1,'BASE 2023 FPS'!$BG94,\"m\")","v":11}]
[2024,"CPS-100-2024",null,null,"F5.1","2 CONTRATACIÓN DIRECTA","CPS-100-2024","14 PRESTACIÓN DE SERVICIOS","PROFESIONALES","SOL MARINA CURE","Formación requerida en una (1) carrera profesional "," Ingeniería, Arquitectura, Urbanismo y afines","1 PERSONA NATURAL","3 CÉDULA DE CIUDADANÍA",33309545,33309545,null,"11 NO SE DILIGENCIA INFORMACIÓN PARA ESTE FORMULARIO EN ESTE PERÍODO DE REPORTE","NO APLICA","NO APLICA","NO APLICA","LUZ FANY VACA GUTIERREZ",1024,"2024-01-13",null,null,null,null,null,"JEFE OFICINA ASESORA PLANEACION Y SISTEMAS","JEFE OFICINA ASESORA PLANEACION Y SISTEMAS","PRESTAR LOS SERVICIOS PROFESIONALES COMO INGENIERO DE SISTEMAS PARA APOYAR EL MEJORAMIENTO DE LOS SISTEMAS DE GESTIÓN DE LA ENTIDAD EN EL MARCO DEL PROYECTO DE INVERSIÓN DENOMINADO “MEJORAMIENTO DE LA GESTIÓN ADMINISTRATIVA Y TECNOLÓGICA DEL FONDO DE PASIVO SOCIAL DE FERROCARRILES NACIONALES DE COLOMBIA”. BPIN 202300000000339",{"$f":"LEFT('BASE 2023 FPS'!$AF95,390)","v":"PRESTAR LOS SERVICIOS PROFESIONALES COMO INGENIERO DE SISTEMAS PARA APOYAR EL MEJORAMIENTO DE LOS SISTEMAS DE GESTIÓN DE LA ENTIDAD EN EL MARCO DEL PROYECTO DE INVERSIÓN DENOMINADO “MEJORAMIENTO DE LA GESTIÓN ADMINISTRATIVA Y TECNOLÓGICA DEL FONDO DE PASIVO SOCIAL DE FERROCARRILES NACIONALES DE COLOMBIA”. BPIN 202300000000339"},6096412,36578472,"2024-01-17",1,1,"COLOMBIA > Distrito Capital de Bogotá > Bogotá","COLOMBIA > Distrito Capital de Bogotá > Bogotá","2 SUPERVISOR","NO APLICA","5 NO SE TIENE ESTE TIPO DE SEGUIMIENTO EN EL CONTRATO","NO APLICA","11 NO SE DILIGENCIA INFORMACIÓN PARA ESTE FORMULARIO EN ESTE PERÍODO DE REPORTE",24218560,"MARIA YANETH FARFAN CASALLAS","OFICINA ASESORA PLANEACIÓN Y SISTEMAS","OFICINA ASESORA PLANEACIÓN Y SISTEMAS","NO",80111600,"POLIZA","Calidad del servicio - Cumplimiento del contrato",null,"2024-01-17","2024-01-17","2024-01-17","2024-01-17","2024-07-16",180,{"$f":"DATEDIF('BASE 2023 FPS'!$BF95-1,'BASE 2023 FPS'!$BG95,\"m\")","v":6}]
[2024,"CPS-101-2024",null,"SI APLICA","F5.1","2 CONTRATACIÓN DIRECTA","CPS-101-2024","14 PRESTACIÓN DE SERVICIOS","PROFESIONALES","RODRIGO HERNANDEZ","Formación requerida en una (1) carrera profesional y una  (1) especialización "," Ciencias Sociales y Humanas","1 PERSONA NATURAL","3 CÉDULA DE CIUDADANÍA",17976255,17976255,null,"11 NO SE DILIGENCIA INFORMACIÓN PARA ESTE FORMULARIO EN ESTE PERÍODO DE REPORTE","NO APLICA","NO APLICA","NO APLICA","LUZ FANY VACA GUTIERREZ",1024,"2024-01-13",null,null,null,null,null,"JEFE OFICINA ASESORA PLANEACION Y SISTEMAS","JEFE OFICINA ASESORA PLANEACION Y SISTEMAS","PRESTAR LOS SERVICIOS PROFESIONALES COMO INGENIERO DE SOFTWARE Y COMUNICACIONES PARA APOYAR A LA ENTIDAD DESDE LA OFICINA ASESORA DE PLANEACIÓN Y SISTEMAS",{"$f":"LEFT('BASE 2023 FPS'!$AF96,390)","v":"PRESTAR LOS SERVICIOS PROFESIONALES COMO INGENIERO DE SOFTWARE Y COMUNICACIONES PARA APOYAR A LA ENTIDAD DESDE LA OFICINA ASESORA DE PLANEACIÓN Y SISTEMAS"},5259650,57856150,"2024-01-16",1,1,"COLOMBIA > Distrito Capital de Bogotá > Bogotá","COLOMBIA > Distrito Capital de Bogotá > Bogotá","2 SUPERVISOR","NO APLICA","5 NO SE TIENE ESTE TIPO DE SEGUIMIENTO EN EL CONTRATO","NO APLICA","11 NO SE DILIGENCIA INFORMACIÓN PARA ESTE FORMULARIO EN ESTE PERÍODO DE REPORTE",24218560,"MARIA YANETH FARFAN CASALLAS","OFICINA ASESORA PLANEACIÓN Y SISTEMAS","OFICINA ASESORA PLANEACIÓN Y SISTEMAS","NO",80111600,"POLIZA","Calidad del servicio - Cumplimiento del contrato",null,"2024-01-16","2024-01-16","2024-01-16","2024-01-16","2024-12-15",330,{"$f":"DATEDIF('BASE 2023 FPS'!$BF96-1,'BASE 2023 FPS'!$BG96,\"m\")","v":11},"SI APLICA",null,null,null,null,null,null,null,null,null,null,null,null,null,null,null,null,null,null,null,null,null,null,null,null,null,null,null,null,null,null,null,null,"SI APLICA","2024-01-17",57856150,57856150]
[2024,"CPS-102-2024",null,null,"F5.1","2 CONTRATACIÓN DIRECTA","CPS-102-2024","14 PRESTACIÓN DE SERVICIOS","PROFESIONALES","LORAINE TONCEL","Formación requerida en una (1) carrera profesional "," Ciencias Sociales y Humanas","1 PERSONA NATURAL","3 CÉDULA DE CIUDADANÍA",1065648081,1065648081,null,"11 NO SE DILIGENCIA INFORMACIÓN PARA ESTE FORMULARIO EN ESTE PERÍODO DE REPORTE","NO APLICA","NO APLICA","NO APLICA","LUZ FANY VACA GUTIERREZ",1024,"2024-01-13",null,null,null,null,null,"SUBDIRECCION DE PRESTACIONES SOCIALES","SUBDIRECCION DE PRESTACIONES SOCIALES","PRESTAR LOS SERVICIOS PROFESIONALES COMO ABOGADA PARA APOYAR LA GESTIÓN ADMINISTRATIVA Y JURÍDICA QUE ADELANTA LA SUBDIRECCIÓN DE PRESTACIONES SOCIALES DEL FONDO DE PASIVO SOCIAL DE FERROCARRILES NACIONALES DE COLOMBIA",{"$f":"LEFT('BASE 2023 FPS'!$AF97,390)","v":"PRESTAR LOS SERVICIOS PROFESIONALES COMO ABOGADA PARA APOYAR LA GESTIÓN ADMINISTRATIVA Y JURÍDICA QUE ADELANTA LA SUBDIRECCIÓN DE PRESTACIONES SOCIALES DEL FONDO DE PASIVO SOCIAL DE FERROCARRILES NACIONALES DE COLOMBIA"},6096412,67060532,"2024-01-16",1,1,"COLOMBIA > Distrito Capital de Bogotá > Bogotá","COLOMBIA > Distrito Capital de Bogotá > Bogotá","2 SUPERVISOR","NO APLICA","5 NO SE TIENE ESTE TIPO DE SEGUIMIENTO EN EL CONTRATO","NO APLICA","11 NO SE DILIGENCIA INFORMACIÓN PARA ESTE FORMULARIO EN ESTE PERÍODO DE REPORTE",17956156,"CARLOS ANDRES TOVAR OROZCO","SUBDIRECCION DE PRESTACIONES SOCIALES","SUBDIRECCION DE PRESTACIONES SOCIALES","NO",80111600,"POLIZA","Calidad del servicio - Cumplimiento del contrato",null,"2024-01-16","2024-01-16","2024-01-16","2024-01-16","2024-12-15",330,{"$f":"DATEDIF('BASE 2023 FPS'!$BF97-1,'BASE 2023 FPS'!$BG97,\"m\")","v":11}]
[2024,"CPS-103-2024",null,null,"F5.1","2 CONTRATACIÓN DIRECTA","CPS-103-2024","14 PRESTACIÓN DE SERVICIOS","PROFESIONALES","CAMILO ABELARDO AGUILAR","Formación requerida en una (1) carrera profesional "," Ciencias Sociales y Humanas","1 PERSONA NATURAL","3 CÉDULA DE CIUDADANÍA",1053775951,1053775951,null,"11 NO SE DILIGENCIA INFORMACIÓN PARA ESTE FORMULARIO EN ESTE PERÍODO DE REPORTE","NO APLICA","NO APLICA","NO APLICA","LUZ FANY VACA GUTIERREZ",1024,"2024-01-13",null,null,null,null,null,"SUBDIRECCION DE PRESTACIONES SOCIALES","SUBDIRECCION DE PRESTACIONES SOCIALES","PRESTAR LOS SERVICIOS PROFESIONALES COMO ABOGADO PARA BRINDAR APOYO Y ACOMPAÑAMIENTO EN LA EJECUCIÓN DE ACTIVIDADES DE LOS PROCESOS A CARGO DE LA\nSUBDIRECCIÓN DE PRESTACIONES SOCIALES DEL FONDO DE PASIVO SOCIAL DE FERROCARRILES NACIONALES DE COLOMBIA",{"$f":"LEFT('BASE 2023 FPS'!$AF98,390)","v":"PRESTAR LOS SERVICIOS PROFESIONALES COMO ABOGADO PARA BRINDAR APOYO Y ACOMPAÑAMIENTO EN LA EJECUCIÓN DE ACTIVIDADES DE LOS PROCESOS A CARGO DE LA\nSUBDIRECCIÓN DE PRESTACIONES SOCIALES DEL FONDO DE PASIVO SOCIAL DE FERROCARRILES NACIONALES DE COLOMBIA"},4901037,53911407,"2024-01-16",1,1,"COLOMBIA > Distrito Capital de Bogotá > Bogotá","COLOMBIA > Distrito Capital de Bogotá > Bogotá","2 SUPERVISOR","NO APLICA","5 NO SE TIENE ESTE TIPO DE SEGUIMIENTO EN EL CONTRATO","NO APLICA","11 NO SE DILIGENCIA INFORMACIÓN PARA ESTE FORMULARIO EN ESTE PERÍODO DE REPORTE",17956156,"CARLOS ANDRES TOVAR OROZCO","SUBDIRECCION DE PRESTACIONES SOCIALES","SUBDIRECCION DE PRESTACIONES SOCIALES","NO",80111600,"POLIZA","Calidad del servicio - Cumplimiento del contrato",null,"2024-01-16","2024-01-16","2024-01-16","2024-01-16","2024-12-15",330,{"$f":"DATEDIF('BASE 2023 FPS'!$BF98-1,'BASE 2023 FPS'!$BG98,\"m\")","v":11}]
[2024,"CPS-104-2024",null,null,"F5.1","2 CONTRATACIÓN DIRECTA","CPS-104-2024","14 PRESTACIÓN DE SERVICIOS","PROFESIONALES","JUAN CAMILO TORRES ","Formación requerida en una (1) carrera profesional "," Ciencias Sociales y Humanas","1 PERSONA NATURAL","3 CÉDULA DE CIUDADANÍA",1047500474,1047500474,null,"11 NO SE DILIGENCIA INFORMACIÓN PARA ESTE FORMULARIO EN ESTE PERÍODO DE REPORTE","NO APLICA","NO APLICA","NO APLICA","LUZ FANY VACA GUTIERREZ",1024,"2024-01-13",null,null,null,null,null,"SUBDIRECCION DE PRESTACIONES SOCIALES","SUBDIRECCION DE PRESTACIONES SOCIALES","PRESTAR LOS SERVICIOS PROFESIONALES PARA BRINDAR APOYO Y ACOMPAÑAMIENTO EN LA EJECUCIÓN DE ACTIVIDADES DE LOS PROCESOS A CARGO DE LA SUBDIRECCIÓN DE PRESTACIONES SOCIALES DE LA ENTIDAD.",{"$f":"LEFT('BASE 2023 FPS'!$AF99,390)","v":"PRESTAR LOS SERVICIOS PROFESIONALES PARA BRINDAR APOYO Y ACOMPAÑAMIENTO EN LA EJECUCIÓN DE ACTIVIDADES DE LOS PROCESOS A CARGO DE LA SUBDIRECCIÓN DE PRESTACIONES SOCIALES DE LA ENTIDAD."},4303349,47336839,"2024-01-17",1,1,"COLOMBIA > Distrito Capital de Bogotá > Bogotá","COLOMBIA > Distrito Capital de Bogotá > Bogotá","2 SUPERVISOR","NO APLICA","5 NO SE TIENE ESTE TIPO DE SEGUIMIENTO EN EL CONTRATO","NO APLICA","11 NO SE DILIGENCIA INFORMACIÓN PARA ESTE FORMULARIO EN ESTE PERÍODO DE REPORTE",17956156,"CARLOS ANDRES TOVAR OROZCO","SUBDIRECCION DE PRESTACIONES SOCIALES","SUBDIRECCION DE PRESTACIONES SOCIALES","NO",80111600,"POLIZA","Calidad del servicio - Cumplimiento del contrato",null,"2024-01-17","2024-01-17","2024-01-17","2024-01-17","2024-12-16",330,{"$f":"DATEDIF('BASE 2023 FPS'!$BF99-1,'BASE 2023 FPS'!$BG99,\"m\")","v":11}]
[2024,"CPS-105-2024",null,null,"F5.1","2 CONTRATACIÓN DIRECTA","CPS-105-2024","14 PRESTACIÓN DE SERVICIOS","PROFESIONALES","KAREN YULIANA CASTAÑO CASTAÑO","Formación requerida en una (1) carrera profesional "," Ciencias Sociales y Humanas","1 PERSONA NATURAL","3 CÉDULA DE CIUDADANÍA",1110504204,1110504204,null,"11 NO SE DILIGENCIA INFORMACIÓN PARA ESTE FORMULARIO EN ESTE PERÍODO DE REPORTE","NO APLICA","NO APLICA","NO APLICA","LUZ FANY VACA GUTIERREZ",1024,"2024-01-13",null,null,null,null,null,"OFICINA ASESORA JURÍDICA","OFICINA ASESORA JURÍDICA","PRESTAR LOS SERVICIOS PROFESIONALES COMO ABOGADA ESPECIALISTA PARA APOYAR LAS ACTIVIDADES JURÍDICAS Y ADMINISTRATIVAS DE LA OFICINA ASESORA JURÍDICA DEL FONDO DE PASIVO SOCIAL DE FERROCARRILES NACIONALES DE COLOMBIA",{"$f":"LEFT('BASE 2023 FPS'!$AF100,390)","v":"PRESTAR LOS SERVICIOS PROFESIONALES COMO ABOGADA ESPECIALISTA PARA APOYAR LAS ACTIVIDADES JURÍDICAS Y ADMINISTRATIVAS DE LA OFICINA ASESORA JURÍDICA DEL FONDO DE PASIVO SOCIAL DE FERROCARRILES NACIONALES DE COLOMBIA"},7172250,78894750,"2024-01-17",1,1,"COLOMBIA > Distrito Capital de Bogotá > Bogotá","COLOMBIA > Distrito Capital de Bogotá > Bogotá","2 SUPERVISOR","NO APLICA","5 NO SE TIENE ESTE TIPO DE SEGUIMIENTO EN EL CONTRATO","NO APLICA","11 NO SE DILIGENCIA INFORMACIÓN PARA ESTE FORMULARIO EN ESTE PERÍODO DE REPORTE",65767422,"ANDREA ALDANA TRUJILLO","OFICINA ASESORA JURÍDICA","OFICINA ASESORA JURÍDICA","NO",80111600,"POLIZA","Calidad del servicio - Cumplimiento del contrato",null,"2024-01-17","2024-01-17","2024-01-17","2024-01-17","2024-12-16",330,{"$f":"DATEDIF('BASE 2023 FPS'!$BF100-1,'BASE 2023 FPS'!$BG100,\"m\")","v":11}]
[2024,"CPS-106-2024",null,null,"F5.1","2 CONTRATACIÓN DIRECTA","CPS-106-2024","14 PRESTACIÓN DE SERVICIOS","PROFESIONALES","LINA MARCELA CASTAÑEZ LEYVA","Formación requerida en una (1) carrera profesional y una  (1) especialización "," Ciencias Sociales y Humanas","1 PERSONA NATURAL","3 CÉDULA DE CIUDADANÍA",1104710117,1104710117,null,"11 NO SE DILIGENCIA INFORMACIÓN PARA ESTE FORMULARIO EN ESTE PERÍODO DE REPORTE","NO APLICA","NO APLICA","NO APLICA","LUZ FANY VACA GUTIERREZ",1024,"2024-01-13",null,null,null,null,null,"OFICINA ASESORA JURÍDICA","OFICINA ASESORA JURÍDICA","PRESTAR LOS SERVICIOS PROFESIONALES COMO ABOGADA ESPECIALISTA PARA APOYAR LAS ACTIVIDADES JURÍDICAS Y ADMINISTRATIVAS DE LA OFICINA ASESORA JURÍDICA DEL FONDO DE PASIVO SOCIAL DE FERROCARRILES NACIONALES DE COLOMBIA",{"$f":"LEFT('BASE 2023 FPS'!$AF101,390)","v":"PRESTAR LOS SERVICIOS PROFESIONALES COMO ABOGADA ESPECIALISTA PARA APOYAR LAS ACTIVIDADES JURÍDICAS Y ADMINISTRATIVAS DE LA OFICINA ASESORA JURÍDICA DEL FONDO DE PASIVO SOCIAL DE FERROCARRILES NACIONALES DE COLOMBIA"},7172250,78894750,"2024-01-16",1,1,"COLOMBIA > Distrito Capital de Bogotá > Bogotá","COLOMBIA > Distrito Capital de Bogotá > Bogotá","2 SUPERVISOR","NO APLICA","5 NO SE TIENE ESTE TIPO DE SEGUIMIENTO EN EL CONTRATO","NO APLICA","11 NO SE DILIGENCIA INFORMACIÓN PARA ESTE FORMULARIO EN ESTE PERÍODO DE REPORTE",65767422,"ANDREA ALDANA TRUJILLO","OFICINA ASESORA JURÍDICA","OFICINA ASESORA JURÍDICA","NO",80111600,"POLIZA","Calidad del servicio - Cumplimiento del contrato",null,"2024-01-16","2024-01-16","2024-01-16","2024-01-16","2024-12-15",330,{"$f":"DATEDIF('BASE 2023 FPS'!$BF101-1,'BASE 2023 FPS'!$BG101,\"m\")","v":11}]
[2024,"CPS-107-2024",null,null,"F5.1","2 CONTRATACIÓN DIRECTA","CPS-107-2024","14 PRESTACIÓN DE SERVICIOS","PROFESIONALES","LUIS LABERTO GALENAO RIORRECIO","Formación requerida en una (1) carrera profesional "," Ciencias Sociales y Humanas","1 PERSONA NATURAL","3 CÉDULA DE CIUDADANÍA",1110461329,1110461329,null,"11 NO SE DILIGENCIA INFORMACIÓN PARA ESTE FORMULARIO EN ESTE PERÍODO DE REPORTE","NO APLICA","NO APLICA","NO APLICA","LUZ FANY VACA GUTIERREZ",1024,"2024-01-13",null,null,null,null,null,"OFICINA ASESORA JURÍDICA","OFICINA ASESORA JURÍDICA","PRESTAR LOS SERVICIOS PROFESIONALES COMO ABOGADO PARA APOYAR LAS ACTIVIDADES RELACIONADAS CON LOS ASUNTOS JURÍDICOS Y ADMINISTRATIVOS DESDE LA OFICINA ASESORA JURÍDICA DEL FONDO DE PASIVO SOCIAL DE FERROCARRILES NACIONALES DE COLOMBIA.",{"$f":"LEFT('BASE 2023 FPS'!$AF102,390)","v":"PRESTAR LOS SERVICIOS PROFESIONALES COMO ABOGADO PARA APOYAR LAS ACTIVIDADES RELACIONADAS CON LOS ASUNTOS JURÍDICOS Y ADMINISTRATIVOS DESDE LA OFICINA ASESORA JURÍDICA DEL FONDO DE PASIVO SOCIAL DE FERROCARRILES NACIONALES DE COLOMBIA."},7530862,82839482,"2024-01-17",1,1,"COLOMBIA > Distrito Capital de Bogotá > Bogotá","COLOMBIA > Distrito Capital de Bogotá > Bogotá","2 SUPERVISOR","NO APLICA","5 NO SE TIENE ESTE TIPO DE SEGUIMIENTO EN EL CONTRATO","NO APLICA","11 NO SE DILIGENCIA INFORMACIÓN PARA ESTE FORMULARIO EN ESTE PERÍODO DE REPORTE",65767422,"ANDREA ALDANA TRUJILLO","OFICINA ASESORA JURÍDICA","OFICINA ASESORA JURÍDICA","NO",80111600,"POLIZA","Calidad del servicio - Cumplimiento del contrato",null,"2024-01-17","2024-01-17","2024-01-17","2024-01-17","2024-12-16",330,{"$f":"DATEDIF('BASE 2023 FPS'!$BF102-1,'BASE 2023 FPS'!$BG102,\"m\")","v":11}]
[2024,"CPS-108-2024",null,null,"F5.1","2 CONTRATACIÓN DIRECTA","CPS-108-2024","14 PRESTACIÓN DE SERVICIOS","PROFESIONALES","CARLOS HABIB OLIVELLA","Formación requerida en una (1) carrera profesional "," Ingeniería, Arquitectura, Urbanismo y afines","1 PERSONA NATURAL","3 CÉDULA DE CIUDADANÍA",17976812,17976812,null,"11 NO SE DILIGENCIA INFORMACIÓN PARA ESTE FORMULARIO EN ESTE PERÍODO DE REPORTE","NO APLICA","NO APLICA","NO APLICA","LUZ FANY VACA GUTIERREZ",1024,"2024-01-13",null,null,null,null,null,"OFICINA ASESORA DE PLANEACIÓN Y SISTEMAS","OFICINA ASESORA DE PLANEACIÓN Y SISTEMAS","PRESTAR LOS SERVICIOS PROFESIONALES COMO INGENIERO INDUSTRIAL PARA APOYAR EL MEJORAMIENTO DE LOS SISTEMAS DE GESTIÓN DE LA ENTIDAD EN EL MARCO DEL PROYECTO DE INVERSIÓN DENOMINADO \"MEJORAMIENTO DE LA GESTIÓN ADMINISTRATIVA Y TECNOLÓGICA DEL FONDO DE PASIVO SOCIAL DE FERROCARRILES NACIONALES DE COLOMBIA\". BPIN 202300000000339",{"$f":"LEFT('BASE 2023 FPS'!$AF103,390)","v":"PRESTAR LOS SERVICIOS PROFESIONALES COMO INGENIERO INDUSTRIAL PARA APOYAR EL MEJORAMIENTO DE LOS SISTEMAS DE GESTIÓN DE LA ENTIDAD EN EL MARCO DEL PROYECTO DE INVERSIÓN DENOMINADO \"MEJORAMIENTO DE LA GESTIÓN ADMINISTRATIVA Y TECNOLÓGICA DEL FONDO DE PASIVO SOCIAL DE FERROCARRILES NACIONALES DE COLOMBIA\". BPIN 202300000000339"},6096412,67060532,"2024-01-17",1,1,"COLOMBIA > Distrito Capital de Bogotá > Bogotá","COLOMBIA > Distrito Capital de Bogotá > Bogotá","2 SUPERVISOR","NO APLICA","5 NO SE TIENE ESTE TIPO DE SEGUIMIENTO EN EL CONTRATO","NO APLICA","11 NO SE DILIGENCIA INFORMACIÓN PARA ESTE FORMULARIO EN ESTE PERÍODO DE REPORTE",24218560,"MARIA YANETH FARFAN CASALLAS","OFICINA ASESORA PLANEACIÓN Y SISTEMAS","OFICINA ASESORA PLANEACIÓN Y SISTEMAS","NO",80111600,"POLIZA","Calidad del servicio - Cumplimiento del contrato",null,"2024-01-17","2024-01-17","2024-01-17","2024-01-17","2024-12-16",330,{"$f":"DATEDIF('BASE 2023 FPS'!$BF103-1,'BASE 2023 FPS'!$BG103,\"m\")","v":11}]
[2024,"CPS-109-2024",null,null,"F5.1","2 CONTRATACIÓN DIRECTA","CPS-109-2024","14 PRESTACIÓN DE SERVICIOS","PROFESIONALES","WILSON CABADIA","Formacion Tecnica"," Ingeniería, Arquitectura, Urbanismo y afines","1 PERSONA NATURAL","3 CÉDULA DE CIUDADANÍA",1022966146,1022966146,null,"11 NO SE DILIGENCIA INFORMACIÓN PARA ESTE FORMULARIO EN ESTE PERÍODO DE REPORTE","NO APLICA","NO APLICA","NO APLICA","LUZ FANY VACA GUTIERREZ",1024,"2024-01-13",null,null,null,null,null,"OFICINA ASESORA DE PLANEACIÓN Y SISTEMAS","OFICINA ASESORA DE PLANEACIÓN Y SISTEMAS","PRESTAR LOS SERVICIOS COMO TECNOLOGO EN ANALISIS Y DESARROLLO DE SISTEMAS DE INFORMACIÓN PARA APOYAR LA GESTIÓN ADMINISTRATIVA DE LA OFICINA ASESORA DE PLANEACIÓN Y SISTEMAS DEL FONDO PASIVO SOCIAL DE FERROCARRILES NACIONALES DE COLOMBIA",{"$f":"LEFT('BASE 2023 FPS'!$AF104,390)","v":"PRESTAR LOS SERVICIOS COMO TECNOLOGO EN ANALISIS Y DESARROLLO DE SISTEMAS DE INFORMACIÓN PARA APOYAR LA GESTIÓN ADMINISTRATIVA DE LA OFICINA ASESORA DE PLANEACIÓN Y SISTEMAS DEL FONDO PASIVO SOCIAL DE FERROCARRILES NACIONALES DE COLOMBIA"},3705662,40762282,"2024-01-16",1,1,"COLOMBIA > Distrito Capital de Bogotá > Bogotá","COLOMBIA > Distrito Capital de Bogotá > Bogotá","2 SUPERVISOR","NO APLICA","5 NO SE TIENE ESTE TIPO DE SEGUIMIENTO EN EL CONTRATO","NO APLICA","11 NO SE DILIGENCIA INFORMACIÓN PARA ESTE FORMULARIO EN ESTE PERÍODO DE REPORTE",24218560,"MARIA YANETH FARFAN CASALLAS","OFICINA ASESORA PLANEACIÓN Y SISTEMAS","OFICINA ASESORA PLANEACIÓN Y SISTEMAS","NO",80111600,"POLIZA","Calidad del servicio - Cumplimiento del contrato",null,"2024-01-16","2024-01-16","2024-01-16","2024-01-16","2024-12-15",330,{"$f":"DATEDIF('BASE 2023 FPS'!$BF104-1,'BASE 2023 FPS'!$BG104,\"m\")","v":11}]
[2024,"CPS-110-2024",null,null,"F5.1","2 CONTRATACIÓN DIRECTA","CPS-110-2024","14 PRESTACIÓN DE SERVICIOS","PROFESIONALES","GEOVANYS VILLANUEVA","Formación requerida en una (1) carrera profesional "," Ciencias de la Salud","1 PERSONA NATURAL","3 CÉDULA DE CIUDADANÍA",8776567,8776567,null,"11 NO SE DILIGENCIA INFORMACIÓN PARA ESTE FORMULARIO EN ESTE PERÍODO DE REPORTE","NO APLICA","NO APLICA","NO APLICA","LUZ FANY VACA GUTIERREZ",1024,"2024-01-13",null,null,null,null,null,"MEDICO ESPECIALISTA DIVISION MAGDALENA","MEDICO ESPECIALISTA DIVISION MAGDALENA","PRESTAR LOS SERVICIOS PROFESIONALES COMO MEDICO AUDITOR PARA APOYAR LA GESTIÓN ADMINISTRATIVA DESDE EL GRUPO INTERNO DE TRABAJO GESTION PRESTACION DE SERVICIOS DE SALUD, DESDE LA DIVISIÓN MAGDALENA- (CIUDAD CARTAGENA) DEL FONDO DE PASIVO SOCIAL DE FERROCARRILES NACIONALES DE COLOMBIA",{"$f":"LEFT('BASE 2023 FPS'!$AF105,390)","v":"PRESTAR LOS SERVICIOS PROFESIONALES COMO MEDICO AUDITOR PARA APOYAR LA GESTIÓN ADMINISTRATIVA DESDE EL GRUPO INTERNO DE TRABAJO GESTION PRESTACION DE SERVICIOS DE SALUD, DESDE LA DIVISIÓN MAGDALENA- (CIUDAD CARTAGENA) DEL FONDO DE PASIVO SOCIAL DE FERROCARRILES NACIONALES DE COLOMBIA"},7889475,86784225,"2024-01-16",1,1,"COLOMBIA > Distrito Capital de Bogotá > Bogotá","COLOMBIA > Distrito Capital de Bogotá > Bogotá","2 SUPERVISOR","NO APLICA","5 NO SE TIENE ESTE TIPO DE SEGUIMIENTO EN EL CONTRATO","NO APLICA","11 NO SE DILIGENCIA INFORMACIÓN PARA ESTE FORMULARIO EN ESTE PERÍODO DE REPORTE",35507261,"RAIMUNDO COHEN COGOLLO","MEDICO ESPECIALISTA DIVISION MAGDALENA","GIT GESTIÓN PRESTACIÓN SERVICIOS DE SALUD -  DIVISION MAGDALENA","NO",80111600,"POLIZA","Calidad del servicio - Cumplimiento del contrato",null,"2024-01-16","2024-01-16","2024-01-16","2024-01-16","2024-12-15",330,{"$f":"DATEDIF('BASE 2023 FPS'!$BF105-1,'BASE 2023 FPS'!$BG105,\"m\")","v":11}]
[2024,"CPS-111-2024",null,null,"F5.1","2 CONTRATACIÓN DIRECTA","CPS-111-2024","14 PRESTACIÓN DE SERVICIOS","PROFESIONALES","MARIA ABIGAIL","Formación requerida en una (1) carrera profesional y una  (1) especialización "," Ciencias Sociales y Humanas","1 PERSONA NATURAL","3 CÉDULA DE CIUDADANÍA",1065564156,1065564156,null,"11 NO SE DILIGENCIA INFORMACIÓN PARA ESTE FORMULARIO EN ESTE PERÍODO DE REPORTE","NO APLICA","NO APLICA","NO APLICA","LUZ FANY VACA GUTIERREZ",1024,"2024-01-13",null,null,null,null,null,"SECRETARIO GENERAL","SECRETARIO GENERAL"," PRESTAR LOS SERVICIOS PROFESIONALES ESPECIALIZADOS COMO ABOGADO PARA APOYAR LA GESTIÓN CONTRACTUAL, (PRE-CONTRACTUAL, CONTRACTUAL Y POSTCONTRACTUAL) QUE ADELANTA SECRETARIA GENERAL DEL FONDO DE PASIVO SOCIAL DE FERROCARRILES NACIONALES DE COLOMBIA",{"$f":"LEFT('BASE 2023 FPS'!$AF106,390)","v":" PRESTAR LOS SERVICIOS PROFESIONALES ESPECIALIZADOS COMO ABOGADO PARA APOYAR LA GESTIÓN CONTRACTUAL, (PRE-CONTRACTUAL, CONTRACTUAL Y POSTCONTRACTUAL) QUE ADELANTA SECRETARIA GENERAL DEL FONDO DE PASIVO SOCIAL DE FERROCARRILES NACIONALES DE COLOMBIA"},7889475,86784225,"2024-01-16",1,1,"COLOMBIA > Distrito Capital de Bogotá > Bogotá","COLOMBIA > Distrito Capital de Bogotá > Bogotá","2 SUPERVISOR","NO APLICA","5 NO SE TIENE ESTE TIPO DE SEGUIMIENTO EN EL CONTRATO","NO APLICA","11 NO SE DILIGENCIA INFORMACIÓN PARA ESTE FORMULARIO EN ESTE PERÍODO DE REPORTE",17956156,"CARLOS ANDRES TOVAR OROZCO","SECRETARIO GENERAL","SECRETARIA GENERAL","NO",80111600,"POLIZA","Calidad del servicio - Cumplimiento del contrato",null,"2024-01-16","2024-01-16","2024-01-16","2024-01-16","2024-12-15",330,{"$f":"DATEDIF('BASE 2023 FPS'!$BF106-1,'BASE 2023 FPS'!$BG106,\"m\")","v":11}]
[2024,"CPS-112-2024",null,null,"F5.1","2 CONTRATACIÓN DIRECTA","CPS-112-2024","14 PRESTACIÓN DE SERVICIOS","PROFESIONALES","TATIANA PELAEZ","Formación requerida en una (1) carrera profesional y una  (1) especialización "," Ciencias Sociales y Humanas","1 PERSONA NATURAL","3 CÉDULA DE CIUDADANÍA",1121331229,1121331229,null,"11 NO SE DILIGENCIA INFORMACIÓN PARA ESTE FORMULARIO EN ESTE PERÍODO DE REPORTE","NO APLICA","NO APLICA","NO APLICA","LUZ FANY VACA GUTIERREZ",1024,"2024-01-13",null,null,null,null,null,"SECRETARIO GENERAL","SECRETARIO GENERAL"," PRESTAR LOS SERVICIOS PROFESIONALES ESPECIALIZADOS COMO ABOGADA, CON EL FIN DE ADELANTAR ACTIVIDADES RELACIONADAS CON LOS ASUNTOS JURÍDICOS Y ADMINISTRATIVOS DESDE LA SECRETARÍA GENERAL DEL FONDO DE PASIVO SOCIAL DE FERROCARRILES NACIONALES DE COLOMBIA",{"$f":"LEFT('BASE 2023 FPS'!$AF107,390)","v":" PRESTAR LOS SERVICIOS PROFESIONALES ESPECIALIZADOS COMO ABOGADA, CON EL FIN DE ADELANTAR ACTIVIDADES RELACIONADAS CON LOS ASUNTOS JURÍDICOS Y ADMINISTRATIVOS DESDE LA SECRETARÍA GENERAL DEL FONDO DE PASIVO SOCIAL DE FERROCARRILES NACIONALES DE COLOMBIA"},7172250,78894750,"2024-01-17",1,1,"COLOMBIA > Distrito Capital de Bogotá > Bogotá","COLOMBIA > Distrito Capital de Bogotá > Bogotá","2 SUPERVISOR","NO APLICA","5 NO SE TIENE ESTE TIPO DE SEGUIMIENTO EN EL CONTRATO","NO APLICA","11 NO SE DILIGENCIA INFORMACIÓN PARA ESTE FORMULARIO EN ESTE PERÍODO DE REPORTE",17956156,"CARLOS ANDRES TOVAR OROZCO","SECRETARIO GENERAL","SECRETARIA GENERAL","NO",80111600,"POLIZA","Calidad del servicio - Cumplimiento del contrato",null,"2024-01-17","2024-01-17","2024-01-17","2024-01-17","2024-12-16",330,{"$f":"DATEDIF('BASE 2023 FPS'!$BF107-1,'BASE 2023 FPS'!$BG107,\"m\")","v":11}]
[2024,"CPS-113-2024",null,null,"F5.1","2 CONTRATACIÓN DIRECTA","CPS-113-2024","14 PRESTACIÓN DE SERVICIOS","PROFESIONALES","ALVARO JOSE DANGOND","Formación requerida en una (1) carrera profesional y una  (1) especialización "," Ciencias Sociales y Humanas","1 PERSONA NATURAL","3 CÉDULA DE CIUDADANÍA",17977280,17977280,null,"11 NO SE DILIGENCIA INFORMACIÓN PARA ESTE FORMULARIO EN ESTE PERÍODO DE REPORTE","NO APLICA","NO APLICA","NO APLICA","LUZ FANY VACA GUTIERREZ",1024,"2024-01-13",null,null,null,null,null,"SECRETARIO GENERAL","SECRETARIO GENERAL","PRESTAR LOS SERVICIOS PROFESIONALES COMO ABOGADO PARA APOYAR LA GESTIÓN ADMINISTRATIVA DEL GIT TALENTO HUMANO DE LA SECRETARÍA GENERAL DEL FONDO DE PASIVO SOCIAL DE FERROCARRILES NACIONALES DE COLOMBIA",{"$f":"LEFT('BASE 2023 FPS'!$AF108,390)","v":"PRESTAR LOS SERVICIOS PROFESIONALES COMO ABOGADO PARA APOYAR LA GESTIÓN ADMINISTRATIVA DEL GIT TALENTO HUMANO DE LA SECRETARÍA GENERAL DEL FONDO DE PASIVO SOCIAL DE FERROCARRILES NACIONALES DE COLOMBIA"},7889475,86784225,"2024-01-17",1,1,"COLOMBIA > Distrito Capital de Bogotá > Bogotá","COLOMBIA > Distrito Capital de Bogotá > Bogotá","2 SUPERVISOR","NO APLICA","5 NO SE TIENE ESTE TIPO DE SEGUIMIENTO EN EL CONTRATO","NO APLICA","11 NO SE DILIGENCIA INFORMACIÓN PARA ESTE FORMULARIO EN ESTE PERÍODO DE REPORTE",17956156,"CARLOS ANDRES TOVAR OROZCO","SECRETARIO GENERAL","SECRETARIA GENERAL","NO",80111600,"POLIZA","Calidad del servicio - Cumplimiento del contrato",null,"2024-01-17","2024-01-17","2024-01-17","2024-01-17","2024-12-16",330,{"$f":"DATEDIF('BASE 2023 FPS'!$BF108-1,'BASE 2023 FPS'!$BG108,\"m\")","v":11}]
[2024,"CPS-114-2024",null,null,"F5.1","2 CONTRATACIÓN DIRECTA","CPS-114-2024","14 PRESTACIÓN DE SERVICIOS","PROFESIONALES","CRISTIAN JIMENEZ CRUZ","Formación requerida en una (1) carrera profesional "," Ciencias Sociales y Humanas","1 PERSONA NATURAL","3 CÉDULA DE CIUDADANÍA",1006095270,1006095270,null,"11 NO SE DILIGENCIA INFORMACIÓN PARA ESTE FORMULARIO EN ESTE PERÍODO DE REPORTE","NO APLICA","NO APLICA","NO APLICA","LUZ FANY VACA GUTIERREZ",1024,"2024-01-13",null,null,null,null,null,"OFICINA ASESORA JURÍDICA","OFICINA ASESORA JURÍDICA","PRESTAR LOS SERVICIOS PROFESIONALES COMO ABOGADO PARA APOYAR LAS ACTIVIDADES JURIDICAS Y ADMINISTRATIVAS DESDE LA OFICINA ASESORA JURÍDICA DEL FONDO DE PASIVO SOCIAL DE FERROCARRILES NACIONALES DE COLOMBIA",{"$f":"LEFT('BASE 2023 FPS'!$AF109,390)","v":"PRESTAR LOS SERVICIOS PROFESIONALES COMO ABOGADO PARA APOYAR LAS ACTIVIDADES JURIDICAS Y ADMINISTRATIVAS DESDE LA OFICINA ASESORA JURÍDICA DEL FONDO DE PASIVO SOCIAL DE FERROCARRILES NACIONALES DE COLOMBIA"},3466588,38132468,"2024-01-17",1,1,"COLOMBIA > Distrito Capital de Bogotá > Bogotá","COLOMBIA > Distrito Capital de Bogotá > Bogotá","2 SUPERVISOR","NO APLICA","5 NO SE TIENE ESTE TIPO DE SEGUIMIENTO EN EL CONTRATO","NO APLICA","11 NO SE DILIGENCIA INFORMACIÓN PARA ESTE FORMULARIO EN ESTE PERÍODO DE REPORTE",65767422,"ANDREA ALDANA TRUJILLO","OFICINA ASESORA JURÍDICA","OFICINA ASESORA JURÍDICA","NO",80111600,"POLIZA","Calidad del servicio - Cumplimiento del contrato",null,"2024-01-17","2024-01-17","2024-01-17","2024-01-17","2024-12-16",330,{"$f":"DATEDIF('BASE 2023 FPS'!$BF109-1,'BASE 2023 FPS'!$BG109,\"m\")","v":11}]
[2024,"CPS-115-2024",null,null,"F5.1","2 CONTRATACIÓN DIRECTA","CPS-115-2024","14 PRESTACIÓN DE SERVICIOS","PROFESIONALES","REGINA RAMOS","Formación requerida en una (1) carrera profesional "," Ciencias Sociales y Humanas","1 PERSONA NATURAL","3 CÉDULA DE CIUDADANÍA",56059236,56059236,null,"11 NO SE DILIGENCIA INFORMACIÓN PARA ESTE FORMULARIO EN ESTE PERÍODO DE REPORTE","NO APLICA","NO APLICA","NO APLICA","LUZ FANY VACA GUTIERREZ",1024,"2024-01-13",null,null,null,null,null,"SECRETARIO GENERAL","SECRETARIO GENERAL","PRESTAR LOS SERVICIOS PROFESIONALES COMO ABOGADO, CON EL FIN DE ADELANTAR ACTIVIDADES RELACIONADAS CON LOS ASUNTOS JURÍDICOS Y ADMINISTRATIVOS DESDE LA SECRETARIA GENERAL - ATENCIÓN AL CIUDADANO Y GESTIÓN DOCUMENTAL DEL FONDO DE PASIVO SOCIAL DE FERROCARRILES NACIONALES DE COLOMBIA",{"$f":"LEFT('BASE 2023 FPS'!$AF110,390)","v":"PRESTAR LOS SERVICIOS PROFESIONALES COMO ABOGADO, CON EL FIN DE ADELANTAR ACTIVIDADES RELACIONADAS CON LOS ASUNTOS JURÍDICOS Y ADMINISTRATIVOS DESDE LA SECRETARIA GENERAL - ATENCIÓN AL CIUDADANO Y GESTIÓN DOCUMENTAL DEL FONDO DE PASIVO SOCIAL DE FERROCARRILES NACIONALES DE COLOMBIA"},5259650,57856150,"2024-01-17",1,1,"COLOMBIA > Distrito Capital de Bogotá > Bogotá","COLOMBIA > Distrito Capital de Bogotá > Bogotá","2 SUPERVISOR","NO APLICA","5 NO SE TIENE ESTE TIPO DE SEGUIMIENTO EN EL CONTRATO","NO APLICA","11 NO SE DILIGENCIA INFORMACIÓN PARA ESTE FORMULARIO EN ESTE PERÍODO DE REPORTE",17956156,"CARLOS ANDRES TOVAR OROZCO","SECRETARIO GENERAL","SECRETARIA GENERAL","NO",80111600,"POLIZA","Calidad del servicio - Cumplimiento del contrato",null,"2024-01-17","2024-01-17","2024-01-17","2024-01-17","2024-12-16",330,{"$f":"DATEDIF('BASE 2023 FPS'!$BF110-1,'BASE 2023 FPS'!$BG110,\"m\")","v":11}]
[2024,"CPS-116-2024",null,null,"F5.1","2 CONTRATACIÓN DIRECTA","CPS-116-2024","14 PRESTACIÓN DE SERVICIOS","PROFESIONALES","RODRIGO HERNANDEZ SARABRIA","Formación requerida en una (1) carrera profesional "," Ingeniería, Arquitectura, Urbanismo y afines","1 PERSONA NATURAL","3 CÉDULA DE CIUDADANÍA",17976255,17976255,null,"11 NO SE DILIGENCIA INFORMACIÓN PARA ESTE FORMULARIO EN ESTE PERÍODO DE REPORTE","NO APLICA","NO APLICA","NO APLICA","LUZ FANY VACA GUTIERREZ",1024,"2024-01-13",null,null,null,null,null,"OFICINA ASESORA DE PLANEACIÓN Y SISTEMAS","OFICINA ASESORA DE PLANEACIÓN Y SISTEMAS"," PRESTAR LOS SERVICIOS PROFESIONALES COMO INGENIERO DE SOFTWARE Y COMUNICACIONES PARA APOYAR A LA ENTIDAD DESDE LA OFICINA ASESORA DE PLANEACIÓN Y SISTEMAS",{"$f":"LEFT('BASE 2023 FPS'!$AF111,390)","v":" PRESTAR LOS SERVICIOS PROFESIONALES COMO INGENIERO DE SOFTWARE Y COMUNICACIONES PARA APOYAR A LA ENTIDAD DESDE LA OFICINA ASESORA DE PLANEACIÓN Y SISTEMAS"},6096412,67060532,"2024-01-17",1,1,"COLOMBIA > Distrito Capital de Bogotá > Bogotá","COLOMBIA > Distrito Capital de Bogotá > Bogotá","2 SUPERVISOR","NO APLICA","5 NO SE TIENE ESTE TIPO DE SEGUIMIENTO EN EL CONTRATO","NO APLICA","11 NO SE DILIGENCIA INFORMACIÓN PARA ESTE FORMULARIO EN ESTE PERÍODO DE REPORTE",24218560,"MARIA YANETH FARFAN CASALLAS","OFICINA ASESORA PLANEACIÓN Y SISTEMAS","OFICINA ASESORA PLANEACIÓN Y SISTEMAS","NO",80111600,"POLIZA","Calidad del servicio - Cumplimiento del contrato",null,"2024-01-17","2024-01-17","2024-01-17","2024-01-17","2024-12-16",330,{"$f":"DATEDIF('BASE 2023 FPS'!$BF111-1,'BASE 2023 FPS'!$BG111,\"m\")","v":11}]
[2024,"CPS-117-2024",null,null,"F5.1","2 CONTRATACIÓN DIRECTA","CPS-117-2024","14 PRESTACIÓN DE SERVICIOS","PROFESIONALES","LILIA PAOLA RAMIREZ","Formación requerida en una (1) carrera profesional "," Ciencias Sociales y Humanas","1 PERSONA NATURAL","3 CÉDULA DE CIUDADANÍA",1110445106,1110445106,null,"11 NO SE DILIGENCIA INFORMACIÓN PARA ESTE FORMULARIO EN ESTE PERÍODO DE REPORTE","NO APLICA","NO APLICA","NO APLICA","LUZ FANY VACA GUTIERREZ",1024,"2024-01-13",null,null,null,null,null,"OFICINA ASESORA JURÍDICA","OFICINA ASESORA JURÍDICA","PRESTAR LOS SERVICIOS PROFESIONALES COMO ABOGADA PARA APOYAR LAS ACTIVIDADES RELACIONADAS CON LOS ASUNTOS JURIDICOS Y ADMINISTRATIVOS DESDE LA OFICINA ASESORA JURIDICA DEL FONDO DE PASIVO SOCIAL DE FERROCARRILES NACIONALES DE COLOMBIA. ",{"$f":"LEFT('BASE 2023 FPS'!$AF112,390)","v":"PRESTAR LOS SERVICIOS PROFESIONALES COMO ABOGADA PARA APOYAR LAS ACTIVIDADES RELACIONADAS CON LOS ASUNTOS JURIDICOS Y ADMINISTRATIVOS DESDE LA OFICINA ASESORA JURIDICA DEL FONDO DE PASIVO SOCIAL DE FERROCARRILES NACIONALES DE COLOMBIA. "},6455025,71005275,"2024-01-17",1,1,"COLOMBIA > Distrito Capital de Bogotá > Bogotá","COLOMBIA > Distrito Capital de Bogotá > Bogotá","2 SUPERVISOR","NO APLICA","5 NO SE TIENE ESTE TIPO DE SEGUIMIENTO EN EL CONTRATO","NO APLICA","11 NO SE DILIGENCIA INFORMACIÓN PARA ESTE FORMULARIO EN ESTE PERÍODO DE REPORTE",65767422,"ANDREA ALDANA TRUJILLO","OFICINA ASESORA JURÍDICA","OFICINA ASESORA JURÍDICA","NO",80111600,"POLIZA","Calidad del servicio - Cumplimiento del contrato",null,"2024-01-17","2024-01-17","2024-01-17","2024-01-17","2024-12-16",330,{"$f":"DATEDIF('BASE 2023 FPS'!$BF112-1,'BASE 2023 FPS'!$BG112,\"m\")","v":11}]
[2024,"CPS-118-2024",null,null,"F5.1","2 CONTRATACIÓN DIRECTA","CPS-118-2024","14 PRESTACIÓN DE SERVICIOS","PROFESIONALES","MARIO FERNANDO ZULUAGA SERRATO","Formación requerida en una (1) carrera profesional "," Ciencias Sociales y Humanas","1 PERSONA NATURAL","3 CÉDULA DE CIUDADANÍA",2236806,2236806,null,"11 NO SE DILIGENCIA INFORMACIÓN PARA ESTE FORMULARIO EN ESTE PERÍODO DE REPORTE","NO APLICA","NO APLICA","NO APLICA","LUZ FANY VACA GUTIERREZ",1024,"2024-01-13",null,null,null,null,null,"OFICINA ASESORA JURÍDICA","OFICINA ASESORA JURÍDICA","PRESTAR LOS SERVICIOS PROFESIONALES COMO ABOGADO PARA APOYAR A LA OFICINA ASESORA JURÍDICA EN LAS ACTIVIDADES JURIDICAS, ADMINISTRATIVAS Y DE COBRO COACTIVO DEL FONDO DE PASIVO SOCIAL DE FERROCARRILES NACIONALES DE COLOMBIA. ",{"$f":"LEFT('BASE 2023 FPS'!$AF113,390)","v":"PRESTAR LOS SERVICIOS PROFESIONALES COMO ABOGADO PARA APOYAR A LA OFICINA ASESORA JURÍDICA EN LAS ACTIVIDADES JURIDICAS, ADMINISTRATIVAS Y DE COBRO COACTIVO DEL FONDO DE PASIVO SOCIAL DE FERROCARRILES NACIONALES DE COLOMBIA. "},6096412,67060532,"2024-01-18",1,1,"COLOMBIA > Distrito Capital de Bogotá > Bogotá","COLOMBIA > Distrito Capital de Bogotá > Bogotá","2 SUPERVISOR","NO APLICA","5 NO SE TIENE ESTE TIPO DE SEGUIMIENTO EN EL CONTRATO","NO APLICA","11 NO SE DILIGENCIA INFORMACIÓN PARA ESTE FORMULARIO EN ESTE PERÍODO DE REPORTE",65767422,"ANDREA ALDANA TRUJILLO","OFICINA ASESORA JURÍDICA","OFICINA ASESORA JURÍDICA","NO",80111600,"POLIZA","Calidad del servicio - Cumplimiento del contrato",null,"2024-01-18","2024-01-18","2024-01-18","2024-01-18","2024-12-17",330,{"$f":"DATEDIF('BASE 2023 FPS'!$BF113-1,'BASE 2023 FPS'!$BG113,\"m\")","v":11}]
[2024,"CPS-119-2024",null,null,"F5.1","2 CONTRATACIÓN DIRECTA","CPS-119-2024","14 PRESTACIÓN DE SERVICIOS","PROFESIONALES","LINA MARCELA ARIAS GUZMAN","Formación requerida en una (1) carrera profesional y una  (1) especialización "," Ciencias Sociales y Humanas","1 PERSONA NATURAL","3 CÉDULA DE CIUDADANÍA",38211778,38211778,null,"11 NO SE DILIGENCIA INFORMACIÓN PARA ESTE FORMULARIO EN ESTE PERÍODO DE REPORTE","NO APLICA","NO APLICA","NO APLICA","LUZ FANY VACA GUTIERREZ",1024,"2024-01-13",null,null,null,null,null,"OFICINA ASESORA JURÍDICA","OFICINA ASESORA JURÍDICA","PRESTAR LOS SERVICIOS PROFESIONALES COMO ABOGADA ESPECIALISTA PARA APOYAR A LA OFICINA ASESORA JURÍDICA EN LAS ACTIVIDADES JURIDICAS, ADMINISTRATIVAS Y DE COBRO COACTIVO DEL FONDO DE PASIVO SOCIAL DE FERROCARRILES NACIONALES DE COLOMBIA ",{"$f":"LEFT('BASE 2023 FPS'!$AF114,390)","v":"PRESTAR LOS SERVICIOS PROFESIONALES COMO ABOGADA ESPECIALISTA PARA APOYAR A LA OFICINA ASESORA JURÍDICA EN LAS ACTIVIDADES JURIDICAS, ADMINISTRATIVAS Y DE COBRO COACTIVO DEL FONDO DE PASIVO SOCIAL DE FERROCARRILES NACIONALES DE COLOMBIA "},6455025,71005275,"2024-01-17",1,1,"COLOMBIA > Distrito Capital de Bogotá > Bogotá","COLOMBIA > Distrito Capital de Bogotá > Bogotá","2 SUPERVISOR","NO APLICA","5 NO SE TIENE ESTE TIPO DE SEGUIMIENTO EN EL CONTRATO","NO APLICA","11 NO SE DILIGENCIA INFORMACIÓN PARA ESTE FORMULARIO EN ESTE PERÍODO DE REPORTE",65767422,"ANDREA ALDANA TRUJILLO","OFICINA ASESORA JURÍDICA","OFICINA ASESORA JURÍDICA","NO",80111600,"POLIZA","Calidad del servicio - Cumplimiento del contrato",null,"2024-01-17","2024-01-17","2024-01-17","2024-01-17","2024-12-16",330,{"$f":"DATEDIF('BASE 2023 FPS'!$BF114-1,'BASE 2023 FPS'!$BG114,\"m\")","v":11}]
[2024,"CPS-121-2024",null,null,"F5.1","2 CONTRATACIÓN DIRECTA","CPS-121-2024","14 PRESTACIÓN DE SERVICIOS","PROFESIONALES","JHONATAN SIERRA","Formación requerida en una (1) carrera profesional "," Ciencias Sociales y Humanas","1 PERSONA NATURAL","3 CÉDULA DE CIUDADANÍA",1103096561,1103096561,null,"11 NO SE DILIGENCIA INFORMACIÓN PARA ESTE FORMULARIO EN ESTE PERÍODO DE REPORTE","NO APLICA","NO APLICA","NO APLICA","LUZ FANY VACA GUTIERREZ",1024,"2024-01-13",null,null,null,null,null,"GIT TALENTO HUMANO","GIT TALENTO HUMANO","PRESTAR LOS SERVICIOS PROFESIONALES COMO COMUNICADOR SOCIAL PARA APOYAR LA GESTIÓN ADMINISTRATIVA DEL GIT TALENTO HUMANO DE LA SECRETARÍA GENERAL DEL FONDO DE PASIVO SOCIAL DE FERROCARRILES NACIONALES DE COLOMBIA. ",{"$f":"LEFT('BASE 2023 FPS'!$AF115,390)","v":"PRESTAR LOS SERVICIOS PROFESIONALES COMO COMUNICADOR SOCIAL PARA APOYAR LA GESTIÓN ADMINISTRATIVA DEL GIT TALENTO HUMANO DE LA SECRETARÍA GENERAL DEL FONDO DE PASIVO SOCIAL DE FERROCARRILES NACIONALES DE COLOMBIA. "},7530862,82839482,"2024-01-17",1,1,"COLOMBIA > Distrito Capital de Bogotá > Bogotá","COLOMBIA > Distrito Capital de Bogotá > Bogotá","2 SUPERVISOR","NO APLICA","5 NO SE TIENE ESTE TIPO DE SEGUIMIENTO EN EL CONTRATO","NO APLICA","11 NO SE DILIGENCIA INFORMACIÓN PARA ESTE FORMULARIO EN ESTE PERÍODO DE REPORTE",1014212108,"TATIANA PEREZ SIERRA","GIT TALENTO HUMANO","GIT TALENTO HUMANO","NO",80111600,"POLIZA","Calidad del servicio - Cumplimiento del contrato",null,"2024-01-17","2024-01-17","2024-01-17","2024-01-17","2024-12-16",330,{"$f":"DATEDIF('BASE 2023 FPS'!$BF115-1,'BASE 2023 FPS'!$BG115,\"m\")","v":11}]
[2024,"CPS-122-2024",null,null,"F5.1","2 CONTRATACIÓN DIRECTA","CPS-122-2024","14 PRESTACIÓN DE SERVICIOS","PROFESIONALES","JUAN CARLOS PADILLA SIERRA","Formación requerida en una (1) carrera profesional "," Economía, Administración, Contaduría y afines","1 PERSONA NATURAL","3 CÉDULA DE CIUDADANÍA",79840792,79840792,null,"11 NO SE DILIGENCIA INFORMACIÓN PARA ESTE FORMULARIO EN ESTE PERÍODO DE REPORTE","NO APLICA","NO APLICA","NO APLICA","LUZ FANY VACA GUTIERREZ",1024,"2024-01-13",null,null,null,null,null,"OFICINA ASESORA JURÍDICA","OFICINA ASESORA JURÍDICA","PRESTAR LOS SERVICIOS PROFESIONALES PARA APOYAR LAS ACTIVIDADES RELACIONADAS CON LOS ASUNTOS ADMINISTRATIVOS DESDE LA OFICINA ASESORA JURÍDICA DEL FONDO DE PASIVO SOCIAL DE FERROCARRILES NACIONALES DE COLOMBIA ",{"$f":"LEFT('BASE 2023 FPS'!$AF116,390)","v":"PRESTAR LOS SERVICIOS PROFESIONALES PARA APOYAR LAS ACTIVIDADES RELACIONADAS CON LOS ASUNTOS ADMINISTRATIVOS DESDE LA OFICINA ASESORA JURÍDICA DEL FONDO DE PASIVO SOCIAL DE FERROCARRILES NACIONALES DE COLOMBIA "},5259650,57856150,"2024-01-17",1,1,"COLOMBIA > Distrito Capital de Bogotá > Bogotá","COLOMBIA > Distrito Capital de Bogotá > Bogotá","2 SUPERVISOR","NO APLICA","5 NO SE TIENE ESTE TIPO DE SEGUIMIENTO EN EL CONTRATO","NO APLICA","11 NO SE DILIGENCIA INFORMACIÓN PARA ESTE FORMULARIO EN ESTE PERÍODO DE REPORTE",65767422,"ANDREA ALDANA TRUJILLO","OFICINA ASESORA JURÍDICA","OFICINA ASESORA JURÍDICA","NO",80111600,"POLIZA","Calidad del servicio - Cumplimiento del contrato",null,"2024-01-17","2024-01-17","2024-01-17","2024-01-17","2024-12-16",330,{"$f":"DATEDIF('BASE 2023 FPS'!$BF116-1,'BASE 2023 FPS'!$BG116,\"m\")","v":11}]
[2024,"CPS-123-2024",null,null,"F5.1","2 CONTRATACIÓN DIRECTA","CPS-123-2024","14 PRESTACIÓN DE SERVICIOS","PROFESIONALES","TORREGROZA & DIAZGRANADOS SERVICIOS JURIDICOS ESPECIALIZADOS S.A.S","Formación requerida en una (1) carrera profesional y una  (1) especialización "," Ciencias Sociales y Humanas","2 PERSONA JURIDICA","NIT",null,null,900614377,"1 DV 2","LUIS CARLOS TORREGORA DIAZGRANADOS","CEDULA DE CIUDADANIA",10884543,"LUZ FANY VACA GUTIERREZ",1024,"2024-01-13",null,null,null,null,null,"COORDINADOR DEL GIT DE DEFENSA JUDICIAL","GIT DE DEFENSA JUDICIAL","PRESTAR LOS SERVICIOS JURÍDICOS PARA LA REPRESENTACIÓN JUDICIAL DEL FONDO DE PASIVO SOCIAL DE LOS FERROCARRILES NACIONALES DE COLOMBIA DENTRO DE LOS PROCESOS QUE CURSEN O LLEGAREN A CURSAR EN LA JURISDICCCION PENAL Y EN LOS PROCESOS QUE SE ADELANTEN ANTE LA SALA DE CASACIÓN LABORAL DE LA CORTE SUPREMA DE JUSTICIA, DE CONFORMIDAD CON LOS REQUERIMIENTOS DE LA ENTIDAD. ",{"$f":"LEFT('BASE 2023 FPS'!$AF117,390)","v":"PRESTAR LOS SERVICIOS JURÍDICOS PARA LA REPRESENTACIÓN JUDICIAL DEL FONDO DE PASIVO SOCIAL DE LOS FERROCARRILES NACIONALES DE COLOMBIA DENTRO DE LOS PROCESOS QUE CURSEN O LLEGAREN A CURSAR EN LA JURISDICCCION PENAL Y EN LOS PROCESOS QUE SE ADELANTEN ANTE LA SALA DE CASACIÓN LABORAL DE LA CORTE SUPREMA DE JUSTICIA, DE CONFORMIDAD CON LOS REQUERIMIENTOS DE LA ENTIDAD. "},10000000,110000000,"2024-01-17",1,1,"COLOMBIA > Distrito Capital de Bogotá > Bogotá","COLOMBIA > Distrito Capital de Bogotá > Bogotá","2 SUPERVISOR","NO APLICA","5 NO SE TIENE ESTE TIPO DE SEGUIMIENTO EN EL CONTRATO","NO APLICA","11 NO SE DILIGENCIA INFORMACIÓN PARA ESTE FORMULARIO EN ESTE PERÍODO DE REPORTE",79202895,"HUMBERTO MALAVER PINZÓN","COORDINADOR DEL GIT DE DEFENSA JUDICIAL","GIT DE DEFENSA JUDICIAL","NO",80111600,"POLIZA","Calidad del servicio - Cumplimiento del contrato",null,"2024-01-17","2024-01-17","2024-01-17","2024-01-17","2024-12-16",330,{"$f":"DATEDIF('BASE 2023 FPS'!$BF117-1,'BASE 2023 FPS'!$BG117,\"m\")","v":11}]
[2024,"CPS-124-2024",null,"SI APLICA","F5.1","2 CONTRATACIÓN DIRECTA","CPS-124-2024","14 PRESTACIÓN DE SERVICIOS","PROFESIONALES","CARLOS RAMIRO SERRANO ","Formación requerida en una (1) carrera profesional y una  (1) especialización "," Ciencias Sociales y Humanas","1 PERSONA NATURAL","3 CÉDULA DE CIUDADANÍA",19347205,19347205,null,"11 NO SE DILIGENCIA INFORMACIÓN PARA ESTE FORMULARIO EN ESTE PERÍODO DE REPORTE","NO APLICA","NO APLICA","NO APLICA","LUZ FANY VACA GUTIERREZ",1024,"2024-01-13",null,null,null,null,null,"COORDINADOR DEL GIT DE DEFENSA JUDICIAL","GIT DE DEFENSA JUDICIAL","PRESTAR LOS SERVICIOS JURÍDICOS PARA LA REPRESENTACIÓN JUDICIAL Y EXTRAJUDICIAL DEL FONDO DE PASIVO SOCIAL DE FERROCARRILES NACIONALES DE COLOMBIA, EN ORDEN A DEFENDER SUS INTERESES DENTRO DE LOS PROCESOS ASIGNADOS QUE CURSEN O LLEGAREN A CURSAR ANTE LAS DIFERENTES JURISDICCIONES A NIVEL NACIONAL DE CONFORMIDAD CON LOS REQUERIMIENTOS DE LA ENTIDAD. ",{"$f":"LEFT('BASE 2023 FPS'!$AF118,390)","v":"PRESTAR LOS SERVICIOS JURÍDICOS PARA LA REPRESENTACIÓN JUDICIAL Y EXTRAJUDICIAL DEL FONDO DE PASIVO SOCIAL DE FERROCARRILES NACIONALES DE COLOMBIA, EN ORDEN A DEFENDER SUS INTERESES DENTRO DE LOS PROCESOS ASIGNADOS QUE CURSEN O LLEGAREN A CURSAR ANTE LAS DIFERENTES JURISDICCIONES A NIVEL NACIONAL DE CONFORMIDAD CON LOS REQUERIMIENTOS DE LA ENTIDAD. "},90909090,1000000000,"2024-01-17",1,1,"COLOMBIA > Distrito Capital de Bogotá > Bogotá","COLOMBIA > Distrito Capital de Bogotá > Bogotá","2 SUPERVISOR","NO APLICA","5 NO SE TIENE ESTE TIPO DE SEGUIMIENTO EN EL CONTRATO","NO APLICA","11 NO SE DILIGENCIA INFORMACIÓN PARA ESTE FORMULARIO EN ESTE PERÍODO DE REPORTE",79202895,"HUMBERTO MALAVER PINZÓN","COORDINADOR DEL GIT DE DEFENSA JUDICIAL","GIT DE DEFENSA JUDICIAL","NO",80111600,"POLIZA","Calidad del servicio - Cumplimiento del contrato",null,"2024-01-17","2024-01-17","2024-01-17","2024-01-17","2024-12-16",330,{"$f":"DATEDIF('BASE 2023 FPS'!$BF118-1,'BASE 2023 FPS'!$BG118,\"m\")","v":11},null,null,null,null,null,null,null,null,null,null,null,null,null,null,null,null,null,null,null,null,null,null,null,null,null,null,null,null,null,null,null,null,null,"SI APLICA","2024-01-30",0,1000000000]
[2024,"CPS-125-2024",null,null,"F5.1","2 CONTRATACIÓN DIRECTA","CPS-125-2024","14 PRESTACIÓN DE SERVICIOS","PROFESIONALES","MONICA RODRIGUEZ","Formación requerida en una (1) carrera profesional "," Ciencias de la Salud","1 PERSONA NATURAL","3 CÉDULA DE CIUDADANÍA",52410465,52410465,null,"11 NO SE DILIGENCIA INFORMACIÓN PARA ESTE FORMULARIO EN ESTE PERÍODO DE REPORTE","NO APLICA","NO APLICA","NO APLICA","LUZ FANY VACA GUTIERREZ",1024,"2024-01-13",null,null,null,null,null,"COORDINADORA GIT GESTIÓN PRESTACIÓN SERVICIOS DE SALUD","GIT GESTIÓN PRESTACIÓN SERVICIOS DE SALUD","PRESTAR LOS SERVICIOS PROFESIONALES COMO ENFERMERA PARA APOYAR LA GESTIÓN ADMINISTRATIVA A CARGO DEL GRUPO INTERNO DE TRABAJO GESTIÓN PRESTACIÓN DE SERVICIO DE SALUD DEL FONDO DE PASIVO SOCIAL DE FERROCARRILES NACIONALES DE COLOMBIA EN LA IMPLEMENTACIÓN, SEGUIMIENTO DE LOS PROGRAMAS Y RUTAS DEL MODELO INTEGRAL DE ATENCIÓN DEL FONDO (MAISFEN) Y EL PROGRMA DE VIGILANCIA EN SALUD PÚBLICA ",{"$f":"LEFT('BASE 2023 FPS'!$AF119,390)","v":"PRESTAR LOS SERVICIOS PROFESIONALES COMO ENFERMERA PARA APOYAR LA GESTIÓN ADMINISTRATIVA A CARGO DEL GRUPO INTERNO DE TRABAJO GESTIÓN PRESTACIÓN DE SERVICIO DE SALUD DEL FONDO DE PASIVO SOCIAL DE FERROCARRILES NACIONALES DE COLOMBIA EN LA IMPLEMENTACIÓN, SEGUIMIENTO DE LOS PROGRAMAS Y RUTAS DEL MODELO INTEGRAL DE ATENCIÓN DEL FONDO (MAISFEN) Y EL PROGRMA DE VIGILANCIA EN SALUD PÚBLICA "},6096412,67060532,"2024-01-17",1,1,"COLOMBIA > Distrito Capital de Bogotá > Bogotá","COLOMBIA > Distrito Capital de Bogotá > Bogotá","2 SUPERVISOR","NO APLICA","5 NO SE TIENE ESTE TIPO DE SEGUIMIENTO EN EL CONTRATO","NO APLICA","11 NO SE DILIGENCIA INFORMACIÓN PARA ESTE FORMULARIO EN ESTE PERÍODO DE REPORTE",35507261,"LUZ HELENA GUTIERREZ SUAREZ","COORDINADORA GIT GESTIÓN PRESTACIÓN SERVICIOS DE SALUD","GIT GESTIÓN PRESTACIÓN SERVICIOS DE SALUD","NO",80111600,"POLIZA","Calidad del servicio - Cumplimiento del contrato",null,"2024-01-17","2024-01-17","2024-01-17","2024-01-17","2024-12-16",330,{"$f":"DATEDIF('BASE 2023 FPS'!$BF119-1,'BASE 2023 FPS'!$BG119,\"m\")","v":11}]
[2024,"CPS-126-2024",null,null,"F5.1","2 CONTRATACIÓN DIRECTA","CPS-126-2024","14 PRESTACIÓN DE SERVICIOS","PROFESIONALES","MARIA JOSE OLIVELLA HERNANDEZ","Formación requerida en una (1) carrera profesional "," Ciencias Sociales y Humanas","1 PERSONA NATURAL","3 CÉDULA DE CIUDADANÍA",1121336800,1121336800,null,"11 NO SE DILIGENCIA INFORMACIÓN PARA ESTE FORMULARIO EN ESTE PERÍODO DE REPORTE","NO APLICA","NO APLICA","NO APLICA","LUZ FANY VACA GUTIERREZ",1024,"2024-01-13",null,null,null,null,null,"GIT TALENTO HUMANO","GIT TALENTO HUMANO","PRESTAR LOS SERVICIOS PROFESIONALES COMO ABOGADO PARA APOYAR LA GESTIÓN ADMINISTRATIVA DEL GIT TALENTO HUMANO DE LA SECRETARÍA GENERAL DEL FONDO DE PASIVO SOCIAL DE FERROCARRILES NACIONALES DE COLOMBIA ",{"$f":"LEFT('BASE 2023 FPS'!$AF120,390)","v":"PRESTAR LOS SERVICIOS PROFESIONALES COMO ABOGADO PARA APOYAR LA GESTIÓN ADMINISTRATIVA DEL GIT TALENTO HUMANO DE LA SECRETARÍA GENERAL DEL FONDO DE PASIVO SOCIAL DE FERROCARRILES NACIONALES DE COLOMBIA "},4661962,51281582,"2024-01-17",1,1,"COLOMBIA > Distrito Capital de Bogotá > Bogotá","COLOMBIA > Distrito Capital de Bogotá > Bogotá","2 SUPERVISOR","NO APLICA","5 NO SE TIENE ESTE TIPO DE SEGUIMIENTO EN EL CONTRATO","NO APLICA","11 NO SE DILIGENCIA INFORMACIÓN PARA ESTE FORMULARIO EN ESTE PERÍODO DE REPORTE",1014212108,"TATIANA PEREZ SIERRA","GIT TALENTO HUMANO","GIT TALENTO HUMANO","NO",80111600,"POLIZA","Calidad del servicio - Cumplimiento del contrato",null,"2024-01-17","2024-01-17","2024-01-17","2024-01-17","2024-12-16",330,{"$f":"DATEDIF('BASE 2023 FPS'!$BF120-1,'BASE 2023 FPS'!$BG120,\"m\")","v":11}]
[2024,"CPS-127-2024",null,null,"F5.1","2 CONTRATACIÓN DIRECTA","CPS-127-2024","14 PRESTACIÓN DE SERVICIOS","PROFESIONALES","CATHERINE DUEÑAS","Formación requerida en una (1) carrera profesional "," Economía, Administración, Contaduría y afines","1 PERSONA NATURAL","3 CÉDULA DE CIUDADANÍA",52977671,52977671,null,"11 NO SE DILIGENCIA INFORMACIÓN PARA ESTE FORMULARIO EN ESTE PERÍODO DE REPORTE","NO APLICA","NO APLICA","NO APLICA","LUZ FANY VACA GUTIERREZ",1024,"2024-01-13",null,null,null,null,null,"GIT TESORERIA","GIT TESORERIA","PRESTAR LOS SERVICIOS PROFESIONALES COMO CONTADORA PÚBLICA PARA APOYAR AL GIT DE TESORERÍA DEL FONDO DE PASIVO SOCIAL DE FERROCARRILES NACIONALES DE COLOMBIA ",{"$f":"LEFT('BASE 2023 FPS'!$AF121,390)","v":"PRESTAR LOS SERVICIOS PROFESIONALES COMO CONTADORA PÚBLICA PARA APOYAR AL GIT DE TESORERÍA DEL FONDO DE PASIVO SOCIAL DE FERROCARRILES NACIONALES DE COLOMBIA "},7530862,45185172,"2024-01-17",1,1,"COLOMBIA > Distrito Capital de Bogotá > Bogotá","COLOMBIA > Distrito Capital de Bogotá > Bogotá","2 SUPERVISOR","NO APLICA","5 NO SE TIENE ESTE TIPO DE SEGUIMIENTO EN EL CONTRATO","NO APLICA","11 NO SE DILIGENCIA INFORMACIÓN PARA ESTE FORMULARIO EN ESTE PERÍODO DE REPORTE",5711553,"LUIS ALBERTO SEGURA BECERRA","COORDINADOR GIT BIENES, COMPRAS Y SERVICIOS ADMINISTRATIVOS","GIT BIENES, COMPRAS Y SERVICIOS ADMINISTRATIVOS","NO",80111600,"POLIZA","Calidad del servicio - Cumplimiento del contrato",null,"2024-01-17","2024-01-17","2024-01-17","2024-01-17","2024-07-16",180,{"$f":"DATEDIF('BASE 2023 FPS'!$BF121-1,'BASE 2023 FPS'!$BG121,\"m\")","v":6}]
[2024,"CPS-128-2024",null,null,"F5.1","2 CONTRATACIÓN DIRECTA","CPS-128-2024","14 PRESTACIÓN DE SERVICIOS","PROFESIONALES","DENYSSE JOHANNA ORTIZ","Formacion Tecnica"," Economía, Administración, Contaduría y afines","1 PERSONA NATURAL","3 CÉDULA DE CIUDADANÍA",1065817727,1065817727,null,"11 NO SE DILIGENCIA INFORMACIÓN PARA ESTE FORMULARIO EN ESTE PERÍODO DE REPORTE","NO APLICA","NO APLICA","NO APLICA","LUZ FANY VACA GUTIERREZ",1024,"2024-01-13",null,null,null,null,null,"JEFE GRUPO DE TRABAJO CONTROL INTERNO","GRUPO DE TRABAJO CONTROL INTERNO","PRESTAR LOS SERVICIOS TÉCNICOS PARA APOYAR LA GESTIÓN DESDE CONTROL INTERNO DEL FONDO DE PASIVO SOCIAL DE FERROCARRILES NACIONALES DE COLOMBIA ",{"$f":"LEFT('BASE 2023 FPS'!$AF122,390)","v":"PRESTAR LOS SERVICIOS TÉCNICOS PARA APOYAR LA GESTIÓN DESDE CONTROL INTERNO DEL FONDO DE PASIVO SOCIAL DE FERROCARRILES NACIONALES DE COLOMBIA "},3705662,40762282,"2024-01-17",1,1,"COLOMBIA > Distrito Capital de Bogotá > Bogotá","COLOMBIA > Distrito Capital de Bogotá > Bogotá","2 SUPERVISOR","NO APLICA","5 NO SE TIENE ESTE TIPO DE SEGUIMIENTO EN EL CONTRATO","NO APLICA","11 NO SE DILIGENCIA INFORMACIÓN PARA ESTE FORMULARIO EN ESTE PERÍODO DE REPORTE",24218560,"CIRO JORGE EDGAR SANCHEZ CASTRO","JEFE GRUPO DE TRABAJO CONTROL INTERNO","GRUPO DE TRABAJO CONTROL INTERNO","NO",80111600,"POLIZA","Calidad del servicio - Cumplimiento del contrato",null,"2024-01-17","2024-01-17","2024-01-17","2024-01-17","2024-12-16",330,{"$f":"DATEDIF('BASE 2023 FPS'!$BF122-1,'BASE 2023 FPS'!$BG122,\"m\")","v":11}]
[2024,"CPS-129-2024",null,null,"F5.1","2 CONTRATACIÓN DIRECTA","CPS-129-2024","14 PRESTACIÓN DE SERVICIOS","PROFESIONALES","OSCAR GUTIERREZ TIQUE","Formación requerida en una (1) carrera profesional "," Ingeniería, Arquitectura, Urbanismo y afines","1 PERSONA NATURAL","3 CÉDULA DE CIUDADANÍA",93128940,93128940,null,"11 NO SE DILIGENCIA INFORMACIÓN PARA ESTE FORMULARIO EN ESTE PERÍODO DE REPORTE","NO APLICA","NO APLICA","NO APLICA","LUZ FANY VACA GUTIERREZ",1024,"2024-01-13",null,null,null,null,null,"OFICINA ASESORA JURÍDICA","OFICINA ASESORA JURÍDICA","PRESTAR LOS SERVICIOS PROFESIONALES COMO INGENIERO DE SISTEMAS PARA BRINDAR APOYO Y ACOMPAÑAMIENTO EN LA EJECUCIÓN DE LAS ACTIVIDADES DEL PROCESO DE GESTION TIC Y PLANES INSTITUCIONALES DE LA OFICINA DE LA ASESORA JURIDICA DEL FONDO PASIVO SOCIAL DE FERROCARRILES NACIONALES DE COLOMBIA. ",{"$f":"LEFT('BASE 2023 FPS'!$AF123,390)","v":"PRESTAR LOS SERVICIOS PROFESIONALES COMO INGENIERO DE SISTEMAS PARA BRINDAR APOYO Y ACOMPAÑAMIENTO EN LA EJECUCIÓN DE LAS ACTIVIDADES DEL PROCESO DE GESTION TIC Y PLANES INSTITUCIONALES DE LA OFICINA DE LA ASESORA JURIDICA DEL FONDO PASIVO SOCIAL DE FERROCARRILES NACIONALES DE COLOMBIA. "},5259650,57856150,"2024-01-17",1,1,"COLOMBIA > Distrito Capital de Bogotá > Bogotá","COLOMBIA > Distrito Capital de Bogotá > Bogotá","2 SUPERVISOR","NO APLICA","5 NO SE TIENE ESTE TIPO DE SEGUIMIENTO EN EL CONTRATO","NO APLICA","11 NO SE DILIGENCIA INFORMACIÓN PARA ESTE FORMULARIO EN ESTE PERÍODO DE REPORTE",65767422,"ANDREA ALDANA TRUJILLO","OFICINA ASESORA JURÍDICA","OFICINA ASESORA JURÍDICA","NO",80111600,"POLIZA","Calidad del servicio - Cumplimiento del contrato",null,"2024-01-17","2024-01-17","2024-01-17","2024-01-17","2024-12-16",330,{"$f":"DATEDIF('BASE 2023 FPS'!$BF123-1,'BASE 2023 FPS'!$BG123,\"m\")","v":11}]
[2024,"CPS-130-2024",null,null,"F5.1","2 CONTRATACIÓN DIRECTA","CPS-130-2024","14 PRESTACIÓN DE SERVICIOS","PROFESIONALES","ANDRES FELIPE GONGORA","Formación requerida en una (1) carrera profesional y una  (1) especialización "," Ciencias Sociales y Humanas","1 PERSONA NATURAL","3 CÉDULA DE CIUDADANÍA",1032389567,1032389567,null,"11 NO SE DILIGENCIA INFORMACIÓN PARA ESTE FORMULARIO EN ESTE PERÍODO DE REPORTE","NO APLICA","NO APLICA","NO APLICA","LUZ FANY VACA GUTIERREZ",1024,"2024-01-13",null,null,null,null,null,"OFICINA ASESORA JURÍDICA","OFICINA ASESORA JURÍDICA","PRESTAR LOS SERVICIOS PROFESIONALES COMO ABOGADO ESPECIALISTA PARA APOYAR A LA OFICINA ASESORA JURÍDICA EN LAS ACTIVIDADES JURÍDICAS, ADMINISTRATIVAS Y DE COBRO COACTIVO DEL FONDO DE PASIVO SOCIAL DE FERROCARRILES NACIONALES DE COLOMBIA.",{"$f":"LEFT('BASE 2023 FPS'!$AF124,390)","v":"PRESTAR LOS SERVICIOS PROFESIONALES COMO ABOGADO ESPECIALISTA PARA APOYAR A LA OFICINA ASESORA JURÍDICA EN LAS ACTIVIDADES JURÍDICAS, ADMINISTRATIVAS Y DE COBRO COACTIVO DEL FONDO DE PASIVO SOCIAL DE FERROCARRILES NACIONALES DE COLOMBIA."},6455025,71005275,"2024-01-17",1,1,"COLOMBIA > Distrito Capital de Bogotá > Bogotá","COLOMBIA > Distrito Capital de Bogotá > Bogotá","2 SUPERVISOR","NO APLICA","5 NO SE TIENE ESTE TIPO DE SEGUIMIENTO EN EL CONTRATO","NO APLICA","11 NO SE DILIGENCIA INFORMACIÓN PARA ESTE FORMULARIO EN ESTE PERÍODO DE REPORTE",65767422,"ANDREA ALDANA TRUJILLO","OFICINA ASESORA JURÍDICA","OFICINA ASESORA JURÍDICA","NO",80111600,"POLIZA","Calidad del servicio - Cumplimiento del contrato",null,"2024-01-17","2024-01-17","2024-01-17","2024-01-17","2024-12-16",330,{"$f":"DATEDIF('BASE 2023 FPS'!$BF124-1,'BASE 2023 FPS'!$BG124,\"m\")","v":11}]
[2024,"CPS-131-2024",null,null,"F5.1","2 CONTRATACIÓN DIRECTA","CPS-131-2024","14 PRESTACIÓN DE SERVICIOS","PROFESIONALES","JOSE TEATINO AVILA","Formación requerida en una (1) carrera profesional "," Economía, Administración, Contaduría y afines","1 PERSONA NATURAL","3 CÉDULA DE CIUDADANÍA",93371298,93371298,null,"11 NO SE DILIGENCIA INFORMACIÓN PARA ESTE FORMULARIO EN ESTE PERÍODO DE REPORTE","NO APLICA","NO APLICA","NO APLICA","LUZ FANY VACA GUTIERREZ",1024,"2024-01-13",null,null,null,null,null,"OFICINA ASESORA JURÍDICA","OFICINA ASESORA JURÍDICA","PRESTAR LOS SERVICIOS PROFESIONALES COMO ADMINISTRADOR FINANCIERO ESPECIALISTA PARA APOYAR LAS ACTIVIDADES FINANCIERAS DE LA OFICINA ASESORA JURÍDICA DEL FONDO DE PASIVO SOCIAL DE FERROCARRILES NACIONALES DE COLOMBIA.",{"$f":"LEFT('BASE 2023 FPS'!$AF125,390)","v":"PRESTAR LOS SERVICIOS PROFESIONALES COMO ADMINISTRADOR FINANCIERO ESPECIALISTA PARA APOYAR LAS ACTIVIDADES FINANCIERAS DE LA OFICINA ASESORA JURÍDICA DEL FONDO DE PASIVO SOCIAL DE FERROCARRILES NACIONALES DE COLOMBIA."},6455025,71005275,"2024-01-17",1,1,"COLOMBIA > Distrito Capital de Bogotá > Bogotá","COLOMBIA > Distrito Capital de Bogotá > Bogotá","2 SUPERVISOR","NO APLICA","5 NO SE TIENE ESTE TIPO DE SEGUIMIENTO EN EL CONTRATO","NO APLICA","11 NO SE DILIGENCIA INFORMACIÓN PARA ESTE FORMULARIO EN ESTE PERÍODO DE REPORTE",65767422,"ANDREA ALDANA TRUJILLO","OFICINA ASESORA JURÍDICA","OFICINA ASESORA JURÍDICA","NO",80111600,"POLIZA","Calidad del servicio - Cumplimiento del contrato",null,"2024-01-17","2024-01-17","2024-01-17","2024-01-17","2024-12-16",330,{"$f":"DATEDIF('BASE 2023 FPS'!$BF125-1,'BASE 2023 FPS'!$BG125,\"m\")","v":11}]
[2024,"CPS-132-2024",null,null,"F5.1","2 CONTRATACIÓN DIRECTA","CPS-132-2024","14 PRESTACIÓN DE SERVICIOS","PROFESIONALES","JESÚS ALBERTO NIEVES ROSADO","Formación requerida en una (1) carrera profesional "," Ciencias Sociales y Humanas","1 PERSONA NATURAL","3 CÉDULA DE CIUDADANÍA",1065843572,1065843572,null,"11 NO SE DILIGENCIA INFORMACIÓN PARA ESTE FORMULARIO EN ESTE PERÍODO DE REPORTE","NO APLICA","NO APLICA","NO APLICA","LUZ FANY VACA GUTIERREZ",1024,"2024-01-13",null,null,null,null,null,"OFICINA ASESORA JURÍDICA","OFICINA ASESORA JURÍDICA","PRESTAR LOS SERVICIOS DE APOYO A LA GESTIÓN COMO JUDICANTE, CON EL FIN DE ADELANTAR ACTIVIDADES RELACIONADAS CON LOS ASUNTOS JURÍDICOS Y ADMINISTRATIVOS DE LA OFICINA ASESORA JURÍDICA DEL FONDO DE PASIVO SOCIAL DE FERROCARRILES NACIONALES DE COLOMBIA ",{"$f":"LEFT('BASE 2023 FPS'!$AF126,390)","v":"PRESTAR LOS SERVICIOS DE APOYO A LA GESTIÓN COMO JUDICANTE, CON EL FIN DE ADELANTAR ACTIVIDADES RELACIONADAS CON LOS ASUNTOS JURÍDICOS Y ADMINISTRATIVOS DE LA OFICINA ASESORA JURÍDICA DEL FONDO DE PASIVO SOCIAL DE FERROCARRILES NACIONALES DE COLOMBIA "},2450519,12252595,"2024-01-17",1,1,"COLOMBIA > Distrito Capital de Bogotá > Bogotá","COLOMBIA > Distrito Capital de Bogotá > Bogotá","2 SUPERVISOR","NO APLICA","5 NO SE TIENE ESTE TIPO DE SEGUIMIENTO EN EL CONTRATO","NO APLICA","11 NO SE DILIGENCIA INFORMACIÓN PARA ESTE FORMULARIO EN ESTE PERÍODO DE REPORTE",65767422,"ANDREA ALDANA TRUJILLO","OFICINA ASESORA JURÍDICA","OFICINA ASESORA JURÍDICA","NO",80111600,"POLIZA","Calidad del servicio - Cumplimiento del contrato",null,"2024-01-17","2024-01-17","2024-01-17","2024-01-17","2024-06-16",150,{"$f":"DATEDIF('BASE 2023 FPS'!$BF126-1,'BASE 2023 FPS'!$BG126,\"m\")","v":5}]
[2024,"CPS-133-2024",null,null,"F5.1","2 CONTRATACIÓN DIRECTA","CPS-133-2024","14 PRESTACIÓN DE SERVICIOS","PROFESIONALES","SILVIO MUEGUES","Formación requerida en una (1) carrera profesional "," Ciencias Sociales y Humanas","1 PERSONA NATURAL","3 CÉDULA DE CIUDADANÍA",1121326710,1121326710,null,"11 NO SE DILIGENCIA INFORMACIÓN PARA ESTE FORMULARIO EN ESTE PERÍODO DE REPORTE","NO APLICA","NO APLICA","NO APLICA","LUZ FANY VACA GUTIERREZ",1024,"2024-01-13",null,null,null,null,null,"SECRETARÍA GENERAL - GIT ATENCIÓN AL CIUDADANO Y GESTIÓN DOCUMENTAL","SECRETARÍA GENERAL - GIT ATENCIÓN AL CIUDADANO Y GESTIÓN DOCUMENTAL","PRESTAR LOS SERVICIOS PROFESIONALES COMO ABOGADO AL GRUPO INTERNO DE TRABAJO DE ATENCIÓN AL CIUDADANO Y GESTIÓN DOCUMENTAL DEL FONDO DE PASIVO SOCIAL DE FERROCARRILES NACIONALES DE COLOMBIA",{"$f":"LEFT('BASE 2023 FPS'!$AF127,390)","v":"PRESTAR LOS SERVICIOS PROFESIONALES COMO ABOGADO AL GRUPO INTERNO DE TRABAJO DE ATENCIÓN AL CIUDADANO Y GESTIÓN DOCUMENTAL DEL FONDO DE PASIVO SOCIAL DE FERROCARRILES NACIONALES DE COLOMBIA"},6029412,67060532,"2024-01-17",1,1,"COLOMBIA > Distrito Capital de Bogotá > Bogotá","COLOMBIA > Distrito Capital de Bogotá > Bogotá","2 SUPERVISOR","NO APLICA","5 NO SE TIENE ESTE TIPO DE SEGUIMIENTO EN EL CONTRATO","NO APLICA","11 NO SE DILIGENCIA INFORMACIÓN PARA ESTE FORMULARIO EN ESTE PERÍODO DE REPORTE",39526262,"NURY NAVARRO HERNADEZ","SECRETARIA GENERAL – ATENCION AL CIUDADANO Y GESTION DOCUMENTAL","SECRETARIA GENERAL – ATENCION AL CIUDADANO Y GESTION DOCUMENTAL","NO",80111600,"POLIZA","Calidad del servicio - Cumplimiento del contrato",null,"2024-01-17","2024-01-17","2024-01-17","2024-01-17","2024-12-16",330,{"$f":"DATEDIF('BASE 2023 FPS'!$BF127-1,'BASE 2023 FPS'!$BG127,\"m\")","v":11}]
[2024,"CPS-134-2024",null,null,"F5.1","2 CONTRATACIÓN DIRECTA","CPS-134-2024","14 PRESTACIÓN DE SERVICIOS","PROFESIONALES","GLEYDIS ROCIO SANCHEZ BEDOYA","Formación requerida en una (1) carrera profesional "," Economía, Administración, Contaduría y afines","1 PERSONA NATURAL","3 CÉDULA DE CIUDADANÍA",28821372,28821372,null,"11 NO SE DILIGENCIA INFORMACIÓN PARA ESTE FORMULARIO EN ESTE PERÍODO DE REPORTE","NO APLICA","NO APLICA","NO APLICA","LUZ FANY VACA GUTIERREZ",1024,"2024-01-13",null,null,null,null,null,"OFICINA ASESORA JURÍDICA","OFICINA ASESORA JURÍDICA","PRESTAR LOS SERVICIOS PROFESIONALES PARA APOYAR LA GESTION ADMINISTRATIVA Y FINANCIERA DE LA OFICINA ASESORA JURÍDICA DEL FONDO DE PASIVO SOCIAL DE FERROCARRILES NACIONALES DE COLOMBIA. ",{"$f":"LEFT('BASE 2023 FPS'!$AF128,390)","v":"PRESTAR LOS SERVICIOS PROFESIONALES PARA APOYAR LA GESTION ADMINISTRATIVA Y FINANCIERA DE LA OFICINA ASESORA JURÍDICA DEL FONDO DE PASIVO SOCIAL DE FERROCARRILES NACIONALES DE COLOMBIA. "},6455025,71005275,"2024-01-17",1,1,"COLOMBIA > Distrito Capital de Bogotá > Bogotá","COLOMBIA > Distrito Capital de Bogotá > Bogotá","2 SUPERVISOR","NO APLICA","5 NO SE TIENE ESTE TIPO DE SEGUIMIENTO EN EL CONTRATO","NO APLICA","11 NO SE DILIGENCIA INFORMACIÓN PARA ESTE FORMULARIO EN ESTE PERÍODO DE REPORTE",65767422,"ANDREA ALDANA TRUJILLO","OFICINA ASESORA JURÍDICA","OFICINA ASESORA JURÍDICA","NO",80111600,"POLIZA","Calidad del servicio - Cumplimiento del contrato",null,"2024-01-17","2024-01-17","2024-01-17","2024-01-17","2024-12-16",330,{"$f":"DATEDIF('BASE 2023 FPS'!$BF128-1,'BASE 2023 FPS'!$BG128,\"m\")","v":11}]
[2024,"CPS-135-2024",null,null,"F5.1","2 CONTRATACIÓN DIRECTA","CPS-135-2024","14 PRESTACIÓN DE SERVICIOS","PROFESIONALES","JULAY JOSEFINA RAMÍREZ CAMPO","Formación requerida en una (1) carrera profesional "," Ingeniería, Arquitectura, Urbanismo y afines","1 PERSONA NATURAL","3 CÉDULA DE CIUDADANÍA",1121333786,1121333786,null,"11 NO SE DILIGENCIA INFORMACIÓN PARA ESTE FORMULARIO EN ESTE PERÍODO DE REPORTE","NO APLICA","NO APLICA","NO APLICA","LUZ FANY VACA GUTIERREZ",1024,"2024-01-13",null,null,null,null,null,"GIT TALENTO HUMANO","GIT TALENTO HUMANO","PRESTAR LOS SERVICIOS PROFESIONALES PARA APOYAR LA GESTIÓN ADMINISTRATIVA DESDE EL GIT GESTIÓN DE TALENTO HUMANO DEL FONDO DE PASIVO SOCIAL DE FERROCARRILES NACIONALES DE COLOMBIA. ",{"$f":"LEFT('BASE 2023 FPS'!$AF129,390)","v":"PRESTAR LOS SERVICIOS PROFESIONALES PARA APOYAR LA GESTIÓN ADMINISTRATIVA DESDE EL GIT GESTIÓN DE TALENTO HUMANO DEL FONDO DE PASIVO SOCIAL DE FERROCARRILES NACIONALES DE COLOMBIA. "},7172250,78894750,"2024-01-17",1,1,"COLOMBIA > Distrito Capital de Bogotá > Bogotá","COLOMBIA > Distrito Capital de Bogotá > Bogotá","2 SUPERVISOR","NO APLICA","5 NO SE TIENE ESTE TIPO DE SEGUIMIENTO EN EL CONTRATO","NO APLICA","11 NO SE DILIGENCIA INFORMACIÓN PARA ESTE FORMULARIO EN ESTE PERÍODO DE REPORTE",1014212108,"TATIANA PEREZ SIERRA","GIT TALENTO HUMANO","GIT TALENTO HUMANO","NO",80111600,"POLIZA","Calidad del servicio - Cumplimiento del contrato",null,"2024-01-17","2024-01-17","2024-01-17","2024-01-17","2024-12-16",330,{"$f":"DATEDIF('BASE 2023 FPS'!$BF129-1,'BASE 2023 FPS'!$BG129,\"m\")","v":11}]
[2024,"CPS-136-2024",null,null,"F5.1","2 CONTRATACIÓN DIRECTA","CPS-136-2024","14 PRESTACIÓN DE SERVICIOS","PROFESIONALES","ISABELLA MUSKUS","Formación requerida en una (1) carrera profesional "," Ciencias Sociales y Humanas","1 PERSONA NATURAL","3 CÉDULA DE CIUDADANÍA",1003502415,1003502415,null,"11 NO SE DILIGENCIA INFORMACIÓN PARA ESTE FORMULARIO EN ESTE PERÍODO DE REPORTE","NO APLICA","NO APLICA","NO APLICA","LUZ FANY VACA GUTIERREZ",1024,"2024-01-13",null,null,null,null,null,"GIT TALENTO HUMANO","GIT TALENTO HUMANO","PRESTAR LOS SERVICIOS DE APOYO A LA GESTIÓN COMO PRACTICANTE DE COMUNICACIÓN SOCIAL Y PERIODISMO, CON EL FIN DE ADELANTAR ACTIVIDADES RELACIONADAS CON LA COMUNICACIÓN ORGANIZACIONAL DEL GIT GESTIÓN DE TALENTO HUMANO DE LA SECRETARÍA GENERAL DEL FONDO DE PASIVO SOCIAL DE FERROCARRILES NACIONALES DE COLOMBIA ",{"$f":"LEFT('BASE 2023 FPS'!$AF130,390)","v":"PRESTAR LOS SERVICIOS DE APOYO A LA GESTIÓN COMO PRACTICANTE DE COMUNICACIÓN SOCIAL Y PERIODISMO, CON EL FIN DE ADELANTAR ACTIVIDADES RELACIONADAS CON LA COMUNICACIÓN ORGANIZACIONAL DEL GIT GESTIÓN DE TALENTO HUMANO DE LA SECRETARÍA GENERAL DEL FONDO DE PASIVO SOCIAL DE FERROCARRILES NACIONALES DE COLOMBIA "},2450519,26955709,"2024-01-17",1,1,"COLOMBIA > Distrito Capital de Bogotá > Bogotá","COLOMBIA > Distrito Capital de Bogotá > Bogotá","2 SUPERVISOR","NO APLICA","5 NO SE TIENE ESTE TIPO DE SEGUIMIENTO EN EL CONTRATO","NO APLICA","11 NO SE DILIGENCIA INFORMACIÓN PARA ESTE FORMULARIO EN ESTE PERÍODO DE REPORTE",1014212108,"TATIANA PEREZ SIERRA","GIT TALENTO HUMANO","GIT TALENTO HUMANO","NO",80111600,"POLIZA","Calidad del servicio - Cumplimiento del contrato",null,"2024-01-17","2024-01-17","2024-01-17","2024-01-17","2024-12-16",330,{"$f":"DATEDIF('BASE 2023 FPS'!$BF130-1,'BASE 2023 FPS'!$BG130,\"m\")","v":11}]
[2024,"CPS-137-2024",null,null,"F5.1","2 CONTRATACIÓN DIRECTA","CPS-137-2024","14 PRESTACIÓN DE SERVICIOS","PROFESIONALES","YEFERSON BOLAÑO","Formación requerida en una (1) carrera profesional "," Ciencias Sociales y Humanas","1 PERSONA NATURAL","3 CÉDULA DE CIUDADANÍA",1143359804,1143359804,null,"11 NO SE DILIGENCIA INFORMACIÓN PARA ESTE FORMULARIO EN ESTE PERÍODO DE REPORTE","NO APLICA","NO APLICA","NO APLICA","LUZ FANY VACA GUTIERREZ",1024,"2024-01-13",null,null,null,null,null,"COORDINADOR GIT BIENES, COMPRAS Y SERVICIOS ADMINISTRATIVOS","GIT BIENES, COMPRAS Y SERVICIOS ADMINISTRATIVOS","PRESTAR LOS SERVICIOS PROFESIONALES COMO ABOGADO PARA APOYAR LAS ACTIVIDADES JURÍDICAS EN EL GIT GESTIÓN BIENES, COMPRAS Y SERVICIOS ADMINISTRATIVOS DEL FONDO DE PASIVO SOCIAL DE FERROCARRILES NACIONALES DE COLOMBIA ",{"$f":"LEFT('BASE 2023 FPS'!$AF131,390)","v":"PRESTAR LOS SERVICIOS PROFESIONALES COMO ABOGADO PARA APOYAR LAS ACTIVIDADES JURÍDICAS EN EL GIT GESTIÓN BIENES, COMPRAS Y SERVICIOS ADMINISTRATIVOS DEL FONDO DE PASIVO SOCIAL DE FERROCARRILES NACIONALES DE COLOMBIA "},3466588,38132468,"2024-01-17",1,1,"COLOMBIA > Distrito Capital de Bogotá > Bogotá","COLOMBIA > Distrito Capital de Bogotá > Bogotá","2 SUPERVISOR","NO APLICA","5 NO SE TIENE ESTE TIPO DE SEGUIMIENTO EN EL CONTRATO","NO APLICA","11 NO SE DILIGENCIA INFORMACIÓN PARA ESTE FORMULARIO EN ESTE PERÍODO DE REPORTE",5711553,"LUIS ALBERTO SEGURA BECERRA","COORDINADOR GIT BIENES, COMPRAS Y SERVICIOS ADMINISTRATIVOS","GIT BIENES, COMPRAS Y SERVICIOS ADMINISTRATIVOS","NO",80111600,"POLIZA","Calidad del servicio - Cumplimiento del contrato",null,"2024-01-17","2024-01-17","2024-01-17","2024-01-17","2024-12-16",330,{"$f":"DATEDIF('BASE 2023 FPS'!$BF131-1,'BASE 2023 FPS'!$BG131,\"m\")","v":11}]
[2024,"CPS-138-2024",null,null,"F5.1","2 CONTRATACIÓN DIRECTA","CPS-138-2024","14 PRESTACIÓN DE SERVICIOS","PROFESIONALES","PAOLA MARIÑO","Formación requerida en una (1) carrera profesional "," Ciencias Sociales y Humanas","1 PERSONA NATURAL","3 CÉDULA DE CIUDADANÍA",1062880243,1062880243,null,"11 NO SE DILIGENCIA INFORMACIÓN PARA ESTE FORMULARIO EN ESTE PERÍODO DE REPORTE","NO APLICA","NO APLICA","NO APLICA","LUZ FANY VACA GUTIERREZ",1024,"2024-01-13",null,null,null,null,null,"COORDINADOR GIT BIENES, COMPRAS Y SERVICIOS ADMINISTRATIVOS","GIT BIENES, COMPRAS Y SERVICIOS ADMINISTRATIVOS","PRESTAR LOS SERVICIOS PROFESIONALES COMO ABOGADA PARA APOYAR LA GESTION ADMINISTRATIVA DEL GIT GESTION, BIENES, COMPRAS Y SERVICIOS ADMINISTRATIVOS DE LA SECRETARIA GENERAL DEL FONDO PASIVO SOCIAL DE FERROCARRILES NACIONALES DE COLOMBIA ",{"$f":"LEFT('BASE 2023 FPS'!$AF132,390)","v":"PRESTAR LOS SERVICIOS PROFESIONALES COMO ABOGADA PARA APOYAR LA GESTION ADMINISTRATIVA DEL GIT GESTION, BIENES, COMPRAS Y SERVICIOS ADMINISTRATIVOS DE LA SECRETARIA GENERAL DEL FONDO PASIVO SOCIAL DE FERROCARRILES NACIONALES DE COLOMBIA "},6096412,67060532,"2024-01-17",1,1,"COLOMBIA > Distrito Capital de Bogotá > Bogotá","COLOMBIA > Distrito Capital de Bogotá > Bogotá","2 SUPERVISOR","NO APLICA","5 NO SE TIENE ESTE TIPO DE SEGUIMIENTO EN EL CONTRATO","NO APLICA","11 NO SE DILIGENCIA INFORMACIÓN PARA ESTE FORMULARIO EN ESTE PERÍODO DE REPORTE",5711553,"LUIS ALBERTO SEGURA BECERRA","COORDINADOR GIT BIENES, COMPRAS Y SERVICIOS ADMINISTRATIVOS","GIT BIENES, COMPRAS Y SERVICIOS ADMINISTRATIVOS","NO",80111600,"POLIZA","Calidad del servicio - Cumplimiento del contrato",null,"2024-01-17","2024-01-17","2024-01-17","2024-01-17","2024-12-16",330,{"$f":"DATEDIF('BASE 2023 FPS'!$BF132-1,'BASE 2023 FPS'!$BG132,\"m\")","v":11}]
[2024,"CPS-139-2024",null,null,"F5.1","2 CONTRATACIÓN DIRECTA","CPS-139-2024","14 PRESTACIÓN DE SERVICIOS","PROFESIONALES","JUAN DAVID LOPEZ","Formación requerida en una (1) carrera profesional "," Ciencias Sociales y Humanas","1 PERSONA NATURAL","3 CÉDULA DE CIUDADANÍA",1053776752,1053776752,null,"11 NO SE DILIGENCIA INFORMACIÓN PARA ESTE FORMULARIO EN ESTE PERÍODO DE REPORTE","NO APLICA","NO APLICA","NO APLICA","LUZ FANY VACA GUTIERREZ",1024,"2024-01-13",null,null,null,null,null,"COORDINADOR GIT BIENES, COMPRAS Y SERVICIOS ADMINISTRATIVOS","GIT BIENES, COMPRAS Y SERVICIOS ADMINISTRATIVOS","PRESTAR LOS SERVICIOS PROFESIONALES COMO ABOGADO PARA APOYAR LA GESTION ADMINISTRATIVA Y JURIDICA DE LA COORDINACIÓN GIT BIENES, COMPRAS Y SERVICIOS ADMINISTRATIVOS DEL FONDO DE PASIVO SOCIAL DE FERROCARRILES NACIONALES DE COLOMBIA ",{"$f":"LEFT('BASE 2023 FPS'!$AF133,390)","v":"PRESTAR LOS SERVICIOS PROFESIONALES COMO ABOGADO PARA APOYAR LA GESTION ADMINISTRATIVA Y JURIDICA DE LA COORDINACIÓN GIT BIENES, COMPRAS Y SERVICIOS ADMINISTRATIVOS DEL FONDO DE PASIVO SOCIAL DE FERROCARRILES NACIONALES DE COLOMBIA "},6096412,67060532,"2024-01-17",1,1,"COLOMBIA > Distrito Capital de Bogotá > Bogotá","COLOMBIA > Distrito Capital de Bogotá > Bogotá","2 SUPERVISOR","NO APLICA","5 NO SE TIENE ESTE TIPO DE SEGUIMIENTO EN EL CONTRATO","NO APLICA","11 NO SE DILIGENCIA INFORMACIÓN PARA ESTE FORMULARIO EN ESTE PERÍODO DE REPORTE",5711553,"LUIS ALBERTO SEGURA BECERRA","COORDINADOR GIT BIENES, COMPRAS Y SERVICIOS ADMINISTRATIVOS","GIT BIENES, COMPRAS Y SERVICIOS ADMINISTRATIVOS","NO",80111600,"POLIZA","Calidad del servicio - Cumplimiento del contrato",null,"2024-01-17","2024-01-17","2024-01-17","2024-01-17","2024-12-16",330,{"$f":"DATEDIF('BASE 2023 FPS'!$BF133-1,'BASE 2023 FPS'!$BG133,\"m\")","v":11}]
[2024,"CPS-140-2024",null,null,"F5.1","2 CONTRATACIÓN DIRECTA","CPS-140-2024","14 PRESTACIÓN DE SERVICIOS","PROFESIONALES","ANA YOSELIN BAQUERO","Formación requerida en una (1) carrera profesional "," Ingeniería, Arquitectura, Urbanismo y afines","1 PERSONA NATURAL","3 CÉDULA DE CIUDADANÍA",56098465,56098465,null,"11 NO SE DILIGENCIA INFORMACIÓN PARA ESTE FORMULARIO EN ESTE PERÍODO DE REPORTE","NO APLICA","NO APLICA","NO APLICA","LUZ FANY VACA GUTIERREZ",1024,"2024-01-13",null,null,null,null,null,"GIT AFILIACIONES Y COMPENSACIÓN","GIT AFILIACIONES Y COMPENSACIÓN","PRESTAR LOS SERVICIOS PROFESIONALES COMO INGENIERA EN ASUNTOS RELACIONADOS CON LA GESTIÓN ADMINISTRATIVA DEL PROCESO DE COMPENSACIÓN DESDE LA SUBDIRECCIÓN DE PRESTACIONES SOCIALES - AFILIACIONES Y COMPENSACIÓN DEL FONDO PASIVO SOCIAL DE FERROCARRILES NACIONALES DE COLOMBIA ",{"$f":"LEFT('BASE 2023 FPS'!$AF134,390)","v":"PRESTAR LOS SERVICIOS PROFESIONALES COMO INGENIERA EN ASUNTOS RELACIONADOS CON LA GESTIÓN ADMINISTRATIVA DEL PROCESO DE COMPENSACIÓN DESDE LA SUBDIRECCIÓN DE PRESTACIONES SOCIALES - AFILIACIONES Y COMPENSACIÓN DEL FONDO PASIVO SOCIAL DE FERROCARRILES NACIONALES DE COLOMBIA "},6096412,67060532,"2024-01-17",1,1,"COLOMBIA > Distrito Capital de Bogotá > Bogotá","COLOMBIA > Distrito Capital de Bogotá > Bogotá","2 SUPERVISOR","NO APLICA","5 NO SE TIENE ESTE TIPO DE SEGUIMIENTO EN EL CONTRATO","NO APLICA","11 NO SE DILIGENCIA INFORMACIÓN PARA ESTE FORMULARIO EN ESTE PERÍODO DE REPORTE",17956156,"CARLOS ANDRES TOVAR OROZCO","GIT AFILIACIONES Y COMPENSACIÓN","GIT AFILIACIONES Y COMPENSACIÓN","NO",80111600,"POLIZA","Calidad del servicio - Cumplimiento del contrato",null,"2024-01-17","2024-01-17","2024-01-17","2024-01-17","2024-12-16",330,{"$f":"DATEDIF('BASE 2023 FPS'!$BF134-1,'BASE 2023 FPS'!$BG134,\"m\")","v":11}]
[2024,"CPS-141-2024",null,"SI APLICA","F5.1","2 CONTRATACIÓN DIRECTA","CPS-141-2024","14 PRESTACIÓN DE SERVICIOS","PROFESIONALES","EDITH MOLINA RIOS","Formación requerida en una (1) carrera profesional "," Ciencias Sociales y Humanas","1 PERSONA NATURAL","3 CÉDULA DE CIUDADANÍA",1065630796,1065630796,null,"11 NO SE DILIGENCIA INFORMACIÓN PARA ESTE FORMULARIO EN ESTE PERÍODO DE REPORTE","NO APLICA","NO APLICA","NO APLICA","LUZ FANY VACA GUTIERREZ",1024,"2024-01-13",null,null,null,null,null,"COORDINADOR GIT BIENES, COMPRAS Y SERVICIOS ADMINISTRATIVOS","GIT BIENES, COMPRAS Y SERVICIOS ADMINISTRATIVOS","PRESTAR LOS SERVICIOS PROFESIONALES PARA APOYAR LA GESTIÓN ADMINISTRATIVA DEL GIT GESTIÓN, BIENES, COMPRAS Y SERVICIOS ADMINISTRATIVOS DE LA SECRETARIA GENERAL DEL FONDO PASIVO SOCIAL DE FERROCARRILES NACIONALES DE COLOMBIA ",{"$f":"LEFT('BASE 2023 FPS'!$AF135,390)","v":"PRESTAR LOS SERVICIOS PROFESIONALES PARA APOYAR LA GESTIÓN ADMINISTRATIVA DEL GIT GESTIÓN, BIENES, COMPRAS Y SERVICIOS ADMINISTRATIVOS DE LA SECRETARIA GENERAL DEL FONDO PASIVO SOCIAL DE FERROCARRILES NACIONALES DE COLOMBIA "},4303349,47336839,"2024-01-17",1,1,"COLOMBIA > Distrito Capital de Bogotá > Bogotá","COLOMBIA > Distrito Capital de Bogotá > Bogotá","2 SUPERVISOR","NO APLICA","5 NO SE TIENE ESTE TIPO DE SEGUIMIENTO EN EL CONTRATO","NO APLICA","11 NO SE DILIGENCIA INFORMACIÓN PARA ESTE FORMULARIO EN ESTE PERÍODO DE REPORTE",5711553,"LUIS ALBERTO SEGURA BECERRA","COORDINADOR GIT BIENES, COMPRAS Y SERVICIOS ADMINISTRATIVOS","GIT BIENES, COMPRAS Y SERVICIOS ADMINISTRATIVOS","NO",80111600,"POLIZA","Calidad del servicio - Cumplimiento del contrato",null,"2024-01-17","2024-01-17","2024-01-17","2024-01-17","2024-12-16",330,{"$f":"DATEDIF('BASE 2023 FPS'!$BF135-1,'BASE 2023 FPS'!$BG135,\"m\")","v":11},null,null,null,null,null,null,null,null,null,null,null,null,null,null,null,null,null,null,null,null,null,null,null,null,null,null,null,null,null,null,null,null,null,"SI APLICA","2024-02-06"]
[2024,"CPS-142-2024",null,null,"F5.1","2 CONTRATACIÓN DIRECTA","CPS-142-2024","14 PRESTACIÓN DE SERVICIOS","PROFESIONALES","HENRY RODÍGUEZ PINZÓN","Formación requerida en una (1) carrera profesional y una  (1) especialización "," Ciencias Sociales y Humanas","1 PERSONA NATURAL","3 CÉDULA DE CIUDADANÍA",19451500,19451500,null,"11 NO SE DILIGENCIA INFORMACIÓN PARA ESTE FORMULARIO EN ESTE PERÍODO DE REPORTE","NO APLICA","NO APLICA","NO APLICA","LUZ FANY VACA GUTIERREZ",1024,"2024-01-13",null,null,null,null,null,"OFICINA ASESORA JURÍDICA","OFICINA ASESORA JURÍDICA","PRESTAR LOS SERVICIOS PROFESIONALES COMO ABOGADO ESPECIALISTA PARA APOYAR LAS ACTIVIDADES RELACIONADAS CON LOS ASUNTOS JURÍDICOS Y ADMINISTRATIVOS DESDE LA OFICINA ASESORA JURÍDICA DEL FONDO DE PASIVO SOCIAL DE FERROCARRILES NACIONALES DE COLOMBIA. ",{"$f":"LEFT('BASE 2023 FPS'!$AF136,390)","v":"PRESTAR LOS SERVICIOS PROFESIONALES COMO ABOGADO ESPECIALISTA PARA APOYAR LAS ACTIVIDADES RELACIONADAS CON LOS ASUNTOS JURÍDICOS Y ADMINISTRATIVOS DESDE LA OFICINA ASESORA JURÍDICA DEL FONDO DE PASIVO SOCIAL DE FERROCARRILES NACIONALES DE COLOMBIA. "},6455025,71005275,"2024-01-18",1,1,"COLOMBIA > Distrito Capital de Bogotá > Bogotá","COLOMBIA > Distrito Capital de Bogotá > Bogotá","2 SUPERVISOR","NO APLICA","5 NO SE TIENE ESTE TIPO DE SEGUIMIENTO EN EL CONTRATO","NO APLICA","11 NO SE DILIGENCIA INFORMACIÓN PARA ESTE FORMULARIO EN ESTE PERÍODO DE REPORTE",65767422,"ANDREA ALDANA TRUJILLO","OFICINA ASESORA JURÍDICA","OFICINA ASESORA JURÍDICA","NO",80111600,"POLIZA","Calidad del servicio - Cumplimiento del contrato",null,"2024-01-18","2024-01-18","2024-01-18","2024-01-18","2024-12-17",330,{"$f":"DATEDIF('BASE 2023 FPS'!$BF136-1,'BASE 2023 FPS'!$BG136,\"m\")","v":11}]
[2024,"CPS-143-2024",null,null,"F5.1","2 CONTRATACIÓN DIRECTA","CPS-143-2024","14 PRESTACIÓN DE SERVICIOS","PROFESIONALES","HUGUES RAFAEL QUINTERO","Formación requerida en una (1) carrera profesional "," Ingeniería, Arquitectura, Urbanismo y afines","1 PERSONA NATURAL","3 CÉDULA DE CIUDADANÍA",1121338782,1121338782,null,"11 NO SE DILIGENCIA INFORMACIÓN PARA ESTE FORMULARIO EN ESTE PERÍODO DE REPORTE","NO APLICA","NO APLICA","NO APLICA","LUZ FANY VACA GUTIERREZ",1024,"2024-01-13",null,null,null,null,null,"JEFE GRUPO DE TRABAJO CONTROL INTERNO","GRUPO DE TRABAJO CONTROL INTERNO","PRESTAR LOS SERVICIOS PROFESIONALES COMO INGENIERO INDUSTRIAL - AUDITOR PARA APOYAR EL CONTROL INTERNO DEL FONDO DE PASIVO SOCIAL DE FERROCARRILES NACIONALES DE COLOMBIA ",{"$f":"LEFT('BASE 2023 FPS'!$AF137,390)","v":"PRESTAR LOS SERVICIOS PROFESIONALES COMO INGENIERO INDUSTRIAL - AUDITOR PARA APOYAR EL CONTROL INTERNO DEL FONDO DE PASIVO SOCIAL DE FERROCARRILES NACIONALES DE COLOMBIA "},4901037,53911407,"2024-01-19",1,1,"COLOMBIA > Distrito Capital de Bogotá > Bogotá","COLOMBIA > Distrito Capital de Bogotá > Bogotá","2 SUPERVISOR","NO APLICA","5 NO SE TIENE ESTE TIPO DE SEGUIMIENTO EN EL CONTRATO","NO APLICA","11 NO SE DILIGENCIA INFORMACIÓN PARA ESTE FORMULARIO EN ESTE PERÍODO DE REPORTE",24218560,"CIRO JORGE EDGAR SANCHEZ CASTRO","JEFE GRUPO DE TRABAJO CONTROL INTERNO","GRUPO DE TRABAJO CONTROL INTERNO","NO",80111600,"POLIZA","Calidad del servicio - Cumplimiento del contrato",null,"2024-01-19","2024-01-19","2024-01-19","2024-01-19","2024-12-18",330,{"$f":"DATEDIF('BASE 2023 FPS'!$BF137-1,'BASE 2023 FPS'!$BG137,\"m\")","v":11}]
[2024,"CPS-143-2-2024",null,null,"F5.1","2 CONTRATACIÓN DIRECTA","CPS-144-2024","14 PRESTACIÓN DE SERVICIOS","PROFESIONALES","DARIO JOSE CAICEDO","Formación requerida en una (1) carrera profesional "," Ciencias Sociales y Humanas","1 PERSONA NATURAL","3 CÉDULA DE CIUDADANÍA",1121042218,1121042218,null,"11 NO SE DILIGENCIA INFORMACIÓN PARA ESTE FORMULARIO EN ESTE PERÍODO DE REPORTE","NO APLICA","NO APLICA","NO APLICA","LUZ FANY VACA GUTIERREZ",1024,"2024-01-13",null,null,null,null,null,"SECRETARIO GENERAL","SECRETARIO GENERAL","PRESTAR LOS SERVICIOS PROFESIONALES COMO ABOGADO ESPECIALISTA PARA APOYAR LA GESTIÓN JURÍDICA Y ADMINISTRATIVA QUE ADELANTA LA SECRETARIA GENERAL DEL FONDO PASIVO SOCIAL DE FERROCARRILES NACIONALES DE COLOMBIA ",{"$f":"LEFT('BASE 2023 FPS'!$AF138,390)","v":"PRESTAR LOS SERVICIOS PROFESIONALES COMO ABOGADO ESPECIALISTA PARA APOYAR LA GESTIÓN JURÍDICA Y ADMINISTRATIVA QUE ADELANTA LA SECRETARIA GENERAL DEL FONDO PASIVO SOCIAL DE FERROCARRILES NACIONALES DE COLOMBIA "},6455025,71005275,"2024-01-18",1,1,"COLOMBIA > Distrito Capital de Bogotá > Bogotá","COLOMBIA > Distrito Capital de Bogotá > Bogotá","2 SUPERVISOR","NO APLICA","5 NO SE TIENE ESTE TIPO DE SEGUIMIENTO EN EL CONTRATO","NO APLICA","11 NO SE DILIGENCIA INFORMACIÓN PARA ESTE FORMULARIO EN ESTE PERÍODO DE REPORTE",17956156,"CARLOS ANDRES TOVAR OROZCO","SECRETARIO GENERAL","SECRETARIA GENERAL","NO",80111600,"POLIZA","Calidad del servicio - Cumplimiento del contrato",null,"2024-01-18","2024-01-18","2024-01-18","2024-01-18","2024-12-17",330,{"$f":"DATEDIF('BASE 2023 FPS'!$BF138-1,'BASE 2023 FPS'!$BG138,\"m\")","v":11},null,null,null,null,null,null,null,null,null,null,null,null,null,null,null,null,null,null,null,null,null,null,null,null,null,null,null,null,null,null,null,null,null,null,null,null,null,null,null,null,null,null,null,null,{"$f":"'BASE 2023 FPS'!$BF138","v":"2024-01-18"},{"$f":"'BASE 2023 FPS'!$DG138+'BASE 2023 FPS'!$BG138","v":"2024-12-17"},null,{"$f":"AI138+'BASE 2023 FPS'!$DH138","v":71005275},null,null,null,null,{"$f":"_xlfn.IFS(Table_1[[#This Row],[PLAZO DE EJECUCIÓN FINAL DEL CONTRATO\n(HASTA)]]<=TODAY(),\"FINALIZADO\",Table_1[[#This Row],[PLAZO DE EJECUCIÓN FINAL DEL CONTRATO\n(HASTA)]]>=TODAY(),\"EN EJECUCION\")","v":{"$error":"#NAME?"}},null,null,null,{"$f":"_xlfn.IFS(Table_1[[#This Row],[% Ejecucion\nAgosto 2022]]<100,Table_1[[#This Row],[% Ejecucion\nAgosto 2022]],Table_1[[#This Row],[% Ejecucion\nAgosto 2022]]>=100,\"100\")","v":{"$error":"#NAME?"}}]
[2024,"CPS-146-2024",null,null,"F5.1","2 CONTRATACIÓN DIRECTA","CPS-146-2024","14 PRESTACIÓN DE SERVICIOS","PROFESIONALES","JENNIFER BEATRIZ URUETA HERRERA","Formación requerida en una (1) carrera profesional "," Ciencias Sociales y Humanas","1 PERSONA NATURAL","3 CÉDULA DE CIUDADANÍA",1129511697,1129511697,null,"11 NO SE DILIGENCIA INFORMACIÓN PARA ESTE FORMULARIO EN ESTE PERÍODO DE REPORTE","NO APLICA","NO APLICA","NO APLICA","LUZ FANY VACA GUTIERREZ",1024,"2024-01-13",null,null,null,null,null,"SECRETARIA GENERAL- GIT ATENCIÓN AL CIUDADANO Y GESTIÓN DOCUMENTAL","SECRETARIA GENERAL- GIT ATENCIÓN AL CIUDADANO Y GESTIÓN DOCUMENTAL","PRESTAR LOS SERVICIOS PROFESIONALES COMO ABOGADA AL GRUPO INTERNO DE TRABAJO DE ATENCIÓN AL CIUDADANO Y GESTIÓN DOCUMENTAL DEL FONDO DE PASIVO SOCIAL DE FERROCARRILES NACIONALES DE COLOMBIA ",{"$f":"LEFT('BASE 2023 FPS'!$AF139,390)","v":"PRESTAR LOS SERVICIOS PROFESIONALES COMO ABOGADA AL GRUPO INTERNO DE TRABAJO DE ATENCIÓN AL CIUDADANO Y GESTIÓN DOCUMENTAL DEL FONDO DE PASIVO SOCIAL DE FERROCARRILES NACIONALES DE COLOMBIA "},4064275,44707025,"2024-01-18",1,1,"COLOMBIA > Distrito Capital de Bogotá > Bogotá","COLOMBIA > Distrito Capital de Bogotá > Bogotá","2 SUPERVISOR","NO APLICA","5 NO SE TIENE ESTE TIPO DE SEGUIMIENTO EN EL CONTRATO","NO APLICA","11 NO SE DILIGENCIA INFORMACIÓN PARA ESTE FORMULARIO EN ESTE PERÍODO DE REPORTE",39526262,"NURY NAVARRO HERNADEZ","SECRETARIA GENERAL – ATENCION AL CIUDADANO Y GESTION DOCUMENTAL","SECRETARIA GENERAL – ATENCION AL CIUDADANO Y GESTION DOCUMENTAL","NO",80111600,"POLIZA","Calidad del servicio - Cumplimiento del contrato",null,"2024-01-18","2024-01-18","2024-01-18","2024-01-18","2024-12-17",330,{"$f":"DATEDIF('BASE 2023 FPS'!$BF139-1,'BASE 2023 FPS'!$BG139,\"m\")","v":11}]
[2024,"CPS-147-2024",null,null,"F5.1","2 CONTRATACIÓN DIRECTA","CPS-147-2024","14 PRESTACIÓN DE SERVICIOS","PROFESIONALES","LAURA VICTORIA CACERES PERDOMO","Formación requerida en una (1) carrera profesional "," Ciencias Sociales y Humanas","1 PERSONA NATURAL","3 CÉDULA DE CIUDADANÍA",1110540083,1110540083,null,"11 NO SE DILIGENCIA INFORMACIÓN PARA ESTE FORMULARIO EN ESTE PERÍODO DE REPORTE","NO APLICA","NO APLICA","NO APLICA","LUZ FANY VACA GUTIERREZ",1024,"2024-01-13",null,null,null,null,null,"OFICINA ASESORA JURÍDICA","OFICINA ASESORA JURÍDICA","PRESTAR LOS SERVICIOS PROFESIONALES COMO ABOGADA PARA APOYAR LAS ACTIVIDADES RELACIONADAS CON LOS ASUNTOS JURÍDICOS Y ADMINISTRATIVOS DESDE LA OFICINA ASESORA JURÍDICA DEL FONDO DE PASIVO SOCIAL DE FERROCARRILES NACIONALES DE COLOMBIA ",{"$f":"LEFT('BASE 2023 FPS'!$AF140,390)","v":"PRESTAR LOS SERVICIOS PROFESIONALES COMO ABOGADA PARA APOYAR LAS ACTIVIDADES RELACIONADAS CON LOS ASUNTOS JURÍDICOS Y ADMINISTRATIVOS DESDE LA OFICINA ASESORA JURÍDICA DEL FONDO DE PASIVO SOCIAL DE FERROCARRILES NACIONALES DE COLOMBIA "},6455025,71005275,"2024-01-19",1,1,"COLOMBIA > Distrito Capital de Bogotá > Bogotá","COLOMBIA > Distrito Capital de Bogotá > Bogotá","2 SUPERVISOR","NO APLICA","5 NO SE TIENE ESTE TIPO DE SEGUIMIENTO EN EL CONTRATO","NO APLICA","11 NO SE DILIGENCIA INFORMACIÓN PARA ESTE FORMULARIO EN ESTE PERÍODO DE REPORTE",65767422,"ANDREA ALDANA TRUJILLO","OFICINA ASESORA JURÍDICA","OFICINA ASESORA JURÍDICA","NO",80111600,"POLIZA","Calidad del servicio - Cumplimiento del contrato",null,"2024-01-19","2024-01-19","2024-01-19","2024-01-19","2024-12-18",330,{"$f":"DATEDIF('BASE 2023 FPS'!$BF140-1,'BASE 2023 FPS'!$BG140,\"m\")","v":11}]
[2024,"CPS-148-2024",null,null,"F5.1","2 CONTRATACIÓN DIRECTA","CPS-148-2024","14 PRESTACIÓN DE SERVICIOS","PROFESIONALES","MAYRA ALEJANDRA DURAN REINOSO","Formación requerida en una (1) carrera profesional y una  (1) especialización "," Ciencias Sociales y Humanas","1 PERSONA NATURAL","3 CÉDULA DE CIUDADANÍA",1018465302,1018465302,null,"11 NO SE DILIGENCIA INFORMACIÓN PARA ESTE FORMULARIO EN ESTE PERÍODO DE REPORTE","NO APLICA","NO APLICA","NO APLICA","LUZ FANY VACA GUTIERREZ",1024,"2024-01-13",null,null,null,null,null,"OFICINA ASESORA JURÍDICA","OFICINA ASESORA JURÍDICA","PRESTAR LOS SERVICIOS PROFESIONALES COMO ABOGADA ESPECIALISTA PARA APOYAR A LA OFICINA ASESORA JURÍDICA EN LAS ACTIVIDADES ADMINISTRATIVAS, DEPURACION DE TÍTULOS DE DEPÓSITO JUDICIAL, TRASLADO DE RECURSOS Y COBRO COACTIVO DEL FONDO DE PASIVO SOCIAL DE FERROCARRILES NACIONALES DE COLOMBIA. ",{"$f":"LEFT('BASE 2023 FPS'!$AF141,390)","v":"PRESTAR LOS SERVICIOS PROFESIONALES COMO ABOGADA ESPECIALISTA PARA APOYAR A LA OFICINA ASESORA JURÍDICA EN LAS ACTIVIDADES ADMINISTRATIVAS, DEPURACION DE TÍTULOS DE DEPÓSITO JUDICIAL, TRASLADO DE RECURSOS Y COBRO COACTIVO DEL FONDO DE PASIVO SOCIAL DE FERROCARRILES NACIONALES DE COLOMBIA. "},6096412,30482060,"2024-01-19",1,1,"COLOMBIA > Distrito Capital de Bogotá > Bogotá","COLOMBIA > Distrito Capital de Bogotá > Bogotá","2 SUPERVISOR","NO APLICA","5 NO SE TIENE ESTE TIPO DE SEGUIMIENTO EN EL CONTRATO","NO APLICA","11 NO SE DILIGENCIA INFORMACIÓN PARA ESTE FORMULARIO EN ESTE PERÍODO DE REPORTE",65767422,"ANDREA ALDANA TRUJILLO","OFICINA ASESORA JURÍDICA","OFICINA ASESORA JURÍDICA","NO",80111600,"POLIZA","Calidad del servicio - Cumplimiento del contrato",null,"2024-01-19","2024-01-19","2024-01-19","2024-01-19","2024-06-18",150,{"$f":"DATEDIF('BASE 2023 FPS'!$BF141-1,'BASE 2023 FPS'!$BG141,\"m\")","v":5}]
[2024,"CPS-149-2024",null,null,"F5.1","2 CONTRATACIÓN DIRECTA","CPS-149-2024","14 PRESTACIÓN DE SERVICIOS","PROFESIONALES","DELFINA GAMEZ QUINTERO","Formación requerida en una (1) carrera profesional "," Ciencias de la Salud","1 PERSONA NATURAL","3 CÉDULA DE CIUDADANÍA",1121332854,1121332854,null,"11 NO SE DILIGENCIA INFORMACIÓN PARA ESTE FORMULARIO EN ESTE PERÍODO DE REPORTE","NO APLICA","NO APLICA","NO APLICA","LUZ FANY VACA GUTIERREZ",1024,"2024-01-13",null,null,null,null,null,"JEFE GRUPO DE TRABAJO CONTROL INTERNO","GRUPO DE TRABAJO CONTROL INTERNO","PRESTAR LOS SERVICIOS PROFESIONALES COMO BACTERIÓLOGA - AUDITORA PARA APOYAR A LA OFICINA DE CONTROL INTERNO DEL FONDO DE PASIVO SOCIAL DE FERROCARRILES NACIONALES DE COLOMBIA ",{"$f":"LEFT('BASE 2023 FPS'!$AF142,390)","v":"PRESTAR LOS SERVICIOS PROFESIONALES COMO BACTERIÓLOGA - AUDITORA PARA APOYAR A LA OFICINA DE CONTROL INTERNO DEL FONDO DE PASIVO SOCIAL DE FERROCARRILES NACIONALES DE COLOMBIA "},6096412,67060532,"2024-01-19",1,1,"COLOMBIA > Distrito Capital de Bogotá > Bogotá","COLOMBIA > Distrito Capital de Bogotá > Bogotá","2 SUPERVISOR","NO APLICA","5 NO SE TIENE ESTE TIPO DE SEGUIMIENTO EN EL CONTRATO","NO APLICA","11 NO SE DILIGENCIA INFORMACIÓN PARA ESTE FORMULARIO EN ESTE PERÍODO DE REPORTE",24218560,"CIRO JORGE EDGAR SANCHEZ CASTRO","JEFE GRUPO DE TRABAJO CONTROL INTERNO","GRUPO DE TRABAJO CONTROL INTERNO","NO",80111600,"POLIZA","Calidad del servicio - Cumplimiento del contrato",null,"2024-01-19","2024-01-19","2024-01-19","2024-01-19","2024-12-18",330,{"$f":"DATEDIF('BASE 2023 FPS'!$BF142-1,'BASE 2023 FPS'!$BG142,\"m\")","v":11}]
[2024,"CPS-150-2024",null,null,"F5.1","2 CONTRATACIÓN DIRECTA","CPS-150-2024","14 PRESTACIÓN DE SERVICIOS","PROFESIONALES","CARLOS ANDRES LOPEZ QUINTERO","Formación requerida en una (1) carrera profesional "," Ingeniería, Arquitectura, Urbanismo y afines","1 PERSONA NATURAL","3 CÉDULA DE CIUDADANÍA",1121332435,1121332435,null,"11 NO SE DILIGENCIA INFORMACIÓN PARA ESTE FORMULARIO EN ESTE PERÍODO DE REPORTE","NO APLICA","NO APLICA","NO APLICA","LUZ FANY VACA GUTIERREZ",1024,"2024-01-13",null,null,null,null,null,"JEFE OFICINA ASESORA PLANEACION Y SISTEMAS","OFICINA ASESORA PLANEACION Y SISTEMAS","PRESTAR LOS SERVICIOS PROFESIONALES COMO INGENIERO AMBIENTAL PARA APOYAR LA GESTIÓN TÉCNICA Y ADMINISTRATIVA DE LA OFICINA ASESORA DE PLANEACIÓN Y SISTEMAS DEL FONDO DE PASIVO SOCIAL DE FERROCARRILES NACIONALES DE COLOMBIA. ",{"$f":"LEFT('BASE 2023 FPS'!$AF143,390)","v":"PRESTAR LOS SERVICIOS PROFESIONALES COMO INGENIERO AMBIENTAL PARA APOYAR LA GESTIÓN TÉCNICA Y ADMINISTRATIVA DE LA OFICINA ASESORA DE PLANEACIÓN Y SISTEMAS DEL FONDO DE PASIVO SOCIAL DE FERROCARRILES NACIONALES DE COLOMBIA. "},5259650,57856150,"2024-01-18",1,1,"COLOMBIA > Distrito Capital de Bogotá > Bogotá","COLOMBIA > Distrito Capital de Bogotá > Bogotá","2 SUPERVISOR","NO APLICA","5 NO SE TIENE ESTE TIPO DE SEGUIMIENTO EN EL CONTRATO","NO APLICA","11 NO SE DILIGENCIA INFORMACIÓN PARA ESTE FORMULARIO EN ESTE PERÍODO DE REPORTE",24218560,"MARIA YANETH FARFAN CASALLAS","JEFE OFICINA ASESORA PLANEACION Y SISTEMAS","OFICINA ASESORA PLANEACION Y SISTEMAS","NO",80111600,"POLIZA","Calidad del servicio - Cumplimiento del contrato",null,"2024-01-18","2024-01-18","2024-01-18","2024-01-18","2024-12-17",330,{"$f":"DATEDIF('BASE 2023 FPS'!$BF143-1,'BASE 2023 FPS'!$BG143,\"m\")","v":11}]
[2024,"CPS-151-2024",null,null,"F5.1","2 CONTRATACIÓN DIRECTA","CPS-151-2024","14 PRESTACIÓN DE SERVICIOS","PROFESIONALES","JUAN FELIPE PAZ SOCARRAS","Formación requerida en una (1) carrera profesional "," Economía, Administración, Contaduría y afines","1 PERSONA NATURAL","3 CÉDULA DE CIUDADANÍA",1070011765,1070011765,null,"11 NO SE DILIGENCIA INFORMACIÓN PARA ESTE FORMULARIO EN ESTE PERÍODO DE REPORTE","NO APLICA","NO APLICA","NO APLICA","LUZ FANY VACA GUTIERREZ",1024,"2024-01-13",null,null,null,null,null,"GIT GESTION PRESTACIONES ECONOMICAS","GIT GESTION PRESTACIONES ECONOMICAS","PRESTAR LOS SERVICIOS PROFESIONALES PARA APOYAR LA GESTIÓN ADMINISTRATIVA DE LAS ACTIVIDADES PROPIAS DEL GRUPO INTERNO DE TRABAJO GESTIÓN PRESTACIONES ECONÓMICAS DEL FONDO DE PASIVO SOCIAL DE FERROCARRILES NACIONALES DE COLOMBIA. ",{"$f":"LEFT('BASE 2023 FPS'!$AF144,390)","v":"PRESTAR LOS SERVICIOS PROFESIONALES PARA APOYAR LA GESTIÓN ADMINISTRATIVA DE LAS ACTIVIDADES PROPIAS DEL GRUPO INTERNO DE TRABAJO GESTIÓN PRESTACIONES ECONÓMICAS DEL FONDO DE PASIVO SOCIAL DE FERROCARRILES NACIONALES DE COLOMBIA. "},4901037,53911407,"2024-01-18",1,1,"COLOMBIA > Distrito Capital de Bogotá > Bogotá","COLOMBIA > Distrito Capital de Bogotá > Bogotá","2 SUPERVISOR","NO APLICA","5 NO SE TIENE ESTE TIPO DE SEGUIMIENTO EN EL CONTRATO","NO APLICA","11 NO SE DILIGENCIA INFORMACIÓN PARA ESTE FORMULARIO EN ESTE PERÍODO DE REPORTE",49607561,"LEIVIS MARIANA BOTINA MONTERO","GIT GESTION PRESTACIONES ECONOMICAS","GIT GESTION PRESTACIONES ECONOMICAS","NO",80111600,"POLIZA","Calidad del servicio - Cumplimiento del contrato",null,"2024-01-18","2024-01-18","2024-01-18","2024-01-18","2024-12-17",330,{"$f":"DATEDIF('BASE 2023 FPS'!$BF144-1,'BASE 2023 FPS'!$BG144,\"m\")","v":11}]
[2024,"CPS-152-2024",null,null,"F5.1","2 CONTRATACIÓN DIRECTA","CPS-152-2024","14 PRESTACIÓN DE SERVICIOS","PROFESIONALES","MARGARITA ROSA SIERRA","Formación requerida en una (1) carrera profesional "," Economía, Administración, Contaduría y afines","1 PERSONA NATURAL","3 CÉDULA DE CIUDADANÍA",56098544,56098544,null,"11 NO SE DILIGENCIA INFORMACIÓN PARA ESTE FORMULARIO EN ESTE PERÍODO DE REPORTE","NO APLICA","NO APLICA","NO APLICA","LUZ FANY VACA GUTIERREZ",1024,"2024-01-13",null,null,null,null,null,"COORDINADOR GIT BIENES, COMPRAS Y SERVICIOS ADMINISTRATIVOS","GIT BIENES, COMPRAS Y SERVICIOS ADMINISTRATIVOS","PRESTAR LOS SERVICIOS PROFESIONALES COMO ADMINISTRADORA DE EMPRESAS PARA APOYAR A LA GESTIÓN ADMINISTRATVIA QUE ADELANTA LA COORDINACIÓN GIT BIENES, COMPRAS Y SERVICIOSADMINISTRATIVOS DEL FONDO DEPASIVO SOCIAL DE FERROCARRILES NACIONALES DE COLOMBIA ",{"$f":"LEFT('BASE 2023 FPS'!$AF145,390)","v":"PRESTAR LOS SERVICIOS PROFESIONALES COMO ADMINISTRADORA DE EMPRESAS PARA APOYAR A LA GESTIÓN ADMINISTRATVIA QUE ADELANTA LA COORDINACIÓN GIT BIENES, COMPRAS Y SERVICIOSADMINISTRATIVOS DEL FONDO DEPASIVO SOCIAL DE FERROCARRILES NACIONALES DE COLOMBIA "},4661962,51281582,"2024-01-18",1,1,"COLOMBIA > Distrito Capital de Bogotá > Bogotá","COLOMBIA > Distrito Capital de Bogotá > Bogotá","2 SUPERVISOR","NO APLICA","5 NO SE TIENE ESTE TIPO DE SEGUIMIENTO EN EL CONTRATO","NO APLICA","11 NO SE DILIGENCIA INFORMACIÓN PARA ESTE FORMULARIO EN ESTE PERÍODO DE REPORTE",5711553,"LUIS ALBERTO SEGURA BECERRA","COORDINADOR GIT BIENES, COMPRAS Y SERVICIOS ADMINISTRATIVOS","GIT BIENES, COMPRAS Y SERVICIOS ADMINISTRATIVOS","NO",80111600,"POLIZA","Calidad del servicio - Cumplimiento del contrato",null,"2024-01-18","2024-01-18","2024-01-18","2024-01-18","2024-12-17",330,{"$f":"DATEDIF('BASE 2023 FPS'!$BF145-1,'BASE 2023 FPS'!$BG145,\"m\")","v":11},null,null,null,null,null,null,null,null,null,null,null,null,null,null,null,null,null,null,null,null,null,null,null,null,null,null,null,null,null,null,null,null,null,null,null,null,null,null,null,null,null,null,null,null,{"$f":"'BASE 2023 FPS'!$BF145","v":"2024-01-18"},{"$f":"'BASE 2023 FPS'!$DG145+'BASE 2023 FPS'!$BG145","v":"2024-12-17"},null,{"$f":"AI145+'BASE 2023 FPS'!$DH145","v":51281582},null,null,null,null,{"$f":"_xlfn.IFS(Table_1[[#This Row],[PLAZO DE EJECUCIÓN FINAL DEL CONTRATO\n(HASTA)]]<=TODAY(),\"FINALIZADO\",Table_1[[#This Row],[PLAZO DE EJECUCIÓN FINAL DEL CONTRATO\n(HASTA)]]>=TODAY(),\"EN EJECUCION\")","v":{"$error":"#NAME?"}},null,null,null,{"$f":"_xlfn.IFS(Table_1[[#This Row],[% Ejecucion\nAgosto 2022]]<100,Table_1[[#This Row],[% Ejecucion\nAgosto 2022]],Table_1[[#This Row],[% Ejecucion\nAgosto 2022]]>=100,\"100\")","v":{"$error":"#NAME?"}}]
[2024,"CPS-153-2024",null,"SI APLICA","F5.1","2 CONTRATACIÓN DIRECTA","CPS-153-2024","14 PRESTACIÓN DE SERVICIOS","PROFESIONALES","ANA VICTORIA VIANA MARTINEZ","Formación requerida en una (1) carrera profesional "," Ciencias Sociales y Humanas","1 PERSONA NATURAL","3 CÉDULA DE CIUDADANÍA",1047458945,1047458945,null,"11 NO SE DILIGENCIA INFORMACIÓN PARA ESTE FORMULARIO EN ESTE PERÍODO DE REPORTE","NO APLICA","NO APLICA","NO APLICA","LUZ FANY VACA GUTIERREZ",1024,"2024-01-13",11324,"2024-01-18","A-02-02-02-008-003","Funcionamiento","19-14-02 FONDO PASIVO SOCIAL DE FERROCARRILES NACIONALES DE COLOMBIA - PENSIONES","COORDINADOR GIT BIENES, COMPRAS Y SERVICIOS ADMINISTRATIVOS","GIT BIENES, COMPRAS Y SERVICIOS ADMINISTRATIVOS","PRESTAR LOS SERVICIOS PROFESIONALES COMO ABOGADA PARA APOYAR LAS GESTIONES ADMINISTRATIVAS Y JURIDCAS DESDE LA SECRETARIA GENERAL / COORDINACIÓN DEL GIT GESTIÓN BIENES, COMPRAS Y SERVICIOS ADMINISTRATIVOS DEL FONDO DE PASIVO SOCIAL DE FERROCARRILES NACIONALES DE COLOMBIA. ",{"$f":"LEFT('BASE 2023 FPS'!$AF146,390)","v":"PRESTAR LOS SERVICIOS PROFESIONALES COMO ABOGADA PARA APOYAR LAS GESTIONES ADMINISTRATIVAS Y JURIDCAS DESDE LA SECRETARIA GENERAL / COORDINACIÓN DEL GIT GESTIÓN BIENES, COMPRAS Y SERVICIOS ADMINISTRATIVOS DEL FONDO DE PASIVO SOCIAL DE FERROCARRILES NACIONALES DE COLOMBIA. "},4901037,53911407,"2024-01-18",1,1,"COLOMBIA > Distrito Capital de Bogotá > Bogotá","COLOMBIA > Distrito Capital de Bogotá > Bogotá","2 SUPERVISOR","NO APLICA","5 NO SE TIENE ESTE TIPO DE SEGUIMIENTO EN EL CONTRATO","NO APLICA","11 NO SE DILIGENCIA INFORMACIÓN PARA ESTE FORMULARIO EN ESTE PERÍODO DE REPORTE",5711553,"LUIS ALBERTO SEGURA BECERRA","COORDINADOR GIT BIENES, COMPRAS Y SERVICIOS ADMINISTRATIVOS","GIT BIENES, COMPRAS Y SERVICIOS ADMINISTRATIVOS","NO",80111600,"POLIZA","Calidad del servicio - Cumplimiento del contrato",null,"2024-01-18","2024-01-18","2024-01-18","2024-01-18","2024-12-17",330,{"$f":"DATEDIF('BASE 2023 FPS'!$BF146-1,'BASE 2023 FPS'!$BG146,\"m\")","v":11},"SI APLICA",null,null,null,null,null,null,null,null,null,null,null,null,null,null,null,null,null,null,null,null,null,null,null,null,null,null,null,null,null,null,null,null,"SI APLICA","2024-01-23",53911407,53911407,null,null,null,null,null,null,null,{"$f":"'BASE 2023 FPS'!$BF146","v":"2024-01-18"},{"$f":"'BASE 2023 FPS'!$DG146+'BASE 2023 FPS'!$BG146","v":"2024-12-17"},null,{"$f":"AI146+'BASE 2023 FPS'!$DH146","v":53911407},null,null,null,null,{"$f":"_xlfn.IFS(Table_1[[#This Row],[PLAZO DE EJECUCIÓN FINAL DEL CONTRATO\n(HASTA)]]<=TODAY(),\"FINALIZADO\",Table_1[[#This Row],[PLAZO DE EJECUCIÓN FINAL DEL CONTRATO\n(HASTA)]]>=TODAY(),\"EN EJECUCION\")","v":{"$error":"#NAME?"}},null,null,null,{"$f":"_xlfn.IFS(Table_1[[#This Row],[% Ejecucion\nAgosto 2022]]<100,Table_1[[#This Row],[% Ejecucion\nAgosto 2022]],Table_1[[#This Row],[% Ejecucion\nAgosto 2022]]>=100,\"100\")","v":{"$error":"#NAME?"}}]
[2024,"CPS-154-2024",null,null,"F5.1","2 CONTRATACIÓN DIRECTA","CPS-154-2024","14 PRESTACIÓN DE SERVICIOS","PROFESIONALES","ROSSANA GUERRERO PERCY","Formación requerida en una (1) carrera profesional "," Ciencias Sociales y Humanas","1 PERSONA NATURAL","3 CÉDULA DE CIUDADANÍA",1121338074,1121338074,null,"11 NO SE DILIGENCIA INFORMACIÓN PARA ESTE FORMULARIO EN ESTE PERÍODO DE REPORTE","NO APLICA","NO APLICA","NO APLICA","LUZ FANY VACA GUTIERREZ",1024,"2024-01-13",null,null,null,null,null,"COORDINADOR GIT BIENES, COMPRAS Y SERVICIOS ADMINISTRATIVOS","GIT BIENES, COMPRAS Y SERVICIOS ADMINISTRATIVOS","PRESTAR LOS SERVICIOS PROFESIONALES COMO ABOGADA EN LA GESTIÓN ADMINISTRATIVA Y JURIDICA QUE ADELANTA LA COORDINACIÓN GIT BIENES, COMPRAS Y SERVICIOS ADMINISTRATIVOS DEL FONDO DE PASIVO SOCIAL DE FERROCARRILES NACIONALES DE COLOMBIA ",{"$f":"LEFT('BASE 2023 FPS'!$AF147,390)","v":"PRESTAR LOS SERVICIOS PROFESIONALES COMO ABOGADA EN LA GESTIÓN ADMINISTRATIVA Y JURIDICA QUE ADELANTA LA COORDINACIÓN GIT BIENES, COMPRAS Y SERVICIOS ADMINISTRATIVOS DEL FONDO DE PASIVO SOCIAL DE FERROCARRILES NACIONALES DE COLOMBIA "},6096412,67060532,"2024-01-18",1,1,"COLOMBIA > Distrito Capital de Bogotá > Bogotá","COLOMBIA > Distrito Capital de Bogotá > Bogotá","2 SUPERVISOR","NO APLICA","5 NO SE TIENE ESTE TIPO DE SEGUIMIENTO EN EL CONTRATO","NO APLICA","11 NO SE DILIGENCIA INFORMACIÓN PARA ESTE FORMULARIO EN ESTE PERÍODO DE REPORTE",5711553,"LUIS ALBERTO SEGURA BECERRA","COORDINADOR GIT BIENES, COMPRAS Y SERVICIOS ADMINISTRATIVOS","GIT BIENES, COMPRAS Y SERVICIOS ADMINISTRATIVOS","NO",80111600,"POLIZA","Calidad del servicio - Cumplimiento del contrato",null,"2024-01-18","2024-01-18","2024-01-18","2024-01-18","2024-12-17",330,{"$f":"DATEDIF('BASE 2023 FPS'!$BF147-1,'BASE 2023 FPS'!$BG147,\"m\")","v":11}]
[2024,"CPS-155-2024",null,null,"F5.1","2 CONTRATACIÓN DIRECTA","CPS-155-2024","14 PRESTACIÓN DE SERVICIOS","PROFESIONALES","SONIA SAUCEDO MENDOZA","Formacion Tecnica"," Ciencias de la Salud","1 PERSONA NATURAL","3 CÉDULA DE CIUDADANÍA",66921407,66921407,null,"11 NO SE DILIGENCIA INFORMACIÓN PARA ESTE FORMULARIO EN ESTE PERÍODO DE REPORTE","NO APLICA","NO APLICA","NO APLICA","LUZ FANY VACA GUTIERREZ",1024,"2024-01-13",null,null,null,null,null,"GIT GESTIÓN PRESTACIÓN SERVICIOS DE SALUD","GIT GESTIÓN PRESTACIÓN SERVICIOS DE SALUD","PRESTAR LOS SERVICIOS DE APOYO A LA GESTIÓN DEL GIT GESTIÓN DE PRESTACIÓN DE SERVICIOS DE SALUD EN LA DIVISIÓN PACÍFICO (CIUDAD CALI) DEL FONDO DE PASIVO SOCIAL DE FERROCARRILES NACIONALES DE COLOMBIA. ",{"$f":"LEFT('BASE 2023 FPS'!$AF148,390)","v":"PRESTAR LOS SERVICIOS DE APOYO A LA GESTIÓN DEL GIT GESTIÓN DE PRESTACIÓN DE SERVICIOS DE SALUD EN LA DIVISIÓN PACÍFICO (CIUDAD CALI) DEL FONDO DE PASIVO SOCIAL DE FERROCARRILES NACIONALES DE COLOMBIA. "},3705662,40762282,"2024-01-18",1,1,"COLOMBIA > Distrito Capital de Bogotá > Bogotá","COLOMBIA > Distrito Capital de Bogotá > Bogotá","2 SUPERVISOR","NO APLICA","5 NO SE TIENE ESTE TIPO DE SEGUIMIENTO EN EL CONTRATO","NO APLICA","11 NO SE DILIGENCIA INFORMACIÓN PARA ESTE FORMULARIO EN ESTE PERÍODO DE REPORTE",24326606,"ISABEL CRISTINA GALLO MEJIA","COORDINADORA GIT GESTIÓN PRESTACIÓN SERVICIOS DE SALUD","GIT GESTIÓN PRESTACIÓN SERVICIOS DE SALUD","NO",80111600,"POLIZA","Calidad del servicio - Cumplimiento del contrato",null,"2024-01-18","2024-01-18","2024-01-18","2024-01-18","2024-12-17",330,{"$f":"DATEDIF('BASE 2023 FPS'!$BF148-1,'BASE 2023 FPS'!$BG148,\"m\")","v":11}]
[2024,"CPS-156-2024",null,null,"F5.1","2 CONTRATACIÓN DIRECTA","CPS-156-2024","14 PRESTACIÓN DE SERVICIOS","PROFESIONALES","EMERSON MENESES GONZALEZ","Formación requerida en una (1) carrera profesional y una  (1) especialización "," Ciencias Sociales y Humanas","1 PERSONA NATURAL","3 CÉDULA DE CIUDADANÍA",88213651,88213651,null,"11 NO SE DILIGENCIA INFORMACIÓN PARA ESTE FORMULARIO EN ESTE PERÍODO DE REPORTE","NO APLICA","NO APLICA","NO APLICA","LUZ FANY VACA GUTIERREZ",1024,"2024-01-13",null,null,null,null,null,"SECRETARIO GENERAL","SECRETARIO GENERAL","PRESTAR LOS SERVICIOS PROFESIONALES ESPECIALIZADOS COMO ABOGADO DESDE LA SECRETARÍA GENERAL DEL FONDO DE PASIVO SOCIAL DE FERROCARRILES NACIONALES DE COLOMBIA ",{"$f":"LEFT('BASE 2023 FPS'!$AF149,390)","v":"PRESTAR LOS SERVICIOS PROFESIONALES ESPECIALIZADOS COMO ABOGADO DESDE LA SECRETARÍA GENERAL DEL FONDO DE PASIVO SOCIAL DE FERROCARRILES NACIONALES DE COLOMBIA "},7889475,86784225,"2024-01-18",1,1,"COLOMBIA > Distrito Capital de Bogotá > Bogotá","COLOMBIA > Distrito Capital de Bogotá > Bogotá","2 SUPERVISOR","NO APLICA","5 NO SE TIENE ESTE TIPO DE SEGUIMIENTO EN EL CONTRATO","NO APLICA","11 NO SE DILIGENCIA INFORMACIÓN PARA ESTE FORMULARIO EN ESTE PERÍODO DE REPORTE",17956156,"CARLOS ANDRES TOVAR OROZCO","SECRETARIO GENERAL","SECRETARIA GENERAL","NO",80111600,"POLIZA","Calidad del servicio - Cumplimiento del contrato",null,"2024-01-18","2024-01-18","2024-01-18","2024-01-18","2024-12-17",330,{"$f":"DATEDIF('BASE 2023 FPS'!$BF149-1,'BASE 2023 FPS'!$BG149,\"m\")","v":11}]
[2024,"CPS-157-2024",null,null,"F5.1","2 CONTRATACIÓN DIRECTA","CPS-157-2024","14 PRESTACIÓN DE SERVICIOS","PROFESIONALES","HUGO ALFONDO GONGORA REINOSO","Formación requerida en una (1) carrera profesional "," Economía, Administración, Contaduría y afines","1 PERSONA NATURAL","3 CÉDULA DE CIUDADANÍA",5976183,5976183,null,"11 NO SE DILIGENCIA INFORMACIÓN PARA ESTE FORMULARIO EN ESTE PERÍODO DE REPORTE","NO APLICA","NO APLICA","NO APLICA","LUZ FANY VACA GUTIERREZ",1024,"2024-01-13",null,null,null,null,null,"OFICINA ASESORA JURÍDICA","OFICINA ASESORA JURÍDICA","PRESTAR LOS SERVICIOS PROFESIONALES PARA APOYAR LA GESTIÓN CONTABLE, FINANCIERA Y ADMINISTRATIVA DE LA OFICINA ASESORA JURÍDICA EN LOS TEMAS RELACIONADOS CON EL COBRO COACTIVO DEL FONDO PASIVO SOCIAL DE FERROCARRILES NACIONALES DE COLOMBIA ",{"$f":"LEFT('BASE 2023 FPS'!$AF150,390)","v":"PRESTAR LOS SERVICIOS PROFESIONALES PARA APOYAR LA GESTIÓN CONTABLE, FINANCIERA Y ADMINISTRATIVA DE LA OFICINA ASESORA JURÍDICA EN LOS TEMAS RELACIONADOS CON EL COBRO COACTIVO DEL FONDO PASIVO SOCIAL DE FERROCARRILES NACIONALES DE COLOMBIA "},6455025,32275125,"2024-01-19",1,1,"COLOMBIA > Distrito Capital de Bogotá > Bogotá","COLOMBIA > Distrito Capital de Bogotá > Bogotá","2 SUPERVISOR","NO APLICA","5 NO SE TIENE ESTE TIPO DE SEGUIMIENTO EN EL CONTRATO","NO APLICA","11 NO SE DILIGENCIA INFORMACIÓN PARA ESTE FORMULARIO EN ESTE PERÍODO DE REPORTE",65767422,"ANDREA ALDANA TRUJILLO","OFICINA ASESORA JURÍDICA","OFICINA ASESORA JURÍDICA","NO",80111600,"POLIZA","Calidad del servicio - Cumplimiento del contrato",null,"2024-01-18","2024-01-18","2024-01-18","2024-01-18","2024-12-17",330,{"$f":"DATEDIF('BASE 2023 FPS'!$BF150-1,'BASE 2023 FPS'!$BG150,\"m\")","v":11}]
[2024,"CPS-158-2024",null,null,"F5.1","2 CONTRATACIÓN DIRECTA","CPS-158-2024","14 PRESTACIÓN DE SERVICIOS","PROFESIONALES","GUSTAVO ADOLFO PEZZOTTI","Formación requerida en una (1) carrera profesional y una  (1) especialización "," Ciencias Sociales y Humanas","1 PERSONA NATURAL","3 CÉDULA DE CIUDADANÍA",1090445802,1090445802,null,"11 NO SE DILIGENCIA INFORMACIÓN PARA ESTE FORMULARIO EN ESTE PERÍODO DE REPORTE","NO APLICA","NO APLICA","NO APLICA","LUZ FANY VACA GUTIERREZ",1024,"2024-01-13",null,null,null,null,null,"SECRETARIO GENERAL","SECRETARIO GENERAL","PRESTAR LOS SERVICIOS PROFESIONALES ESPECIALIZADOS COMO ABOGADO PARA APOYAR LAS ACTIVIDADES JURÍDICAS EN LA SECRETARIA GENERAL DEL FONDO DE PASIVO SOCIAL DE FERROCARRILES NACIONALES DE COLOMBIA ",{"$f":"LEFT('BASE 2023 FPS'!$AF151,390)","v":"PRESTAR LOS SERVICIOS PROFESIONALES ESPECIALIZADOS COMO ABOGADO PARA APOYAR LAS ACTIVIDADES JURÍDICAS EN LA SECRETARIA GENERAL DEL FONDO DE PASIVO SOCIAL DE FERROCARRILES NACIONALES DE COLOMBIA "},7889475,86784225,"2024-01-19",1,1,"COLOMBIA > Distrito Capital de Bogotá > Bogotá","COLOMBIA > Distrito Capital de Bogotá > Bogotá","2 SUPERVISOR","NO APLICA","5 NO SE TIENE ESTE TIPO DE SEGUIMIENTO EN EL CONTRATO","NO APLICA","11 NO SE DILIGENCIA INFORMACIÓN PARA ESTE FORMULARIO EN ESTE PERÍODO DE REPORTE",17956156,"CARLOS ANDRES TOVAR OROZCO","SECRETARIO GENERAL","SECRETARIA GENERAL","NO",80111600,"POLIZA","Calidad del servicio - Cumplimiento del contrato",null,"2024-01-18","2024-01-18","2024-01-18","2024-01-18","2024-12-17",330,{"$f":"DATEDIF('BASE 2023 FPS'!$BF151-1,'BASE 2023 FPS'!$BG151,\"m\")","v":11}]
[2024,"CPS-159-2024",null,null,"F5.1","2 CONTRATACIÓN DIRECTA","CPS-159-2024","14 PRESTACIÓN DE SERVICIOS","PROFESIONALES","GERARDINO CALDERON GONZÁLEZ","Formación requerida en una (1) carrera profesional "," Ciencias Sociales y Humanas","1 PERSONA NATURAL","3 CÉDULA DE CIUDADANÍA",14272465,14272465,null,"11 NO SE DILIGENCIA INFORMACIÓN PARA ESTE FORMULARIO EN ESTE PERÍODO DE REPORTE","NO APLICA","NO APLICA","NO APLICA","LUZ FANY VACA GUTIERREZ",1024,"2024-01-13",null,null,null,null,null,"OFICINA ASESORA JURÍDICA","OFICINA ASESORA JURÍDICA","PRESTAR LOS SERVICIOS PROFESIONALES COMO ABOGADO PARA ADELANTAR LAS ACTIVIDADES RELACIONADAS CON LOS ASUNTOS JURIDICOS Y ADMINISTRATIVOS DESDE EL GIT DE DEFENSA JUDICIAL DEL FONDO DE PASIVO SOCIAL DE FERROCARRILES NACIONALES DE COLOMBIA. ",{"$f":"LEFT('BASE 2023 FPS'!$AF152,390)","v":"PRESTAR LOS SERVICIOS PROFESIONALES COMO ABOGADO PARA ADELANTAR LAS ACTIVIDADES RELACIONADAS CON LOS ASUNTOS JURIDICOS Y ADMINISTRATIVOS DESDE EL GIT DE DEFENSA JUDICIAL DEL FONDO DE PASIVO SOCIAL DE FERROCARRILES NACIONALES DE COLOMBIA. "},6455025,71005275,"2024-01-20",1,1,"COLOMBIA > Distrito Capital de Bogotá > Bogotá","COLOMBIA > Distrito Capital de Bogotá > Bogotá","2 SUPERVISOR","NO APLICA","5 NO SE TIENE ESTE TIPO DE SEGUIMIENTO EN EL CONTRATO","NO APLICA","11 NO SE DILIGENCIA INFORMACIÓN PARA ESTE FORMULARIO EN ESTE PERÍODO DE REPORTE",65767422,"ANDREA ALDANA TRUJILLO","OFICINA ASESORA JURÍDICA","OFICINA ASESORA JURÍDICA","NO",80111600,"POLIZA","Calidad del servicio - Cumplimiento del contrato",null,"2024-01-20","2024-01-20","2024-01-20","2024-01-20","2024-12-19",330,{"$f":"DATEDIF('BASE 2023 FPS'!$BF152-1,'BASE 2023 FPS'!$BG152,\"m\")","v":11}]
[2024,"CPS-160-2024",null,null,"F5.1","2 CONTRATACIÓN DIRECTA","CPS-160-2024","14 PRESTACIÓN DE SERVICIOS","PROFESIONALES","MARIA MERCEDES ARIZA","Formación requerida en una (1) carrera profesional "," Ciencias Sociales y Humanas","1 PERSONA NATURAL","3 CÉDULA DE CIUDADANÍA",1098821856,1098821856,null,"11 NO SE DILIGENCIA INFORMACIÓN PARA ESTE FORMULARIO EN ESTE PERÍODO DE REPORTE","NO APLICA","NO APLICA","NO APLICA","LUZ FANY VACA GUTIERREZ",1024,"2024-01-13",null,null,null,null,null,"GIT TALENTO HUMANO","GIT TALENTO HUMANO","PRESTAR LOS SERVICIOS PROFESIONALES COMO ABOGADA PARA APOYAR LA GESTIÓN ADMINISTRATIVA DEL GIT TALENTO HUMANO DE LA SECRETARÍA GENERAL DEL FONDO DE PASIVO SOCIAL DE FERROCARRILES NACIONALES DE COLOMBIA ",{"$f":"LEFT('BASE 2023 FPS'!$AF153,390)","v":"PRESTAR LOS SERVICIOS PROFESIONALES COMO ABOGADA PARA APOYAR LA GESTIÓN ADMINISTRATIVA DEL GIT TALENTO HUMANO DE LA SECRETARÍA GENERAL DEL FONDO DE PASIVO SOCIAL DE FERROCARRILES NACIONALES DE COLOMBIA "},6096412,67060532,"2024-01-19",1,1,"COLOMBIA > Distrito Capital de Bogotá > Bogotá","COLOMBIA > Distrito Capital de Bogotá > Bogotá","2 SUPERVISOR","NO APLICA","5 NO SE TIENE ESTE TIPO DE SEGUIMIENTO EN EL CONTRATO","NO APLICA","11 NO SE DILIGENCIA INFORMACIÓN PARA ESTE FORMULARIO EN ESTE PERÍODO DE REPORTE",1014212108,"TATIANA PEREZ SIERRA","GIT TALENTO HUMANO","GIT TALENTO HUMANO","NO",80111600,"POLIZA","Calidad del servicio - Cumplimiento del contrato",null,"2024-01-19","2024-01-19","2024-01-19","2024-01-19","2024-12-18",330,{"$f":"DATEDIF('BASE 2023 FPS'!$BF153-1,'BASE 2023 FPS'!$BG153,\"m\")","v":11}]
[2024,"CPS-161-2024",null,null,"F5.1","2 CONTRATACIÓN DIRECTA","CPS-161-2024","14 PRESTACIÓN DE SERVICIOS","PROFESIONALES","EMILY ALEXANDRA MENESES PRIETO","Formación requerida en una (1) carrera profesional "," Ciencias Sociales y Humanas","1 PERSONA NATURAL","3 CÉDULA DE CIUDADANÍA",1090504460,1090504460,null,"11 NO SE DILIGENCIA INFORMACIÓN PARA ESTE FORMULARIO EN ESTE PERÍODO DE REPORTE","NO APLICA","NO APLICA","NO APLICA","LUZ FANY VACA GUTIERREZ",1024,"2024-01-13",null,null,null,null,null,"SECRETARIO GENERAL","SECRETARIO GENERAL","PRESTAR LOS SERVICIOS PROFESIONALES COMO ABOGADA PARA APOYAR A LA GESTIÓN ADMINISTRATIVA QUE ADELANTA LA SECRETARIA GENERAL DEL FONDO DE PASIVO SOCIAL DE FERROCARRILES NACIONALES DE COLOMBIA. ",{"$f":"LEFT('BASE 2023 FPS'!$AF154,390)","v":"PRESTAR LOS SERVICIOS PROFESIONALES COMO ABOGADA PARA APOYAR A LA GESTIÓN ADMINISTRATIVA QUE ADELANTA LA SECRETARIA GENERAL DEL FONDO DE PASIVO SOCIAL DE FERROCARRILES NACIONALES DE COLOMBIA. "},5259650,57856150,"2024-01-19",1,1,"COLOMBIA > Distrito Capital de Bogotá > Bogotá","COLOMBIA > Distrito Capital de Bogotá > Bogotá","2 SUPERVISOR","NO APLICA","5 NO SE TIENE ESTE TIPO DE SEGUIMIENTO EN EL CONTRATO","NO APLICA","11 NO SE DILIGENCIA INFORMACIÓN PARA ESTE FORMULARIO EN ESTE PERÍODO DE REPORTE",17956156,"CARLOS ANDRES TOVAR OROZCO","SECRETARIO GENERAL","SECRETARIA GENERAL","NO",80111600,"POLIZA","Calidad del servicio - Cumplimiento del contrato",null,"2024-01-20","2024-01-20","2024-01-20","2024-01-20","2024-12-19",330,{"$f":"DATEDIF('BASE 2023 FPS'!$BF154-1,'BASE 2023 FPS'!$BG154,\"m\")","v":11}]
[2024,"CPS-162-2024",null,null,"F5.1","2 CONTRATACIÓN DIRECTA","CPS-162-2024","14 PRESTACIÓN DE SERVICIOS","PROFESIONALES","ZIOMARA ROJAS","Formación requerida en una (1) carrera profesional "," Ciencias de la Salud","1 PERSONA NATURAL","3 CÉDULA DE CIUDADANÍA",51600481,51600481,null,"11 NO SE DILIGENCIA INFORMACIÓN PARA ESTE FORMULARIO EN ESTE PERÍODO DE REPORTE","NO APLICA","NO APLICA","NO APLICA","LUZ FANY VACA GUTIERREZ",1024,"2024-01-13",null,null,null,null,null,"COORDINADORA GIT GESTIÓN PRESTACIÓN SERVICIOS DE SALUD","GIT GESTIÓN PRESTACIÓN SERVICIOS DE SALUD","PRESTAR LOS SERVICIOS PROFESIONALES COMO ENFERMERA PARA APOYAR LA GESTIÓN ADMINISTRATIVA A CARGO DEL GRUPO INTERNO DE TRABAJO GESTIÓN PRESTACIÓN DE SERVICIO DE SALUD DEL FONDO DE PASIVO SOCIAL DE FERROCARRILES NACIONALES DE COLOMBIA EN LA IMPLEMENTACIÓN, SEGUIMIENTO DE LOS PROGRAMAS Y RUTAS DEL MODELO INTEGRAL DE ATENCIÓN DEL FONDO (MAISFEN) Y EL PROGRAMA DE VIGILANCIA EN SALUD PÚBLICA ",{"$f":"LEFT('BASE 2023 FPS'!$AF155,390)","v":"PRESTAR LOS SERVICIOS PROFESIONALES COMO ENFERMERA PARA APOYAR LA GESTIÓN ADMINISTRATIVA A CARGO DEL GRUPO INTERNO DE TRABAJO GESTIÓN PRESTACIÓN DE SERVICIO DE SALUD DEL FONDO DE PASIVO SOCIAL DE FERROCARRILES NACIONALES DE COLOMBIA EN LA IMPLEMENTACIÓN, SEGUIMIENTO DE LOS PROGRAMAS Y RUTAS DEL MODELO INTEGRAL DE ATENCIÓN DEL FONDO (MAISFEN) Y EL PROGRAMA DE VIGILANCIA EN SALUD PÚBLICA "},7172250,78894750,"2024-01-19",1,1,"COLOMBIA > Distrito Capital de Bogotá > Bogotá","COLOMBIA > Distrito Capital de Bogotá > Bogotá","2 SUPERVISOR","NO APLICA","5 NO SE TIENE ESTE TIPO DE SEGUIMIENTO EN EL CONTRATO","NO APLICA","11 NO SE DILIGENCIA INFORMACIÓN PARA ESTE FORMULARIO EN ESTE PERÍODO DE REPORTE",35507261,"LUZ HELENA GUTIERREZ SUAREZ","COORDINADORA GIT GESTIÓN PRESTACIÓN SERVICIOS DE SALUD","GIT GESTIÓN PRESTACIÓN SERVICIOS DE SALUD","NO",80111600,"POLIZA","Calidad del servicio - Cumplimiento del contrato",null,"2024-01-19","2024-01-19","2024-01-19","2024-01-19","2024-12-18",330,{"$f":"DATEDIF('BASE 2023 FPS'!$BF155-1,'BASE 2023 FPS'!$BG155,\"m\")","v":11}]
[2024,"CPS-163-2024",null,null,"F5.1","2 CONTRATACIÓN DIRECTA","CPS-163-2024","14 PRESTACIÓN DE SERVICIOS","PROFESIONALES","GABRIELA TRONCOZO","Formación requerida en una (1) carrera profesional "," Economía, Administración, Contaduría y afines","1 PERSONA NATURAL","3 CÉDULA DE CIUDADANÍA",1010248803,1010248803,null,"11 NO SE DILIGENCIA INFORMACIÓN PARA ESTE FORMULARIO EN ESTE PERÍODO DE REPORTE","NO APLICA","NO APLICA","NO APLICA","LUZ FANY VACA GUTIERREZ",1024,"2024-01-13",null,null,null,null,null,"COORDINADOR GIT BIENES, COMPRAS Y SERVICIOS ADMINISTRATIVOS","GIT BIENES, COMPRAS Y SERVICIOS ADMINISTRATIVOS","PRESTAR LOS SERVICIOS PROFESIONALES COMO ADMINISTRADORA PUBLICA PARA APOYAR A LA GESTIÓN ADMINISTRATIVA QUE ADELANTA LA SECRETARIA GENERAL / COORDINACIÓN GIT BIENES, COMPRAS Y SERVICIOS ADMINISTRATIVOS DEL FONDO DE PASIVO SOCIAL DE FERROCARRILES NACIONALES DE COLOMBIA ",{"$f":"LEFT('BASE 2023 FPS'!$AF156,390)","v":"PRESTAR LOS SERVICIOS PROFESIONALES COMO ADMINISTRADORA PUBLICA PARA APOYAR A LA GESTIÓN ADMINISTRATIVA QUE ADELANTA LA SECRETARIA GENERAL / COORDINACIÓN GIT BIENES, COMPRAS Y SERVICIOS ADMINISTRATIVOS DEL FONDO DE PASIVO SOCIAL DE FERROCARRILES NACIONALES DE COLOMBIA "},3227512,35502632,"2024-01-19",1,1,"COLOMBIA > Distrito Capital de Bogotá > Bogotá","COLOMBIA > Distrito Capital de Bogotá > Bogotá","2 SUPERVISOR","NO APLICA","5 NO SE TIENE ESTE TIPO DE SEGUIMIENTO EN EL CONTRATO","NO APLICA","11 NO SE DILIGENCIA INFORMACIÓN PARA ESTE FORMULARIO EN ESTE PERÍODO DE REPORTE",5711553,"LUIS ALBERTO SEGURA BECERRA","COORDINADOR GIT BIENES, COMPRAS Y SERVICIOS ADMINISTRATIVOS","GIT BIENES, COMPRAS Y SERVICIOS ADMINISTRATIVOS","NO",80111600,"POLIZA","Calidad del servicio - Cumplimiento del contrato",null,"2024-01-19","2024-01-19","2024-01-19","2024-01-19","2024-12-18",330,{"$f":"DATEDIF('BASE 2023 FPS'!$BF156-1,'BASE 2023 FPS'!$BG156,\"m\")","v":11}]
[2024,"CPS-164-2024",null,null,"F5.1","2 CONTRATACIÓN DIRECTA","CPS-164-2024","14 PRESTACIÓN DE SERVICIOS","PROFESIONALES","GLORIA YINETH RODAS ALDANA","Formación requerida en una (1) carrera profesional y una  (1) especialización "," Ciencias Sociales y Humanas","1 PERSONA NATURAL","3 CÉDULA DE CIUDADANÍA",1120576971,1120576971,null,"11 NO SE DILIGENCIA INFORMACIÓN PARA ESTE FORMULARIO EN ESTE PERÍODO DE REPORTE","NO APLICA","NO APLICA","NO APLICA","LUZ FANY VACA GUTIERREZ",1024,"2024-01-13",null,null,null,null,null,"COORDINADOR GIT BIENES, COMPRAS Y SERVICIOS ADMINISTRATIVOS","GIT BIENES, COMPRAS Y SERVICIOS ADMINISTRATIVOS","PRESTAR LOS SERVICIOS PROFESIONALES COMO ABOGADA ESPECIALIZADA PARA APOYAR EL FORTALECIMIENTO Y MEJORAMIENTO DE LOS SISTEMAS DE GESTIÓN, CALIDAD Y AMBIENTAL DESDE LA COORDINACIÓN GIT BIENES, COMPRAS Y SERVICIOS ADMINISTRATIVOS DEL FONDO DE PASIVO SOCIAL DE FERROCARRILES NACIONALES DE COLOMBIA ",{"$f":"LEFT('BASE 2023 FPS'!$AF157,390)","v":"PRESTAR LOS SERVICIOS PROFESIONALES COMO ABOGADA ESPECIALIZADA PARA APOYAR EL FORTALECIMIENTO Y MEJORAMIENTO DE LOS SISTEMAS DE GESTIÓN, CALIDAD Y AMBIENTAL DESDE LA COORDINACIÓN GIT BIENES, COMPRAS Y SERVICIOS ADMINISTRATIVOS DEL FONDO DE PASIVO SOCIAL DE FERROCARRILES NACIONALES DE COLOMBIA "},5259650,57856150,"2024-01-19",1,1,"COLOMBIA > Distrito Capital de Bogotá > Bogotá","COLOMBIA > Distrito Capital de Bogotá > Bogotá","2 SUPERVISOR","NO APLICA","5 NO SE TIENE ESTE TIPO DE SEGUIMIENTO EN EL CONTRATO","NO APLICA","11 NO SE DILIGENCIA INFORMACIÓN PARA ESTE FORMULARIO EN ESTE PERÍODO DE REPORTE",5711553,"LUIS ALBERTO SEGURA BECERRA","COORDINADOR GIT BIENES, COMPRAS Y SERVICIOS ADMINISTRATIVOS","GIT BIENES, COMPRAS Y SERVICIOS ADMINISTRATIVOS","NO",80111600,"POLIZA","Calidad del servicio - Cumplimiento del contrato",null,"2024-01-19","2024-01-19","2024-01-19","2024-01-19","2024-12-18",330,{"$f":"DATEDIF('BASE 2023 FPS'!$BF157-1,'BASE 2023 FPS'!$BG157,\"m\")","v":11}]
[2024,"CPS-165-2024",null,null,"F5.1","2 CONTRATACIÓN DIRECTA","CPS-165-2024","14 PRESTACIÓN DE SERVICIOS","PROFESIONALES","LILIANA CAROLINA MORENO VARGAS","Formación requerida en una (1) carrera profesional y una  (1) especialización "," Ciencias Sociales y Humanas","1 PERSONA NATURAL","3 CÉDULA DE CIUDADANÍA",38360408,38360408,null,"11 NO SE DILIGENCIA INFORMACIÓN PARA ESTE FORMULARIO EN ESTE PERÍODO DE REPORTE","NO APLICA","NO APLICA","NO APLICA","LUZ FANY VACA GUTIERREZ",1024,"2024-01-13",null,null,null,null,null,"OFICINA ASESORA JURÍDICA","OFICINA ASESORA JURÍDICA","PRESTAR LOS SERVICIOS PROFESIONALES COMO ABOGADA ESPECIALISTA PARA APOYAR LAS ACTIVIDADES RELACIONADAS CON LOS ASUNTOS JURÍDICOS Y ADMINISTRATIVOS DESDE LA OFICINA ASESORA JURÍDICA DEL FONDO DE PASIVO SOCIAL DE FERROCARRILES NACIONALES DE COLOMBIA. ",{"$f":"LEFT('BASE 2023 FPS'!$AF158,390)","v":"PRESTAR LOS SERVICIOS PROFESIONALES COMO ABOGADA ESPECIALISTA PARA APOYAR LAS ACTIVIDADES RELACIONADAS CON LOS ASUNTOS JURÍDICOS Y ADMINISTRATIVOS DESDE LA OFICINA ASESORA JURÍDICA DEL FONDO DE PASIVO SOCIAL DE FERROCARRILES NACIONALES DE COLOMBIA. "},7530862,37654310,"2024-01-20",1,1,"COLOMBIA > Distrito Capital de Bogotá > Bogotá","COLOMBIA > Distrito Capital de Bogotá > Bogotá","2 SUPERVISOR","NO APLICA","5 NO SE TIENE ESTE TIPO DE SEGUIMIENTO EN EL CONTRATO","NO APLICA","11 NO SE DILIGENCIA INFORMACIÓN PARA ESTE FORMULARIO EN ESTE PERÍODO DE REPORTE",65767422,"ANDREA ALDANA TRUJILLO","OFICINA ASESORA JURÍDICA","OFICINA ASESORA JURÍDICA","NO",80111600,"POLIZA","Calidad del servicio - Cumplimiento del contrato",null,"2024-01-19","2024-01-19","2024-01-19","2024-01-19","2024-06-18",150,{"$f":"DATEDIF('BASE 2023 FPS'!$BF158-1,'BASE 2023 FPS'!$BG158,\"m\")","v":5}]
[2024,"CPS-166-2024",null,null,"F5.1","2 CONTRATACIÓN DIRECTA","CPS-166-2024","14 PRESTACIÓN DE SERVICIOS","PROFESIONALES","MALYORIS LOPEZ RAMOS","Formación requerida en una (1) carrera profesional "," Ciencias Sociales y Humanas","1 PERSONA NATURAL","3 CÉDULA DE CIUDADANÍA",1030574578,1030574578,null,"11 NO SE DILIGENCIA INFORMACIÓN PARA ESTE FORMULARIO EN ESTE PERÍODO DE REPORTE","NO APLICA","NO APLICA","NO APLICA","LUZ FANY VACA GUTIERREZ",1024,"2024-01-13",null,null,null,null,null,"GIT GESTION PRESTACIONES ECONOMICAS","GIT GESTION PRESTACIONES ECONOMICAS","PRESTAR LOS SERVICIOS PROFESIONALES COMO ABOGADO PARA APOYAR LAS GESTIÓN ADMINISTRATIVA DESDE EL GIT GESTIÓN PRESTACIONES ECONÓMICAS DEL FONDO PASIVO SOCIAL DE FERROCARRILES NACIONALES DE COLOMBIA ",{"$f":"LEFT('BASE 2023 FPS'!$AF159,390)","v":"PRESTAR LOS SERVICIOS PROFESIONALES COMO ABOGADO PARA APOYAR LAS GESTIÓN ADMINISTRATIVA DESDE EL GIT GESTIÓN PRESTACIONES ECONÓMICAS DEL FONDO PASIVO SOCIAL DE FERROCARRILES NACIONALES DE COLOMBIA "},5259650,57856150,"2024-01-19",1,1,"COLOMBIA > Distrito Capital de Bogotá > Bogotá","COLOMBIA > Distrito Capital de Bogotá > Bogotá","2 SUPERVISOR","NO APLICA","5 NO SE TIENE ESTE TIPO DE SEGUIMIENTO EN EL CONTRATO","NO APLICA","11 NO SE DILIGENCIA INFORMACIÓN PARA ESTE FORMULARIO EN ESTE PERÍODO DE REPORTE",49607561,"LEIVIS MARIANA BOTINA MONTERO","GIT GESTION PRESTACIONES ECONOMICAS","GIT GESTION PRESTACIONES ECONOMICAS","NO",80111600,"POLIZA","Calidad del servicio - Cumplimiento del contrato",null,"2024-01-19","2024-01-19","2024-01-19","2024-01-19","2024-12-18",330,{"$f":"DATEDIF('BASE 2023 FPS'!$BF159-1,'BASE 2023 FPS'!$BG159,\"m\")","v":11}]
[2024,"CPS-167-2024",null,null,"F5.1","2 CONTRATACIÓN DIRECTA","CPS-167-2024","14 PRESTACIÓN DE SERVICIOS","PROFESIONALES","GUSTAVO ADOLFO PEREZ DAZA","Formación requerida en una (1) carrera profesional "," Economía, Administración, Contaduría y afines","1 PERSONA NATURAL","3 CÉDULA DE CIUDADANÍA",1121334845,1121334845,null,"11 NO SE DILIGENCIA INFORMACIÓN PARA ESTE FORMULARIO EN ESTE PERÍODO DE REPORTE","NO APLICA","NO APLICA","NO APLICA","LUZ FANY VACA GUTIERREZ",1024,"2024-01-13",null,null,null,null,null,"SECRETARIO GENERAL","SECRETARIO GENERAL","PRESTAR LOS SERVICIOS PROFESIONALES EN ADMINISTRACION DE EMPRESAS PARA APOYAR LA GESTIÓN ADMINISTRATIVA DE LA SECRETARIA GENERAL DEL FONDO PASIVO SOCIAL DE FERROCARRILES NACIONALES DE COLOMBIA. ",{"$f":"LEFT('BASE 2023 FPS'!$AF160,390)","v":"PRESTAR LOS SERVICIOS PROFESIONALES EN ADMINISTRACION DE EMPRESAS PARA APOYAR LA GESTIÓN ADMINISTRATIVA DE LA SECRETARIA GENERAL DEL FONDO PASIVO SOCIAL DE FERROCARRILES NACIONALES DE COLOMBIA. "},7172250,78894750,"2024-01-19",1,1,"COLOMBIA > Distrito Capital de Bogotá > Bogotá","COLOMBIA > Distrito Capital de Bogotá > Bogotá","2 SUPERVISOR","NO APLICA","5 NO SE TIENE ESTE TIPO DE SEGUIMIENTO EN EL CONTRATO","NO APLICA","11 NO SE DILIGENCIA INFORMACIÓN PARA ESTE FORMULARIO EN ESTE PERÍODO DE REPORTE",17956156,"CARLOS ANDRES TOVAR OROZCO","SECRETARIO GENERAL","SECRETARIA GENERAL","NO",80111600,"POLIZA","Calidad del servicio - Cumplimiento del contrato",null,"2024-01-20","2024-01-20","2024-01-20","2024-01-20","2024-12-19",330,{"$f":"DATEDIF('BASE 2023 FPS'!$BF160-1,'BASE 2023 FPS'!$BG160,\"m\")","v":11}]
[2024,"CPS-169-2024",null,null,"F5.1","2 CONTRATACIÓN DIRECTA","CPS-169-2024","14 PRESTACIÓN DE SERVICIOS","PROFESIONALES","RAMIRO ALBERTO MORALES DIAZ","Formación requerida en una (1) carrera profesional "," Economía, Administración, Contaduría y afines","1 PERSONA NATURAL","3 CÉDULA DE CIUDADANÍA",1121335866,1121335866,null,"11 NO SE DILIGENCIA INFORMACIÓN PARA ESTE FORMULARIO EN ESTE PERÍODO DE REPORTE","NO APLICA","NO APLICA","NO APLICA","LUZ FANY VACA GUTIERREZ",1024,"2024-01-13",null,null,null,null,null,"SUBDIRECCION DE PRESTACIONES SOCIALES","SUBDIRECCION DE PRESTACIONES SOCIALES","PRESTAR LOS SERVICIOS PROFESIONALES PARA BRINDAR APOYO Y ACOMPAÑAMIENTO EN LA EJECUCIÓN DE ACTIVIDADES DE LOS PROCESOS A CARGO DE LA SUBDIRECCIÓN DE PRESTACIONES SOCIALES DEL FONDO PASIVO SOCIAL DE FERROCARRILES NACIONALES DE COLOMBIA. ",{"$f":"LEFT('BASE 2023 FPS'!$AF161,390)","v":"PRESTAR LOS SERVICIOS PROFESIONALES PARA BRINDAR APOYO Y ACOMPAÑAMIENTO EN LA EJECUCIÓN DE ACTIVIDADES DE LOS PROCESOS A CARGO DE LA SUBDIRECCIÓN DE PRESTACIONES SOCIALES DEL FONDO PASIVO SOCIAL DE FERROCARRILES NACIONALES DE COLOMBIA. "},6096412,67060532,"2024-01-19",1,1,"COLOMBIA > Distrito Capital de Bogotá > Bogotá","COLOMBIA > Distrito Capital de Bogotá > Bogotá","2 SUPERVISOR","NO APLICA","5 NO SE TIENE ESTE TIPO DE SEGUIMIENTO EN EL CONTRATO","NO APLICA","11 NO SE DILIGENCIA INFORMACIÓN PARA ESTE FORMULARIO EN ESTE PERÍODO DE REPORTE",17956156,"CARLOS ANDRES TOVAR OROZCO","SUBDIRECCION DE PRESTACIONES SOCIALES","SUBDIRECCION DE PRESTACIONES SOCIALES","NO",80111600,"POLIZA","Calidad del servicio - Cumplimiento del contrato",null,"2024-01-19","2024-01-19","2024-01-19","2024-01-19","2024-12-18",330,{"$f":"DATEDIF('BASE 2023 FPS'!$BF161-1,'BASE 2023 FPS'!$BG161,\"m\")","v":11}]
[2024,"CPS-170-2024",null,null,"F5.1","2 CONTRATACIÓN DIRECTA","CPS-170-2024","14 PRESTACIÓN DE SERVICIOS","PROFESIONALES","CECILIA PINTO","Formación requerida en una (1) carrera profesional "," Ingeniería, Arquitectura, Urbanismo y afines","1 PERSONA NATURAL","3 CÉDULA DE CIUDADANÍA",1121334753,1121334753,null,"11 NO SE DILIGENCIA INFORMACIÓN PARA ESTE FORMULARIO EN ESTE PERÍODO DE REPORTE","NO APLICA","NO APLICA","NO APLICA","LUZ FANY VACA GUTIERREZ",1024,"2024-01-13",null,null,null,null,null,"SECRETARIA GENERAL – ATENCION AL CIUDADANO Y GESTION DOCUMENTAL","SECRETARIA GENERAL – ATENCION AL CIUDADANO Y GESTION DOCUMENTAL","PRESTAR LOS SERVICIOS PROFESIONALES COMO INGENIERA INDUSTRIAL AL GIT ATENCIÓN AL CIUDADANO Y GESTIÓN DOCUMENTAL DEL FONDO DE PASIVO SOCIAL DE FERROCARRILES NACIONALES DE COLOMBIA ",{"$f":"LEFT('BASE 2023 FPS'!$AF162,390)","v":"PRESTAR LOS SERVICIOS PROFESIONALES COMO INGENIERA INDUSTRIAL AL GIT ATENCIÓN AL CIUDADANO Y GESTIÓN DOCUMENTAL DEL FONDO DE PASIVO SOCIAL DE FERROCARRILES NACIONALES DE COLOMBIA "},3227512,35502632,"2024-01-20",1,1,"COLOMBIA > Distrito Capital de Bogotá > Bogotá","COLOMBIA > Distrito Capital de Bogotá > Bogotá","2 SUPERVISOR","NO APLICA","5 NO SE TIENE ESTE TIPO DE SEGUIMIENTO EN EL CONTRATO","NO APLICA","11 NO SE DILIGENCIA INFORMACIÓN PARA ESTE FORMULARIO EN ESTE PERÍODO DE REPORTE",39526262,"NURY NAVARRO HERNADEZ","SECRETARIA GENERAL – ATENCION AL CIUDADANO Y GESTION DOCUMENTAL","SECRETARIA GENERAL – ATENCION AL CIUDADANO Y GESTION DOCUMENTAL","NO",80111600,"POLIZA","Calidad del servicio - Cumplimiento del contrato","11-46-101044437","2024-01-20","2024-01-20","2024-01-20","2024-01-20","2024-12-19",330,{"$f":"DATEDIF('BASE 2023 FPS'!$BF162-1,'BASE 2023 FPS'!$BG162,\"m\")","v":11}]
[2024,"CPS-171-2024",null,null,"F5.1","2 CONTRATACIÓN DIRECTA","CPS-171-2024","14 PRESTACIÓN DE SERVICIOS","PROFESIONALES","RUBEN DARÍO PETRO RAMOS","Formación requerida en una (1) carrera profesional "," Ciencias Sociales y Humanas","1 PERSONA NATURAL","3 CÉDULA DE CIUDADANÍA",1068667377,1068667377,null,"11 NO SE DILIGENCIA INFORMACIÓN PARA ESTE FORMULARIO EN ESTE PERÍODO DE REPORTE","NO APLICA","NO APLICA","NO APLICA","LUZ FANY VACA GUTIERREZ",1024,"2024-01-13",null,null,null,null,null,"COORDINADOR DEL GIT DE DEFENSA JUDICIAL","GIT DE DEFENSA JUDICIAL","PRESTAR LOS SERVICIOS PROFESIONALES COMO ABOGADO PARA ADELANTAR LAS ACTIVIDADES RELACIONADAS CON LOS ASUNTOS JURIDICOS Y ADMINISTRATIVOS DESDE EL GIT DE DEFENSA JUDICIAL DEL FONDO DE PASIVO SOCIAL DE FERROCARRILES NACIONALES DE COLOMBIA. ",{"$f":"LEFT('BASE 2023 FPS'!$AF163,390)","v":"PRESTAR LOS SERVICIOS PROFESIONALES COMO ABOGADO PARA ADELANTAR LAS ACTIVIDADES RELACIONADAS CON LOS ASUNTOS JURIDICOS Y ADMINISTRATIVOS DESDE EL GIT DE DEFENSA JUDICIAL DEL FONDO DE PASIVO SOCIAL DE FERROCARRILES NACIONALES DE COLOMBIA. "},5259650,57856150,"2024-01-22",1,1,"COLOMBIA > Distrito Capital de Bogotá > Bogotá","COLOMBIA > Distrito Capital de Bogotá > Bogotá","2 SUPERVISOR","NO APLICA","5 NO SE TIENE ESTE TIPO DE SEGUIMIENTO EN EL CONTRATO","NO APLICA","11 NO SE DILIGENCIA INFORMACIÓN PARA ESTE FORMULARIO EN ESTE PERÍODO DE REPORTE",79202895,"HUMBERTO MALAVER PINZÓN","COORDINADOR DEL GIT DE DEFENSA JUDICIAL","GIT DE DEFENSA JUDICIAL","NO",80111600,"POLIZA","Calidad del servicio - Cumplimiento del contrato",null,"2024-01-22","2024-01-22","2024-01-22","2024-01-22","2024-12-21",330,{"$f":"DATEDIF('BASE 2023 FPS'!$BF163-1,'BASE 2023 FPS'!$BG163,\"m\")","v":11}]
[2024,"CPS-172-2024",null,null,"F5.1","2 CONTRATACIÓN DIRECTA","CPS-172-2024","14 PRESTACIÓN DE SERVICIOS","PROFESIONALES","LUIS ALFREDO VARGAS RODRIGUEZ","Formación requerida en una (1) carrera profesional "," Ciencias Sociales y Humanas","1 PERSONA NATURAL","3 CÉDULA DE CIUDADANÍA",14398161,14398161,null,"11 NO SE DILIGENCIA INFORMACIÓN PARA ESTE FORMULARIO EN ESTE PERÍODO DE REPORTE","NO APLICA","NO APLICA","NO APLICA","LUZ FANY VACA GUTIERREZ",1024,"2024-01-13",null,null,null,null,null,"OFICINA ASESORA JURÍDICA","OFICINA ASESORA JURÍDICA","PRESTAR LOS SERVICIOS PROFESIONALES COMO ABOGADO ESPECIALISTA PARA APOYAR LAS ACTIVIDADES RELACIONADAS CON LOS ASUNTOS JURIDICOS Y ADMINISTRATIVOS DESDE LA OFICINA ASESORA JURIDICA DEL FONDO DE PASIVO SOCIAL DE FERROCARRILES NACIONALES DE COLOMBIA. ",{"$f":"LEFT('BASE 2023 FPS'!$AF164,390)","v":"PRESTAR LOS SERVICIOS PROFESIONALES COMO ABOGADO ESPECIALISTA PARA APOYAR LAS ACTIVIDADES RELACIONADAS CON LOS ASUNTOS JURIDICOS Y ADMINISTRATIVOS DESDE LA OFICINA ASESORA JURIDICA DEL FONDO DE PASIVO SOCIAL DE FERROCARRILES NACIONALES DE COLOMBIA. "},6096412,67060532,"2024-01-20",1,1,"COLOMBIA > Distrito Capital de Bogotá > Bogotá","COLOMBIA > Distrito Capital de Bogotá > Bogotá","2 SUPERVISOR","NO APLICA","5 NO SE TIENE ESTE TIPO DE SEGUIMIENTO EN EL CONTRATO","NO APLICA","11 NO SE DILIGENCIA INFORMACIÓN PARA ESTE FORMULARIO EN ESTE PERÍODO DE REPORTE",65767422,"ANDREA ALDANA TRUJILLO","OFICINA ASESORA JURÍDICA","OFICINA ASESORA JURÍDICA","NO",80111600,"POLIZA","Calidad del servicio - Cumplimiento del contrato",null,"2024-01-20","2024-01-20","2024-01-20","2024-01-20","2024-12-19",330,{"$f":"DATEDIF('BASE 2023 FPS'!$BF164-1,'BASE 2023 FPS'!$BG164,\"m\")","v":11}]
[2024,"CPS-173-2024",null,null,"F5.1","2 CONTRATACIÓN DIRECTA","CPS-173-2024","14 PRESTACIÓN DE SERVICIOS","PROFESIONALES","NIEVES KARINA SALAS RINCON","Formación requerida en una (1) carrera profesional "," Ciencias de la Salud","1 PERSONA NATURAL","3 CÉDULA DE CIUDADANÍA",1121337244,1121337244,null,"11 NO SE DILIGENCIA INFORMACIÓN PARA ESTE FORMULARIO EN ESTE PERÍODO DE REPORTE","NO APLICA","NO APLICA","NO APLICA","LUZ FANY VACA GUTIERREZ",1024,"2024-01-13",null,null,null,null,null,"GIT TALENTO HUMANO","GIT TALENTO HUMANO","PRESTAR LOS SERVICIOS PROFESIONALES COMO PSICÓLOGA PARA APOYAR A LA SECRETARIA GENERAL- GIT TALENTO HUMANO DEL FONDO DE PASIVO SOCIAL DE FERROCARRILES NACIONALES DE COLOMBIA FERROCARRILES NACIONALES DE COLOMBIA. ",{"$f":"LEFT('BASE 2023 FPS'!$AF165,390)","v":"PRESTAR LOS SERVICIOS PROFESIONALES COMO PSICÓLOGA PARA APOYAR A LA SECRETARIA GENERAL- GIT TALENTO HUMANO DEL FONDO DE PASIVO SOCIAL DE FERROCARRILES NACIONALES DE COLOMBIA FERROCARRILES NACIONALES DE COLOMBIA. "},5259650,57856150,"2024-01-19",1,1,"COLOMBIA > Distrito Capital de Bogotá > Bogotá","COLOMBIA > Distrito Capital de Bogotá > Bogotá","2 SUPERVISOR","NO APLICA","5 NO SE TIENE ESTE TIPO DE SEGUIMIENTO EN EL CONTRATO","NO APLICA","11 NO SE DILIGENCIA INFORMACIÓN PARA ESTE FORMULARIO EN ESTE PERÍODO DE REPORTE",1014212108,"TATIANA PEREZ SIERRA","GIT TALENTO HUMANO","GIT TALENTO HUMANO","NO",80111600,"POLIZA","Calidad del servicio - Cumplimiento del contrato",null,"2024-01-20","2024-01-20","2024-01-20","2024-01-20","2024-12-19",330,{"$f":"DATEDIF('BASE 2023 FPS'!$BF165-1,'BASE 2023 FPS'!$BG165,\"m\")","v":11}]
[2024,"CPS-174-2024",null,null,"F5.1","2 CONTRATACIÓN DIRECTA","CPS-174-2024","14 PRESTACIÓN DE SERVICIOS","PROFESIONALES","JAIME BALETA","Formación requerida en una (1) carrera profesional "," Ciencias Sociales y Humanas","1 PERSONA NATURAL","3 CÉDULA DE CIUDADANÍA",1192782892,1192782892,null,"11 NO SE DILIGENCIA INFORMACIÓN PARA ESTE FORMULARIO EN ESTE PERÍODO DE REPORTE","NO APLICA","NO APLICA","NO APLICA","LUZ FANY VACA GUTIERREZ",1024,"2024-01-13",null,null,null,null,null,"SUBDIRECCION DE PRESTACIONES SOCIALES","SUBDIRECCION DE PRESTACIONES SOCIALES","PRESTAR LOS SERVICIOS PROFESIONALES PARA BRINDAR APOYO Y ACOMPAÑAMIENTO EN LA EJECUCIÓN DE ACTIVIDADES DE LOS PROCESOS A CARGO DE LA SUBDIRECCIÓN DE PRESTACIONES SOCIALES DE LA ENTIDAD ",{"$f":"LEFT('BASE 2023 FPS'!$AF166,390)","v":"PRESTAR LOS SERVICIOS PROFESIONALES PARA BRINDAR APOYO Y ACOMPAÑAMIENTO EN LA EJECUCIÓN DE ACTIVIDADES DE LOS PROCESOS A CARGO DE LA SUBDIRECCIÓN DE PRESTACIONES SOCIALES DE LA ENTIDAD "},3705662,40762282,"2024-01-19",1,1,"COLOMBIA > Distrito Capital de Bogotá > Bogotá","COLOMBIA > Distrito Capital de Bogotá > Bogotá","2 SUPERVISOR","NO APLICA","5 NO SE TIENE ESTE TIPO DE SEGUIMIENTO EN EL CONTRATO","NO APLICA","11 NO SE DILIGENCIA INFORMACIÓN PARA ESTE FORMULARIO EN ESTE PERÍODO DE REPORTE",17956156,"CARLOS ANDRES TOVAR OROZCO","SUBDIRECCION DE PRESTACIONES SOCIALES","SUBDIRECCION DE PRESTACIONES SOCIALES","NO",80111600,"POLIZA","Calidad del servicio - Cumplimiento del contrato",null,"2024-01-20","2024-01-20","2024-01-20","2024-01-20","2024-12-19",330,{"$f":"DATEDIF('BASE 2023 FPS'!$BF166-1,'BASE 2023 FPS'!$BG166,\"m\")","v":11}]
[2024,"CPS-175-2024",null,null,"F5.1","2 CONTRATACIÓN DIRECTA","CPS-175-2024","14 PRESTACIÓN DE SERVICIOS","PROFESIONALES","MARIBEL CORREA MARTÍNEZ ","Formacion Tecnica"," Ciencias Sociales y Humanas","1 PERSONA NATURAL","3 CÉDULA DE CIUDADANÍA",52909921,52909921,null,"11 NO SE DILIGENCIA INFORMACIÓN PARA ESTE FORMULARIO EN ESTE PERÍODO DE REPORTE","NO APLICA","NO APLICA","NO APLICA","LUZ FANY VACA GUTIERREZ",1024,"2024-01-13",null,null,null,null,null,"OFICINA ASESORA JURÍDICA CAJANAL","OFICINA ASESORA JURÍDICA CAJANAL","PRESTAR LOS SERVICIOS DE APOYO A LA GESTIÓN DEL DESARROLLO Y ACTUALIZACIÓN DEL TÍTULO EJECUTIVO COMPLEJO OBLIGACIONES POR CUOTAS PARTES ACTIVA Y POR PASIVA, GESTIÓN DOCUMENTAL Y APLICATIVOS DE RECEPCIÓN DE INFORMACIÓN Y SEGUIMIENTO A LOS MISMOS DE CONFORMIDAD CON LAS DISPOSICIONES CONTENIDAS EN EL DECRETO N°. 494 DE 2019 - CONVENIO 511 EN LA OFICINA ASESORA JURIDICA DEL FONDO DE PASIVO SOCIAL DE FERROCARRILES NACIONALES DE COLOMBIA. ",{"$f":"LEFT('BASE 2023 FPS'!$AF167,390)","v":"PRESTAR LOS SERVICIOS DE APOYO A LA GESTIÓN DEL DESARROLLO Y ACTUALIZACIÓN DEL TÍTULO EJECUTIVO COMPLEJO OBLIGACIONES POR CUOTAS PARTES ACTIVA Y POR PASIVA, GESTIÓN DOCUMENTAL Y APLICATIVOS DE RECEPCIÓN DE INFORMACIÓN Y SEGUIMIENTO A LOS MISMOS DE CONFORMIDAD CON LAS DISPOSICIONES CONTENIDAS EN EL DECRETO N°. 494 DE 2019 - CONVENIO 511 EN LA OFICINA ASESORA JURIDICA DEL FONDO DE PASIVO S"},2510287,12551435,"2024-01-20",1,1,"COLOMBIA > Distrito Capital de Bogotá > Bogotá","COLOMBIA > Distrito Capital de Bogotá > Bogotá","2 SUPERVISOR","NO APLICA","5 NO SE TIENE ESTE TIPO DE SEGUIMIENTO EN EL CONTRATO","NO APLICA","11 NO SE DILIGENCIA INFORMACIÓN PARA ESTE FORMULARIO EN ESTE PERÍODO DE REPORTE",65767422,"ANDREA ALDANA TRUJILLO","OFICINA ASESORA JURÍDICA CAJANAL","OFICINA ASESORA JURÍDICA CAJANAL","NO",80111600,"POLIZA","Calidad del servicio - Cumplimiento del contrato",null,"2024-01-20","2024-01-20","2024-01-20","2024-01-20","2024-06-19",150,{"$f":"DATEDIF('BASE 2023 FPS'!$BF167-1,'BASE 2023 FPS'!$BG167,\"m\")","v":5}]
[2024,"CPS-176-2024",null,null,"F5.1","2 CONTRATACIÓN DIRECTA","CPS-176-2024","14 PRESTACIÓN DE SERVICIOS","PROFESIONALES","CARLOS ALFREDO PERAFAN MERA","Formación requerida en una (1) carrera profesional y una  (1) especialización "," Ciencias Sociales y Humanas","1 PERSONA NATURAL","3 CÉDULA DE CIUDADANÍA",10300306,10300306,null,"11 NO SE DILIGENCIA INFORMACIÓN PARA ESTE FORMULARIO EN ESTE PERÍODO DE REPORTE","NO APLICA","NO APLICA","NO APLICA","LUZ FANY VACA GUTIERREZ",1024,"2024-01-13",null,null,null,null,null,"OFICINA ASESORA JURÍDICA CAJANAL","OFICINA ASESORA JURÍDICA CAJANAL","PRESTAR LOS SERVICIOS PROFESIONALES EN ASUNTOS RELACIONADOS CON LOS PROCESOS DE JURISDICCION COACTIVA DE CONFORMIDAD CON LAS DISPOSICIONES CONTENIDAS EN EL DECRETO No. 494 DE 2019 - CONVENIO 511 EN LA OFICINA ASESORA JURIDICA DEL FONDO DE PASIVO SOCIAL DE FERROCARRILES NACIONALES DE COLOMBIA. ",{"$f":"LEFT('BASE 2023 FPS'!$AF168,390)","v":"PRESTAR LOS SERVICIOS PROFESIONALES EN ASUNTOS RELACIONADOS CON LOS PROCESOS DE JURISDICCION COACTIVA DE CONFORMIDAD CON LAS DISPOSICIONES CONTENIDAS EN EL DECRETO No. 494 DE 2019 - CONVENIO 511 EN LA OFICINA ASESORA JURIDICA DEL FONDO DE PASIVO SOCIAL DE FERROCARRILES NACIONALES DE COLOMBIA. "},5259650,26298250,"2024-01-20",1,1,"COLOMBIA > Distrito Capital de Bogotá > Bogotá","COLOMBIA > Distrito Capital de Bogotá > Bogotá","2 SUPERVISOR","NO APLICA","5 NO SE TIENE ESTE TIPO DE SEGUIMIENTO EN EL CONTRATO","NO APLICA","11 NO SE DILIGENCIA INFORMACIÓN PARA ESTE FORMULARIO EN ESTE PERÍODO DE REPORTE",65767422,"ANDREA ALDANA TRUJILLO","OFICINA ASESORA JURÍDICA CAJANAL","OFICINA ASESORA JURÍDICA CAJANAL","NO",80111600,"POLIZA","Calidad del servicio - Cumplimiento del contrato",null,"2024-01-20","2024-01-20","2024-01-20","2024-01-20","2024-06-19",150,{"$f":"DATEDIF('BASE 2023 FPS'!$BF168-1,'BASE 2023 FPS'!$BG168,\"m\")","v":5},null,null,null,null,null,null,null,null,null,null,null,null,null,null,null,null,null,null,null,null,null,null,null,null,null,null,null,null,null,null,null,null,null,null,null,null,null,null,null,null,null,null,null,null,{"$f":"'BASE 2023 FPS'!$BF168","v":"2024-01-20"},{"$f":"'BASE 2023 FPS'!$DG168+'BASE 2023 FPS'!$BG168","v":"2024-06-19"},null,{"$f":"AI168+'BASE 2023 FPS'!$DH168","v":26298250},null,null,null,null,{"$f":"_xlfn.IFS(Table_1[[#This Row],[PLAZO DE EJECUCIÓN FINAL DEL CONTRATO\n(HASTA)]]<=TODAY(),\"FINALIZADO\",Table_1[[#This Row],[PLAZO DE EJECUCIÓN FINAL DEL CONTRATO\n(HASTA)]]>=TODAY(),\"EN EJECUCION\")","v":{"$error":"#NAME?"}},null,null,null,{"$f":"_xlfn.IFS(Table_1[[#This Row],[% Ejecucion\nAgosto 2022]]<100,Table_1[[#This Row],[% Ejecucion\nAgosto 2022]],Table_1[[#This Row],[% Ejecucion\nAgosto 2022]]>=100,\"100\")","v":{"$error":"#NAME?"}}]
[2024,"CPS-177-2024",null,null,"F5.1","2 CONTRATACIÓN DIRECTA","CPS-177-2024","14 PRESTACIÓN DE SERVICIOS","PROFESIONALES","MARIA FERNANDA LUENGAS MEDINA","Formación requerida en una (1) carrera profesional y una  (1) especialización "," Ciencias Sociales y Humanas","1 PERSONA NATURAL","3 CÉDULA DE CIUDADANÍA",1014292798,1014292798,null,"11 NO SE DILIGENCIA INFORMACIÓN PARA ESTE FORMULARIO EN ESTE PERÍODO DE REPORTE","NO APLICA","NO APLICA","NO APLICA","LUZ FANY VACA GUTIERREZ",1024,"2024-01-13",null,null,null,null,null,"GIT GESTION PRESTACIONES ECONOMICAS","GIT GESTION PRESTACIONES ECONOMICAS","PRESTAR LOS SERVICIOS PROFESIONALES COMO ABOGADA ESPECIALISTA PARA APOYAR LA GESTIÓN ADMINISTRATIVA DESDE EL GIT GESTIÓN PRESTACIONES ECONÓMICAS DEL FONDO PASIVO SOCIAL DE FERROCARRILES NACIONALES DE COLOMBIA ",{"$f":"LEFT('BASE 2023 FPS'!$AF169,390)","v":"PRESTAR LOS SERVICIOS PROFESIONALES COMO ABOGADA ESPECIALISTA PARA APOYAR LA GESTIÓN ADMINISTRATIVA DESDE EL GIT GESTIÓN PRESTACIONES ECONÓMICAS DEL FONDO PASIVO SOCIAL DE FERROCARRILES NACIONALES DE COLOMBIA "},7172250,78894750,"2024-01-20",1,1,"COLOMBIA > Distrito Capital de Bogotá > Bogotá","COLOMBIA > Distrito Capital de Bogotá > Bogotá","2 SUPERVISOR","NO APLICA","5 NO SE TIENE ESTE TIPO DE SEGUIMIENTO EN EL CONTRATO","NO APLICA","11 NO SE DILIGENCIA INFORMACIÓN PARA ESTE FORMULARIO EN ESTE PERÍODO DE REPORTE",49607561,"LEIVIS MARIANA BOTINA MONTERO","GIT GESTION PRESTACIONES ECONOMICAS","GIT GESTION PRESTACIONES ECONOMICAS","NO",80111600,"POLIZA","Calidad del servicio - Cumplimiento del contrato",null,"2024-01-20","2024-01-20","2024-01-20","2024-01-20","2024-12-19",330,{"$f":"DATEDIF('BASE 2023 FPS'!$BF169-1,'BASE 2023 FPS'!$BG169,\"m\")","v":11}]
[2024,"CPS-179-2024",null,null,"F5.1","2 CONTRATACIÓN DIRECTA","CPS-179-2024","14 PRESTACIÓN DE SERVICIOS","PROFESIONALES","OSCAR IVAN OLIVELLA CARDENAS","Formación requerida en una (1) carrera profesional "," Ciencias Sociales y Humanas","1 PERSONA NATURAL","3 CÉDULA DE CIUDADANÍA",1121328348,1121328348,null,"11 NO SE DILIGENCIA INFORMACIÓN PARA ESTE FORMULARIO EN ESTE PERÍODO DE REPORTE","NO APLICA","NO APLICA","NO APLICA","LUZ FANY VACA GUTIERREZ",1024,"2024-01-13",null,null,null,null,null,"OFICINA ASESORA JURÍDICA CAJANAL","OFICINA ASESORA JURÍDICA CAJANAL","PRESTAR LOS SERVICIOS PROFESIONALES EN ASUNTOS DE COBRO COACTIVO DE CONFORMIDAD CON LAS DISPOSICIONES CONTENIDAS EN EL DECRETO N. 494 DE 2019 - CONVENIO 511 EN LA OFICINA ASESORA JURIDICA DEL FONDO DE PASIVO SOCIAL DE FERROCARRILES NACIONALES DE COLOMBIA. ",{"$f":"LEFT('BASE 2023 FPS'!$AF170,390)","v":"PRESTAR LOS SERVICIOS PROFESIONALES EN ASUNTOS DE COBRO COACTIVO DE CONFORMIDAD CON LAS DISPOSICIONES CONTENIDAS EN EL DECRETO N. 494 DE 2019 - CONVENIO 511 EN LA OFICINA ASESORA JURIDICA DEL FONDO DE PASIVO SOCIAL DE FERROCARRILES NACIONALES DE COLOMBIA. "},6096412,67060532,"2024-01-21",1,1,"COLOMBIA > Distrito Capital de Bogotá > Bogotá","COLOMBIA > Distrito Capital de Bogotá > Bogotá","2 SUPERVISOR","NO APLICA","5 NO SE TIENE ESTE TIPO DE SEGUIMIENTO EN EL CONTRATO","NO APLICA","11 NO SE DILIGENCIA INFORMACIÓN PARA ESTE FORMULARIO EN ESTE PERÍODO DE REPORTE",65767422,"ANDREA ALDANA TRUJILLO","OFICINA ASESORA JURÍDICA CAJANAL","OFICINA ASESORA JURÍDICA CAJANAL","NO",80111600,"POLIZA","Calidad del servicio - Cumplimiento del contrato",null,"2024-01-21","2024-01-21","2024-01-21","2024-01-21","2024-12-20",330,{"$f":"DATEDIF('BASE 2023 FPS'!$BF170-1,'BASE 2023 FPS'!$BG170,\"m\")","v":11}]
[2024,"CPS-180-2024",null,null,"F5.1","2 CONTRATACIÓN DIRECTA","CPS-180-2024","14 PRESTACIÓN DE SERVICIOS","PROFESIONALES","FANY STELLA MEDINA ALEMAN","Formación requerida en una (1) carrera profesional y una  (1) especialización "," Economía, Administración, Contaduría y afines","1 PERSONA NATURAL","3 CÉDULA DE CIUDADANÍA",37625215,37625215,null,"11 NO SE DILIGENCIA INFORMACIÓN PARA ESTE FORMULARIO EN ESTE PERÍODO DE REPORTE","NO APLICA","NO APLICA","NO APLICA","LUZ FANY VACA GUTIERREZ",1024,"2024-01-13",null,null,null,null,null,"GIT CONTABILIDAD","GIT CONTABILIDAD","PRESTAR LOS SERVICIOS COMO PROFESIONAL EN ADMINISTRACIÓN FINANCIERA PARA APOYAR LA GESTIÓN ADMINISTRATIVA EN LA COORDINACIÓN DEL GIT DE CONTABILIDAD DEL FONDO PASIVO SOCIAL DE FERROCARRILES NACIONALES DE COLOMBIA ",{"$f":"LEFT('BASE 2023 FPS'!$AF171,390)","v":"PRESTAR LOS SERVICIOS COMO PROFESIONAL EN ADMINISTRACIÓN FINANCIERA PARA APOYAR LA GESTIÓN ADMINISTRATIVA EN LA COORDINACIÓN DEL GIT DE CONTABILIDAD DEL FONDO PASIVO SOCIAL DE FERROCARRILES NACIONALES DE COLOMBIA "},6096412,67060532,"2024-01-20",1,1,"COLOMBIA > Distrito Capital de Bogotá > Bogotá","COLOMBIA > Distrito Capital de Bogotá > Bogotá","2 SUPERVISOR","NO APLICA","5 NO SE TIENE ESTE TIPO DE SEGUIMIENTO EN EL CONTRATO","NO APLICA","11 NO SE DILIGENCIA INFORMACIÓN PARA ESTE FORMULARIO EN ESTE PERÍODO DE REPORTE",40048297,"TULIA XIMENA DIAZ ROMERO","COORDINADOR GIT CONTABILIDAD","COORDINADOR GIT CONTABILIDAD","NO",80111600,"POLIZA","Calidad del servicio - Cumplimiento del contrato",null,"2024-01-20","2024-01-20","2024-01-20","2024-01-20","2024-12-19",330,{"$f":"DATEDIF('BASE 2023 FPS'!$BF171-1,'BASE 2023 FPS'!$BG171,\"m\")","v":11}]
[2024,"CPS-181-2024",null,null,"F5.1","2 CONTRATACIÓN DIRECTA","CPS-181-2024","14 PRESTACIÓN DE SERVICIOS","PROFESIONALES","ANGEL MARIA BARRERA BLANCO","Formacion Tecnica"," Ciencias Sociales y Humanas","1 PERSONA NATURAL","3 CÉDULA DE CIUDADANÍA",4133785,4133785,null,"11 NO SE DILIGENCIA INFORMACIÓN PARA ESTE FORMULARIO EN ESTE PERÍODO DE REPORTE","NO APLICA","NO APLICA","NO APLICA","LUZ FANY VACA GUTIERREZ",1024,"2024-01-13",null,null,null,null,null,"OFICINA ASESORA JURÍDICA CAJANAL","OFICINA ASESORA JURÍDICA CAJANAL","PRESTAR LOS SERVICIOS DE APOYO A LA GESTIÓN EN EL DESARROLLO Y ACTUALIZACIÓN DEL TÍTULO EJECUTIVO COMPLEJO OBLIGACIONES POR CUOTAS PARTES ACTIVA Y POR PASIVA, GESTIÓN DOCUMENTAL Y APLICATIVOS DE RECEPCIÓN DE INFORMACIÓN Y SEGUIMIENTO A LOS MISMOS DE CONFORMIDAD CON LAS DISPOSICIONES CONTENIDAS EN EL DECRETO N°. 494 DE 2019 - CONVENIO 511 EN LA OFICINA ASESORA JURIDICA DEL FONDO DE PASIVO SOCIAL DE FERROCARRILES NACIONALES DE COLOMBIA. ",{"$f":"LEFT('BASE 2023 FPS'!$AF172,390)","v":"PRESTAR LOS SERVICIOS DE APOYO A LA GESTIÓN EN EL DESARROLLO Y ACTUALIZACIÓN DEL TÍTULO EJECUTIVO COMPLEJO OBLIGACIONES POR CUOTAS PARTES ACTIVA Y POR PASIVA, GESTIÓN DOCUMENTAL Y APLICATIVOS DE RECEPCIÓN DE INFORMACIÓN Y SEGUIMIENTO A LOS MISMOS DE CONFORMIDAD CON LAS DISPOSICIONES CONTENIDAS EN EL DECRETO N°. 494 DE 2019 - CONVENIO 511 EN LA OFICINA ASESORA JURIDICA DEL FONDO DE PASIVO"},3705662,18528310,"2024-01-20",1,1,"COLOMBIA > Distrito Capital de Bogotá > Bogotá","COLOMBIA > Distrito Capital de Bogotá > Bogotá","2 SUPERVISOR","NO APLICA","5 NO SE TIENE ESTE TIPO DE SEGUIMIENTO EN EL CONTRATO","NO APLICA","11 NO SE DILIGENCIA INFORMACIÓN PARA ESTE FORMULARIO EN ESTE PERÍODO DE REPORTE",65767422,"ANDREA ALDANA TRUJILLO","OFICINA ASESORA JURÍDICA CAJANAL","OFICINA ASESORA JURÍDICA CAJANAL","NO",80111600,"POLIZA","Calidad del servicio - Cumplimiento del contrato",null,"2024-01-20","2024-01-20","2024-01-20","2024-01-20","2024-06-19",150,{"$f":"DATEDIF('BASE 2023 FPS'!$BF172-1,'BASE 2023 FPS'!$BG172,\"m\")","v":5}]
[2024,"CPS-182-2024",null,null,"F5.1","2 CONTRATACIÓN DIRECTA","CPS-182-2024","14 PRESTACIÓN DE SERVICIOS","PROFESIONALES","JOSE WILSON ROLDAN RAYO","Formación requerida en una (1) carrera profesional "," Ciencias Sociales y Humanas","1 PERSONA NATURAL","3 CÉDULA DE CIUDADANÍA",1024469942,1024469942,null,"11 NO SE DILIGENCIA INFORMACIÓN PARA ESTE FORMULARIO EN ESTE PERÍODO DE REPORTE","NO APLICA","NO APLICA","NO APLICA","LUZ FANY VACA GUTIERREZ",1024,"2024-01-13",null,null,null,null,null,"OFICINA ASESORA JURÍDICA CAJANAL","OFICINA ASESORA JURÍDICA CAJANAL","PRESTAR LOS SERVICIOS PROFESIONALES EN ASUNTOS RELACIONADOS CON LOS PROCESOS DE JURISDICCIÓN COACTIVA DE CONFORMIDAD CON LAS DISPOSICIONES CONTENIDAS EN EL DECRETO N°. 494 DE 2019 - CONVENIO 511 EN LA OFICINA ASESORA JURÍDICA DEL FONDO DE PASIVO SOCIAL DE FERROCARRILES NACIONALES DE COLOMBIA ",{"$f":"LEFT('BASE 2023 FPS'!$AF173,390)","v":"PRESTAR LOS SERVICIOS PROFESIONALES EN ASUNTOS RELACIONADOS CON LOS PROCESOS DE JURISDICCIÓN COACTIVA DE CONFORMIDAD CON LAS DISPOSICIONES CONTENIDAS EN EL DECRETO N°. 494 DE 2019 - CONVENIO 511 EN LA OFICINA ASESORA JURÍDICA DEL FONDO DE PASIVO SOCIAL DE FERROCARRILES NACIONALES DE COLOMBIA "},4303349,21516745,"2024-01-21",1,1,"COLOMBIA > Distrito Capital de Bogotá > Bogotá","COLOMBIA > Distrito Capital de Bogotá > Bogotá","2 SUPERVISOR","NO APLICA","5 NO SE TIENE ESTE TIPO DE SEGUIMIENTO EN EL CONTRATO","NO APLICA","11 NO SE DILIGENCIA INFORMACIÓN PARA ESTE FORMULARIO EN ESTE PERÍODO DE REPORTE",65767422,"ANDREA ALDANA TRUJILLO","OFICINA ASESORA JURÍDICA CAJANAL","OFICINA ASESORA JURÍDICA CAJANAL","NO",80111600,"POLIZA","Calidad del servicio - Cumplimiento del contrato",null,"2024-01-21","2024-01-21","2024-01-21","2024-01-21","2024-12-20",330,{"$f":"DATEDIF('BASE 2023 FPS'!$BF173-1,'BASE 2023 FPS'!$BG173,\"m\")","v":11}]
[2024,"CPS-184-2024",null,null,"F5.1","2 CONTRATACIÓN DIRECTA","CPS-184-2024","14 PRESTACIÓN DE SERVICIOS","PROFESIONALES","DAYRON ENRIQUE OÑATE CAICEDO ","Formación requerida en una (1) carrera profesional "," Ciencias Sociales y Humanas","1 PERSONA NATURAL","3 CÉDULA DE CIUDADANÍA",1121041574,1121041574,null,"11 NO SE DILIGENCIA INFORMACIÓN PARA ESTE FORMULARIO EN ESTE PERÍODO DE REPORTE","NO APLICA","NO APLICA","NO APLICA","LUZ FANY VACA GUTIERREZ",1024,"2024-01-13",null,null,null,null,null,"GIT GESTION PRESTACIONES ECONOMICAS","GIT GESTION PRESTACIONES ECONOMICAS","PRESTAR LOS SERVICIOS PROFESIONALES COMO ABOGADO ESPECIALISTA PARA APOYAR LA GESTIÓN ADMINISTRATIVA DESDE EL GIT GESTIÓN PRESTACIONES ECONÓMICAS DEL FONDO PASIVO SOCIAL DE FERROCARRILES NACIONALES DE COLOMBIA ",{"$f":"LEFT('BASE 2023 FPS'!$AF174,390)","v":"PRESTAR LOS SERVICIOS PROFESIONALES COMO ABOGADO ESPECIALISTA PARA APOYAR LA GESTIÓN ADMINISTRATIVA DESDE EL GIT GESTIÓN PRESTACIONES ECONÓMICAS DEL FONDO PASIVO SOCIAL DE FERROCARRILES NACIONALES DE COLOMBIA "},7172250,78894750,"2024-01-20",1,1,"COLOMBIA > Distrito Capital de Bogotá > Bogotá","COLOMBIA > Distrito Capital de Bogotá > Bogotá","2 SUPERVISOR","NO APLICA","5 NO SE TIENE ESTE TIPO DE SEGUIMIENTO EN EL CONTRATO","NO APLICA","11 NO SE DILIGENCIA INFORMACIÓN PARA ESTE FORMULARIO EN ESTE PERÍODO DE REPORTE",49607561,"LEIVIS MARIANA BOTINA MONTERO","GIT GESTION PRESTACIONES ECONOMICAS","GIT GESTION PRESTACIONES ECONOMICAS","NO",80111600,"POLIZA","Calidad del servicio - Cumplimiento del contrato",null,"2024-01-20","2024-01-20","2024-01-20","2024-01-20","2024-12-19",330,{"$f":"DATEDIF('BASE 2023 FPS'!$BF174-1,'BASE 2023 FPS'!$BG174,\"m\")","v":11}]
[2024,"CPS-187-2024",null,null,"F5.1","2 CONTRATACIÓN DIRECTA","CPS-187-2024","14 PRESTACIÓN DE SERVICIOS","PROFESIONALES","JUAN SEBASTIAN RAMIREZ RODRIGUEZ ","Formacion Tecnica"," Ciencias Sociales y Humanas","1 PERSONA NATURAL","3 CÉDULA DE CIUDADANÍA",1001089151,1001089151,null,"11 NO SE DILIGENCIA INFORMACIÓN PARA ESTE FORMULARIO EN ESTE PERÍODO DE REPORTE","NO APLICA","NO APLICA","NO APLICA","LUZ FANY VACA GUTIERREZ",1024,"2024-01-13",null,null,null,null,null,"SECRETARIO GENERAL","SECRETARIO GENERAL","PRESTAR LOS SERVICIOS COMO TECNICO PARA BRINDAR APOYO Y ACOMPAÑAMIENTO EN LA EJECUCIÓN DE ACTIVIDADES DE LOS PROCESOS A CARGO DE LA SUBDIRECCIÓN DE PRESTACIONES SOCIALES DE LA ENTIDAD. ",{"$f":"LEFT('BASE 2023 FPS'!$AF175,390)","v":"PRESTAR LOS SERVICIOS COMO TECNICO PARA BRINDAR APOYO Y ACOMPAÑAMIENTO EN LA EJECUCIÓN DE ACTIVIDADES DE LOS PROCESOS A CARGO DE LA SUBDIRECCIÓN DE PRESTACIONES SOCIALES DE LA ENTIDAD. "},3107725,34187725,"2024-01-20",1,1,"COLOMBIA > Distrito Capital de Bogotá > Bogotá","COLOMBIA > Distrito Capital de Bogotá > Bogotá","2 SUPERVISOR","NO APLICA","5 NO SE TIENE ESTE TIPO DE SEGUIMIENTO EN EL CONTRATO","NO APLICA","11 NO SE DILIGENCIA INFORMACIÓN PARA ESTE FORMULARIO EN ESTE PERÍODO DE REPORTE",17956156,"CARLOS ANDRES TOVAR OROZCO","SECRETARIO GENERAL","SECRETARIA GENERAL","NO",80111600,"POLIZA","Calidad del servicio - Cumplimiento del contrato",null,"2024-01-20","2024-01-20","2024-01-20","2024-01-20","2024-12-19",330,{"$f":"DATEDIF('BASE 2023 FPS'!$BF175-1,'BASE 2023 FPS'!$BG175,\"m\")","v":11}]
[2024,"CPS-188-2024",null,null,"F5.1","2 CONTRATACIÓN DIRECTA","CPS-188-2024","14 PRESTACIÓN DE SERVICIOS","PROFESIONALES","FERNANDO DIAZ MEDINA","Formación requerida en una (1) carrera profesional "," Ingeniería, Arquitectura, Urbanismo y afines","1 PERSONA NATURAL","3 CÉDULA DE CIUDADANÍA",1121331082,1121331082,null,"11 NO SE DILIGENCIA INFORMACIÓN PARA ESTE FORMULARIO EN ESTE PERÍODO DE REPORTE","NO APLICA","NO APLICA","NO APLICA","LUZ FANY VACA GUTIERREZ",1024,"2024-01-13",null,null,null,null,null,"COORDINADOR GIT BIENES, COMPRAS Y SERVICIOS ADMINISTRATIVOS","GIT BIENES, COMPRAS Y SERVICIOS ADMINISTRATIVOS","PRESTAR SERVICIOS PROFESIONALES COMO INGENIERO AMBIENTAL PARA APOYAR LA GESTIÓN ADMINISTRATIVA DEL GIT GESTIÓN BIENES, COMPRAS Y SERVICIOS ADMINISTRATIVOS DE LA SECRETARIA GENERAL DEL FONDO DE PASIVO SOCIAL DE FERROCARRILES NACIONALES DE COLOMBIA",{"$f":"LEFT('BASE 2023 FPS'!$AF176,390)","v":"PRESTAR SERVICIOS PROFESIONALES COMO INGENIERO AMBIENTAL PARA APOYAR LA GESTIÓN ADMINISTRATIVA DEL GIT GESTIÓN BIENES, COMPRAS Y SERVICIOS ADMINISTRATIVOS DE LA SECRETARIA GENERAL DEL FONDO DE PASIVO SOCIAL DE FERROCARRILES NACIONALES DE COLOMBIA"},6096412,67060532,"2024-01-20",1,1,"COLOMBIA > Distrito Capital de Bogotá > Bogotá","COLOMBIA > Distrito Capital de Bogotá > Bogotá","2 SUPERVISOR","NO APLICA","5 NO SE TIENE ESTE TIPO DE SEGUIMIENTO EN EL CONTRATO","NO APLICA","11 NO SE DILIGENCIA INFORMACIÓN PARA ESTE FORMULARIO EN ESTE PERÍODO DE REPORTE",5711553,"LUIS ALBERTO SEGURA BECERRA","COORDINADOR GIT BIENES, COMPRAS Y SERVICIOS ADMINISTRATIVOS","GIT BIENES, COMPRAS Y SERVICIOS ADMINISTRATIVOS","NO",80111600,"POLIZA","Calidad del servicio - Cumplimiento del contrato",null,"2024-01-20","2024-01-20","2024-01-20","2024-01-20","2024-12-19",330,{"$f":"DATEDIF('BASE 2023 FPS'!$BF176-1,'BASE 2023 FPS'!$BG176,\"m\")","v":11}]
[2024,"CPS-189-2024",null,null,"F5.1","2 CONTRATACIÓN DIRECTA","CPS-189-2024","14 PRESTACIÓN DE SERVICIOS","PROFESIONALES","MARIA PAULA DIAZ","Formacion Tecnica"," Economía, Administración, Contaduría y afines","1 PERSONA NATURAL","3 CÉDULA DE CIUDADANÍA",1073249766,1073249766,null,"11 NO SE DILIGENCIA INFORMACIÓN PARA ESTE FORMULARIO EN ESTE PERÍODO DE REPORTE","NO APLICA","NO APLICA","NO APLICA","LUZ FANY VACA GUTIERREZ",1024,"2024-01-13",null,null,null,null,null,"SECRETARIO GENERAL","SECRETARIO GENERAL","PRESTAR LOS SERVICIOS DE APOYO A LA GESTIÓN ADMINISTRATIVA Y DOCUMENTAL DE LA SECRETARIA GENERAL DEL FONDO DE PASIVO SOCIAL DE FERROCARRILES NACIONALES DE COLOMBIA. ",{"$f":"LEFT('BASE 2023 FPS'!$AF177,390)","v":"PRESTAR LOS SERVICIOS DE APOYO A LA GESTIÓN ADMINISTRATIVA Y DOCUMENTAL DE LA SECRETARIA GENERAL DEL FONDO DE PASIVO SOCIAL DE FERROCARRILES NACIONALES DE COLOMBIA. "},3107725,34187725,"2024-01-20",1,1,"COLOMBIA > Distrito Capital de Bogotá > Bogotá","COLOMBIA > Distrito Capital de Bogotá > Bogotá","2 SUPERVISOR","NO APLICA","5 NO SE TIENE ESTE TIPO DE SEGUIMIENTO EN EL CONTRATO","NO APLICA","11 NO SE DILIGENCIA INFORMACIÓN PARA ESTE FORMULARIO EN ESTE PERÍODO DE REPORTE",17956156,"CARLOS ANDRES TOVAR OROZCO","SECRETARIO GENERAL","SECRETARIA GENERAL","NO",80111600,"POLIZA","Calidad del servicio - Cumplimiento del contrato",null,"2024-01-20","2024-01-20","2024-01-20","2024-01-20","2024-12-19",330,{"$f":"DATEDIF('BASE 2023 FPS'!$BF177-1,'BASE 2023 FPS'!$BG177,\"m\")","v":11}]
[2024,"CPS-190-2024",null,null,"F5.1","2 CONTRATACIÓN DIRECTA","CPS-190-2024","14 PRESTACIÓN DE SERVICIOS","PROFESIONALES","JUAN CARLOS RUIZ","Formación requerida en una (1) carrera profesional "," Ciencias Sociales y Humanas","1 PERSONA NATURAL","3 CÉDULA DE CIUDADANÍA",80188371,80188371,null,"11 NO SE DILIGENCIA INFORMACIÓN PARA ESTE FORMULARIO EN ESTE PERÍODO DE REPORTE","NO APLICA","NO APLICA","NO APLICA","LUZ FANY VACA GUTIERREZ",1024,"2024-01-13",null,null,null,null,null,"OFICINA ASESORA JURÍDICA CAJANAL","OFICINA ASESORA JURÍDICA CAJANAL","PRESTAR LOS SERVICIOS PROFESIONALES A LA GESTIÓN EN EL DESARROLLO Y ACTUALIZACIÓN DE PARÁMETROS DE LIQUIDACIÓN DE OBLIGACIONES POR ACTIVA Y POR PASIVA EN LOS APLICATIVOS LIQUIDADOR DE LA ENTIDAD EN EL DECR 494/19 CONVENIO 511 DE LA OFICINA ASESORA JURÍDICA DEL FONDO DE PASIVO SOCIAL DE FERROCARRILES NACIONALES DE COLOMBIA. ",{"$f":"LEFT('BASE 2023 FPS'!$AF178,390)","v":"PRESTAR LOS SERVICIOS PROFESIONALES A LA GESTIÓN EN EL DESARROLLO Y ACTUALIZACIÓN DE PARÁMETROS DE LIQUIDACIÓN DE OBLIGACIONES POR ACTIVA Y POR PASIVA EN LOS APLICATIVOS LIQUIDADOR DE LA ENTIDAD EN EL DECR 494/19 CONVENIO 511 DE LA OFICINA ASESORA JURÍDICA DEL FONDO DE PASIVO SOCIAL DE FERROCARRILES NACIONALES DE COLOMBIA. "},6455025,32275125,"2024-01-22",1,1,"COLOMBIA > Distrito Capital de Bogotá > Bogotá","COLOMBIA > Distrito Capital de Bogotá > Bogotá","2 SUPERVISOR","NO APLICA","5 NO SE TIENE ESTE TIPO DE SEGUIMIENTO EN EL CONTRATO","NO APLICA","11 NO SE DILIGENCIA INFORMACIÓN PARA ESTE FORMULARIO EN ESTE PERÍODO DE REPORTE",65767422,"ANDREA ALDANA TRUJILLO","OFICINA ASESORA JURÍDICA CAJANAL","OFICINA ASESORA JURÍDICA CAJANAL","NO",80111600,"POLIZA","Calidad del servicio - Cumplimiento del contrato",null,"2024-01-22","2024-01-22","2024-01-22","2024-01-22","2024-06-21",150,{"$f":"DATEDIF('BASE 2023 FPS'!$BF178-1,'BASE 2023 FPS'!$BG178,\"m\")","v":5}]
[2024,"CPS-191-2024",null,null,"F5.1","2 CONTRATACIÓN DIRECTA","CPS-191-2024","14 PRESTACIÓN DE SERVICIOS","PROFESIONALES","ALICIA MERCEDES","Formación requerida en una (1) carrera profesional "," Ciencias Sociales y Humanas","1 PERSONA NATURAL","3 CÉDULA DE CIUDADANÍA",1121045907,1121045907,null,"11 NO SE DILIGENCIA INFORMACIÓN PARA ESTE FORMULARIO EN ESTE PERÍODO DE REPORTE","NO APLICA","NO APLICA","NO APLICA","LUZ FANY VACA GUTIERREZ",1024,"2024-01-13",null,null,null,null,null,"OFICINA ASESORA JURÍDICA CAJANAL","OFICINA ASESORA JURÍDICA CAJANAL","PRESTAR LOS SERVICIOS PROFESIONALES PARA EL DESARROLLO Y ACTUALIZACIÓN DEL TÍTULO EJECUTIVO COMPLEJO, OBLIGACIONES POR CUOTAS PARTES ACTIVA Y POR PASIVA, GESTIÓN DOCUMENTAL Y APLICATIVOS DE RECEPCIÓN DE INFORMACIÓN Y SEGUIMIENTO A LOS MISMOS DE CONFORMIDAD CON LAS DISPOSICIONES CONTENIDAS EN EL DECRETO N°. 494 DE 2019 - CONVENIO 511 EN LA OFICINA ASESORA JURÍDICA DEL FONDO DE PASIVO SOCIAL DE FERROCARRILES NACIONALES DE COLOMBIA ",{"$f":"LEFT('BASE 2023 FPS'!$AF179,390)","v":"PRESTAR LOS SERVICIOS PROFESIONALES PARA EL DESARROLLO Y ACTUALIZACIÓN DEL TÍTULO EJECUTIVO COMPLEJO, OBLIGACIONES POR CUOTAS PARTES ACTIVA Y POR PASIVA, GESTIÓN DOCUMENTAL Y APLICATIVOS DE RECEPCIÓN DE INFORMACIÓN Y SEGUIMIENTO A LOS MISMOS DE CONFORMIDAD CON LAS DISPOSICIONES CONTENIDAS EN EL DECRETO N°. 494 DE 2019 - CONVENIO 511 EN LA OFICINA ASESORA JURÍDICA DEL FONDO DE PASIVO SOCI"},6096412,30482060,"2024-01-22",1,1,"COLOMBIA > Distrito Capital de Bogotá > Bogotá","COLOMBIA > Distrito Capital de Bogotá > Bogotá","2 SUPERVISOR","NO APLICA","5 NO SE TIENE ESTE TIPO DE SEGUIMIENTO EN EL CONTRATO","NO APLICA","11 NO SE DILIGENCIA INFORMACIÓN PARA ESTE FORMULARIO EN ESTE PERÍODO DE REPORTE",65767422,"ANDREA ALDANA TRUJILLO","OFICINA ASESORA JURÍDICA CAJANAL","OFICINA ASESORA JURÍDICA CAJANAL","NO",80111600,"POLIZA","Calidad del servicio - Cumplimiento del contrato",null,"2024-01-22","2024-01-22","2024-01-22","2024-01-22","2024-06-21",150,{"$f":"DATEDIF('BASE 2023 FPS'!$BF179-1,'BASE 2023 FPS'!$BG179,\"m\")","v":5}]
[2024,"CPS-192-2024",null,null,"F5.1","2 CONTRATACIÓN DIRECTA","CPS-192-2024","14 PRESTACIÓN DE SERVICIOS","PROFESIONALES","EDUARDO ARENAS BETANCOURT","Formación requerida en una (1) carrera profesional "," Ciencias Sociales y Humanas","1 PERSONA NATURAL","3 CÉDULA DE CIUDADANÍA",79912190,79912190,null,"11 NO SE DILIGENCIA INFORMACIÓN PARA ESTE FORMULARIO EN ESTE PERÍODO DE REPORTE","NO APLICA","NO APLICA","NO APLICA","LUZ FANY VACA GUTIERREZ",1024,"2024-01-13",null,null,null,null,null,"OFICINA ASESORA JURÍDICA","OFICINA ASESORA JURÍDICA","PRESTAR LOS SERVICIOS PROFESIONALES COMO ABOGADO PARA ADELANTAR LAS ACTIVIDADES RELACIONADAS CON LOS ASUNTOS JURIDICOS Y ADMINISTRATIVOS DESDE EL GIT DE DEFENSA JUDICIAL DE LA OFICINA ASESORA JURIDICA DEL FONDO DE PASIVO SOCIAL DE FERROCARRILES NACIONALES DE COLOMBIA. ",{"$f":"LEFT('BASE 2023 FPS'!$AF180,390)","v":"PRESTAR LOS SERVICIOS PROFESIONALES COMO ABOGADO PARA ADELANTAR LAS ACTIVIDADES RELACIONADAS CON LOS ASUNTOS JURIDICOS Y ADMINISTRATIVOS DESDE EL GIT DE DEFENSA JUDICIAL DE LA OFICINA ASESORA JURIDICA DEL FONDO DE PASIVO SOCIAL DE FERROCARRILES NACIONALES DE COLOMBIA. "},7172250,78894750,"2024-01-22",1,1,"COLOMBIA > Distrito Capital de Bogotá > Bogotá","COLOMBIA > Distrito Capital de Bogotá > Bogotá","2 SUPERVISOR","NO APLICA","5 NO SE TIENE ESTE TIPO DE SEGUIMIENTO EN EL CONTRATO","NO APLICA","11 NO SE DILIGENCIA INFORMACIÓN PARA ESTE FORMULARIO EN ESTE PERÍODO DE REPORTE",79202895,"HUMBERTO MALAVER PINZÓN","COORDINADOR DEL GIT DE DEFENSA JUDICIAL","GIT DE DEFENSA JUDICIAL","NO",80111600,"POLIZA","Calidad del servicio - Cumplimiento del contrato",null,"2024-01-22","2024-01-22","2024-01-22","2024-01-22","2024-12-21",330,{"$f":"DATEDIF('BASE 2023 FPS'!$BF180-1,'BASE 2023 FPS'!$BG180,\"m\")","v":11}]
[2024,"CPS-193-2024",null,null,"F5.1","2 CONTRATACIÓN DIRECTA","CPS-193-2024","14 PRESTACIÓN DE SERVICIOS","PROFESIONALES","LEIDY MARGARETH SANDOVAL BUSTOS","Formación requerida en una (1) carrera profesional "," Ciencias Sociales y Humanas","1 PERSONA NATURAL","3 CÉDULA DE CIUDADANÍA",38364544,38364544,null,"11 NO SE DILIGENCIA INFORMACIÓN PARA ESTE FORMULARIO EN ESTE PERÍODO DE REPORTE","NO APLICA","NO APLICA","NO APLICA","LUZ FANY VACA GUTIERREZ",1024,"2024-01-13",null,null,null,null,null,"OFICINA ASESORA JURÍDICA CAJANAL","OFICINA ASESORA JURÍDICA CAJANAL","PRESTAR LOS SERVICIOS PROFESIONALES EN ASUNTOS RELACIONADOS CON LOS PROCESOS DE JURISDICCIÓN COACTIVA DE CONFORMIDAD CON LAS DISPOSICIONES CONTENIDAS EN EL DECRETO N°. 494 DE 2019 - CONVENIO 511 EN LA OFICINA ASESORA JURIDICA DEL FONDO DE PASIVO SOCIAL DE FERROCARRILES NACIONALES DE COLOMBIA. ",{"$f":"LEFT('BASE 2023 FPS'!$AF181,390)","v":"PRESTAR LOS SERVICIOS PROFESIONALES EN ASUNTOS RELACIONADOS CON LOS PROCESOS DE JURISDICCIÓN COACTIVA DE CONFORMIDAD CON LAS DISPOSICIONES CONTENIDAS EN EL DECRETO N°. 494 DE 2019 - CONVENIO 511 EN LA OFICINA ASESORA JURIDICA DEL FONDO DE PASIVO SOCIAL DE FERROCARRILES NACIONALES DE COLOMBIA. "},5259650,26298250,"2024-01-22",1,1,"COLOMBIA > Distrito Capital de Bogotá > Bogotá","COLOMBIA > Distrito Capital de Bogotá > Bogotá","2 SUPERVISOR","NO APLICA","5 NO SE TIENE ESTE TIPO DE SEGUIMIENTO EN EL CONTRATO","NO APLICA","11 NO SE DILIGENCIA INFORMACIÓN PARA ESTE FORMULARIO EN ESTE PERÍODO DE REPORTE",65767422,"ANDREA ALDANA TRUJILLO","OFICINA ASESORA JURÍDICA CAJANAL","OFICINA ASESORA JURÍDICA CAJANAL","NO",80111600,"POLIZA","Calidad del servicio - Cumplimiento del contrato",null,"2024-01-22","2024-01-22","2024-01-22","2024-01-22","2024-06-21",150,{"$f":"DATEDIF('BASE 2023 FPS'!$BF181-1,'BASE 2023 FPS'!$BG181,\"m\")","v":5}]
[2024,"CPS-194-2024",null,null,"F5.1","2 CONTRATACIÓN DIRECTA","CPS-194-2024","14 PRESTACIÓN DE SERVICIOS","PROFESIONALES","MARIA ANGELICA DIAZ RODRIGUEZ","Formación requerida en una (1) carrera profesional "," Ciencias Sociales y Humanas","1 PERSONA NATURAL","3 CÉDULA DE CIUDADANÍA",38249600,38249600,null,"11 NO SE DILIGENCIA INFORMACIÓN PARA ESTE FORMULARIO EN ESTE PERÍODO DE REPORTE","NO APLICA","NO APLICA","NO APLICA","LUZ FANY VACA GUTIERREZ",1024,"2024-01-13",null,null,null,null,null,"OFICINA ASESORA JURÍDICA CAJANAL","OFICINA ASESORA JURÍDICA CAJANAL","PRESTAR LOS SERVICIOS PROFESIONALES EN ASUNTOS RELACIONADOS CON LOS PROCESOS DE JURISDICCIÓN COACTIVA DE CONFORMIDAD CON LAS DISPOSICIONES CONTENIDAS EN EL DECRETO N°. 494 DE 2019 - CONVENIO 511 EN LA OFICINA ASESORA JURÍDICA DEL FONDO DE PASIVO SOCIAL DE FERROCARRILES NACIONALES DE COLOMBIA ",{"$f":"LEFT('BASE 2023 FPS'!$AF182,390)","v":"PRESTAR LOS SERVICIOS PROFESIONALES EN ASUNTOS RELACIONADOS CON LOS PROCESOS DE JURISDICCIÓN COACTIVA DE CONFORMIDAD CON LAS DISPOSICIONES CONTENIDAS EN EL DECRETO N°. 494 DE 2019 - CONVENIO 511 EN LA OFICINA ASESORA JURÍDICA DEL FONDO DE PASIVO SOCIAL DE FERROCARRILES NACIONALES DE COLOMBIA "},6096412,30482060,"2024-01-22",1,1,"COLOMBIA > Distrito Capital de Bogotá > Bogotá","COLOMBIA > Distrito Capital de Bogotá > Bogotá","2 SUPERVISOR","NO APLICA","5 NO SE TIENE ESTE TIPO DE SEGUIMIENTO EN EL CONTRATO","NO APLICA","11 NO SE DILIGENCIA INFORMACIÓN PARA ESTE FORMULARIO EN ESTE PERÍODO DE REPORTE",65767422,"ANDREA ALDANA TRUJILLO","OFICINA ASESORA JURÍDICA CAJANAL","OFICINA ASESORA JURÍDICA CAJANAL","NO",80111600,"POLIZA","Calidad del servicio - Cumplimiento del contrato",null,"2024-01-22","2024-01-22","2024-01-22","2024-01-22","2024-06-21",150,{"$f":"DATEDIF('BASE 2023 FPS'!$BF182-1,'BASE 2023 FPS'!$BG182,\"m\")","v":5}]
[2024,"CPS-195-2024",null,null,"F5.1","2 CONTRATACIÓN DIRECTA","CPS-195-2024","14 PRESTACIÓN DE SERVICIOS","PROFESIONALES","DAHYANA MELISSA HERNANDEZ","Formación requerida en una (1) carrera profesional "," Economía, Administración, Contaduría y afines","1 PERSONA NATURAL","3 CÉDULA DE CIUDADANÍA",1110520124,1110520124,null,"11 NO SE DILIGENCIA INFORMACIÓN PARA ESTE FORMULARIO EN ESTE PERÍODO DE REPORTE","NO APLICA","NO APLICA","NO APLICA","LUZ FANY VACA GUTIERREZ",1024,"2024-01-13",null,null,null,null,null,"DIRECCION GENERAL","DIRECCION GENERAL","PRESTAR LOS SERVICIOS PROFESIONALES AL GRUPO DE RADICACIÓN DE CUENTAS MEDICAS DE LA SUBDIRECCIÓN FINANCIERA DEL FONDO PASIVO SOCIAL DE FERROCARRILES NACIONALES DE COLOMBIA ",{"$f":"LEFT('BASE 2023 FPS'!$AF183,390)","v":"PRESTAR LOS SERVICIOS PROFESIONALES AL GRUPO DE RADICACIÓN DE CUENTAS MEDICAS DE LA SUBDIRECCIÓN FINANCIERA DEL FONDO PASIVO SOCIAL DE FERROCARRILES NACIONALES DE COLOMBIA "},4901037,53911407,"2024-01-22",1,1,"COLOMBIA > Distrito Capital de Bogotá > Bogotá","COLOMBIA > Distrito Capital de Bogotá > Bogotá","2 SUPERVISOR","NO APLICA","5 NO SE TIENE ESTE TIPO DE SEGUIMIENTO EN EL CONTRATO","NO APLICA","11 NO SE DILIGENCIA INFORMACIÓN PARA ESTE FORMULARIO EN ESTE PERÍODO DE REPORTE",23621957,"LUZ FANNY VACA GUTIERREZ","SUBDIRECCION FINANCIERA ","SUBDIRECCION FINANCIERA ","NO",80111600,"POLIZA","Calidad del servicio - Cumplimiento del contrato",null,"2024-01-22","2024-01-22","2024-01-22","2024-01-22","2024-12-21",330,{"$f":"DATEDIF('BASE 2023 FPS'!$BF183-1,'BASE 2023 FPS'!$BG183,\"m\")","v":11}]
[2024,"CPS-196-2024",null,null,"F5.1","2 CONTRATACIÓN DIRECTA","CPS-196-2024","14 PRESTACIÓN DE SERVICIOS","PROFESIONALES","SALLYS MILENA DEL CARMEN ATENCIO MOLINA","Formación requerida en una (1) carrera profesional y una  (1) especialización "," Ciencias Sociales y Humanas","1 PERSONA NATURAL","3 CÉDULA DE CIUDADANÍA",1120750976,1120750976,null,"11 NO SE DILIGENCIA INFORMACIÓN PARA ESTE FORMULARIO EN ESTE PERÍODO DE REPORTE","NO APLICA","NO APLICA","NO APLICA","LUZ FANY VACA GUTIERREZ",1024,"2024-01-13",null,null,null,null,null,"SECRETARIO GENERAL","SECRETARIO GENERAL","PRESTAR LOS SERVICIOS PROFESIONALES COMO ABOGADA ESPECIALIZADA PARA APOYAR LA GESTIÓN EN ASUNTOS DISCIPLINARIOS QUE ADELANTA LA SECRETARIA GENERAL DEL FONDO PASIVO SOCIAL DE FERROCARRILES NACIONALES DE COLOMBIA ",{"$f":"LEFT('BASE 2023 FPS'!$AF184,390)","v":"PRESTAR LOS SERVICIOS PROFESIONALES COMO ABOGADA ESPECIALIZADA PARA APOYAR LA GESTIÓN EN ASUNTOS DISCIPLINARIOS QUE ADELANTA LA SECRETARIA GENERAL DEL FONDO PASIVO SOCIAL DE FERROCARRILES NACIONALES DE COLOMBIA "},6096412,67060532,"2024-01-22",1,1,"COLOMBIA > Distrito Capital de Bogotá > Bogotá","COLOMBIA > Distrito Capital de Bogotá > Bogotá","2 SUPERVISOR","NO APLICA","5 NO SE TIENE ESTE TIPO DE SEGUIMIENTO EN EL CONTRATO","NO APLICA","11 NO SE DILIGENCIA INFORMACIÓN PARA ESTE FORMULARIO EN ESTE PERÍODO DE REPORTE",17956156,"CARLOS ANDRES TOVAR OROZCO","SECRETARIO GENERAL","SECRETARIA GENERAL","NO",80111600,"POLIZA","Calidad del servicio - Cumplimiento del contrato",null,"2024-01-22","2024-01-22","2024-01-22","2024-01-22","2024-12-21",330,{"$f":"DATEDIF('BASE 2023 FPS'!$BF184-1,'BASE 2023 FPS'!$BG184,\"m\")","v":11}]
[2024,"CPS-197-2024",null,null,"F5.1","2 CONTRATACIÓN DIRECTA","CPS-197-2024","14 PRESTACIÓN DE SERVICIOS","PROFESIONALES","SAMUEL VILLERO","Formacion Tecnica"," Economía, Administración, Contaduría y afines","1 PERSONA NATURAL","3 CÉDULA DE CIUDADANÍA",1006638293,1006638293,null,"11 NO SE DILIGENCIA INFORMACIÓN PARA ESTE FORMULARIO EN ESTE PERÍODO DE REPORTE","NO APLICA","NO APLICA","NO APLICA","LUZ FANY VACA GUTIERREZ",1024,"2024-01-13",null,null,null,null,null,"SECRETARIA GENERAL – ATENCION AL CIUDADANO Y GESTION DOCUMENTAL","SECRETARIA GENERAL – ATENCION AL CIUDADANO Y GESTION DOCUMENTAL","PRESTAR LOS SERVICIOS DE APOYO AL GIT ATENCION AL CIUDADANO Y GESTION DOCUMENTAL DE LA SECRETARIA GENERAL DEL FONDO DE PASIVO SOCIAL DE FERROCARRILES NACIONALES DE COLOMBIA EN LOS PROCESOS RELACIONADOS CON LA PRESTACION DE SERVICIOS DE SALUD ",{"$f":"LEFT('BASE 2023 FPS'!$AF185,390)","v":"PRESTAR LOS SERVICIOS DE APOYO AL GIT ATENCION AL CIUDADANO Y GESTION DOCUMENTAL DE LA SECRETARIA GENERAL DEL FONDO DE PASIVO SOCIAL DE FERROCARRILES NACIONALES DE COLOMBIA EN LOS PROCESOS RELACIONADOS CON LA PRESTACION DE SERVICIOS DE SALUD "},2868899,31557889,"2024-01-22",1,1,"COLOMBIA > Distrito Capital de Bogotá > Bogotá","COLOMBIA > Distrito Capital de Bogotá > Bogotá","2 SUPERVISOR","NO APLICA","5 NO SE TIENE ESTE TIPO DE SEGUIMIENTO EN EL CONTRATO","NO APLICA","11 NO SE DILIGENCIA INFORMACIÓN PARA ESTE FORMULARIO EN ESTE PERÍODO DE REPORTE",39526262,"NURY NAVARRO HERNADEZ","SECRETARIA GENERAL – ATENCION AL CIUDADANO Y GESTION DOCUMENTAL","SECRETARIA GENERAL – ATENCION AL CIUDADANO Y GESTION DOCUMENTAL","NO",80111600,"POLIZA","Calidad del servicio - Cumplimiento del contrato",null,"2024-01-22","2024-01-22","2024-01-22","2024-01-22","2024-12-21",330,{"$f":"DATEDIF('BASE 2023 FPS'!$BF185-1,'BASE 2023 FPS'!$BG185,\"m\")","v":11}]
[2024,"CPS-198-2024",null,null,"F5.1","2 CONTRATACIÓN DIRECTA","CPS-198-2024","14 PRESTACIÓN DE SERVICIOS","PROFESIONALES","ALEJANDRO DAVID BRITO MURILLO","Formación requerida en una (1) carrera profesional "," Ciencias Sociales y Humanas","1 PERSONA NATURAL","3 CÉDULA DE CIUDADANÍA",1120748301,1120748301,null,"11 NO SE DILIGENCIA INFORMACIÓN PARA ESTE FORMULARIO EN ESTE PERÍODO DE REPORTE","NO APLICA","NO APLICA","NO APLICA","LUZ FANY VACA GUTIERREZ",1024,"2024-01-13",null,null,null,null,null,"OFICINA ASESORA JURÍDICA CAJANAL","OFICINA ASESORA JURÍDICA CAJANAL","PRESTAR LOS SERVICIOS PROFESIONALES EN ASUNTOS RELACIONADOS CON LOS PROCESOS DE JURISDICCIÓN COACTIVA DE CONFORMIDAD CON LAS DISPOSICIONES CONTENIDAS EN EL DECRETO N°. 494 DE 2019 - CONVENIO 511 EN LA OFICINA ASESORA JURIDICA DEL FONDO DE PASIVO SOCIAL DE FERROCARRILES NACIONALES DE COLOMBIA. ",{"$f":"LEFT('BASE 2023 FPS'!$AF186,390)","v":"PRESTAR LOS SERVICIOS PROFESIONALES EN ASUNTOS RELACIONADOS CON LOS PROCESOS DE JURISDICCIÓN COACTIVA DE CONFORMIDAD CON LAS DISPOSICIONES CONTENIDAS EN EL DECRETO N°. 494 DE 2019 - CONVENIO 511 EN LA OFICINA ASESORA JURIDICA DEL FONDO DE PASIVO SOCIAL DE FERROCARRILES NACIONALES DE COLOMBIA. "},6096412,30482060,"2024-01-22",1,1,"COLOMBIA > Distrito Capital de Bogotá > Bogotá","COLOMBIA > Distrito Capital de Bogotá > Bogotá","2 SUPERVISOR","NO APLICA","5 NO SE TIENE ESTE TIPO DE SEGUIMIENTO EN EL CONTRATO","NO APLICA","11 NO SE DILIGENCIA INFORMACIÓN PARA ESTE FORMULARIO EN ESTE PERÍODO DE REPORTE",65767422,"ANDREA ALDANA TRUJILLO","OFICINA ASESORA JURÍDICA CAJANAL","OFICINA ASESORA JURÍDICA CAJANAL","NO",80111600,"POLIZA","Calidad del servicio - Cumplimiento del contrato",null,"2024-01-22","2024-01-22","2024-01-22","2024-01-22","2024-06-21",150,{"$f":"DATEDIF('BASE 2023 FPS'!$BF186-1,'BASE 2023 FPS'!$BG186,\"m\")","v":5}]
[2024,"CPS-199-2024",null,null,"F5.1","2 CONTRATACIÓN DIRECTA","CPS-199-2024","14 PRESTACIÓN DE SERVICIOS","PROFESIONALES","V&C ABOGADOS S.A.S","Formación requerida en una (1) carrera profesional y una  (1) especialización "," Ciencias Sociales y Humanas","2 PERSONA JURIDICA","NIT",null,null,9017314821,"9 DV 0","NISSON ALFREDO VAHOS PEREZ","CEDULA DE CIUDADANIA",91444027,"LUZ FANY VACA GUTIERREZ",1024,"2024-01-13",null,null,null,null,null,"DIRECCION GENERAL","DIRECCION GENERAL","PRESTAR LOS SERVICIOS JURÍDICOS DE APOYO A LA GESTIÓN Y ASESORÍA JURÍDICA ESPECIALIZADA EN LOS ACTOS, CONTRATOS, ACCIONES, ACTUACIONES, COMITÉS, CONCEPTOS, CAPACITACIONES, PROCESOS JUDICIALES Y EN TODOS AQUELLOS ASUNTOS JURÍDICOS REQUERIDOS POR LA DIRECCIÓN GENERAL ",{"$f":"LEFT('BASE 2023 FPS'!$AF187,390)","v":"PRESTAR LOS SERVICIOS JURÍDICOS DE APOYO A LA GESTIÓN Y ASESORÍA JURÍDICA ESPECIALIZADA EN LOS ACTOS, CONTRATOS, ACCIONES, ACTUACIONES, COMITÉS, CONCEPTOS, CAPACITACIONES, PROCESOS JUDICIALES Y EN TODOS AQUELLOS ASUNTOS JURÍDICOS REQUERIDOS POR LA DIRECCIÓN GENERAL "},29750000,327250000,"2024-01-22",1,1,"COLOMBIA > Distrito Capital de Bogotá > Bogotá","COLOMBIA > Distrito Capital de Bogotá > Bogotá","2 SUPERVISOR","NO APLICA","5 NO SE TIENE ESTE TIPO DE SEGUIMIENTO EN EL CONTRATO","NO APLICA","11 NO SE DILIGENCIA INFORMACIÓN PARA ESTE FORMULARIO EN ESTE PERÍODO DE REPORTE",23621957,"LUZ FANNY VACA GUTIERREZ","DIRECCION GENERAL","DIRECCION GENERAL","NO",80111600,"POLIZA","Calidad del servicio - Cumplimiento del contrato",null,"2024-01-22","2024-01-22","2024-01-22","2024-01-22","2024-12-21",330,{"$f":"DATEDIF('BASE 2023 FPS'!$BF187-1,'BASE 2023 FPS'!$BG187,\"m\")","v":11}]
[2024,"CPS-201-2024",null,null,"F5.1","2 CONTRATACIÓN DIRECTA","CPS-201-2024","14 PRESTACIÓN DE SERVICIOS","PROFESIONALES","DORA LILIANA CORZON","Formación requerida en una (1) carrera profesional "," Ciencias Sociales y Humanas","1 PERSONA NATURAL","3 CÉDULA DE CIUDADANÍA",52169677,52169677,null,"11 NO SE DILIGENCIA INFORMACIÓN PARA ESTE FORMULARIO EN ESTE PERÍODO DE REPORTE","NO APLICA","NO APLICA","NO APLICA","LUZ FANY VACA GUTIERREZ",1024,"2024-01-13",null,null,null,null,null,"OFICINA ASESORA JURÍDICA","OFICINA ASESORA JURÍDICA","PRESTAR LOS SERVICIOS PROFESIONALES COMO ABOGADA PARA APOYAR LAS ACTIVIDADES RELACIONADAS CON LOS ASUNTOS JURÍDICOS Y ADMINISTRATIVOS DESDE LA OFICINA ASESORA JURÍDICA DEL FONDO DE PASIVO SOCIAL DE FERROCARRILES NACIONALES DE COLOMBIA. ",{"$f":"LEFT('BASE 2023 FPS'!$AF188,390)","v":"PRESTAR LOS SERVICIOS PROFESIONALES COMO ABOGADA PARA APOYAR LAS ACTIVIDADES RELACIONADAS CON LOS ASUNTOS JURÍDICOS Y ADMINISTRATIVOS DESDE LA OFICINA ASESORA JURÍDICA DEL FONDO DE PASIVO SOCIAL DE FERROCARRILES NACIONALES DE COLOMBIA. "},4901037,53911407,"2024-01-22",1,1,"COLOMBIA > Distrito Capital de Bogotá > Bogotá","COLOMBIA > Distrito Capital de Bogotá > Bogotá","2 SUPERVISOR","NO APLICA","5 NO SE TIENE ESTE TIPO DE SEGUIMIENTO EN EL CONTRATO","NO APLICA","11 NO SE DILIGENCIA INFORMACIÓN PARA ESTE FORMULARIO EN ESTE PERÍODO DE REPORTE",65767422,"ANDREA ALDANA TRUJILLO","OFICINA ASESORA JURÍDICA","OFICINA ASESORA JURÍDICA","NO",80111600,"POLIZA","Calidad del servicio - Cumplimiento del contrato",null,"2024-01-22","2024-01-22","2024-01-22","2024-01-22","2024-12-21",330,{"$f":"DATEDIF('BASE 2023 FPS'!$BF188-1,'BASE 2023 FPS'!$BG188,\"m\")","v":11}]
[2024,"CPS-202-2024",null,null,"F5.1","2 CONTRATACIÓN DIRECTA","CPS-202-2024","14 PRESTACIÓN DE SERVICIOS","PROFESIONALES","DIEGO FERNANDO NIÑO RODRIGUEZ","Formación requerida en una (1) carrera profesional "," Ciencias Sociales y Humanas","1 PERSONA NATURAL","3 CÉDULA DE CIUDADANÍA",93408029,93408029,null,"11 NO SE DILIGENCIA INFORMACIÓN PARA ESTE FORMULARIO EN ESTE PERÍODO DE REPORTE","NO APLICA","NO APLICA","NO APLICA","LUZ FANY VACA GUTIERREZ",1024,"2024-01-13",null,null,null,null,null,"OFICINA ASESORA JURÍDICA","OFICINA ASESORA JURÍDICA","PRESTAR LOS SERVICIOS PROFESIONALES COMO ABOGADO PARA APOYAR LAS ACTIVIDADES RELACIONADAS CON LOS ASUNTOS JURÍDICOS, ADMINISTRATIVOS Y DE GESTIÓN CONTRACTUAL DE LA OFICINA ASESORA JURÍDICA DEL FONDO DE PASIVO SOCIAL DE FERROCARRILES NACIONALES DE COLOMBIA. ",{"$f":"LEFT('BASE 2023 FPS'!$AF189,390)","v":"PRESTAR LOS SERVICIOS PROFESIONALES COMO ABOGADO PARA APOYAR LAS ACTIVIDADES RELACIONADAS CON LOS ASUNTOS JURÍDICOS, ADMINISTRATIVOS Y DE GESTIÓN CONTRACTUAL DE LA OFICINA ASESORA JURÍDICA DEL FONDO DE PASIVO SOCIAL DE FERROCARRILES NACIONALES DE COLOMBIA. "},6455025,32275125,"2024-01-22",1,1,"COLOMBIA > Distrito Capital de Bogotá > Bogotá","COLOMBIA > Distrito Capital de Bogotá > Bogotá","2 SUPERVISOR","NO APLICA","5 NO SE TIENE ESTE TIPO DE SEGUIMIENTO EN EL CONTRATO","NO APLICA","11 NO SE DILIGENCIA INFORMACIÓN PARA ESTE FORMULARIO EN ESTE PERÍODO DE REPORTE",65767422,"ANDREA ALDANA TRUJILLO","OFICINA ASESORA JURÍDICA","OFICINA ASESORA JURÍDICA","NO",80111600,"POLIZA","Calidad del servicio - Cumplimiento del contrato",null,"2024-01-22","2024-01-22","2024-01-22","2024-01-22","2024-06-21",150,{"$f":"DATEDIF('BASE 2023 FPS'!$BF189-1,'BASE 2023 FPS'!$BG189,\"m\")","v":5}]
[2024,"CPS-203-2024",null,null,"F5.1","2 CONTRATACIÓN DIRECTA","CPS-203-2024","14 PRESTACIÓN DE SERVICIOS","PROFESIONALES","JAIR ANTONIO CHAVARRIA","Formación requerida en una (1) carrera profesional "," Ciencias Sociales y Humanas","1 PERSONA NATURAL","3 CÉDULA DE CIUDADANÍA",79847575,79847575,null,"11 NO SE DILIGENCIA INFORMACIÓN PARA ESTE FORMULARIO EN ESTE PERÍODO DE REPORTE","NO APLICA","NO APLICA","NO APLICA","LUZ FANY VACA GUTIERREZ",1024,"2024-01-13",null,null,null,null,null,"OFICINA ASESORA JURÍDICA CAJANAL","OFICINA ASESORA JURÍDICA CAJANAL","PRESTAR LOS SERVICIOS PROFESIONALES EN ASUNTOS RELACIONADOS CON PROCESOS DE JURISDICCIÓN COACTIVA DE CONFORMIDAD CON LAS DISPOSICIONES CONTENIDAS EN EL DEC.N°.494/19 CONVENIO 511 EN LA OFICINA ASESORA JURÍDICA DEL FONDO DE PASIVO SOCIAL DE FERROCARRILES NACIONALES DE COLOMBIA. ",{"$f":"LEFT('BASE 2023 FPS'!$AF190,390)","v":"PRESTAR LOS SERVICIOS PROFESIONALES EN ASUNTOS RELACIONADOS CON PROCESOS DE JURISDICCIÓN COACTIVA DE CONFORMIDAD CON LAS DISPOSICIONES CONTENIDAS EN EL DEC.N°.494/19 CONVENIO 511 EN LA OFICINA ASESORA JURÍDICA DEL FONDO DE PASIVO SOCIAL DE FERROCARRILES NACIONALES DE COLOMBIA. "},4303349,21516745,"2024-01-22",1,1,"COLOMBIA > Distrito Capital de Bogotá > Bogotá","COLOMBIA > Distrito Capital de Bogotá > Bogotá","2 SUPERVISOR","NO APLICA","5 NO SE TIENE ESTE TIPO DE SEGUIMIENTO EN EL CONTRATO","NO APLICA","11 NO SE DILIGENCIA INFORMACIÓN PARA ESTE FORMULARIO EN ESTE PERÍODO DE REPORTE",65767422,"ANDREA ALDANA TRUJILLO","OFICINA ASESORA JURÍDICA CAJANAL","OFICINA ASESORA JURÍDICA CAJANAL","NO",80111600,"POLIZA","Calidad del servicio - Cumplimiento del contrato",null,"2024-01-22","2024-01-22","2024-01-22","2024-01-22","2024-06-21",150,{"$f":"DATEDIF('BASE 2023 FPS'!$BF190-1,'BASE 2023 FPS'!$BG190,\"m\")","v":5}]
[2024,"CPS-204-2024",null,null,"F5.1","2 CONTRATACIÓN DIRECTA","CPS-204-2024","14 PRESTACIÓN DE SERVICIOS","PROFESIONALES","DAVID ANDRES JIMENEZ CASTRO","Formación requerida en una (1) carrera profesional "," Economía, Administración, Contaduría y afines","1 PERSONA NATURAL","3 CÉDULA DE CIUDADANÍA",1065664347,1065664347,null,"11 NO SE DILIGENCIA INFORMACIÓN PARA ESTE FORMULARIO EN ESTE PERÍODO DE REPORTE","NO APLICA","NO APLICA","NO APLICA","LUZ FANY VACA GUTIERREZ",1024,"2024-01-13",null,null,null,null,null,"SUBDIRECCION FINANCIERA – GIT CARTERA","SUBDIRECCION FINANCIERA – GIT CARTERA","PRESTAR LOS SERVICIOS DE APOYO A LA GESTIÓN DEL GRUPO DE RADICACIÓN DE CUENTAS MEDICAS DE LA SUBDIRECCIÓN FINANCIERA DEL FONDO PASIVO SOCIAL DE FERROCARRILES NACIONALES DE COLOMBIA ",{"$f":"LEFT('BASE 2023 FPS'!$AF191,390)","v":"PRESTAR LOS SERVICIOS DE APOYO A LA GESTIÓN DEL GRUPO DE RADICACIÓN DE CUENTAS MEDICAS DE LA SUBDIRECCIÓN FINANCIERA DEL FONDO PASIVO SOCIAL DE FERROCARRILES NACIONALES DE COLOMBIA "},4661962,51281582,"2024-01-22",1,1,"COLOMBIA > Distrito Capital de Bogotá > Bogotá","COLOMBIA > Distrito Capital de Bogotá > Bogotá","2 SUPERVISOR","NO APLICA","5 NO SE TIENE ESTE TIPO DE SEGUIMIENTO EN EL CONTRATO","NO APLICA","11 NO SE DILIGENCIA INFORMACIÓN PARA ESTE FORMULARIO EN ESTE PERÍODO DE REPORTE",23621957,"LUZ FANNY VACA GUTIERREZ","SUBDIRECCION FINANCIERA ","SUBDIRECCION FINANCIERA ","NO",80111600,"POLIZA","Calidad del servicio - Cumplimiento del contrato",null,"2024-01-22","2024-01-22","2024-01-22","2024-01-22","2024-12-21",330,{"$f":"DATEDIF('BASE 2023 FPS'!$BF191-1,'BASE 2023 FPS'!$BG191,\"m\")","v":11}]
[2024,"CPS-205-2024",null,null,"F5.1","2 CONTRATACIÓN DIRECTA","CPS-205-2024","14 PRESTACIÓN DE SERVICIOS","PROFESIONALES","ANA MILENA RUIZ","Formación requerida en una (1) carrera profesional "," Ciencias de la Salud","1 PERSONA NATURAL","3 CÉDULA DE CIUDADANÍA",45691021,45691021,null,"11 NO SE DILIGENCIA INFORMACIÓN PARA ESTE FORMULARIO EN ESTE PERÍODO DE REPORTE","NO APLICA","NO APLICA","NO APLICA","LUZ FANY VACA GUTIERREZ",1024,"2024-01-13",null,null,null,null,null,"GIT TALENTO HUMANO","GIT TALENTO HUMANO","PRESTAR LOS SERVICIOS PROFESIONALES COMO PSICÓLOGA PARA APOYAR A LA SECRETARIA GENERAL- GIT TALENTO HUMANO DEL FONDO DE PASIVO SOCIAL DE FERROCARRILES NACIONALES DE COLOMBIA ",{"$f":"LEFT('BASE 2023 FPS'!$AF192,390)","v":"PRESTAR LOS SERVICIOS PROFESIONALES COMO PSICÓLOGA PARA APOYAR A LA SECRETARIA GENERAL- GIT TALENTO HUMANO DEL FONDO DE PASIVO SOCIAL DE FERROCARRILES NACIONALES DE COLOMBIA "},5259650,57856150,"2024-01-22",1,1,"COLOMBIA > Distrito Capital de Bogotá > Bogotá","COLOMBIA > Distrito Capital de Bogotá > Bogotá","2 SUPERVISOR","NO APLICA","5 NO SE TIENE ESTE TIPO DE SEGUIMIENTO EN EL CONTRATO","NO APLICA","11 NO SE DILIGENCIA INFORMACIÓN PARA ESTE FORMULARIO EN ESTE PERÍODO DE REPORTE",1014212108,"TATIANA PEREZ SIERRA","GIT TALENTO HUMANO","GIT TALENTO HUMANO","NO",80111600,"POLIZA","Calidad del servicio - Cumplimiento del contrato",null,"2024-01-22","2024-01-22","2024-01-22","2024-01-22","2024-12-21",330,{"$f":"DATEDIF('BASE 2023 FPS'!$BF192-1,'BASE 2023 FPS'!$BG192,\"m\")","v":11}]
[2024,"CPS-206-2024",null,null,"F5.1","2 CONTRATACIÓN DIRECTA","CPS-206-2024","14 PRESTACIÓN DE SERVICIOS","PROFESIONALES","CARLOS ALBERTO CAICEDO","Formación requerida en una (1) carrera profesional "," Ciencias Sociales y Humanas","1 PERSONA NATURAL","3 CÉDULA DE CIUDADANÍA",5161945,5161945,null,"11 NO SE DILIGENCIA INFORMACIÓN PARA ESTE FORMULARIO EN ESTE PERÍODO DE REPORTE","NO APLICA","NO APLICA","NO APLICA","LUZ FANY VACA GUTIERREZ",1024,"2024-01-13",null,null,null,null,null,"SECRETARIO GENERAL","SECRETARIO GENERAL","PRESTAR LOS SERVICIOS PROFESIONALES COMO ABOGADO PARA APOYAR A LA GESTIÓN ADMINISTRATIVA QUE ADELANTA LA SECRETARIA GENERAL DEL FONDO DE PASIVO SOCIAL DE FERROCARRILES NACIONALES DE COLOMBIA ",{"$f":"LEFT('BASE 2023 FPS'!$AF193,390)","v":"PRESTAR LOS SERVICIOS PROFESIONALES COMO ABOGADO PARA APOYAR A LA GESTIÓN ADMINISTRATIVA QUE ADELANTA LA SECRETARIA GENERAL DEL FONDO DE PASIVO SOCIAL DE FERROCARRILES NACIONALES DE COLOMBIA "},7889475,86784225,"2024-01-22",1,1,"COLOMBIA > Distrito Capital de Bogotá > Bogotá","COLOMBIA > Distrito Capital de Bogotá > Bogotá","2 SUPERVISOR","NO APLICA","5 NO SE TIENE ESTE TIPO DE SEGUIMIENTO EN EL CONTRATO","NO APLICA","11 NO SE DILIGENCIA INFORMACIÓN PARA ESTE FORMULARIO EN ESTE PERÍODO DE REPORTE",17956156,"CARLOS ANDRES TOVAR OROZCO","SECRETARIO GENERAL","SECRETARIA GENERAL","NO",80111600,"POLIZA","Calidad del servicio - Cumplimiento del contrato","11-46-101044900","2024-01-22","2024-01-22","2024-01-22","2024-01-22","2024-12-21",330,{"$f":"DATEDIF('BASE 2023 FPS'!$BF193-1,'BASE 2023 FPS'!$BG193,\"m\")","v":11}]
[2024,"CPS-207-2024",null,null,"F5.1","2 CONTRATACIÓN DIRECTA","CPS-207-2024","14 PRESTACIÓN DE SERVICIOS","PROFESIONALES","JOSE IGNACIO CHARRIS SALAS","Formación requerida en una (1) carrera profesional "," Economía, Administración, Contaduría y afines","1 PERSONA NATURAL","3 CÉDULA DE CIUDADANÍA",1121337728,1121337728,null,"11 NO SE DILIGENCIA INFORMACIÓN PARA ESTE FORMULARIO EN ESTE PERÍODO DE REPORTE","NO APLICA","NO APLICA","NO APLICA","LUZ FANY VACA GUTIERREZ",1024,"2024-01-13",null,null,null,null,null,"SECRETARIA GENERAL – ATENCION AL CIUDADANO Y GESTION DOCUMENTAL","SECRETARIA GENERAL – ATENCION AL CIUDADANO Y GESTION DOCUMENTAL","PRESTAR LOS SERVICIOS PROFESIONALES AL GRUPO INTERNO DE TRABAJO DE ATENCIÓN AL CIUDADANO Y GESTIÓN DOCUMENTAL DEL FONDO DE PASIVO SOCIAL DE FERROCARRILES NACIONALES DE COLOMBIA ",{"$f":"LEFT('BASE 2023 FPS'!$AF194,390)","v":"PRESTAR LOS SERVICIOS PROFESIONALES AL GRUPO INTERNO DE TRABAJO DE ATENCIÓN AL CIUDADANO Y GESTIÓN DOCUMENTAL DEL FONDO DE PASIVO SOCIAL DE FERROCARRILES NACIONALES DE COLOMBIA "},3705662,40762282,"2024-01-23",1,1,"COLOMBIA > Distrito Capital de Bogotá > Bogotá","COLOMBIA > Distrito Capital de Bogotá > Bogotá","2 SUPERVISOR","NO APLICA","5 NO SE TIENE ESTE TIPO DE SEGUIMIENTO EN EL CONTRATO","NO APLICA","11 NO SE DILIGENCIA INFORMACIÓN PARA ESTE FORMULARIO EN ESTE PERÍODO DE REPORTE",39526262,"NURY NAVARRO HERNADEZ","SECRETARIA GENERAL – ATENCION AL CIUDADANO Y GESTION DOCUMENTAL","SECRETARIA GENERAL – ATENCION AL CIUDADANO Y GESTION DOCUMENTAL","NO",80111600,"POLIZA","Calidad del servicio - Cumplimiento del contrato",null,"2024-01-23","2024-01-23","2024-01-23","2024-01-23","2024-12-22",330,{"$f":"DATEDIF('BASE 2023 FPS'!$BF194-1,'BASE 2023 FPS'!$BG194,\"m\")","v":11}]
[2024,"CPS-208-2024",null,null,"F5.1","2 CONTRATACIÓN DIRECTA","CPS-208-2024","14 PRESTACIÓN DE SERVICIOS","PROFESIONALES","CRISTIAN FABIAN DIAZ ROMERO","Formación requerida en una (1) carrera profesional "," Ciencias Sociales y Humanas","1 PERSONA NATURAL","3 CÉDULA DE CIUDADANÍA",1056614052,1056614052,null,"11 NO SE DILIGENCIA INFORMACIÓN PARA ESTE FORMULARIO EN ESTE PERÍODO DE REPORTE","NO APLICA","NO APLICA","NO APLICA","LUZ FANY VACA GUTIERREZ",1024,"2024-01-13",null,null,null,null,null,"OFICINA ASESORA JURÍDICA CAJANAL","OFICINA ASESORA JURÍDICA CAJANAL","PRESTAR LOS SERVICIOS PROFESIONALES EN ASUNTOS RELACIONADOS CON LOS PROCESOS DE JURISDICCIÓN COACTIVA DE CONFORMIDAD CON LAS DISPOSICIONES CONTENIDAS EN EL DECRETO N°. 494 DE 2019 - CONVENIO 511 EN LA OFICINA ASESORA JURÍDICA DEL FONDO DE PASIVO SOCIAL DE FERROCARRILES NACIONALES DE COLOMBIA. ",{"$f":"LEFT('BASE 2023 FPS'!$AF195,390)","v":"PRESTAR LOS SERVICIOS PROFESIONALES EN ASUNTOS RELACIONADOS CON LOS PROCESOS DE JURISDICCIÓN COACTIVA DE CONFORMIDAD CON LAS DISPOSICIONES CONTENIDAS EN EL DECRETO N°. 494 DE 2019 - CONVENIO 511 EN LA OFICINA ASESORA JURÍDICA DEL FONDO DE PASIVO SOCIAL DE FERROCARRILES NACIONALES DE COLOMBIA. "},6096412,30482060,"2024-01-23",1,1,"COLOMBIA > Distrito Capital de Bogotá > Bogotá","COLOMBIA > Distrito Capital de Bogotá > Bogotá","2 SUPERVISOR","NO APLICA","5 NO SE TIENE ESTE TIPO DE SEGUIMIENTO EN EL CONTRATO","NO APLICA","11 NO SE DILIGENCIA INFORMACIÓN PARA ESTE FORMULARIO EN ESTE PERÍODO DE REPORTE",65767422,"ANDREA ALDANA TRUJILLO","OFICINA ASESORA JURÍDICA CAJANAL","OFICINA ASESORA JURÍDICA CAJANAL","NO",80111600,"POLIZA","Calidad del servicio - Cumplimiento del contrato",null,"2024-01-23","2024-01-23","2024-01-23","2024-01-23","2024-06-22",150,{"$f":"DATEDIF('BASE 2023 FPS'!$BF195-1,'BASE 2023 FPS'!$BG195,\"m\")","v":5}]
[2024,"CPS-209-2024",null,null,"F5.1","2 CONTRATACIÓN DIRECTA","CPS-209-2024","14 PRESTACIÓN DE SERVICIOS","PROFESIONALES","ALEJANDRA BURBANO ECHEVERRY","Formación requerida en una (1) carrera profesional y una  (1) especialización "," Ciencias Sociales y Humanas","1 PERSONA NATURAL","3 CÉDULA DE CIUDADANÍA",1117508286,1117508286,null,"11 NO SE DILIGENCIA INFORMACIÓN PARA ESTE FORMULARIO EN ESTE PERÍODO DE REPORTE","NO APLICA","NO APLICA","NO APLICA","LUZ FANY VACA GUTIERREZ",1024,"2024-01-13",null,null,null,null,null,"GIT GESTION PRESTACIONES ECONOMICAS","GIT GESTION PRESTACIONES ECONOMICAS","PRESTAR LOS SERVICIOS PROFESIONALES COMO ABOGADA ESPECIALISTA PARA APOYAR LA GESTIÓN ADMINISTRATIVA DESDE EL GIT GESTIÓN PRESTACIONES ECONÓMICAS DEL FONDO PASIVO SOCIAL DE FERROCARRILES NACIONALES DE COLOMBIA ",{"$f":"LEFT('BASE 2023 FPS'!$AF196,390)","v":"PRESTAR LOS SERVICIOS PROFESIONALES COMO ABOGADA ESPECIALISTA PARA APOYAR LA GESTIÓN ADMINISTRATIVA DESDE EL GIT GESTIÓN PRESTACIONES ECONÓMICAS DEL FONDO PASIVO SOCIAL DE FERROCARRILES NACIONALES DE COLOMBIA "},6096412,67060532,"2024-01-23",1,1,"COLOMBIA > Distrito Capital de Bogotá > Bogotá","COLOMBIA > Distrito Capital de Bogotá > Bogotá","2 SUPERVISOR","NO APLICA","5 NO SE TIENE ESTE TIPO DE SEGUIMIENTO EN EL CONTRATO","NO APLICA","11 NO SE DILIGENCIA INFORMACIÓN PARA ESTE FORMULARIO EN ESTE PERÍODO DE REPORTE",49607561,"LEIVIS MARIANA BOTINA MONTERO","GIT GESTION PRESTACIONES ECONOMICAS","GIT GESTION PRESTACIONES ECONOMICAS","NO",80111600,"POLIZA","Calidad del servicio - Cumplimiento del contrato","CHU-100014874","2024-01-23","2024-01-23","2024-01-23","2024-01-23","2024-12-22",330,{"$f":"DATEDIF('BASE 2023 FPS'!$BF196-1,'BASE 2023 FPS'!$BG196,\"m\")","v":11}]
[2024,"CPS-210-2024",null,null,"F5.1","2 CONTRATACIÓN DIRECTA","CPS-210-2024","14 PRESTACIÓN DE SERVICIOS","PROFESIONALES","SILVESTRE DE JESUS SAURITH POLO","Formación requerida en una (1) carrera profesional "," Ciencias Sociales y Humanas","1 PERSONA NATURAL","3 CÉDULA DE CIUDADANÍA",1121333209,1121333209,null,"11 NO SE DILIGENCIA INFORMACIÓN PARA ESTE FORMULARIO EN ESTE PERÍODO DE REPORTE","NO APLICA","NO APLICA","NO APLICA","LUZ FANY VACA GUTIERREZ",1024,"2024-01-13",null,null,null,null,null,"SECRETARIA GENERAL – ATENCION AL CIUDADANO Y GESTION DOCUMENTAL","SECRETARIA GENERAL – ATENCION AL CIUDADANO Y GESTION DOCUMENTAL","PRESTAR LOS SERVICIOS PROFESIONALES COMO ABOGADO AL GRUPO INTERNO DE TRABAJO DE ATENCIÓN AL CIUDADANO Y GESTIÓN DOCUMENTAL DEL FONDO DE PASIVO SOCIAL DE FERROCARRILES NACIONALES DE COLOMBIA. ",{"$f":"LEFT('BASE 2023 FPS'!$AF197,390)","v":"PRESTAR LOS SERVICIOS PROFESIONALES COMO ABOGADO AL GRUPO INTERNO DE TRABAJO DE ATENCIÓN AL CIUDADANO Y GESTIÓN DOCUMENTAL DEL FONDO DE PASIVO SOCIAL DE FERROCARRILES NACIONALES DE COLOMBIA. "},5259650,57856150,"2024-01-23",1,1,"COLOMBIA > Distrito Capital de Bogotá > Bogotá","COLOMBIA > Distrito Capital de Bogotá > Bogotá","2 SUPERVISOR","NO APLICA","5 NO SE TIENE ESTE TIPO DE SEGUIMIENTO EN EL CONTRATO","NO APLICA","11 NO SE DILIGENCIA INFORMACIÓN PARA ESTE FORMULARIO EN ESTE PERÍODO DE REPORTE",39526262,"NURY NAVARRO HERNADEZ","SECRETARIA GENERAL – ATENCION AL CIUDADANO Y GESTION DOCUMENTAL","SECRETARIA GENERAL – ATENCION AL CIUDADANO Y GESTION DOCUMENTAL","NO",80111600,"POLIZA","Calidad del servicio - Cumplimiento del contrato","11-46-101044993","2024-01-23","2024-01-23","2024-01-23","2024-01-23","2024-12-22",330,{"$f":"DATEDIF('BASE 2023 FPS'!$BF197-1,'BASE 2023 FPS'!$BG197,\"m\")","v":11}]
[2024,"CPS-211-2024",null,null,"F5.1","2 CONTRATACIÓN DIRECTA","CPS-211-2024","14 PRESTACIÓN DE SERVICIOS","PROFESIONALES","YORGELIS MARIA SALAS OSPINO","Formación requerida en una (1) carrera profesional "," Ciencias Sociales y Humanas","1 PERSONA NATURAL","3 CÉDULA DE CIUDADANÍA",1121335640,1121335640,null,"11 NO SE DILIGENCIA INFORMACIÓN PARA ESTE FORMULARIO EN ESTE PERÍODO DE REPORTE","NO APLICA","NO APLICA","NO APLICA","LUZ FANY VACA GUTIERREZ",1024,"2024-01-13",null,null,null,null,null,"SECRETARIA GENERAL – ATENCION AL CIUDADANO Y GESTION DOCUMENTAL","SECRETARIA GENERAL – ATENCION AL CIUDADANO Y GESTION DOCUMENTAL","PRESTAR LOS SERVICIOS PROFESIONALES COMO ABOGADO AL GRUPO INTERNO DE TRABAJO DE ATENCIÓN AL CIUDADANO Y GESTIÓN DOCUMENTAL DEL FONDO DE PASIVO SOCIAL DE FERROCARRILES NACIONALES DE COLOMBIA. ",{"$f":"LEFT('BASE 2023 FPS'!$AF198,390)","v":"PRESTAR LOS SERVICIOS PROFESIONALES COMO ABOGADO AL GRUPO INTERNO DE TRABAJO DE ATENCIÓN AL CIUDADANO Y GESTIÓN DOCUMENTAL DEL FONDO DE PASIVO SOCIAL DE FERROCARRILES NACIONALES DE COLOMBIA. "},4064275,44707025,"2024-01-23",1,1,"COLOMBIA > Distrito Capital de Bogotá > Bogotá","COLOMBIA > Distrito Capital de Bogotá > Bogotá","2 SUPERVISOR","NO APLICA","5 NO SE TIENE ESTE TIPO DE SEGUIMIENTO EN EL CONTRATO","NO APLICA","11 NO SE DILIGENCIA INFORMACIÓN PARA ESTE FORMULARIO EN ESTE PERÍODO DE REPORTE",39526262,"NURY NAVARRO HERNADEZ","SECRETARIA GENERAL – ATENCION AL CIUDADANO Y GESTION DOCUMENTAL","SECRETARIA GENERAL – ATENCION AL CIUDADANO Y GESTION DOCUMENTAL","NO",80111600,"POLIZA","Calidad del servicio - Cumplimiento del contrato",null,"2024-01-23","2024-01-23","2024-01-23","2024-01-23","2024-12-22",330,{"$f":"DATEDIF('BASE 2023 FPS'!$BF198-1,'BASE 2023 FPS'!$BG198,\"m\")","v":11}]
[2024,"CPS-212-2024",null,null,"F5.1","2 CONTRATACIÓN DIRECTA","CPS-212-2024","14 PRESTACIÓN DE SERVICIOS","PROFESIONALES","CHRISTIAN GIOVANNI FUQUENE MONROY","Formacion Tecnica"," Ciencias Sociales y Humanas","1 PERSONA NATURAL","3 CÉDULA DE CIUDADANÍA",1031125326,1031125326,null,"11 NO SE DILIGENCIA INFORMACIÓN PARA ESTE FORMULARIO EN ESTE PERÍODO DE REPORTE","NO APLICA","NO APLICA","NO APLICA","LUZ FANY VACA GUTIERREZ",1024,"2024-01-13",null,null,null,null,null,"OFICINA ASESORA JURÍDICA CAJANAL","OFICINA ASESORA JURÍDICA CAJANAL","PRESTAR LOS SERVICIOS DE APOYO A LA GESTIÓN DEL DESARROLLO Y ACTUALIZACIÓN DEL TÍTULO EJECUTIVO COMPLEJO OBLIGACIONES POR CUOTAS PARTES ACTIVA Y POR PASIVA, GESTIÓN DOCUMENTAL Y APLICATIVOS DE RECEPCIÓN DE INFORMACIÓN Y SEGUIMIENTO A LOS MISMOS DE CONFORMIDAD CON LAS DISPOSICIONES CONTENIDAS EN EL DECRETO N°. 494 DE 2019 - CONVENIO 511 EN LA OFICINA ASESORA JURIDICA DEL FONDO DE PASIVO SOCIAL DE FERROCARRILES NACIONALES DE COLOMBIA. ",{"$f":"LEFT('BASE 2023 FPS'!$AF199,390)","v":"PRESTAR LOS SERVICIOS DE APOYO A LA GESTIÓN DEL DESARROLLO Y ACTUALIZACIÓN DEL TÍTULO EJECUTIVO COMPLEJO OBLIGACIONES POR CUOTAS PARTES ACTIVA Y POR PASIVA, GESTIÓN DOCUMENTAL Y APLICATIVOS DE RECEPCIÓN DE INFORMACIÓN Y SEGUIMIENTO A LOS MISMOS DE CONFORMIDAD CON LAS DISPOSICIONES CONTENIDAS EN EL DECRETO N°. 494 DE 2019 - CONVENIO 511 EN LA OFICINA ASESORA JURIDICA DEL FONDO DE PASIVO S"},1793062,8965310,"2024-01-23",1,1,"COLOMBIA > Distrito Capital de Bogotá > Bogotá","COLOMBIA > Distrito Capital de Bogotá > Bogotá","2 SUPERVISOR","NO APLICA","5 NO SE TIENE ESTE TIPO DE SEGUIMIENTO EN EL CONTRATO","NO APLICA","11 NO SE DILIGENCIA INFORMACIÓN PARA ESTE FORMULARIO EN ESTE PERÍODO DE REPORTE",65767422,"ANDREA ALDANA TRUJILLO","OFICINA ASESORA JURÍDICA CAJANAL","OFICINA ASESORA JURÍDICA CAJANAL","NO",80111600,"POLIZA","Calidad del servicio - Cumplimiento del contrato",null,"2024-01-23","2024-01-23","2024-01-23","2024-01-23","2024-06-22",150,{"$f":"DATEDIF('BASE 2023 FPS'!$BF199-1,'BASE 2023 FPS'!$BG199,\"m\")","v":5}]
[2024,"CPS-213-2024",null,null,"F5.1","2 CONTRATACIÓN DIRECTA","CPS-213-2024","14 PRESTACIÓN DE SERVICIOS","PROFESIONALES","CARLOS ARTURO SAUCEDO ALVARADO","Formacion Tecnica"," Ciencias Sociales y Humanas","1 PERSONA NATURAL","3 CÉDULA DE CIUDADANÍA",85162945,85162945,null,"11 NO SE DILIGENCIA INFORMACIÓN PARA ESTE FORMULARIO EN ESTE PERÍODO DE REPORTE","NO APLICA","NO APLICA","NO APLICA","LUZ FANY VACA GUTIERREZ",1024,"2024-01-13",null,null,null,null,null,"COORDINADOR DEL GIT DE DEFENSA JUDICIAL","GIT DE DEFENSA JUDICIAL","PRESTAR LOS SERVICIOS DE APOYO A LA GESTION PARA ADELANTAR LAS ACTIVIDADES RELACIONADAS CON LOS ASUNTOS TECNICOS, FINANCIEROS Y ADMINISTRATIVOS DESDE EL GIT DE DEFENSA JUDICIAL DEL FONDO DE PASIVO SOCIAL DE FERROCARRILES NACIONALES DE COLOMBIA ",{"$f":"LEFT('BASE 2023 FPS'!$AF200,390)","v":"PRESTAR LOS SERVICIOS DE APOYO A LA GESTION PARA ADELANTAR LAS ACTIVIDADES RELACIONADAS CON LOS ASUNTOS TECNICOS, FINANCIEROS Y ADMINISTRATIVOS DESDE EL GIT DE DEFENSA JUDICIAL DEL FONDO DE PASIVO SOCIAL DE FERROCARRILES NACIONALES DE COLOMBIA "},3705662,40762282,"2024-01-24",1,1,"COLOMBIA > Distrito Capital de Bogotá > Bogotá","COLOMBIA > Distrito Capital de Bogotá > Bogotá","2 SUPERVISOR","NO APLICA","5 NO SE TIENE ESTE TIPO DE SEGUIMIENTO EN EL CONTRATO","NO APLICA","11 NO SE DILIGENCIA INFORMACIÓN PARA ESTE FORMULARIO EN ESTE PERÍODO DE REPORTE",79202895,"HUMBERTO MALAVER PINZÓN","COORDINADOR DEL GIT DE DEFENSA JUDICIAL","GIT DE DEFENSA JUDICIAL","NO",80111600,"POLIZA","Calidad del servicio - Cumplimiento del contrato",null,"2024-01-24","2024-01-24","2024-01-24","2024-01-24","2024-12-23",330,{"$f":"DATEDIF('BASE 2023 FPS'!$BF200-1,'BASE 2023 FPS'!$BG200,\"m\")","v":11}]
[2024,"CPS-214-2024",null,null,"F5.1","2 CONTRATACIÓN DIRECTA","CPS-214-2024","14 PRESTACIÓN DE SERVICIOS","PROFESIONALES","ANA MARIA RODRIGUEZ DE ARCE","Formación requerida en una (1) carrera profesional "," Ciencias Sociales y Humanas","1 PERSONA NATURAL","3 CÉDULA DE CIUDADANÍA",1140829826,1140829826,null,"11 NO SE DILIGENCIA INFORMACIÓN PARA ESTE FORMULARIO EN ESTE PERÍODO DE REPORTE","NO APLICA","NO APLICA","NO APLICA","LUZ FANY VACA GUTIERREZ",1024,"2024-01-13",null,null,null,null,null,"GIT GESTION PRESTACIONES ECONOMICAS","GIT GESTION PRESTACIONES ECONOMICAS","PRESTAR LOS SERVICIOS PROFESIONALES COMO ABOGADO PARA APOYAR LAS GESTION ADMINISTRATIVA DESDE EL GIT GESTION PRESTACIONES ECONOMICAS DEL FONDO PASIVO SOCIAL DE FERROCARRILES NACIONALES DE COLOMBIA ",{"$f":"LEFT('BASE 2023 FPS'!$AF201,390)","v":"PRESTAR LOS SERVICIOS PROFESIONALES COMO ABOGADO PARA APOYAR LAS GESTION ADMINISTRATIVA DESDE EL GIT GESTION PRESTACIONES ECONOMICAS DEL FONDO PASIVO SOCIAL DE FERROCARRILES NACIONALES DE COLOMBIA "},6096412,67060532,"2024-01-23",1,1,"COLOMBIA > Distrito Capital de Bogotá > Bogotá","COLOMBIA > Distrito Capital de Bogotá > Bogotá","2 SUPERVISOR","NO APLICA","5 NO SE TIENE ESTE TIPO DE SEGUIMIENTO EN EL CONTRATO","NO APLICA","11 NO SE DILIGENCIA INFORMACIÓN PARA ESTE FORMULARIO EN ESTE PERÍODO DE REPORTE",49607561,"LEIVIS MARIANA BOTINA MONTERO","GIT GESTION PRESTACIONES ECONOMICAS","GIT GESTION PRESTACIONES ECONOMICAS","NO",80111600,"POLIZA","Calidad del servicio - Cumplimiento del contrato",null,"2024-01-23","2024-01-23","2024-01-23","2024-01-23","2024-12-22",330,{"$f":"DATEDIF('BASE 2023 FPS'!$BF201-1,'BASE 2023 FPS'!$BG201,\"m\")","v":11}]
[2024,"CPS-215-2024",null,null,"F5.1","2 CONTRATACIÓN DIRECTA","CPS-215-2024","14 PRESTACIÓN DE SERVICIOS","PROFESIONALES","RAFAEL EDUARDO KAMMERER CUADRADO","Formación requerida en una (1) carrera profesional "," Ciencias Sociales y Humanas","1 PERSONA NATURAL","3 CÉDULA DE CIUDADANÍA",1121338452,1121338452,null,"11 NO SE DILIGENCIA INFORMACIÓN PARA ESTE FORMULARIO EN ESTE PERÍODO DE REPORTE","NO APLICA","NO APLICA","NO APLICA","LUZ FANY VACA GUTIERREZ",1024,"2024-01-13",null,null,null,null,null,"GIT TALENTO HUMANO","GIT TALENTO HUMANO","PRESTAR LOS SERVICIOS PROFESIONALES COMO COMUNICADOR SOCIAL PARA APOYAR LA GESTIÓN ADMINISTRATIVA DEL GIT TALENTO HUMANO DE LA SECRETARÍA GENERAL DEL FONDO DE PASIVO SOCIAL DE FERROCARRILES NACIONALES DE COLOMBIA ",{"$f":"LEFT('BASE 2023 FPS'!$AF202,390)","v":"PRESTAR LOS SERVICIOS PROFESIONALES COMO COMUNICADOR SOCIAL PARA APOYAR LA GESTIÓN ADMINISTRATIVA DEL GIT TALENTO HUMANO DE LA SECRETARÍA GENERAL DEL FONDO DE PASIVO SOCIAL DE FERROCARRILES NACIONALES DE COLOMBIA "},6096412,67060532,"2024-01-23",1,1,"COLOMBIA > Distrito Capital de Bogotá > Bogotá","COLOMBIA > Distrito Capital de Bogotá > Bogotá","2 SUPERVISOR","NO APLICA","5 NO SE TIENE ESTE TIPO DE SEGUIMIENTO EN EL CONTRATO","NO APLICA","11 NO SE DILIGENCIA INFORMACIÓN PARA ESTE FORMULARIO EN ESTE PERÍODO DE REPORTE",1014212108,"TATIANA PEREZ SIERRA","GIT TALENTO HUMANO","GIT TALENTO HUMANO","NO",80111600,"POLIZA","Calidad del servicio - Cumplimiento del contrato",null,"2024-01-23","2024-01-23","2024-01-23","2024-01-23","2024-12-22",330,{"$f":"DATEDIF('BASE 2023 FPS'!$BF202-1,'BASE 2023 FPS'!$BG202,\"m\")","v":11}]
[2024,"CPS-216-2024",null,null,"F5.1","2 CONTRATACIÓN DIRECTA","CPS-216-2024","14 PRESTACIÓN DE SERVICIOS","PROFESIONALES","MARCOS YOHAN DIAZ BARRERA","Formación requerida en una (1) carrera profesional y una  (1) especialización "," Ciencias Sociales y Humanas","1 PERSONA NATURAL","3 CÉDULA DE CIUDADANÍA",13742087,13742087,null,"11 NO SE DILIGENCIA INFORMACIÓN PARA ESTE FORMULARIO EN ESTE PERÍODO DE REPORTE","NO APLICA","NO APLICA","NO APLICA","LUZ FANY VACA GUTIERREZ",1024,"2024-01-13",null,null,null,null,null,"SECRETARIO GENERAL","SECRETARIO GENERAL","PRESTAR LOS SERVICIOS PROFESIONALES PARA APOYAR LA GESTIÓN ADMINISTRATIVA DESDE LA SECRETARIA GENERAL DEL FONDO DE PASIVO SOCIAL DE FERROCARRILES NACIONALES DE COLOMBIA. ",{"$f":"LEFT('BASE 2023 FPS'!$AF203,390)","v":"PRESTAR LOS SERVICIOS PROFESIONALES PARA APOYAR LA GESTIÓN ADMINISTRATIVA DESDE LA SECRETARIA GENERAL DEL FONDO DE PASIVO SOCIAL DE FERROCARRILES NACIONALES DE COLOMBIA. "},7889475,86784225,"2024-01-23",1,1,"COLOMBIA > Distrito Capital de Bogotá > Bogotá","COLOMBIA > Distrito Capital de Bogotá > Bogotá","2 SUPERVISOR","NO APLICA","5 NO SE TIENE ESTE TIPO DE SEGUIMIENTO EN EL CONTRATO","NO APLICA","11 NO SE DILIGENCIA INFORMACIÓN PARA ESTE FORMULARIO EN ESTE PERÍODO DE REPORTE",17956156,"CARLOS ANDRES TOVAR OROZCO","SECRETARIO GENERAL","SECRETARIA GENERAL","NO",80111600,"POLIZA","Calidad del servicio - Cumplimiento del contrato",null,"2024-01-23","2024-01-23","2024-01-23","2024-01-23","2024-12-22",330,{"$f":"DATEDIF('BASE 2023 FPS'!$BF203-1,'BASE 2023 FPS'!$BG203,\"m\")","v":11}]
[2024,"CPS-218-2024",null,null,"F5.1","2 CONTRATACIÓN DIRECTA","CPS-218-2024","14 PRESTACIÓN DE SERVICIOS","PROFESIONALES","ANDREA LUCIA DAZA DANGOND","Formación requerida en una (1) carrera profesional "," Ciencias Sociales y Humanas","1 PERSONA NATURAL","3 CÉDULA DE CIUDADANÍA",1192806892,1192806892,null,"11 NO SE DILIGENCIA INFORMACIÓN PARA ESTE FORMULARIO EN ESTE PERÍODO DE REPORTE","NO APLICA","NO APLICA","NO APLICA","LUZ FANY VACA GUTIERREZ",1024,"2024-01-13",null,null,null,null,null,"GIT TALENTO HUMANO","GIT TALENTO HUMANO","PRESTAR LOS SERVICIOS PROFESIONALES COMO COMUNICADOR SOCIAL PARA APOYAR LA GESTIÓN ADMINISTRATIVA DEL GIT TALENTO HUMANO DE LA SECRETARÍA GENERAL DEL FONDO DE PASIVO SOCIAL DE FERROCARRILES NACIONALES DE COLOMBIA ",{"$f":"LEFT('BASE 2023 FPS'!$AF204,390)","v":"PRESTAR LOS SERVICIOS PROFESIONALES COMO COMUNICADOR SOCIAL PARA APOYAR LA GESTIÓN ADMINISTRATIVA DEL GIT TALENTO HUMANO DE LA SECRETARÍA GENERAL DEL FONDO DE PASIVO SOCIAL DE FERROCARRILES NACIONALES DE COLOMBIA "},3466588,38132468,"2024-01-23",1,1,"COLOMBIA > Distrito Capital de Bogotá > Bogotá","COLOMBIA > Distrito Capital de Bogotá > Bogotá","2 SUPERVISOR","NO APLICA","5 NO SE TIENE ESTE TIPO DE SEGUIMIENTO EN EL CONTRATO","NO APLICA","11 NO SE DILIGENCIA INFORMACIÓN PARA ESTE FORMULARIO EN ESTE PERÍODO DE REPORTE",1014212108,"TATIANA PEREZ SIERRA","GIT TALENTO HUMANO","GIT TALENTO HUMANO","NO",80111600,"POLIZA","Calidad del servicio - Cumplimiento del contrato",null,"2024-01-23","2024-01-23","2024-01-23","2024-01-23","2024-12-22",330,{"$f":"DATEDIF('BASE 2023 FPS'!$BF204-1,'BASE 2023 FPS'!$BG204,\"m\")","v":11}]
[2024,"CPS-219-2024",null,null,"F5.1","2 CONTRATACIÓN DIRECTA","CPS-219-2024","14 PRESTACIÓN DE SERVICIOS","PROFESIONALES","LUIS FERNANDO ACUÑA VEGA","Formacion Tecnica"," Ciencias de la Salud","1 PERSONA NATURAL","3 CÉDULA DE CIUDADANÍA",1123731138,1123731138,null,"11 NO SE DILIGENCIA INFORMACIÓN PARA ESTE FORMULARIO EN ESTE PERÍODO DE REPORTE","NO APLICA","NO APLICA","NO APLICA","LUZ FANY VACA GUTIERREZ",1024,"2024-01-13",null,null,null,null,null,"MEDICO ESPECIALISTA DIVISION MAGDALENA","GIT GESTIÓN PRESTACIÓN SERVICIOS DE SALUD -  DIVISION MAGDALENA","PRESTAR LOS SERVICIOS DE APOYO A LA GESTIÓN DESDE EL GIT GESTIÓN PRESTACIÓN DE SERVICIOS DE SALUD EN LA DIVISIÓN MAGDALENA (CIUDAD BARRANQUILLA) DEL FONDO DE PASIVO SOCIAL DE FERROCARRILES NACIONALES DE COLOMBIA ",{"$f":"LEFT('BASE 2023 FPS'!$AF205,390)","v":"PRESTAR LOS SERVICIOS DE APOYO A LA GESTIÓN DESDE EL GIT GESTIÓN PRESTACIÓN DE SERVICIOS DE SALUD EN LA DIVISIÓN MAGDALENA (CIUDAD BARRANQUILLA) DEL FONDO DE PASIVO SOCIAL DE FERROCARRILES NACIONALES DE COLOMBIA "},3705662,40762282,"2024-01-24",1,1,"COLOMBIA > Distrito Capital de Bogotá > Bogotá","COLOMBIA > Distrito Capital de Bogotá > Bogotá","2 SUPERVISOR","NO APLICA","5 NO SE TIENE ESTE TIPO DE SEGUIMIENTO EN EL CONTRATO","NO APLICA","11 NO SE DILIGENCIA INFORMACIÓN PARA ESTE FORMULARIO EN ESTE PERÍODO DE REPORTE",35507261,"RAIMUNDO COHEN COGOLLO","MEDICO ESPECIALISTA DIVISION MAGDALENA","GIT GESTIÓN PRESTACIÓN SERVICIOS DE SALUD -  DIVISION MAGDALENA","NO",80111600,"POLIZA","Calidad del servicio - Cumplimiento del contrato",null,"2024-01-24","2024-01-24","2024-01-24","2024-01-24","2024-12-23",330,{"$f":"DATEDIF('BASE 2023 FPS'!$BF205-1,'BASE 2023 FPS'!$BG205,\"m\")","v":11}]
[2024,"CPS-220-2024",null,null,"F5.1","2 CONTRATACIÓN DIRECTA","CPS-220-2024","14 PRESTACIÓN DE SERVICIOS","PROFESIONALES","JORGE JUAN OLIVELLA DANGOND","Formación requerida en una (1) carrera profesional "," Ingeniería, Arquitectura, Urbanismo y afines","1 PERSONA NATURAL","3 CÉDULA DE CIUDADANÍA",1121334539,1121334539,null,"11 NO SE DILIGENCIA INFORMACIÓN PARA ESTE FORMULARIO EN ESTE PERÍODO DE REPORTE","NO APLICA","NO APLICA","NO APLICA","LUZ FANY VACA GUTIERREZ",1024,"2024-01-13",null,null,null,null,null,"OFICINA ASESORA PLANEACIÓN Y SISTEMAS","OFICINA ASESORA PLANEACIÓN Y SISTEMAS","PRESTAR LOS SERVICIOS PROFESIONALES COMO INGENIERO INDUSTRIAL PARA APOYAR LA GESTION ADMINISTRATIVA DE LA OFICINA ASESORA DE PLANEACIÓN Y SISTEMAS DEL FONDO PASIVO SOCIAL DE FERROCARRILES NACIONALES DE COLOMBIA ",{"$f":"LEFT('BASE 2023 FPS'!$AF206,390)","v":"PRESTAR LOS SERVICIOS PROFESIONALES COMO INGENIERO INDUSTRIAL PARA APOYAR LA GESTION ADMINISTRATIVA DE LA OFICINA ASESORA DE PLANEACIÓN Y SISTEMAS DEL FONDO PASIVO SOCIAL DE FERROCARRILES NACIONALES DE COLOMBIA "},6096412,67060532,"2024-01-23",1,1,"COLOMBIA > Distrito Capital de Bogotá > Bogotá","COLOMBIA > Distrito Capital de Bogotá > Bogotá","2 SUPERVISOR","NO APLICA","5 NO SE TIENE ESTE TIPO DE SEGUIMIENTO EN EL CONTRATO","NO APLICA","11 NO SE DILIGENCIA INFORMACIÓN PARA ESTE FORMULARIO EN ESTE PERÍODO DE REPORTE",24218560,"MARIA YANETH FARFAN CASALLAS","JEFE OFICINA ASESORA PLANEACION Y SISTEMAS","OFICINA ASESORA PLANEACION Y SISTEMAS","NO",80111600,"POLIZA","Calidad del servicio - Cumplimiento del contrato",null,"2024-01-23","2024-01-23","2024-01-23","2024-01-23","2024-12-22",330,{"$f":"DATEDIF('BASE 2023 FPS'!$BF206-1,'BASE 2023 FPS'!$BG206,\"m\")","v":11}]
[2024,"CPS-221-2024",null,null,"F5.1","2 CONTRATACIÓN DIRECTA","CPS-221-2024","14 PRESTACIÓN DE SERVICIOS","PROFESIONALES","NANCY MONTERO BETANCOURT","Formación requerida en una (1) carrera profesional "," Economía, Administración, Contaduría y afines","1 PERSONA NATURAL","3 CÉDULA DE CIUDADANÍA",52108024,52108024,null,"11 NO SE DILIGENCIA INFORMACIÓN PARA ESTE FORMULARIO EN ESTE PERÍODO DE REPORTE","NO APLICA","NO APLICA","NO APLICA","LUZ FANY VACA GUTIERREZ",1024,"2024-01-13",null,null,null,null,null,"OFICINA ASESORA JURÍDICA","OFICINA ASESORA JURÍDICA","PRESTAR LOS SERVICIOS PROFESIONALES PARA APOYAR LA GESTION FINANCIERA, ADMINISTRATIVA Y DE PLANEACION PARA LA OFICINA ASESORA JURÍDICA DEL FONDO DE PASIVO SOCIAL DE FERROCARRILES NACIONALES DE COLOMBIA. ",{"$f":"LEFT('BASE 2023 FPS'!$AF207,390)","v":"PRESTAR LOS SERVICIOS PROFESIONALES PARA APOYAR LA GESTION FINANCIERA, ADMINISTRATIVA Y DE PLANEACION PARA LA OFICINA ASESORA JURÍDICA DEL FONDO DE PASIVO SOCIAL DE FERROCARRILES NACIONALES DE COLOMBIA. "},6455025,71005275,"2024-01-25",1,1,"COLOMBIA > Distrito Capital de Bogotá > Bogotá","COLOMBIA > Distrito Capital de Bogotá > Bogotá","2 SUPERVISOR","NO APLICA","5 NO SE TIENE ESTE TIPO DE SEGUIMIENTO EN EL CONTRATO","NO APLICA","11 NO SE DILIGENCIA INFORMACIÓN PARA ESTE FORMULARIO EN ESTE PERÍODO DE REPORTE",65767422,"ANDREA ALDANA TRUJILLO","OFICINA ASESORA JURÍDICA","OFICINA ASESORA JURÍDICA","NO",80111600,"POLIZA","Calidad del servicio - Cumplimiento del contrato",null,"2024-01-25","2024-01-25","2024-01-25","2024-01-25","2024-12-24",330,{"$f":"DATEDIF('BASE 2023 FPS'!$BF207-1,'BASE 2023 FPS'!$BG207,\"m\")","v":11}]
[2024,"CPS-222-2024",null,null,"F5.1","2 CONTRATACIÓN DIRECTA","CPS-222-2024","14 PRESTACIÓN DE SERVICIOS","PROFESIONALES","ROSA ANGELICA ACOSTA FONTALVO","Formación requerida en una (1) carrera profesional "," Ciencias de la Salud","1 PERSONA NATURAL","3 CÉDULA DE CIUDADANÍA",1121337359,1121337359,null,"11 NO SE DILIGENCIA INFORMACIÓN PARA ESTE FORMULARIO EN ESTE PERÍODO DE REPORTE","NO APLICA","NO APLICA","NO APLICA","LUZ FANY VACA GUTIERREZ",1024,"2024-01-13",null,null,null,null,null,"GIT TALENTO HUMANO","GIT TALENTO HUMANO","PRESTAR LOS SERVICIOS PROFESIONALES COMO TRABAJADORA SOCIAL PARA APOYAR LA GESTIÓN DEL GIT TALENTO HUMANO DE LA SECRETARÍA GENERAL DEL FONDO DE PASIVO SOCIAL DE FERROCARRILES NACIONALES DE COLOMBIA. ",{"$f":"LEFT('BASE 2023 FPS'!$AF208,390)","v":"PRESTAR LOS SERVICIOS PROFESIONALES COMO TRABAJADORA SOCIAL PARA APOYAR LA GESTIÓN DEL GIT TALENTO HUMANO DE LA SECRETARÍA GENERAL DEL FONDO DE PASIVO SOCIAL DE FERROCARRILES NACIONALES DE COLOMBIA. "},4303349,47336839,"2024-01-24",1,1,"COLOMBIA > Distrito Capital de Bogotá > Bogotá","COLOMBIA > Distrito Capital de Bogotá > Bogotá","2 SUPERVISOR","NO APLICA","5 NO SE TIENE ESTE TIPO DE SEGUIMIENTO EN EL CONTRATO","NO APLICA","11 NO SE DILIGENCIA INFORMACIÓN PARA ESTE FORMULARIO EN ESTE PERÍODO DE REPORTE",1014212108,"TATIANA PEREZ SIERRA","GIT TALENTO HUMANO","GIT TALENTO HUMANO","NO",80111600,"POLIZA","Calidad del servicio - Cumplimiento del contrato",null,"2024-01-24","2024-01-24","2024-01-24","2024-01-24","2024-12-23",330,{"$f":"DATEDIF('BASE 2023 FPS'!$BF208-1,'BASE 2023 FPS'!$BG208,\"m\")","v":11}]
[2024,"CPS-223-2024",null,null,"F5.1","2 CONTRATACIÓN DIRECTA","CPS-223-2024","14 PRESTACIÓN DE SERVICIOS","PROFESIONALES","GUSTAVO ADOLFO DAZA MORALES","Formación requerida en una (1) carrera profesional y una  (1) especialización "," Ciencias Sociales y Humanas","1 PERSONA NATURAL","3 CÉDULA DE CIUDADANÍA",1121333151,1121333151,null,"11 NO SE DILIGENCIA INFORMACIÓN PARA ESTE FORMULARIO EN ESTE PERÍODO DE REPORTE","NO APLICA","NO APLICA","NO APLICA","LUZ FANY VACA GUTIERREZ",1024,"2024-01-13",null,null,null,null,null,"GIT GESTION PRESTACIONES ECONOMICAS","GIT GESTION PRESTACIONES ECONOMICAS","PRESTAR LOS SERVICIOS PROFESIONALES COMO ABOGADO ESPECIALISTA PARA APOYAR LA GESTIÓN ADMINISTRATIVA DESDE EL GIT GESTIÓN PRESTACIONES ECONÓMICAS DEL FONDO PASIVO SOCIAL DE FERROCARRILES NACIONALES DE COLOMBIA ",{"$f":"LEFT('BASE 2023 FPS'!$AF209,390)","v":"PRESTAR LOS SERVICIOS PROFESIONALES COMO ABOGADO ESPECIALISTA PARA APOYAR LA GESTIÓN ADMINISTRATIVA DESDE EL GIT GESTIÓN PRESTACIONES ECONÓMICAS DEL FONDO PASIVO SOCIAL DE FERROCARRILES NACIONALES DE COLOMBIA "},6096412,67060532,"2024-01-25",1,1,"COLOMBIA > Distrito Capital de Bogotá > Bogotá","COLOMBIA > Distrito Capital de Bogotá > Bogotá","2 SUPERVISOR","NO APLICA","5 NO SE TIENE ESTE TIPO DE SEGUIMIENTO EN EL CONTRATO","NO APLICA","11 NO SE DILIGENCIA INFORMACIÓN PARA ESTE FORMULARIO EN ESTE PERÍODO DE REPORTE",49607561,"LEIVIS MARIANA BOTINA MONTERO","GIT GESTION PRESTACIONES ECONOMICAS","GIT GESTION PRESTACIONES ECONOMICAS","NO",80111600,"POLIZA","Calidad del servicio - Cumplimiento del contrato",null,"2024-01-25","2024-01-25","2024-01-25","2024-01-25","2024-12-24",330,{"$f":"DATEDIF('BASE 2023 FPS'!$BF209-1,'BASE 2023 FPS'!$BG209,\"m\")","v":11}]
[2024,"CPS-224-2024",null,null,"F5.1","2 CONTRATACIÓN DIRECTA","CPS-224-2024","14 PRESTACIÓN DE SERVICIOS","PROFESIONALES","LUZ MARIA WILLS OSPINA","Formación requerida en una (1) carrera profesional "," Ingeniería, Arquitectura, Urbanismo y afines","1 PERSONA NATURAL","3 CÉDULA DE CIUDADANÍA",38142464,38142464,null,"11 NO SE DILIGENCIA INFORMACIÓN PARA ESTE FORMULARIO EN ESTE PERÍODO DE REPORTE","NO APLICA","NO APLICA","NO APLICA","LUZ FANY VACA GUTIERREZ",1024,"2024-01-13",null,null,null,null,null,"GIT TALENTO HUMANO","GIT TALENTO HUMANO","PRESTAR LOS SERVICIOS PROFESIONALES COMO INGENIERA INDUSTRIAL PARA APOYAR LA GESTIÓN ADMINISTRATIVA DEL GIT TALENTO HUMANO DE LA SECRETARÍA GENERAL DEL FONDO DE PASIVO SOCIAL DE FERROCARRILES NACIONALES DE COLOMBIA. ",{"$f":"LEFT('BASE 2023 FPS'!$AF210,390)","v":"PRESTAR LOS SERVICIOS PROFESIONALES COMO INGENIERA INDUSTRIAL PARA APOYAR LA GESTIÓN ADMINISTRATIVA DEL GIT TALENTO HUMANO DE LA SECRETARÍA GENERAL DEL FONDO DE PASIVO SOCIAL DE FERROCARRILES NACIONALES DE COLOMBIA. "},7889475,86784225,"2024-01-25",1,1,"COLOMBIA > Distrito Capital de Bogotá > Bogotá","COLOMBIA > Distrito Capital de Bogotá > Bogotá","2 SUPERVISOR","NO APLICA","5 NO SE TIENE ESTE TIPO DE SEGUIMIENTO EN EL CONTRATO","NO APLICA","11 NO SE DILIGENCIA INFORMACIÓN PARA ESTE FORMULARIO EN ESTE PERÍODO DE REPORTE",1014212108,"TATIANA PEREZ SIERRA","GIT TALENTO HUMANO","GIT TALENTO HUMANO","NO",80111600,"POLIZA","Calidad del servicio - Cumplimiento del contrato",null,"2024-01-25","2024-01-25","2024-01-25","2024-01-25","2024-12-24",330,{"$f":"DATEDIF('BASE 2023 FPS'!$BF210-1,'BASE 2023 FPS'!$BG210,\"m\")","v":11}]
[2024,"CPS-225-2024",null,null,"F5.1","2 CONTRATACIÓN DIRECTA","CPS-225-2024","14 PRESTACIÓN DE SERVICIOS","PROFESIONALES","OMAR YESID TONCEL CHURIO","Formación requerida en una (1) carrera profesional "," Ingeniería, Arquitectura, Urbanismo y afines","1 PERSONA NATURAL","3 CÉDULA DE CIUDADANÍA",1121330657,1121330657,null,"11 NO SE DILIGENCIA INFORMACIÓN PARA ESTE FORMULARIO EN ESTE PERÍODO DE REPORTE","NO APLICA","NO APLICA","NO APLICA","LUZ FANY VACA GUTIERREZ",1024,"2024-01-13",null,null,null,null,null,"COORDINADOR GIT BIENES, COMPRAS Y SERVICIOS ADMINISTRATIVOS","GIT BIENES, COMPRAS Y SERVICIOS ADMINISTRATIVOS","PRESTAR LOS SERVICIOS PROFESIONALES COMO INGENIERO EN MINAS ESPECIALIZADO PARA APOYAR LAS GESTIONES ADMINISTRATIVAS Y LOGÍSTICAS DESDE LA SECRETARIA GENERAL/COORDINACIÓN DEL GIT GESTIÓN BIENES, COMPRAS Y SERVICIOS ADMINISTRATIVOS DEL FONDO DE PASIVO SOCIAL DE FERROCARRILES NACIONALES DE COLOMBIA ",{"$f":"LEFT('BASE 2023 FPS'!$AF211,390)","v":"PRESTAR LOS SERVICIOS PROFESIONALES COMO INGENIERO EN MINAS ESPECIALIZADO PARA APOYAR LAS GESTIONES ADMINISTRATIVAS Y LOGÍSTICAS DESDE LA SECRETARIA GENERAL/COORDINACIÓN DEL GIT GESTIÓN BIENES, COMPRAS Y SERVICIOS ADMINISTRATIVOS DEL FONDO DE PASIVO SOCIAL DE FERROCARRILES NACIONALES DE COLOMBIA "},6096412,67060532,"2024-01-24",1,1,"COLOMBIA > Distrito Capital de Bogotá > Bogotá","COLOMBIA > Distrito Capital de Bogotá > Bogotá","2 SUPERVISOR","NO APLICA","5 NO SE TIENE ESTE TIPO DE SEGUIMIENTO EN EL CONTRATO","NO APLICA","11 NO SE DILIGENCIA INFORMACIÓN PARA ESTE FORMULARIO EN ESTE PERÍODO DE REPORTE",5711553,"LUIS ALBERTO SEGURA BECERRA","COORDINADOR GIT BIENES, COMPRAS Y SERVICIOS ADMINISTRATIVOS","GIT BIENES, COMPRAS Y SERVICIOS ADMINISTRATIVOS","NO",80111600,"POLIZA","Calidad del servicio - Cumplimiento del contrato",null,"2024-01-24","2024-01-24","2024-01-24","2024-01-24","2024-12-23",330,{"$f":"DATEDIF('BASE 2023 FPS'!$BF211-1,'BASE 2023 FPS'!$BG211,\"m\")","v":11}]
[2024,"CPS-226-2024",null,null,"F5.1","2 CONTRATACIÓN DIRECTA","CPS-226-2024","14 PRESTACIÓN DE SERVICIOS","PROFESIONALES","EDISON EFRAN BENITEZ ORTIZ","Formación requerida en una (1) carrera profesional "," Ciencias Sociales y Humanas","1 PERSONA NATURAL","3 CÉDULA DE CIUDADANÍA",79961479,79961479,null,"11 NO SE DILIGENCIA INFORMACIÓN PARA ESTE FORMULARIO EN ESTE PERÍODO DE REPORTE","NO APLICA","NO APLICA","NO APLICA","LUZ FANY VACA GUTIERREZ",1024,"2024-01-13",null,null,null,null,null,"OFICINA ASESORA JURÍDICA","OFICINA ASESORA JURÍDICA","PRESTAR LOS SERVICIOS PROFESIONALES PARA APOYAR LAS ACTIVIDADES RELACIONADAS CON LOS ASUNTOS ADMINISTRATIVOS DE LA OFICINA ASESORA JURÍDICA DEL FONDO DE PASIVO SOCIAL DE FERROCARRILES NACIONALES DE COLOMBIA ",{"$f":"LEFT('BASE 2023 FPS'!$AF212,390)","v":"PRESTAR LOS SERVICIOS PROFESIONALES PARA APOYAR LAS ACTIVIDADES RELACIONADAS CON LOS ASUNTOS ADMINISTRATIVOS DE LA OFICINA ASESORA JURÍDICA DEL FONDO DE PASIVO SOCIAL DE FERROCARRILES NACIONALES DE COLOMBIA "},7172250,78894750,"2024-01-24",1,1,"COLOMBIA > Distrito Capital de Bogotá > Bogotá","COLOMBIA > Distrito Capital de Bogotá > Bogotá","2 SUPERVISOR","NO APLICA","5 NO SE TIENE ESTE TIPO DE SEGUIMIENTO EN EL CONTRATO","NO APLICA","11 NO SE DILIGENCIA INFORMACIÓN PARA ESTE FORMULARIO EN ESTE PERÍODO DE REPORTE",65767422,"ANDREA ALDANA TRUJILLO","OFICINA ASESORA JURÍDICA","OFICINA ASESORA JURÍDICA","NO",80111600,"POLIZA","Calidad del servicio - Cumplimiento del contrato",null,"2024-01-24","2024-01-24","2024-01-24","2024-01-24","2024-12-23",330,{"$f":"DATEDIF('BASE 2023 FPS'!$BF212-1,'BASE 2023 FPS'!$BG212,\"m\")","v":11}]
[2024,"CPS-227-2024",null,null,"F5.1","2 CONTRATACIÓN DIRECTA","CPS-227-2024","14 PRESTACIÓN DE SERVICIOS","PROFESIONALES","MARGARITA MATILDE TORRE OSPINO","Formación requerida en una (1) carrera profesional "," Economía, Administración, Contaduría y afines","1 PERSONA NATURAL","3 CÉDULA DE CIUDADANÍA",1121336744,1121336744,null,"11 NO SE DILIGENCIA INFORMACIÓN PARA ESTE FORMULARIO EN ESTE PERÍODO DE REPORTE","NO APLICA","NO APLICA","NO APLICA","LUZ FANY VACA GUTIERREZ",1024,"2024-01-13",null,null,null,null,null,"MEDICO ESPECIALISTA DIVISION MAGDALENA","GIT GESTIÓN PRESTACIÓN SERVICIOS DE SALUD -  DIVISION MAGDALENA","PRESTAR LOS SERVICIOS PROFESIONALES PARA APOYAR LA GESTIÓN ADMINISTRATIVA DESDE EL GIT GESTIO PRESTACIO DE SERVICIOS DE SALUD EN LA DIVISIO MAGDALENA (CIUDAD DE SANTA MARTA DEL FONDO DE PASIVO SOCIAL DE FERROCARRILES NACIONALES DE COLOMBIA ",{"$f":"LEFT('BASE 2023 FPS'!$AF213,390)","v":"PRESTAR LOS SERVICIOS PROFESIONALES PARA APOYAR LA GESTIÓN ADMINISTRATIVA DESDE EL GIT GESTIO PRESTACIO DE SERVICIOS DE SALUD EN LA DIVISIO MAGDALENA (CIUDAD DE SANTA MARTA DEL FONDO DE PASIVO SOCIAL DE FERROCARRILES NACIONALES DE COLOMBIA "},4064275,44707025,"2024-01-24",1,1,"COLOMBIA > Distrito Capital de Bogotá > Bogotá","COLOMBIA > Distrito Capital de Bogotá > Bogotá","2 SUPERVISOR","NO APLICA","5 NO SE TIENE ESTE TIPO DE SEGUIMIENTO EN EL CONTRATO","NO APLICA","11 NO SE DILIGENCIA INFORMACIÓN PARA ESTE FORMULARIO EN ESTE PERÍODO DE REPORTE",35507261,"RAIMUNDO COHEN COGOLLO","MEDICO ESPECIALISTA DIVISION MAGDALENA","GIT GESTIÓN PRESTACIÓN SERVICIOS DE SALUD -  DIVISION MAGDALENA","NO",80111600,"POLIZA","Calidad del servicio - Cumplimiento del contrato",null,"2024-01-24","2024-01-24","2024-01-24","2024-01-24","2024-12-23",330,{"$f":"DATEDIF('BASE 2023 FPS'!$BF213-1,'BASE 2023 FPS'!$BG213,\"m\")","v":11}]
[2024,"CPS-228-2024",null,null,"F5.1","2 CONTRATACIÓN DIRECTA","CPS-228-2024","14 PRESTACIÓN DE SERVICIOS","PROFESIONALES","ANDRES DAVID GARCIA PEREZ","Formación requerida en una (1) carrera profesional "," Ciencias Sociales y Humanas","1 PERSONA NATURAL","3 CÉDULA DE CIUDADANÍA",1065607876,1065607876,null,"11 NO SE DILIGENCIA INFORMACIÓN PARA ESTE FORMULARIO EN ESTE PERÍODO DE REPORTE","NO APLICA","NO APLICA","NO APLICA","LUZ FANY VACA GUTIERREZ",1024,"2024-01-13",null,null,null,null,null,"GIT GESTION PRESTACIONES ECONOMICAS","GIT GESTION PRESTACIONES ECONOMICAS","PRESTAR LOS SERVICIOS PROFESIONALES COMO ABOGADO PARA APOYAR LA GESTIÓN ADMINISTRATIVA DESDE EL GIT GESTIÓN PRESTACIONES ECONÓMICAS DEL FONDO PASIVO SOCIAL DE FERROCARRILES NACIONALES DE COLOMBIA. ",{"$f":"LEFT('BASE 2023 FPS'!$AF214,390)","v":"PRESTAR LOS SERVICIOS PROFESIONALES COMO ABOGADO PARA APOYAR LA GESTIÓN ADMINISTRATIVA DESDE EL GIT GESTIÓN PRESTACIONES ECONÓMICAS DEL FONDO PASIVO SOCIAL DE FERROCARRILES NACIONALES DE COLOMBIA. "},6096412,67060532,"2024-01-24",1,1,"COLOMBIA > Distrito Capital de Bogotá > Bogotá","COLOMBIA > Distrito Capital de Bogotá > Bogotá","2 SUPERVISOR","NO APLICA","5 NO SE TIENE ESTE TIPO DE SEGUIMIENTO EN EL CONTRATO","NO APLICA","11 NO SE DILIGENCIA INFORMACIÓN PARA ESTE FORMULARIO EN ESTE PERÍODO DE REPORTE",49607561,"LEIVIS MARIANA BOTINA MONTERO","GIT GESTION PRESTACIONES ECONOMICAS","GIT GESTION PRESTACIONES ECONOMICAS","NO",80111600,"POLIZA","Calidad del servicio - Cumplimiento del contrato",null,"2024-01-24","2024-01-24","2024-01-24","2024-01-24","2024-12-23",330,{"$f":"DATEDIF('BASE 2023 FPS'!$BF214-1,'BASE 2023 FPS'!$BG214,\"m\")","v":11}]
[2024,"CPS-229-2024",null,null,"F5.1","2 CONTRATACIÓN DIRECTA","CPS-229-2024","14 PRESTACIÓN DE SERVICIOS","PROFESIONALES","CAMILO ANDRES LUQUE GOMEZ ","Formación requerida en una (1) carrera profesional "," Ciencias Sociales y Humanas","1 PERSONA NATURAL","3 CÉDULA DE CIUDADANÍA",1120752408,1120752408,null,"11 NO SE DILIGENCIA INFORMACIÓN PARA ESTE FORMULARIO EN ESTE PERÍODO DE REPORTE","NO APLICA","NO APLICA","NO APLICA","LUZ FANY VACA GUTIERREZ",1024,"2024-01-13",null,null,null,null,null,"COORDINADOR GIT BIENES, COMPRAS Y SERVICIOS ADMINISTRATIVOS","GIT BIENES, COMPRAS Y SERVICIOS ADMINISTRATIVOS","PRESTAR LOS SERVICIOS PROFESIONALES COMO ABOGADO PARA APOYAR LAS ACTIVIDADES JURÍDICAS Y ADMINISTRATIVAS EN LA SECRETARIA GENERAL/ COORDINACIÓN GIT BIENES, COMPRAS Y SERVICIOS ADMINISTRATIVOS DEL FONDO DE PASIVO SOCIAL DE FERROCARRILES NACIONALES DE COLOMBIA ",{"$f":"LEFT('BASE 2023 FPS'!$AF215,390)","v":"PRESTAR LOS SERVICIOS PROFESIONALES COMO ABOGADO PARA APOYAR LAS ACTIVIDADES JURÍDICAS Y ADMINISTRATIVAS EN LA SECRETARIA GENERAL/ COORDINACIÓN GIT BIENES, COMPRAS Y SERVICIOS ADMINISTRATIVOS DEL FONDO DE PASIVO SOCIAL DE FERROCARRILES NACIONALES DE COLOMBIA "},6096412,67060532,"2024-01-24",1,1,"COLOMBIA > Distrito Capital de Bogotá > Bogotá","COLOMBIA > Distrito Capital de Bogotá > Bogotá","2 SUPERVISOR","NO APLICA","5 NO SE TIENE ESTE TIPO DE SEGUIMIENTO EN EL CONTRATO","NO APLICA","11 NO SE DILIGENCIA INFORMACIÓN PARA ESTE FORMULARIO EN ESTE PERÍODO DE REPORTE",5711553,"LUIS ALBERTO SEGURA BECERRA","COORDINADOR GIT BIENES, COMPRAS Y SERVICIOS ADMINISTRATIVOS","GIT BIENES, COMPRAS Y SERVICIOS ADMINISTRATIVOS","NO",80111600,"POLIZA","Calidad del servicio - Cumplimiento del contrato",null,"2024-01-24","2024-01-24","2024-01-24","2024-01-24","2024-12-23",330,{"$f":"DATEDIF('BASE 2023 FPS'!$BF215-1,'BASE 2023 FPS'!$BG215,\"m\")","v":11}]
[2024,"CPS-230-2024",null,null,"F5.1","2 CONTRATACIÓN DIRECTA","CPS-230-2024","14 PRESTACIÓN DE SERVICIOS","PROFESIONALES","JHON KELIS ATENCIO ARIÑO","Formación requerida en una (1) carrera profesional "," Economía, Administración, Contaduría y afines","1 PERSONA NATURAL","3 CÉDULA DE CIUDADANÍA",17959320,17959320,null,"11 NO SE DILIGENCIA INFORMACIÓN PARA ESTE FORMULARIO EN ESTE PERÍODO DE REPORTE","NO APLICA","NO APLICA","NO APLICA","LUZ FANY VACA GUTIERREZ",1024,"2024-01-13",null,null,null,null,null,"COORDINADOR GIT CONTABILIDAD","COORDINADOR GIT CONTABILIDAD","PRESTAR LOS SERVICIOS PROFESIONALES COMO CONTADOR PARA APOYAR LA GESTIÓN CONTABLE Y FINANCIERA EN EL GIT DE CONTABILIDAD DEL FONDO PASIVO SOCIAL DE FERROCARRILES NACIONALES DE COLOMBIA ",{"$f":"LEFT('BASE 2023 FPS'!$AF216,390)","v":"PRESTAR LOS SERVICIOS PROFESIONALES COMO CONTADOR PARA APOYAR LA GESTIÓN CONTABLE Y FINANCIERA EN EL GIT DE CONTABILIDAD DEL FONDO PASIVO SOCIAL DE FERROCARRILES NACIONALES DE COLOMBIA "},6096412,67060532,"2024-01-25",1,1,"COLOMBIA > Distrito Capital de Bogotá > Bogotá","COLOMBIA > Distrito Capital de Bogotá > Bogotá","2 SUPERVISOR","NO APLICA","5 NO SE TIENE ESTE TIPO DE SEGUIMIENTO EN EL CONTRATO","NO APLICA","11 NO SE DILIGENCIA INFORMACIÓN PARA ESTE FORMULARIO EN ESTE PERÍODO DE REPORTE",40048297,"TULIA XIMENA DIAZ ROMERO","COORDINADOR GIT CONTABILIDAD","COORDINADOR GIT CONTABILIDAD","NO",80111600,"POLIZA","Calidad del servicio - Cumplimiento del contrato",null,"2024-01-25","2024-01-25","2024-01-25","2024-01-25","2024-12-24",330,{"$f":"DATEDIF('BASE 2023 FPS'!$BF216-1,'BASE 2023 FPS'!$BG216,\"m\")","v":11}]
[2024,"CPS-231-2024",null,null,"F5.1","2 CONTRATACIÓN DIRECTA","CPS-231-2024","14 PRESTACIÓN DE SERVICIOS","PROFESIONALES","MARIA ISABEL CUJIA QUINTERO","Formación requerida en una (1) carrera profesional "," Ciencias de la Salud","1 PERSONA NATURAL","3 CÉDULA DE CIUDADANÍA",56099458,56099458,null,"11 NO SE DILIGENCIA INFORMACIÓN PARA ESTE FORMULARIO EN ESTE PERÍODO DE REPORTE","NO APLICA","NO APLICA","NO APLICA","LUZ FANY VACA GUTIERREZ",1024,"2024-01-13",null,null,null,null,null,"COORDINADORA GIT GESTIÓN PRESTACIÓN SERVICIOS DE SALUD","GIT GESTIÓN PRESTACIÓN SERVICIOS DE SALUD","PRESTAR LOS SERVICIOS PROFESIONALES COMO ENFERMERA PARA APOYAR LA GESTIÓN ADMINISTRATIVA A CARGO DEL GRUPO INTERNO DE TRABAJO GESTIÓN PRESTACIÓN DE SERVICIO DE SALUD DEL FONDO DE PASIVO SOCIAL DE FERROCARRILES NACIONALES DE COLOMBIA EN LA IMPLEMENTACION, SEGUIMIENTO DE LOS PROGRAMAS Y RUTAS DEL MODELO INTEGRAL DE ATENCION DEL FONDO (MAISFEN) Y EL PROGRAMA DE VIGILANCIA EN SALUD PUBLICA ",{"$f":"LEFT('BASE 2023 FPS'!$AF217,390)","v":"PRESTAR LOS SERVICIOS PROFESIONALES COMO ENFERMERA PARA APOYAR LA GESTIÓN ADMINISTRATIVA A CARGO DEL GRUPO INTERNO DE TRABAJO GESTIÓN PRESTACIÓN DE SERVICIO DE SALUD DEL FONDO DE PASIVO SOCIAL DE FERROCARRILES NACIONALES DE COLOMBIA EN LA IMPLEMENTACION, SEGUIMIENTO DE LOS PROGRAMAS Y RUTAS DEL MODELO INTEGRAL DE ATENCION DEL FONDO (MAISFEN) Y EL PROGRAMA DE VIGILANCIA EN SALUD PUBLICA "},6096412,67060532,"2024-01-25",1,1,"COLOMBIA > Distrito Capital de Bogotá > Bogotá","COLOMBIA > Distrito Capital de Bogotá > Bogotá","2 SUPERVISOR","NO APLICA","5 NO SE TIENE ESTE TIPO DE SEGUIMIENTO EN EL CONTRATO","NO APLICA","11 NO SE DILIGENCIA INFORMACIÓN PARA ESTE FORMULARIO EN ESTE PERÍODO DE REPORTE",35507261,"LUZ HELENA GUTIERREZ SUAREZ","COORDINADORA GIT GESTIÓN PRESTACIÓN SERVICIOS DE SALUD","GIT GESTIÓN PRESTACIÓN SERVICIOS DE SALUD","NO",80111600,"POLIZA","Calidad del servicio - Cumplimiento del contrato",null,"2024-01-25","2024-01-25","2024-01-25","2024-01-25","2024-12-24",330,{"$f":"DATEDIF('BASE 2023 FPS'!$BF217-1,'BASE 2023 FPS'!$BG217,\"m\")","v":11}]
[2024,"CPS-232-2024",null,null,"F5.1","2 CONTRATACIÓN DIRECTA","CPS-232-2024","14 PRESTACIÓN DE SERVICIOS","PROFESIONALES","ANDREA MANOSALVA MARTINEZ","Formación requerida en una (1) carrera profesional "," Ciencias Sociales y Humanas","1 PERSONA NATURAL","3 CÉDULA DE CIUDADANÍA",52966841,52966841,null,"11 NO SE DILIGENCIA INFORMACIÓN PARA ESTE FORMULARIO EN ESTE PERÍODO DE REPORTE","NO APLICA","NO APLICA","NO APLICA","LUZ FANY VACA GUTIERREZ",1024,"2024-01-13",null,null,null,null,null,"OFICINA ASESORA JURÍDICA","OFICINA ASESORA JURÍDICA","PRESTAR LOS SERVICIOS PROFESIONALES COMO ABOGADO PARA APOYAR LAS ACTIVIDADES RELACIONADAS CON LOS ASUNTOS JURÍDICOS Y ADMINISTRATIVOS DE LA OFICINA ASESORA JURÍDICA DEL FONDO DE PASIVO SOCIAL DE FERROCARRILES NACIONALES DE COLOMBIA ",{"$f":"LEFT('BASE 2023 FPS'!$AF218,390)","v":"PRESTAR LOS SERVICIOS PROFESIONALES COMO ABOGADO PARA APOYAR LAS ACTIVIDADES RELACIONADAS CON LOS ASUNTOS JURÍDICOS Y ADMINISTRATIVOS DE LA OFICINA ASESORA JURÍDICA DEL FONDO DE PASIVO SOCIAL DE FERROCARRILES NACIONALES DE COLOMBIA "},7530862,82839482,"2024-01-25",1,1,"COLOMBIA > Distrito Capital de Bogotá > Bogotá","COLOMBIA > Distrito Capital de Bogotá > Bogotá","2 SUPERVISOR","NO APLICA","5 NO SE TIENE ESTE TIPO DE SEGUIMIENTO EN EL CONTRATO","NO APLICA","11 NO SE DILIGENCIA INFORMACIÓN PARA ESTE FORMULARIO EN ESTE PERÍODO DE REPORTE",65767422,"ANDREA ALDANA TRUJILLO","OFICINA ASESORA JURÍDICA","OFICINA ASESORA JURÍDICA","NO",80111600,"POLIZA","Calidad del servicio - Cumplimiento del contrato",null,"2024-01-25","2024-01-25","2024-01-25","2024-01-25","2024-12-24",330,{"$f":"DATEDIF('BASE 2023 FPS'!$BF218-1,'BASE 2023 FPS'!$BG218,\"m\")","v":11}]
[2024,"CPS-233-2024",null,null,"F5.1","2 CONTRATACIÓN DIRECTA","CPS-233-2024","14 PRESTACIÓN DE SERVICIOS","PROFESIONALES","JUAN FELIPE CASTILLA","Formacion Tecnica"," Ciencias de la Salud","1 PERSONA NATURAL","3 CÉDULA DE CIUDADANÍA",1039472438,1039472438,null,"11 NO SE DILIGENCIA INFORMACIÓN PARA ESTE FORMULARIO EN ESTE PERÍODO DE REPORTE","NO APLICA","NO APLICA","NO APLICA","LUZ FANY VACA GUTIERREZ",1024,"2024-01-13",null,null,null,null,null,"SECRETARIA GENERAL – ATENCION AL CIUDADANO Y GESTION DOCUMENTAL","SECRETARIA GENERAL – ATENCION AL CIUDADANO Y GESTION DOCUMENTAL","PRESTAR LOS SERVICIOS DE APOYO A LA GESTIÓN DESDE EL GRUPOINTERNO DE TRABAJO ATENCIÓN AL CIUDADANO EN LA DIVISIÓNANTIOQUIA - (CIUDAD MEDELLÍN) DEL FONDO DE PASIVO SOCIAL DEFERROCARRILES NACIONALES DE COLOMBIA EN LA REALIZACION DE LABORES TÉCNICAS DE ATENCIÓN DE USUARIOS Y TRÁMITE DE PQRS ",{"$f":"LEFT('BASE 2023 FPS'!$AF219,390)","v":"PRESTAR LOS SERVICIOS DE APOYO A LA GESTIÓN DESDE EL GRUPOINTERNO DE TRABAJO ATENCIÓN AL CIUDADANO EN LA DIVISIÓNANTIOQUIA - (CIUDAD MEDELLÍN) DEL FONDO DE PASIVO SOCIAL DEFERROCARRILES NACIONALES DE COLOMBIA EN LA REALIZACION DE LABORES TÉCNICAS DE ATENCIÓN DE USUARIOS Y TRÁMITE DE PQRS "},3107975,34187725,"2024-01-25",1,1,"COLOMBIA > Distrito Capital de Bogotá > Bogotá","COLOMBIA > Distrito Capital de Bogotá > Bogotá","2 SUPERVISOR","NO APLICA","5 NO SE TIENE ESTE TIPO DE SEGUIMIENTO EN EL CONTRATO","NO APLICA","11 NO SE DILIGENCIA INFORMACIÓN PARA ESTE FORMULARIO EN ESTE PERÍODO DE REPORTE",39526262,"NURY NAVARRO HERNADEZ","SECRETARIA GENERAL – ATENCION AL CIUDADANO Y GESTION DOCUMENTAL","SECRETARIA GENERAL – ATENCION AL CIUDADANO Y GESTION DOCUMENTAL","NO",80111600,"POLIZA","Calidad del servicio - Cumplimiento del contrato",null,"2024-01-25","2024-01-25","2024-01-25","2024-01-25","2024-12-24",330,{"$f":"DATEDIF('BASE 2023 FPS'!$BF219-1,'BASE 2023 FPS'!$BG219,\"m\")","v":11}]
[2024,"CPS-234-2024",null,null,"F5.1","2 CONTRATACIÓN DIRECTA","CPS-234-2024","14 PRESTACIÓN DE SERVICIOS","PROFESIONALES","EUDIANA GONZALEZ","Formación requerida en una (1) carrera profesional "," Economía, Administración, Contaduría y afines","1 PERSONA NATURAL","3 CÉDULA DE CIUDADANÍA",1121335949,1121335949,null,"11 NO SE DILIGENCIA INFORMACIÓN PARA ESTE FORMULARIO EN ESTE PERÍODO DE REPORTE","NO APLICA","NO APLICA","NO APLICA","LUZ FANY VACA GUTIERREZ",1024,"2024-01-13",null,null,null,null,null,"SUBDIRECCION DE PRESTACIONES SOCIALES","SUBDIRECCION DE PRESTACIONES SOCIALES","PRESTAR LOS SERVICIOS PROFESIONALES PARA BRINDAR APOYO Y ACOMPAÑAMIENTO EN LA EJECUCIÓN DE ACTIVIDADES DE LOS PROCESOS A CARGO DE LA SUBDIRECCIÓN DE PRESTACIONES SOCIALES DEL FONDO PASIVO SOCIAL DE FERROCARRILES NACIONALES DE COLOMBIA. ",{"$f":"LEFT('BASE 2023 FPS'!$AF220,390)","v":"PRESTAR LOS SERVICIOS PROFESIONALES PARA BRINDAR APOYO Y ACOMPAÑAMIENTO EN LA EJECUCIÓN DE ACTIVIDADES DE LOS PROCESOS A CARGO DE LA SUBDIRECCIÓN DE PRESTACIONES SOCIALES DEL FONDO PASIVO SOCIAL DE FERROCARRILES NACIONALES DE COLOMBIA. "},6096412,67060532,"2024-01-24",1,1,"COLOMBIA > Distrito Capital de Bogotá > Bogotá","COLOMBIA > Distrito Capital de Bogotá > Bogotá","2 SUPERVISOR","NO APLICA","5 NO SE TIENE ESTE TIPO DE SEGUIMIENTO EN EL CONTRATO","NO APLICA","11 NO SE DILIGENCIA INFORMACIÓN PARA ESTE FORMULARIO EN ESTE PERÍODO DE REPORTE",17956156,"CARLOS ANDRES TOVAR OROZCO","SUBDIRECCION DE PRESTACIONES SOCIALES","SUBDIRECCION DE PRESTACIONES SOCIALES","NO",80111600,"POLIZA","Calidad del servicio - Cumplimiento del contrato",null,"2024-01-24","2024-01-24","2024-01-24","2024-01-24","2024-12-23",330,{"$f":"DATEDIF('BASE 2023 FPS'!$BF220-1,'BASE 2023 FPS'!$BG220,\"m\")","v":11}]
[2024,"CPS-235-2024",null,null,"F5.1","2 CONTRATACIÓN DIRECTA","CPS-235-2024","14 PRESTACIÓN DE SERVICIOS","PROFESIONALES","CAROLINA ANDREA ESCOBAR","Formación requerida en una (1) carrera profesional "," Ciencias de la Salud","1 PERSONA NATURAL","3 CÉDULA DE CIUDADANÍA",1122405921,1122405921,null,"11 NO SE DILIGENCIA INFORMACIÓN PARA ESTE FORMULARIO EN ESTE PERÍODO DE REPORTE","NO APLICA","NO APLICA","NO APLICA","LUZ FANY VACA GUTIERREZ",1024,"2024-01-13",null,null,null,null,null,"GIT TALENTO HUMANO","GIT TALENTO HUMANO","PRESTAR LOS SERVICIOS PROFESIONALES COMO PSICÓLOGA PARA APOYAR A LA SECRETARIA GENERAL - GIT TALENTO HUMANO DEL FONDO DE PASIVO SOCIAL DE FERROCARRILES NACIONALES DE COLOMBIA ",{"$f":"LEFT('BASE 2023 FPS'!$AF221,390)","v":"PRESTAR LOS SERVICIOS PROFESIONALES COMO PSICÓLOGA PARA APOYAR A LA SECRETARIA GENERAL - GIT TALENTO HUMANO DEL FONDO DE PASIVO SOCIAL DE FERROCARRILES NACIONALES DE COLOMBIA "},6096412,67060532,"2024-01-25",1,1,"COLOMBIA > Distrito Capital de Bogotá > Bogotá","COLOMBIA > Distrito Capital de Bogotá > Bogotá","2 SUPERVISOR","NO APLICA","5 NO SE TIENE ESTE TIPO DE SEGUIMIENTO EN EL CONTRATO","NO APLICA","11 NO SE DILIGENCIA INFORMACIÓN PARA ESTE FORMULARIO EN ESTE PERÍODO DE REPORTE",1014212108,"TATIANA PEREZ SIERRA","GIT TALENTO HUMANO","GIT TALENTO HUMANO","NO",80111600,"POLIZA","Calidad del servicio - Cumplimiento del contrato",null,"2024-01-25","2024-01-25","2024-01-25","2024-01-25","2024-12-24",330,{"$f":"DATEDIF('BASE 2023 FPS'!$BF221-1,'BASE 2023 FPS'!$BG221,\"m\")","v":11}]
[2024,"CPS-236-2024",null,null,"F5.1","2 CONTRATACIÓN DIRECTA","CPS-236-2024","14 PRESTACIÓN DE SERVICIOS","PROFESIONALES","MARIA DE LOS ANGELES MEJIA GARCIA","Formación requerida en una (1) carrera profesional "," Ciencias de la Salud","1 PERSONA NATURAL","3 CÉDULA DE CIUDADANÍA",1020828222,1020828222,null,"11 NO SE DILIGENCIA INFORMACIÓN PARA ESTE FORMULARIO EN ESTE PERÍODO DE REPORTE","NO APLICA","NO APLICA","NO APLICA","LUZ FANY VACA GUTIERREZ",1024,"2024-01-13",null,null,null,null,null,"GIT TALENTO HUMANO","GIT TALENTO HUMANO","PRESTAR LOS SERVICIOS PROFESIONALES COMO PSICÓLOGA PARA APOYAR LA GESTIÓN DE LA SECRETARIA GENERAL DESDE EL GIT GESTIÓN DEL TALENTO HUMANO DEL FONDO DE PASIVO SOCIAL DE FERROCARRILES NACIONALES DE COLOMBIA ",{"$f":"LEFT('BASE 2023 FPS'!$AF222,390)","v":"PRESTAR LOS SERVICIOS PROFESIONALES COMO PSICÓLOGA PARA APOYAR LA GESTIÓN DE LA SECRETARIA GENERAL DESDE EL GIT GESTIÓN DEL TALENTO HUMANO DEL FONDO DE PASIVO SOCIAL DE FERROCARRILES NACIONALES DE COLOMBIA "},6096412,67060532,"2024-01-26",1,1,"COLOMBIA > Distrito Capital de Bogotá > Bogotá","COLOMBIA > Distrito Capital de Bogotá > Bogotá","2 SUPERVISOR","NO APLICA","5 NO SE TIENE ESTE TIPO DE SEGUIMIENTO EN EL CONTRATO","NO APLICA","11 NO SE DILIGENCIA INFORMACIÓN PARA ESTE FORMULARIO EN ESTE PERÍODO DE REPORTE",1014212108,"TATIANA PEREZ SIERRA","GIT TALENTO HUMANO","GIT TALENTO HUMANO","NO",80111600,"POLIZA","Calidad del servicio - Cumplimiento del contrato",null,"2024-01-26","2024-01-26","2024-01-26","2024-01-26","2024-06-25",150,{"$f":"DATEDIF('BASE 2023 FPS'!$BF222-1,'BASE 2023 FPS'!$BG222,\"m\")","v":5}]
[2024,"CPS-237-2024",null,null,"F5.1","2 CONTRATACIÓN DIRECTA","CPS-237-2024","14 PRESTACIÓN DE SERVICIOS","PROFESIONALES","JUAN CAMILO GOMEZ CARVAJAL","Formación requerida en una (1) carrera profesional "," Economía, Administración, Contaduría y afines","1 PERSONA NATURAL","3 CÉDULA DE CIUDADANÍA",1110563513,1110563513,null,"11 NO SE DILIGENCIA INFORMACIÓN PARA ESTE FORMULARIO EN ESTE PERÍODO DE REPORTE","NO APLICA","NO APLICA","NO APLICA","LUZ FANY VACA GUTIERREZ",1024,"2024-01-13",null,null,null,null,null,"OFICINA ASESORA JURÍDICA","OFICINA ASESORA JURÍDICA","PRESTAR LOS SERVICIOS PROFESIONALES PARA APOYAR LA GESTIÓN ADMINISTRATIVA DE LA OFICINA ASESORA JURÍDICA DEL FONDO DE PASIVO SOCIAL DE FERROCARRILES NACIONALES DE COLOMBIA ",{"$f":"LEFT('BASE 2023 FPS'!$AF223,390)","v":"PRESTAR LOS SERVICIOS PROFESIONALES PARA APOYAR LA GESTIÓN ADMINISTRATIVA DE LA OFICINA ASESORA JURÍDICA DEL FONDO DE PASIVO SOCIAL DE FERROCARRILES NACIONALES DE COLOMBIA "},7172250,35861250,"2024-01-25",1,1,"COLOMBIA > Distrito Capital de Bogotá > Bogotá","COLOMBIA > Distrito Capital de Bogotá > Bogotá","2 SUPERVISOR","NO APLICA","5 NO SE TIENE ESTE TIPO DE SEGUIMIENTO EN EL CONTRATO","NO APLICA","11 NO SE DILIGENCIA INFORMACIÓN PARA ESTE FORMULARIO EN ESTE PERÍODO DE REPORTE",65767422,"ANDREA ALDANA TRUJILLO","OFICINA ASESORA JURÍDICA","OFICINA ASESORA JURÍDICA","NO",80111600,"POLIZA","Calidad del servicio - Cumplimiento del contrato",null,"2024-01-25","2024-01-25","2024-01-25","2024-01-25","2024-12-24",330,{"$f":"DATEDIF('BASE 2023 FPS'!$BF223-1,'BASE 2023 FPS'!$BG223,\"m\")","v":11}]
[2024,"CPS-238-2024",null,null,"F5.1","2 CONTRATACIÓN DIRECTA","CPS-238-2024","14 PRESTACIÓN DE SERVICIOS","PROFESIONALES","DAVID SANTIAGO ZULUAGA CASTAÑO","Formación requerida en una (1) carrera profesional "," Ciencias Sociales y Humanas","1 PERSONA NATURAL","3 CÉDULA DE CIUDADANÍA",1058846380,1058846380,null,"11 NO SE DILIGENCIA INFORMACIÓN PARA ESTE FORMULARIO EN ESTE PERÍODO DE REPORTE","NO APLICA","NO APLICA","NO APLICA","LUZ FANY VACA GUTIERREZ",1024,"2024-01-13",null,null,null,null,null,"SECRETARIA GENERAL – ATENCION AL CIUDADANO Y GESTION DOCUMENTAL","SECRETARIA GENERAL – ATENCION AL CIUDADANO Y GESTION DOCUMENTAL","PRESTAR LOS SERVICIOS PROFESIONALES COMO ABOGADO AL GRUPO INTERNO DE TRABAJO DE ATENCIÓN AL CIUDADANO Y GESTIÓN DOCUMENTAL DEL FONDO DE PASIVO SOCIAL DE FERROCARRILES NACIONALES DE COLOMBIA ",{"$f":"LEFT('BASE 2023 FPS'!$AF224,390)","v":"PRESTAR LOS SERVICIOS PROFESIONALES COMO ABOGADO AL GRUPO INTERNO DE TRABAJO DE ATENCIÓN AL CIUDADANO Y GESTIÓN DOCUMENTAL DEL FONDO DE PASIVO SOCIAL DE FERROCARRILES NACIONALES DE COLOMBIA "},6096412,67060532,"2024-01-25",1,1,"COLOMBIA > Distrito Capital de Bogotá > Bogotá","COLOMBIA > Distrito Capital de Bogotá > Bogotá","2 SUPERVISOR","NO APLICA","5 NO SE TIENE ESTE TIPO DE SEGUIMIENTO EN EL CONTRATO","NO APLICA","11 NO SE DILIGENCIA INFORMACIÓN PARA ESTE FORMULARIO EN ESTE PERÍODO DE REPORTE",39526262,"NURY NAVARRO HERNADEZ","SECRETARIA GENERAL – ATENCION AL CIUDADANO Y GESTION DOCUMENTAL","SECRETARIA GENERAL – ATENCION AL CIUDADANO Y GESTION DOCUMENTAL","NO",80111600,"POLIZA","Calidad del servicio - Cumplimiento del contrato",null,"2024-01-25","2024-01-25","2024-01-25","2024-01-25","2024-12-24",330,{"$f":"DATEDIF('BASE 2023 FPS'!$BF224-1,'BASE 2023 FPS'!$BG224,\"m\")","v":11}]
[2024,"CPS-239-2024",null,null,"F5.1","2 CONTRATACIÓN DIRECTA","CPS-239-2024","14 PRESTACIÓN DE SERVICIOS","PROFESIONALES","LAURA ALEJANDRA PORTILLA","Formación requerida en una (1) carrera profesional "," Ciencias Sociales y Humanas","1 PERSONA NATURAL","3 CÉDULA DE CIUDADANÍA",1098708492,1098708492,null,"11 NO SE DILIGENCIA INFORMACIÓN PARA ESTE FORMULARIO EN ESTE PERÍODO DE REPORTE","NO APLICA","NO APLICA","NO APLICA","LUZ FANY VACA GUTIERREZ",1024,"2024-01-13",null,null,null,null,null,"SECRETARIA GENERAL – ATENCION AL CIUDADANO Y GESTION DOCUMENTAL","SECRETARIA GENERAL – ATENCION AL CIUDADANO Y GESTION DOCUMENTAL","PRESTAR LOS SERVICIOS PROFESIONALES COMO ABOGADO AL GRUPO INTERNO DE TRABAJO DE ATENCIÓN AL CIUDADANO Y GESTIÓN DOCUMENTAL DEL FONDO DE PASIVO SOCIAL DE FERROCARRILES NACIONALES DE COLOMBIA (BUCARAMANGA). ",{"$f":"LEFT('BASE 2023 FPS'!$AF225,390)","v":"PRESTAR LOS SERVICIOS PROFESIONALES COMO ABOGADO AL GRUPO INTERNO DE TRABAJO DE ATENCIÓN AL CIUDADANO Y GESTIÓN DOCUMENTAL DEL FONDO DE PASIVO SOCIAL DE FERROCARRILES NACIONALES DE COLOMBIA (BUCARAMANGA). "},6096412,67060532,"2024-01-25",1,1,"COLOMBIA > Distrito Capital de Bogotá > Bogotá","COLOMBIA > Distrito Capital de Bogotá > Bogotá","2 SUPERVISOR","NO APLICA","5 NO SE TIENE ESTE TIPO DE SEGUIMIENTO EN EL CONTRATO","NO APLICA","11 NO SE DILIGENCIA INFORMACIÓN PARA ESTE FORMULARIO EN ESTE PERÍODO DE REPORTE",39526262,"NURY NAVARRO HERNADEZ","SECRETARIA GENERAL – ATENCION AL CIUDADANO Y GESTION DOCUMENTAL","SECRETARIA GENERAL – ATENCION AL CIUDADANO Y GESTION DOCUMENTAL","NO",80111600,"POLIZA","Calidad del servicio - Cumplimiento del contrato",null,"2024-01-25","2024-01-25","2024-01-25","2024-01-25","2024-12-24",330,{"$f":"DATEDIF('BASE 2023 FPS'!$BF225-1,'BASE 2023 FPS'!$BG225,\"m\")","v":11}]
[2024,"CPS-240-2024",null,null,"F5.1","2 CONTRATACIÓN DIRECTA","CPS-240-2024","14 PRESTACIÓN DE SERVICIOS","PROFESIONALES","JAVIER JOSE LACOTURE POVEDA","Formación requerida en una (1) carrera profesional "," Economía, Administración, Contaduría y afines","1 PERSONA NATURAL","3 CÉDULA DE CIUDADANÍA",1121326914,1121326914,null,"11 NO SE DILIGENCIA INFORMACIÓN PARA ESTE FORMULARIO EN ESTE PERÍODO DE REPORTE","NO APLICA","NO APLICA","NO APLICA","LUZ FANY VACA GUTIERREZ",1024,"2024-01-13",null,null,null,null,null,"SECRETARIO GENERAL","SECRETARIO GENERAL","PRESTAR LOS SERVICIOS PROFESIONALES COMO ADMINISTRADOR DE EMPRESAS PARA APOYAR LA GESTIÓN ADMINISTRATIVA DE LA SECRETARIA GENERAL DEL FONDO DE PASIVO SOCIAL DE FERROCARRILES NACIONALES DE COLOMBIA. ",{"$f":"LEFT('BASE 2023 FPS'!$AF226,390)","v":"PRESTAR LOS SERVICIOS PROFESIONALES COMO ADMINISTRADOR DE EMPRESAS PARA APOYAR LA GESTIÓN ADMINISTRATIVA DE LA SECRETARIA GENERAL DEL FONDO DE PASIVO SOCIAL DE FERROCARRILES NACIONALES DE COLOMBIA. "},6096412,67060532,"2024-01-25",1,1,"COLOMBIA > Distrito Capital de Bogotá > Bogotá","COLOMBIA > Distrito Capital de Bogotá > Bogotá","2 SUPERVISOR","NO APLICA","5 NO SE TIENE ESTE TIPO DE SEGUIMIENTO EN EL CONTRATO","NO APLICA","11 NO SE DILIGENCIA INFORMACIÓN PARA ESTE FORMULARIO EN ESTE PERÍODO DE REPORTE",17956156,"CARLOS ANDRES TOVAR OROZCO","SECRETARIO GENERAL","SECRETARIA GENERAL","NO",80111600,"POLIZA","Calidad del servicio - Cumplimiento del contrato",null,"2024-01-25","2024-01-25","2024-01-25","2024-01-25","2024-12-24",330,{"$f":"DATEDIF('BASE 2023 FPS'!$BF226-1,'BASE 2023 FPS'!$BG226,\"m\")","v":11}]
[2024,"CPS-242-2024",null,null,"F5.1","2 CONTRATACIÓN DIRECTA","CPS-242-2024","14 PRESTACIÓN DE SERVICIOS","PROFESIONALES","FABIAN JESUS SUAREZ BELTRAN","Formación requerida en una (1) carrera profesional "," Ciencias Sociales y Humanas","1 PERSONA NATURAL","3 CÉDULA DE CIUDADANÍA",1234645591,1234645591,null,"11 NO SE DILIGENCIA INFORMACIÓN PARA ESTE FORMULARIO EN ESTE PERÍODO DE REPORTE","NO APLICA","NO APLICA","NO APLICA","LUZ FANY VACA GUTIERREZ",1024,"2024-01-13",null,null,null,null,null,"OFICINA ASESORA JURÍDICA","OFICINA ASESORA JURÍDICA","PRESTAR LOS SERVICIOS PROFESIONALES COMO ABOGADO PARA APOYAR LAS ACTIVIDADES RELACIONADAS CON LOS ASUNTOS JURÍDICOS Y ADMINISTRATIVOS DESDE LA OFICINA ASESORA JURÍDICA DEL FONDO DE PASIVO SOCIAL DE FERROCARRILES NACIONALES DE COLOMBIA. ",{"$f":"LEFT('BASE 2023 FPS'!$AF227,390)","v":"PRESTAR LOS SERVICIOS PROFESIONALES COMO ABOGADO PARA APOYAR LAS ACTIVIDADES RELACIONADAS CON LOS ASUNTOS JURÍDICOS Y ADMINISTRATIVOS DESDE LA OFICINA ASESORA JURÍDICA DEL FONDO DE PASIVO SOCIAL DE FERROCARRILES NACIONALES DE COLOMBIA. "},4661962,51281528,"2024-01-25",1,1,"COLOMBIA > Distrito Capital de Bogotá > Bogotá","COLOMBIA > Distrito Capital de Bogotá > Bogotá","2 SUPERVISOR","NO APLICA","5 NO SE TIENE ESTE TIPO DE SEGUIMIENTO EN EL CONTRATO","NO APLICA","11 NO SE DILIGENCIA INFORMACIÓN PARA ESTE FORMULARIO EN ESTE PERÍODO DE REPORTE",65767422,"ANDREA ALDANA TRUJILLO","OFICINA ASESORA JURÍDICA","OFICINA ASESORA JURÍDICA","NO",80111600,"POLIZA","Calidad del servicio - Cumplimiento del contrato",null,"2024-01-25","2024-01-25","2024-01-25","2024-01-25","2024-12-24",330,{"$f":"DATEDIF('BASE 2023 FPS'!$BF227-1,'BASE 2023 FPS'!$BG227,\"m\")","v":11}]
[2024,"CPS-243-2024",null,null,"F5.1","2 CONTRATACIÓN DIRECTA","CPS-243-2024","14 PRESTACIÓN DE SERVICIOS","PROFESIONALES","ELISA RODRIGUEZ","Formación requerida en una (1) carrera profesional "," Ciencias de la Salud","1 PERSONA NATURAL","3 CÉDULA DE CIUDADANÍA",1121336461,1121336461,null,"11 NO SE DILIGENCIA INFORMACIÓN PARA ESTE FORMULARIO EN ESTE PERÍODO DE REPORTE","NO APLICA","NO APLICA","NO APLICA","LUZ FANY VACA GUTIERREZ",1024,"2024-01-13",null,null,null,null,null,"GIT TALENTO HUMANO","GIT TALENTO HUMANO","PRESTAR LOS SERVICIOS PROFESIONALES COMO PSICÓLOGA PARA APOYAR A LA SECRETARIA GENERAL - GIT TALENTO HUMANO DEL FONDO DE PASIVO SOCIAL DE FERROCARRILES NACIONALES DE COLOMBIA. ",{"$f":"LEFT('BASE 2023 FPS'!$AF228,390)","v":"PRESTAR LOS SERVICIOS PROFESIONALES COMO PSICÓLOGA PARA APOYAR A LA SECRETARIA GENERAL - GIT TALENTO HUMANO DEL FONDO DE PASIVO SOCIAL DE FERROCARRILES NACIONALES DE COLOMBIA. "},4661962,51281528,"2024-01-25",1,1,"COLOMBIA > Distrito Capital de Bogotá > Bogotá","COLOMBIA > Distrito Capital de Bogotá > Bogotá","2 SUPERVISOR","NO APLICA","5 NO SE TIENE ESTE TIPO DE SEGUIMIENTO EN EL CONTRATO","NO APLICA","11 NO SE DILIGENCIA INFORMACIÓN PARA ESTE FORMULARIO EN ESTE PERÍODO DE REPORTE",1014212108,"TATIANA PEREZ SIERRA","GIT TALENTO HUMANO","GIT TALENTO HUMANO","NO",80111600,"POLIZA","Calidad del servicio - Cumplimiento del contrato",null,"2024-01-25","2024-01-25","2024-01-25","2024-01-25","2024-12-24",330,{"$f":"DATEDIF('BASE 2023 FPS'!$BF228-1,'BASE 2023 FPS'!$BG228,\"m\")","v":11}]
[2024,"CPS-244-2024",null,null,"F5.1","2 CONTRATACIÓN DIRECTA","CPS-244-2024","14 PRESTACIÓN DE SERVICIOS","PROFESIONALES","CARLOS MARIO QUINTERO LOPEZ","Formación requerida en una (1) carrera profesional "," Economía, Administración, Contaduría y afines","1 PERSONA NATURAL","3 CÉDULA DE CIUDADANÍA",1121332207,1121332207,null,"11 NO SE DILIGENCIA INFORMACIÓN PARA ESTE FORMULARIO EN ESTE PERÍODO DE REPORTE","NO APLICA","NO APLICA","NO APLICA","LUZ FANY VACA GUTIERREZ",1024,"2024-01-13",null,null,null,null,null,"SUBDIRECCION FINANCIERA – GIT LIQUIDACIONES","SUBDIRECCION FINANCIERA – GIT LIQUIDACIONES","PRESTAR LOS SERVICIOS PROFESIONALES COMO ADMINISTRADOR FINANCIERO QUE APOYE LA GESTIÓN ADMINISTRATIVA DE LA ENTIDAD RESPECTO DE LOS ASPECTOS TÉCNICOS Y FINANCIEROS EN RELACIÓN A LAS FUNCIONES ASIGNADAS DESDE LA SUBDIRECCIÓN FINANCIERA DEL FONDO DE PASIVO SOCIAL DE FERROCARRILES NACIONALES DE COLOMBIA ",{"$f":"LEFT('BASE 2023 FPS'!$AF229,390)","v":"PRESTAR LOS SERVICIOS PROFESIONALES COMO ADMINISTRADOR FINANCIERO QUE APOYE LA GESTIÓN ADMINISTRATIVA DE LA ENTIDAD RESPECTO DE LOS ASPECTOS TÉCNICOS Y FINANCIEROS EN RELACIÓN A LAS FUNCIONES ASIGNADAS DESDE LA SUBDIRECCIÓN FINANCIERA DEL FONDO DE PASIVO SOCIAL DE FERROCARRILES NACIONALES DE COLOMBIA "},4303349,47336839,"2024-01-25",1,1,"COLOMBIA > Distrito Capital de Bogotá > Bogotá","COLOMBIA > Distrito Capital de Bogotá > Bogotá","2 SUPERVISOR","NO APLICA","5 NO SE TIENE ESTE TIPO DE SEGUIMIENTO EN EL CONTRATO","NO APLICA","11 NO SE DILIGENCIA INFORMACIÓN PARA ESTE FORMULARIO EN ESTE PERÍODO DE REPORTE",23621957,"LUZ FANNY VACA GUTIERREZ","SUBDIRECCION FINANCIERA – GIT LIQUIDACIONES","SUBDIRECCION FINANCIERA – GIT LIQUIDACIONES","NO",80111600,"POLIZA","Calidad del servicio - Cumplimiento del contrato",null,"2024-01-25","2024-01-25","2024-01-25","2024-01-25","2024-12-24",330,{"$f":"DATEDIF('BASE 2023 FPS'!$BF229-1,'BASE 2023 FPS'!$BG229,\"m\")","v":11}]
[2024,"CPS-245-2024",null,null,"F5.1","2 CONTRATACIÓN DIRECTA","CPS-245-2024","14 PRESTACIÓN DE SERVICIOS","PROFESIONALES","ANGIE CAROLINA NARANJO","Formación requerida en una (1) carrera profesional "," Ciencias Sociales y Humanas","1 PERSONA NATURAL","3 CÉDULA DE CIUDADANÍA",1099212999,1099212999,null,"11 NO SE DILIGENCIA INFORMACIÓN PARA ESTE FORMULARIO EN ESTE PERÍODO DE REPORTE","NO APLICA","NO APLICA","NO APLICA","LUZ FANY VACA GUTIERREZ",1024,"2024-01-13",null,null,null,null,null,"SECRETARIA GENERAL – ATENCION AL CIUDADANO Y GESTION DOCUMENTAL","SECRETARIA GENERAL – ATENCION AL CIUDADANO Y GESTION DOCUMENTAL","PRESTAR LOS SERVICIOS PROFESIONALES COMO PSICÓLOGA PARA APOYAR LA GESTIÓN DE LA SECRETARIA GENERAL DEL FONDO DE PASIVO SOCIAL DE FERROCARRILES NACIONALES DE COLOMBIA, ESPECIALMENTE EN LO RELACIONADO CON EL GIT ATENCIÓN AL CIUDADANO Y GESTIÓN DOCUMENTAL. ",{"$f":"LEFT('BASE 2023 FPS'!$AF230,390)","v":"PRESTAR LOS SERVICIOS PROFESIONALES COMO PSICÓLOGA PARA APOYAR LA GESTIÓN DE LA SECRETARIA GENERAL DEL FONDO DE PASIVO SOCIAL DE FERROCARRILES NACIONALES DE COLOMBIA, ESPECIALMENTE EN LO RELACIONADO CON EL GIT ATENCIÓN AL CIUDADANO Y GESTIÓN DOCUMENTAL. "},6096412,67060532,"2024-01-25",1,1,"COLOMBIA > Distrito Capital de Bogotá > Bogotá","COLOMBIA > Distrito Capital de Bogotá > Bogotá","2 SUPERVISOR","NO APLICA","5 NO SE TIENE ESTE TIPO DE SEGUIMIENTO EN EL CONTRATO","NO APLICA","11 NO SE DILIGENCIA INFORMACIÓN PARA ESTE FORMULARIO EN ESTE PERÍODO DE REPORTE",39526262,"NURY NAVARRO HERNADEZ","SECRETARIA GENERAL – ATENCION AL CIUDADANO Y GESTION DOCUMENTAL","SECRETARIA GENERAL – ATENCION AL CIUDADANO Y GESTION DOCUMENTAL","NO",80111600,"POLIZA","Calidad del servicio - Cumplimiento del contrato",null,"2024-01-25","2024-01-25","2024-01-25","2024-01-25","2024-12-24",330,{"$f":"DATEDIF('BASE 2023 FPS'!$BF230-1,'BASE 2023 FPS'!$BG230,\"m\")","v":11}]
[2024,"CPS-246-2024",null,null,"F5.1","2 CONTRATACIÓN DIRECTA","CPS-246-2024","14 PRESTACIÓN DE SERVICIOS","PROFESIONALES","MARIA PAZ GUTIERREZ DOMINGUEZ","Formación requerida en una (1) carrera profesional "," Ciencias de la Salud","1 PERSONA NATURAL","3 CÉDULA DE CIUDADANÍA",1193028949,1193028949,null,"11 NO SE DILIGENCIA INFORMACIÓN PARA ESTE FORMULARIO EN ESTE PERÍODO DE REPORTE","NO APLICA","NO APLICA","NO APLICA","LUZ FANY VACA GUTIERREZ",1024,"2024-01-13",null,null,null,null,null,"GIT GESTION PRESTACIONES ECONOMICAS","GIT GESTION PRESTACIONES ECONOMICAS","PRESTAR LOS SERVICIOS PROFESIONALES COMO ABOGADA PARA APOYAR LAS GESTIÓN ADMINISTRATIVA DESDE EL GIT GESTIÓN PRESTACIONES ECONÓMICAS DEL FONDO PASIVO SOCIAL DE FERROCARRILES NACIONALES DE COLOMBIA ",{"$f":"LEFT('BASE 2023 FPS'!$AF231,390)","v":"PRESTAR LOS SERVICIOS PROFESIONALES COMO ABOGADA PARA APOYAR LAS GESTIÓN ADMINISTRATIVA DESDE EL GIT GESTIÓN PRESTACIONES ECONÓMICAS DEL FONDO PASIVO SOCIAL DE FERROCARRILES NACIONALES DE COLOMBIA "},4064275,44707025,"2024-01-26",1,1,"COLOMBIA > Distrito Capital de Bogotá > Bogotá","COLOMBIA > Distrito Capital de Bogotá > Bogotá","2 SUPERVISOR","NO APLICA","5 NO SE TIENE ESTE TIPO DE SEGUIMIENTO EN EL CONTRATO","NO APLICA","11 NO SE DILIGENCIA INFORMACIÓN PARA ESTE FORMULARIO EN ESTE PERÍODO DE REPORTE",49607561,"LEIVIS MARIANA BOTINA MONTERO","GIT GESTION PRESTACIONES ECONOMICAS","GIT GESTION PRESTACIONES ECONOMICAS","NO",80111600,"POLIZA","Calidad del servicio - Cumplimiento del contrato",null,"2024-01-26","2024-01-26","2024-01-26","2024-01-26","2024-12-25",330,{"$f":"DATEDIF('BASE 2023 FPS'!$BF231-1,'BASE 2023 FPS'!$BG231,\"m\")","v":11}]
[2024,"CPS-247-2024",null,null,"F5.1","2 CONTRATACIÓN DIRECTA","CPS-247-2024","14 PRESTACIÓN DE SERVICIOS","PROFESIONALES","MARLING YINARIS ARREGOCES LACOTURE","Formación requerida en una (1) carrera profesional "," Ciencias Sociales y Humanas","1 PERSONA NATURAL","3 CÉDULA DE CIUDADANÍA",1121337116,1121337116,null,"11 NO SE DILIGENCIA INFORMACIÓN PARA ESTE FORMULARIO EN ESTE PERÍODO DE REPORTE","NO APLICA","NO APLICA","NO APLICA","LUZ FANY VACA GUTIERREZ",1024,"2024-01-13",null,null,null,null,null,"GIT GESTION PRESTACIONES ECONOMICAS","GIT GESTION PRESTACIONES ECONOMICAS","PRESTAR LOS SERVICIOS PROFESIONALES COMO ABOGADO PARA APOYAR LAS GESTIÓN ADMINISTRATIVA DESDE EL GIT GESTIÓN PRESTACIONES ECONÓMICAS DEL FONDO PASIVO SOCIAL DE FERROCARRILES NACIONALES DE COLOMBIA. ",{"$f":"LEFT('BASE 2023 FPS'!$AF232,390)","v":"PRESTAR LOS SERVICIOS PROFESIONALES COMO ABOGADO PARA APOYAR LAS GESTIÓN ADMINISTRATIVA DESDE EL GIT GESTIÓN PRESTACIONES ECONÓMICAS DEL FONDO PASIVO SOCIAL DE FERROCARRILES NACIONALES DE COLOMBIA. "},4064275,44707025,"2024-01-26",1,1,"COLOMBIA > Distrito Capital de Bogotá > Bogotá","COLOMBIA > Distrito Capital de Bogotá > Bogotá","2 SUPERVISOR","NO APLICA","5 NO SE TIENE ESTE TIPO DE SEGUIMIENTO EN EL CONTRATO","NO APLICA","11 NO SE DILIGENCIA INFORMACIÓN PARA ESTE FORMULARIO EN ESTE PERÍODO DE REPORTE",49607561,"LEIVIS MARIANA BOTINA MONTERO","GIT GESTION PRESTACIONES ECONOMICAS","GIT GESTION PRESTACIONES ECONOMICAS","NO",80111600,"POLIZA","Calidad del servicio - Cumplimiento del contrato",null,"2024-01-26","2024-01-26","2024-01-26","2024-01-26","2024-12-25",330,{"$f":"DATEDIF('BASE 2023 FPS'!$BF232-1,'BASE 2023 FPS'!$BG232,\"m\")","v":11}]
[2024,"CPS-248-2024",null,null,"F5.1","2 CONTRATACIÓN DIRECTA","CPS-248-2024","14 PRESTACIÓN DE SERVICIOS","PROFESIONALES","GILLIAN ANDREA SEPÚLVEDA LOZANO","Formacion Tecnica"," Economía, Administración, Contaduría y afines","1 PERSONA NATURAL","3 CÉDULA DE CIUDADANÍA",1000776186,1000776186,null,"11 NO SE DILIGENCIA INFORMACIÓN PARA ESTE FORMULARIO EN ESTE PERÍODO DE REPORTE","NO APLICA","NO APLICA","NO APLICA","LUZ FANY VACA GUTIERREZ",1024,"2024-01-13",null,null,null,null,null,"SUBDIRECCIÓN FINANCIERA – GRUPO INTERNO DE TRABAJO DE TESORERÍA","SUBDIRECCIÓN FINANCIERA – GRUPO INTERNO DE TRABAJO DE TESORERÍA","APOYO A LA GESTIÓN COMO TÉCNICO EN LA SUBDIRECCIÓN FINANCIERA - GRUPO INTERNO DE TRABAJO DE TESORERÍA DEL FONDO DE PASIVO SOCIAL DE FERROCARRILES NACIONALES DE COLOMBIA ",{"$f":"LEFT('BASE 2023 FPS'!$AF233,390)","v":"APOYO A LA GESTIÓN COMO TÉCNICO EN LA SUBDIRECCIÓN FINANCIERA - GRUPO INTERNO DE TRABAJO DE TESORERÍA DEL FONDO DE PASIVO SOCIAL DE FERROCARRILES NACIONALES DE COLOMBIA "},2868899,31557889,"2024-01-26",1,1,"COLOMBIA > Distrito Capital de Bogotá > Bogotá","COLOMBIA > Distrito Capital de Bogotá > Bogotá","2 SUPERVISOR","NO APLICA","5 NO SE TIENE ESTE TIPO DE SEGUIMIENTO EN EL CONTRATO","NO APLICA","11 NO SE DILIGENCIA INFORMACIÓN PARA ESTE FORMULARIO EN ESTE PERÍODO DE REPORTE",5711553,"LUIS ALBERTO SEGURA BECERRA","SUBDIRECCIÓN FINANCIERA – GRUPO INTERNO DE TRABAJO DE TESORERÍA","SUBDIRECCIÓN FINANCIERA – GRUPO INTERNO DE TRABAJO DE TESORERÍA","NO",80111600,"POLIZA","Calidad del servicio - Cumplimiento del contrato",null,"2024-01-26","2024-01-26","2024-01-26","2024-01-26","2024-12-25",330,{"$f":"DATEDIF('BASE 2023 FPS'!$BF233-1,'BASE 2023 FPS'!$BG233,\"m\")","v":11}]
[2024,"CPS-250-2024",null,null,"F5.1","2 CONTRATACIÓN DIRECTA","CPS-250-2024","14 PRESTACIÓN DE SERVICIOS","PROFESIONALES","CIRO ANDRES CAMPO CRUZ","Formacion Tecnica"," Economía, Administración, Contaduría y afines","1 PERSONA NATURAL","3 CÉDULA DE CIUDADANÍA",1121334308,1121334308,null,"11 NO SE DILIGENCIA INFORMACIÓN PARA ESTE FORMULARIO EN ESTE PERÍODO DE REPORTE","NO APLICA","NO APLICA","NO APLICA","LUZ FANY VACA GUTIERREZ",1024,"2024-01-13",null,null,null,null,null,"SECRETARIA GENERAL – ATENCION AL CIUDADANO Y GESTION DOCUMENTAL","SECRETARIA GENERAL – ATENCION AL CIUDADANO Y GESTION DOCUMENTAL","PRESTAR LOS SERVICIOS DE APOYO A LA GESTIÓN AL GRUPO INTERNO DE TRABAJO DE ATENCIÓN AL CIUDADANO GESTIÓN DOCUMENTAL DEL FONDO DE PASIVO SOCIAL DE FERROCARRILES NACIONALES DE COLOMBIA ",{"$f":"LEFT('BASE 2023 FPS'!$AF234,390)","v":"PRESTAR LOS SERVICIOS DE APOYO A LA GESTIÓN AL GRUPO INTERNO DE TRABAJO DE ATENCIÓN AL CIUDADANO GESTIÓN DOCUMENTAL DEL FONDO DE PASIVO SOCIAL DE FERROCARRILES NACIONALES DE COLOMBIA "},2868899,31557889,"2024-01-26",1,1,"COLOMBIA > Distrito Capital de Bogotá > Bogotá","COLOMBIA > Distrito Capital de Bogotá > Bogotá","2 SUPERVISOR","NO APLICA","5 NO SE TIENE ESTE TIPO DE SEGUIMIENTO EN EL CONTRATO","NO APLICA","11 NO SE DILIGENCIA INFORMACIÓN PARA ESTE FORMULARIO EN ESTE PERÍODO DE REPORTE",39526262,"NURY NAVARRO HERNADEZ","SECRETARIA GENERAL – ATENCION AL CIUDADANO Y GESTION DOCUMENTAL","SECRETARIA GENERAL – ATENCION AL CIUDADANO Y GESTION DOCUMENTAL","NO",80111600,"POLIZA","Calidad del servicio - Cumplimiento del contrato",null,"2024-01-26","2024-01-26","2024-01-26","2024-01-26","2024-12-25",330,{"$f":"DATEDIF('BASE 2023 FPS'!$BF234-1,'BASE 2023 FPS'!$BG234,\"m\")","v":11}]
[2024,"CPS-251-2024",null,null,"F5.1","2 CONTRATACIÓN DIRECTA","CPS-251-2024","14 PRESTACIÓN DE SERVICIOS","PROFESIONALES","FRANCISCO JOSE PETRO SOTO","Formación requerida en una (1) carrera profesional "," Ciencias Sociales y Humanas","1 PERSONA NATURAL","3 CÉDULA DE CIUDADANÍA",1067917512,1067917512,null,"11 NO SE DILIGENCIA INFORMACIÓN PARA ESTE FORMULARIO EN ESTE PERÍODO DE REPORTE","NO APLICA","NO APLICA","NO APLICA","LUZ FANY VACA GUTIERREZ",1024,"2024-01-13",null,null,null,null,null,"GIT TALENTO HUMANO","GIT TALENTO HUMANO","PRESTAR LOS SERVICIOS PROFESIONALES COMO ABOGADO BRINDANDO EL ACOMPAÑAMIENTO JURÍDICO AL GIT TALENTO HUMANO DE LA SECRETARÍA GENERAL DEL FONDO DE PASIVO SOCIAL DE FERROCARRILES NACIONALES DE COLOMBIA ",{"$f":"LEFT('BASE 2023 FPS'!$AF235,390)","v":"PRESTAR LOS SERVICIOS PROFESIONALES COMO ABOGADO BRINDANDO EL ACOMPAÑAMIENTO JURÍDICO AL GIT TALENTO HUMANO DE LA SECRETARÍA GENERAL DEL FONDO DE PASIVO SOCIAL DE FERROCARRILES NACIONALES DE COLOMBIA "},4901037,53911407,"2024-01-26",1,1,"COLOMBIA > Distrito Capital de Bogotá > Bogotá","COLOMBIA > Distrito Capital de Bogotá > Bogotá","2 SUPERVISOR","NO APLICA","5 NO SE TIENE ESTE TIPO DE SEGUIMIENTO EN EL CONTRATO","NO APLICA","11 NO SE DILIGENCIA INFORMACIÓN PARA ESTE FORMULARIO EN ESTE PERÍODO DE REPORTE",1014212108,"TATIANA PEREZ SIERRA","GIT TALENTO HUMANO","GIT TALENTO HUMANO","NO",80111600,"POLIZA","Calidad del servicio - Cumplimiento del contrato",null,"2024-01-26","2024-01-26","2024-01-26","2024-01-26","2024-12-25",330,{"$f":"DATEDIF('BASE 2023 FPS'!$BF235-1,'BASE 2023 FPS'!$BG235,\"m\")","v":11}]
[2024,"CPS-252-2024",null,null,"F5.1","2 CONTRATACIÓN DIRECTA","CPS-252-2024","14 PRESTACIÓN DE SERVICIOS","PROFESIONALES","ANDRES FELIPE PEDRAZA ROBAYO","Formacion Tecnica"," Economía, Administración, Contaduría y afines","1 PERSONA NATURAL","3 CÉDULA DE CIUDADANÍA",1001199359,1001199359,null,"11 NO SE DILIGENCIA INFORMACIÓN PARA ESTE FORMULARIO EN ESTE PERÍODO DE REPORTE","NO APLICA","NO APLICA","NO APLICA","LUZ FANY VACA GUTIERREZ",1024,"2024-01-13",null,null,null,null,null,"SECRETARIA GENERAL – ATENCION AL CIUDADANO Y GESTION DOCUMENTAL","SECRETARIA GENERAL – ATENCION AL CIUDADANO Y GESTION DOCUMENTAL","PRESTAR LOS SERVICIOS DE APOYO A LA GESTIÓN DEL GRUPO INTERNO DE TRABAJO DE ATENCIÓN AL CIUDADANO Y GESTIÓN DOCUMENTAL DEL FONDO DE PASIVO SOCIAL DE FERROCARRILES NACIONALES DE COLOMBIA ",{"$f":"LEFT('BASE 2023 FPS'!$AF236,390)","v":"PRESTAR LOS SERVICIOS DE APOYO A LA GESTIÓN DEL GRUPO INTERNO DE TRABAJO DE ATENCIÓN AL CIUDADANO Y GESTIÓN DOCUMENTAL DEL FONDO DE PASIVO SOCIAL DE FERROCARRILES NACIONALES DE COLOMBIA "},3107975,34187725,"2024-01-26",1,1,"COLOMBIA > Distrito Capital de Bogotá > Bogotá","COLOMBIA > Distrito Capital de Bogotá > Bogotá","2 SUPERVISOR","NO APLICA","5 NO SE TIENE ESTE TIPO DE SEGUIMIENTO EN EL CONTRATO","NO APLICA","11 NO SE DILIGENCIA INFORMACIÓN PARA ESTE FORMULARIO EN ESTE PERÍODO DE REPORTE",39526262,"NURY NAVARRO HERNADEZ","SECRETARIA GENERAL – ATENCION AL CIUDADANO Y GESTION DOCUMENTAL","SECRETARIA GENERAL – ATENCION AL CIUDADANO Y GESTION DOCUMENTAL","NO",80111600,"POLIZA","Calidad del servicio - Cumplimiento del contrato",null,"2024-01-26","2024-01-26","2024-01-26","2024-01-26","2024-12-25",330,{"$f":"DATEDIF('BASE 2023 FPS'!$BF236-1,'BASE 2023 FPS'!$BG236,\"m\")","v":11}]
[2024,"CPS-253-2024",null,null,"F5.1","2 CONTRATACIÓN DIRECTA","CPS-253-2024","14 PRESTACIÓN DE SERVICIOS","PROFESIONALES","CARLOS OMAR VEGA MEZA","Formación requerida en una (1) carrera profesional "," Ciencias Sociales y Humanas","1 PERSONA NATURAL","3 CÉDULA DE CIUDADANÍA",88231774,88231774,null,"11 NO SE DILIGENCIA INFORMACIÓN PARA ESTE FORMULARIO EN ESTE PERÍODO DE REPORTE","NO APLICA","NO APLICA","NO APLICA","LUZ FANY VACA GUTIERREZ",1024,"2024-01-13",null,null,null,null,null,"GIT GESTION PRESTACIONES ECONOMICAS","GIT GESTION PRESTACIONES ECONOMICAS","PRESTAR LOS SERVICIOS PROFESIONALES COMO ABOGADO ESPECIALISTA PARA APOYAR LA GESTIÓN ADMINISTRATIVA DESDE EL GIT GESTIÓN PRESTACIONES ECONÓMICAS DEL FONDO PASIVO SOCIAL DE FERROCARRILES NACIONALES DE COLOMBIA. ",{"$f":"LEFT('BASE 2023 FPS'!$AF237,390)","v":"PRESTAR LOS SERVICIOS PROFESIONALES COMO ABOGADO ESPECIALISTA PARA APOYAR LA GESTIÓN ADMINISTRATIVA DESDE EL GIT GESTIÓN PRESTACIONES ECONÓMICAS DEL FONDO PASIVO SOCIAL DE FERROCARRILES NACIONALES DE COLOMBIA. "},6096412,67060532,"2024-01-26",1,1,"COLOMBIA > Distrito Capital de Bogotá > Bogotá","COLOMBIA > Distrito Capital de Bogotá > Bogotá","2 SUPERVISOR","NO APLICA","5 NO SE TIENE ESTE TIPO DE SEGUIMIENTO EN EL CONTRATO","NO APLICA","11 NO SE DILIGENCIA INFORMACIÓN PARA ESTE FORMULARIO EN ESTE PERÍODO DE REPORTE",49607561,"LEIVIS MARIANA BOTINA MONTERO","GIT GESTION PRESTACIONES ECONOMICAS","GIT GESTION PRESTACIONES ECONOMICAS","NO",80111600,"POLIZA","Calidad del servicio - Cumplimiento del contrato",null,"2024-01-26","2024-01-26","2024-01-26","2024-01-26","2024-12-25",330,{"$f":"DATEDIF('BASE 2023 FPS'!$BF237-1,'BASE 2023 FPS'!$BG237,\"m\")","v":11}]
[2024,"CPS-254-2024",null,null,"F5.1","2 CONTRATACIÓN DIRECTA","CPS-254-2024","14 PRESTACIÓN DE SERVICIOS","PROFESIONALES","ANGELA PEREZ","Formación requerida en una (1) carrera profesional "," Ciencias Sociales y Humanas","1 PERSONA NATURAL","3 CÉDULA DE CIUDADANÍA",1020723037,1020723037,null,"11 NO SE DILIGENCIA INFORMACIÓN PARA ESTE FORMULARIO EN ESTE PERÍODO DE REPORTE","NO APLICA","NO APLICA","NO APLICA","LUZ FANY VACA GUTIERREZ",1024,"2024-01-13",null,null,null,null,null,"OFICINA ASESORA JURÍDICA","OFICINA ASESORA JURÍDICA","PRESTAR LOS SERVICIOS PROFESIONALES COMO ABOGADA ESPECIALISTA PARA APOYAR LAS ACTIVIDADES JURÍDICAS Y ADMINISTRATIVAS DE LA OFICINA ASESORA JURÍDICA DEL FONDO DE PASIVO SOCIAL DE FERROCARRILES NACIONALES DE COLOMBIA. ",{"$f":"LEFT('BASE 2023 FPS'!$AF238,390)","v":"PRESTAR LOS SERVICIOS PROFESIONALES COMO ABOGADA ESPECIALISTA PARA APOYAR LAS ACTIVIDADES JURÍDICAS Y ADMINISTRATIVAS DE LA OFICINA ASESORA JURÍDICA DEL FONDO DE PASIVO SOCIAL DE FERROCARRILES NACIONALES DE COLOMBIA. "},7172250,78894750,"2024-01-29",1,1,"COLOMBIA > Distrito Capital de Bogotá > Bogotá","COLOMBIA > Distrito Capital de Bogotá > Bogotá","2 SUPERVISOR","NO APLICA","5 NO SE TIENE ESTE TIPO DE SEGUIMIENTO EN EL CONTRATO","NO APLICA","11 NO SE DILIGENCIA INFORMACIÓN PARA ESTE FORMULARIO EN ESTE PERÍODO DE REPORTE",65767422,"ANDREA ALDANA TRUJILLO","OFICINA ASESORA JURÍDICA","OFICINA ASESORA JURÍDICA","NO",80111600,"POLIZA","Calidad del servicio - Cumplimiento del contrato",null,"2024-01-29","2024-01-29","2024-01-29","2024-01-29","2024-12-28",330,{"$f":"DATEDIF('BASE 2023 FPS'!$BF238-1,'BASE 2023 FPS'!$BG238,\"m\")","v":11}]
[2024,"CPS-255-2024",null,null,"F5.1","2 CONTRATACIÓN DIRECTA","CPS-255-2024","14 PRESTACIÓN DE SERVICIOS","PROFESIONALES","LUIS CARLOS CARMONA SOTO","Formación requerida en una (1) carrera profesional y una  (1) especialización "," Economía, Administración, Contaduría y afines","1 PERSONA NATURAL","3 CÉDULA DE CIUDADANÍA",70506826,70506826,null,"11 NO SE DILIGENCIA INFORMACIÓN PARA ESTE FORMULARIO EN ESTE PERÍODO DE REPORTE","NO APLICA","NO APLICA","NO APLICA","LUZ FANY VACA GUTIERREZ",1024,"2024-01-13",null,null,null,null,null,"DIRECCION GENERAL","DIRECCION GENERAL","PRESTAR SERVICIOS PROFESIONALES ESPECIALIZADOS DE ASESORÍA FINANCIERA, TRIBUTARIA Y DE FINANZAS PUBLICAS A LA DIRECCIÓN GENERAL DEL FONDO PASIVO SOCIAL DE FERROCARRILES NACIONALES DE COLOMBIA ",{"$f":"LEFT('BASE 2023 FPS'!$AF239,390)","v":"PRESTAR SERVICIOS PROFESIONALES ESPECIALIZADOS DE ASESORÍA FINANCIERA, TRIBUTARIA Y DE FINANZAS PUBLICAS A LA DIRECCIÓN GENERAL DEL FONDO PASIVO SOCIAL DE FERROCARRILES NACIONALES DE COLOMBIA "},7889475,86784225,"2024-01-29",1,1,"COLOMBIA > Distrito Capital de Bogotá > Bogotá","COLOMBIA > Distrito Capital de Bogotá > Bogotá","2 SUPERVISOR","NO APLICA","5 NO SE TIENE ESTE TIPO DE SEGUIMIENTO EN EL CONTRATO","NO APLICA","11 NO SE DILIGENCIA INFORMACIÓN PARA ESTE FORMULARIO EN ESTE PERÍODO DE REPORTE",23621957,"LUZ FANNY VACA GUTIERREZ","DIRECCION GENERAL","DIRECCION GENERAL","NO",80111600,"POLIZA","Calidad del servicio - Cumplimiento del contrato",null,"2024-01-29","2024-01-29","2024-01-29","2024-01-29","2024-12-28",330,{"$f":"DATEDIF('BASE 2023 FPS'!$BF239-1,'BASE 2023 FPS'!$BG239,\"m\")","v":11}]
[2024,"CPS-256-2024",null,null,"F5.1","2 CONTRATACIÓN DIRECTA","CPS-256-2024","14 PRESTACIÓN DE SERVICIOS","PROFESIONALES","JUAN DAVID RODRIGUEZ QUEVEDO","Formacion Tecnica"," Economía, Administración, Contaduría y afines","1 PERSONA NATURAL","3 CÉDULA DE CIUDADANÍA",1006701295,1006701295,null,"11 NO SE DILIGENCIA INFORMACIÓN PARA ESTE FORMULARIO EN ESTE PERÍODO DE REPORTE","NO APLICA","NO APLICA","NO APLICA","LUZ FANY VACA GUTIERREZ",1024,"2024-01-13",null,null,null,null,null,"SECRETARIO GENERAL","SECRETARIO GENERAL","PRESTAR LOS SERVICIOS DE APOYO A LA GESTIÓN PARA APOYAR LA GESTIÓN JURÍDICA Y ADMINISTRATIVA QUE ADELANTA LA SECRETARÍA GENERAL DEL FONDO PASIVO SOCIAL DE FERROCARRILES NACIONALES DE COLOMBIA ",{"$f":"LEFT('BASE 2023 FPS'!$AF240,390)","v":"PRESTAR LOS SERVICIOS DE APOYO A LA GESTIÓN PARA APOYAR LA GESTIÓN JURÍDICA Y ADMINISTRATIVA QUE ADELANTA LA SECRETARÍA GENERAL DEL FONDO PASIVO SOCIAL DE FERROCARRILES NACIONALES DE COLOMBIA "},2450519,26955709,"2024-01-26",1,1,"COLOMBIA > Distrito Capital de Bogotá > Bogotá","COLOMBIA > Distrito Capital de Bogotá > Bogotá","2 SUPERVISOR","NO APLICA","5 NO SE TIENE ESTE TIPO DE SEGUIMIENTO EN EL CONTRATO","NO APLICA","11 NO SE DILIGENCIA INFORMACIÓN PARA ESTE FORMULARIO EN ESTE PERÍODO DE REPORTE",17956156,"CARLOS ANDRES TOVAR OROZCO","SECRETARIO GENERAL","SECRETARIA GENERAL","NO",80111600,"POLIZA","Calidad del servicio - Cumplimiento del contrato",null,"2024-01-26","2024-01-26","2024-01-26","2024-01-26","2024-12-25",330,{"$f":"DATEDIF('BASE 2023 FPS'!$BF240-1,'BASE 2023 FPS'!$BG240,\"m\")","v":11}]
[2024,"CPS-257-2024",null,null,"F5.1","2 CONTRATACIÓN DIRECTA","CPS-257-2024","14 PRESTACIÓN DE SERVICIOS","PROFESIONALES","JUAN PABLO TAMARA","Formación requerida en una (1) carrera profesional "," Ingeniería, Arquitectura, Urbanismo y afines","1 PERSONA NATURAL","3 CÉDULA DE CIUDADANÍA",92558966,92558966,null,"11 NO SE DILIGENCIA INFORMACIÓN PARA ESTE FORMULARIO EN ESTE PERÍODO DE REPORTE","NO APLICA","NO APLICA","NO APLICA","LUZ FANY VACA GUTIERREZ",1024,"2024-01-13",null,null,null,null,null,"COORDINADOR GIT BIENES, COMPRAS Y SERVICIOS ADMINISTRATIVOS","GIT BIENES, COMPRAS Y SERVICIOS ADMINISTRATIVOS","PRESTAR LOS SERVICIOS PROFESIONALES COMO INGENIERO INDUSTRIAL ESPECIALIZADO PARA APOYAR LAS GESTIONES ADMINISTRATIVAS Y LOGÍSTICAS DESDE LA SECRETARIA GENERAL / COORDINACIÓN DEL GIT GESTIÓN BIENES, COMPRAS Y SERVICIOS ADMINISTRATIVOS DEL FONDO DE PASIVO SOCIAL DE FERROCARRILES NACIONALES DE COLOMBIA ",{"$f":"LEFT('BASE 2023 FPS'!$AF241,390)","v":"PRESTAR LOS SERVICIOS PROFESIONALES COMO INGENIERO INDUSTRIAL ESPECIALIZADO PARA APOYAR LAS GESTIONES ADMINISTRATIVAS Y LOGÍSTICAS DESDE LA SECRETARIA GENERAL / COORDINACIÓN DEL GIT GESTIÓN BIENES, COMPRAS Y SERVICIOS ADMINISTRATIVOS DEL FONDO DE PASIVO SOCIAL DE FERROCARRILES NACIONALES DE COLOMBIA "},6096412,67060532,"2024-01-29",1,1,"COLOMBIA > Distrito Capital de Bogotá > Bogotá","COLOMBIA > Distrito Capital de Bogotá > Bogotá","2 SUPERVISOR","NO APLICA","5 NO SE TIENE ESTE TIPO DE SEGUIMIENTO EN EL CONTRATO","NO APLICA","11 NO SE DILIGENCIA INFORMACIÓN PARA ESTE FORMULARIO EN ESTE PERÍODO DE REPORTE",5711553,"LUIS ALBERTO SEGURA BECERRA","COORDINADOR GIT BIENES, COMPRAS Y SERVICIOS ADMINISTRATIVOS","GIT BIENES, COMPRAS Y SERVICIOS ADMINISTRATIVOS","NO",80111600,"POLIZA","Calidad del servicio - Cumplimiento del contrato",null,"2024-01-29","2024-01-29","2024-01-29","2024-01-29","2024-12-28",330,{"$f":"DATEDIF('BASE 2023 FPS'!$BF241-1,'BASE 2023 FPS'!$BG241,\"m\")","v":11}]
[2024,"CPS-258-2024",null,null,"F5.1","2 CONTRATACIÓN DIRECTA","CPS-258-2024","14 PRESTACIÓN DE SERVICIOS","PROFESIONALES","MARIA ALEJANDRA RANGEL","Formación requerida en una (1) carrera profesional "," Ciencias Sociales y Humanas","1 PERSONA NATURAL","3 CÉDULA DE CIUDADANÍA",1063564730,1063564730,null,"11 NO SE DILIGENCIA INFORMACIÓN PARA ESTE FORMULARIO EN ESTE PERÍODO DE REPORTE","NO APLICA","NO APLICA","NO APLICA","LUZ FANY VACA GUTIERREZ",1024,"2024-01-13",null,null,null,null,null,"SUBDIRECCION DE PRESTACIONES SOCIALES","SUBDIRECCION DE PRESTACIONES SOCIALES","\"PRESTAR LOS SERVICIOS PROFESIONALES COMO ABOGADA PARA BRINDAR APOYO Y ACOMPAÑAMIENTO EN LA EJECUCIÓN DE ACTIVIDADES DE LOS PROCESOS A CARGO DE LA SUBDIRECCIÓN DE PRESTACIONES SOCIALES DEL FONDO DE PASIVO SOCIAL DE FERROCARRILES NACIONALES DE COLOMBIA ",{"$f":"LEFT('BASE 2023 FPS'!$AF242,390)","v":"\"PRESTAR LOS SERVICIOS PROFESIONALES COMO ABOGADA PARA BRINDAR APOYO Y ACOMPAÑAMIENTO EN LA EJECUCIÓN DE ACTIVIDADES DE LOS PROCESOS A CARGO DE LA SUBDIRECCIÓN DE PRESTACIONES SOCIALES DEL FONDO DE PASIVO SOCIAL DE FERROCARRILES NACIONALES DE COLOMBIA "},4901037,53911407,"2024-01-29",1,1,"COLOMBIA > Distrito Capital de Bogotá > Bogotá","COLOMBIA > Distrito Capital de Bogotá > Bogotá","2 SUPERVISOR","NO APLICA","5 NO SE TIENE ESTE TIPO DE SEGUIMIENTO EN EL CONTRATO","NO APLICA","11 NO SE DILIGENCIA INFORMACIÓN PARA ESTE FORMULARIO EN ESTE PERÍODO DE REPORTE",17956156,"CARLOS ANDRES TOVAR OROZCO","SUBDIRECCION DE PRESTACIONES SOCIALES","SUBDIRECCION DE PRESTACIONES SOCIALES","NO",80111600,"POLIZA","Calidad del servicio - Cumplimiento del contrato",null,"2024-01-29","2024-01-29","2024-01-29","2024-01-29","2024-12-28",330,{"$f":"DATEDIF('BASE 2023 FPS'!$BF242-1,'BASE 2023 FPS'!$BG242,\"m\")","v":11}]
[2024,"CPS-259-2024",null,null,"F5.1","2 CONTRATACIÓN DIRECTA","CPS-259-2024","14 PRESTACIÓN DE SERVICIOS","PROFESIONALES","MARIA JOSE PINEDA HOYOS","Formación requerida en una (1) carrera profesional "," Ciencias Sociales y Humanas","1 PERSONA NATURAL","3 CÉDULA DE CIUDADANÍA",1020778944,1020778944,null,"11 NO SE DILIGENCIA INFORMACIÓN PARA ESTE FORMULARIO EN ESTE PERÍODO DE REPORTE","NO APLICA","NO APLICA","NO APLICA","LUZ FANY VACA GUTIERREZ",1024,"2024-01-13",null,null,null,null,null,"OFICINA ASESORA JURÍDICA","OFICINA ASESORA JURÍDICA","PRESTAR LOS SERVICIOS PROFESIONALES COMO ABOGADA ESPECIALISTA PARA APOYAR LAS ACTIVIDADES RELACIONADAS CON LOS ASUNTOS JURÍDICOS Y ADMINISTRATIVOS DESDE LA OFICINA ASESORA JURÍDICA DEL FONDO DE PASIVO SOCIAL DE FERROCARRILES NACIONALES DE COLOMBIA. ",{"$f":"LEFT('BASE 2023 FPS'!$AF243,390)","v":"PRESTAR LOS SERVICIOS PROFESIONALES COMO ABOGADA ESPECIALISTA PARA APOYAR LAS ACTIVIDADES RELACIONADAS CON LOS ASUNTOS JURÍDICOS Y ADMINISTRATIVOS DESDE LA OFICINA ASESORA JURÍDICA DEL FONDO DE PASIVO SOCIAL DE FERROCARRILES NACIONALES DE COLOMBIA. "},7172250,78894750,"2024-01-29",1,1,"COLOMBIA > Distrito Capital de Bogotá > Bogotá","COLOMBIA > Distrito Capital de Bogotá > Bogotá","2 SUPERVISOR","NO APLICA","5 NO SE TIENE ESTE TIPO DE SEGUIMIENTO EN EL CONTRATO","NO APLICA","11 NO SE DILIGENCIA INFORMACIÓN PARA ESTE FORMULARIO EN ESTE PERÍODO DE REPORTE",65767422,"ANDREA ALDANA TRUJILLO","OFICINA ASESORA JURÍDICA","OFICINA ASESORA JURÍDICA","NO",80111600,"POLIZA","Calidad del servicio - Cumplimiento del contrato",null,"2024-01-29","2024-01-29","2024-01-29","2024-01-29","2024-12-28",330,{"$f":"DATEDIF('BASE 2023 FPS'!$BF243-1,'BASE 2023 FPS'!$BG243,\"m\")","v":11}]
[2024,"CPS-260-2024",null,null,"F5.1","2 CONTRATACIÓN DIRECTA","CPS-260-2024","14 PRESTACIÓN DE SERVICIOS","PROFESIONALES","MARTHA PADILLA","Formación requerida en una (1) carrera profesional "," Ciencias Sociales y Humanas","1 PERSONA NATURAL","3 CÉDULA DE CIUDADANÍA",52423427,52423427,null,"11 NO SE DILIGENCIA INFORMACIÓN PARA ESTE FORMULARIO EN ESTE PERÍODO DE REPORTE","NO APLICA","NO APLICA","NO APLICA","LUZ FANY VACA GUTIERREZ",1024,"2024-01-13",null,null,null,null,null,"COORDINADORA GIT GESTIÓN PRESTACIÓN SERVICIOS DE SALUD","GIT GESTIÓN PRESTACIÓN SERVICIOS DE SALUD","PRESTAR LOS SERVICIOS PROFESIONALES PARA APOYAR LAS ACTIVIDADES TENDIENTES A LA DEFINICIÓN DE LA CARACTERIZACIÓN POBLACIONAL Y LA IMPLEMENTACIÓN Y SEGUIMIENTO DEL MODELO DE GESTIÓN DE RIESGOS EN SALUD DEL FONDO DE PASIVO SOCIAL DE FERROCARRILES NACIONALES DE COLOMBIA Y LOS CALCULOS DE DEMANDA DE SERVICIOS DE SALUD. ",{"$f":"LEFT('BASE 2023 FPS'!$AF244,390)","v":"PRESTAR LOS SERVICIOS PROFESIONALES PARA APOYAR LAS ACTIVIDADES TENDIENTES A LA DEFINICIÓN DE LA CARACTERIZACIÓN POBLACIONAL Y LA IMPLEMENTACIÓN Y SEGUIMIENTO DEL MODELO DE GESTIÓN DE RIESGOS EN SALUD DEL FONDO DE PASIVO SOCIAL DE FERROCARRILES NACIONALES DE COLOMBIA Y LOS CALCULOS DE DEMANDA DE SERVICIOS DE SALUD. "},5259650,57856150,"2024-01-29",1,1,"COLOMBIA > Distrito Capital de Bogotá > Bogotá","COLOMBIA > Distrito Capital de Bogotá > Bogotá","2 SUPERVISOR","NO APLICA","5 NO SE TIENE ESTE TIPO DE SEGUIMIENTO EN EL CONTRATO","NO APLICA","11 NO SE DILIGENCIA INFORMACIÓN PARA ESTE FORMULARIO EN ESTE PERÍODO DE REPORTE",35507261,"LUZ HELENA GUTIERREZ SUAREZ","COORDINADORA GIT GESTIÓN PRESTACIÓN SERVICIOS DE SALUD","GIT GESTIÓN PRESTACIÓN SERVICIOS DE SALUD","NO",80111600,"POLIZA","Calidad del servicio - Cumplimiento del contrato",null,"2024-01-29","2024-01-29","2024-01-29","2024-01-29","2024-12-28",330,{"$f":"DATEDIF('BASE 2023 FPS'!$BF244-1,'BASE 2023 FPS'!$BG244,\"m\")","v":11}]
[2024,"CPS-261-2024",null,null,"F5.1","2 CONTRATACIÓN DIRECTA","CPS-261-2024","14 PRESTACIÓN DE SERVICIOS","PROFESIONALES","ANGIE MOYA","Formación requerida en una (1) carrera profesional y una  (1) especialización "," Ciencias Sociales y Humanas","1 PERSONA NATURAL","3 CÉDULA DE CIUDADANÍA",1121334916,1121334916,null,"11 NO SE DILIGENCIA INFORMACIÓN PARA ESTE FORMULARIO EN ESTE PERÍODO DE REPORTE","NO APLICA","NO APLICA","NO APLICA","LUZ FANY VACA GUTIERREZ",1024,"2024-01-13",null,null,null,null,null,"SECRETARIO GENERAL","SECRETARIO GENERAL","PRESTAR LOS SERVICIOS PROFESIONALES ESPECIALIZADOS COMO ABOGADA PARA APOYAR LA GESTION ADMINISTRATIVA DESDE LA SECRETARÍA GENERAL DEL FONDO DE PASIVO SOCIAL DE FERROCARRILES NACIONALES DE COLOMBIA ",{"$f":"LEFT('BASE 2023 FPS'!$AF245,390)","v":"PRESTAR LOS SERVICIOS PROFESIONALES ESPECIALIZADOS COMO ABOGADA PARA APOYAR LA GESTION ADMINISTRATIVA DESDE LA SECRETARÍA GENERAL DEL FONDO DE PASIVO SOCIAL DE FERROCARRILES NACIONALES DE COLOMBIA "},6096412,67060532,"2024-01-29",1,1,"COLOMBIA > Distrito Capital de Bogotá > Bogotá","COLOMBIA > Distrito Capital de Bogotá > Bogotá","2 SUPERVISOR","NO APLICA","5 NO SE TIENE ESTE TIPO DE SEGUIMIENTO EN EL CONTRATO","NO APLICA","11 NO SE DILIGENCIA INFORMACIÓN PARA ESTE FORMULARIO EN ESTE PERÍODO DE REPORTE",17956156,"CARLOS ANDRES TOVAR OROZCO","SECRETARIO GENERAL","SECRETARIA GENERAL","NO",80111600,"POLIZA","Calidad del servicio - Cumplimiento del contrato",null,"2024-01-29","2024-01-29","2024-01-29","2024-01-29","2024-12-28",330,{"$f":"DATEDIF('BASE 2023 FPS'!$BF245-1,'BASE 2023 FPS'!$BG245,\"m\")","v":11}]
[2024,"CPS-263-2024",null,null,"F5.1","2 CONTRATACIÓN DIRECTA","CPS-263-2024","14 PRESTACIÓN DE SERVICIOS","PROFESIONALES","LISSETT MANZILLA FELIZZOLA","Formación requerida en una (1) carrera profesional "," Ingeniería, Arquitectura, Urbanismo y afines","1 PERSONA NATURAL","3 CÉDULA DE CIUDADANÍA",56097787,56097787,null,"11 NO SE DILIGENCIA INFORMACIÓN PARA ESTE FORMULARIO EN ESTE PERÍODO DE REPORTE","NO APLICA","NO APLICA","NO APLICA","LUZ FANY VACA GUTIERREZ",1024,"2024-01-13",null,null,null,null,null,"COORDINADOR GIT BIENES, COMPRAS Y SERVICIOS ADMINISTRATIVOS","GIT BIENES, COMPRAS Y SERVICIOS ADMINISTRATIVOS","PRESTAR LOS SERVICIOS PROFESIONALES COMO INGENIERA DE SISTEMAS PARA APOYAR A LA GESTIÓN ADMINISTRATIVAS QUE ADELANTA LA COORDINACIÓN GIT BIENES, COMPRAS Y SERVICIOS ADMINISTRATIVOS DEL FONDO DE PASIVO SOCIAL DE FERROCARRILES NACIONALES DE COLOMBIA ",{"$f":"LEFT('BASE 2023 FPS'!$AF246,390)","v":"PRESTAR LOS SERVICIOS PROFESIONALES COMO INGENIERA DE SISTEMAS PARA APOYAR A LA GESTIÓN ADMINISTRATIVAS QUE ADELANTA LA COORDINACIÓN GIT BIENES, COMPRAS Y SERVICIOS ADMINISTRATIVOS DEL FONDO DE PASIVO SOCIAL DE FERROCARRILES NACIONALES DE COLOMBIA "},4064275,44707025,"2024-01-29",1,1,"COLOMBIA > Distrito Capital de Bogotá > Bogotá","COLOMBIA > Distrito Capital de Bogotá > Bogotá","2 SUPERVISOR","NO APLICA","5 NO SE TIENE ESTE TIPO DE SEGUIMIENTO EN EL CONTRATO","NO APLICA","11 NO SE DILIGENCIA INFORMACIÓN PARA ESTE FORMULARIO EN ESTE PERÍODO DE REPORTE",5711553,"LUIS ALBERTO SEGURA BECERRA","COORDINADOR GIT BIENES, COMPRAS Y SERVICIOS ADMINISTRATIVOS","GIT BIENES, COMPRAS Y SERVICIOS ADMINISTRATIVOS","NO",80111600,"POLIZA","Calidad del servicio - Cumplimiento del contrato",null,"2024-01-29","2024-01-29","2024-01-29","2024-01-29","2024-12-28",330,{"$f":"DATEDIF('BASE 2023 FPS'!$BF246-1,'BASE 2023 FPS'!$BG246,\"m\")","v":11}]
[2024,"CPS-264-2024",null,null,"F5.1","2 CONTRATACIÓN DIRECTA","CPS-264-2024","14 PRESTACIÓN DE SERVICIOS","PROFESIONALES","IVAN CANCINO","Formación requerida en una (1) carrera profesional y una  (1) especialización "," Ciencias Sociales y Humanas","1 PERSONA NATURAL","3 CÉDULA DE CIUDADANÍA",79904413,79904413,null,"11 NO SE DILIGENCIA INFORMACIÓN PARA ESTE FORMULARIO EN ESTE PERÍODO DE REPORTE","NO APLICA","NO APLICA","NO APLICA","LUZ FANY VACA GUTIERREZ",1024,"2024-01-13",null,null,null,null,null,"SECRETARIO GENERAL","SECRETARIO GENERAL","PRESTAR LOS SERVICIOS A LA DIRECCIÓN GENERAL Y LA OFICINA DE SECRETARÍA GENERAL PARA APOYAR LOS ASUNTOS JURÍDICOS QUE ADELANTEN DESDE LAS DIFERENTES ÁREAS DEL FONDO DE PASIVO SOCIAL DE FERROCARRILES NACIONALES DE COLOMBIA ",{"$f":"LEFT('BASE 2023 FPS'!$AF247,390)","v":"PRESTAR LOS SERVICIOS A LA DIRECCIÓN GENERAL Y LA OFICINA DE SECRETARÍA GENERAL PARA APOYAR LOS ASUNTOS JURÍDICOS QUE ADELANTEN DESDE LAS DIFERENTES ÁREAS DEL FONDO DE PASIVO SOCIAL DE FERROCARRILES NACIONALES DE COLOMBIA "},10000000,110000000,"2024-01-30",1,1,"COLOMBIA > Distrito Capital de Bogotá > Bogotá","COLOMBIA > Distrito Capital de Bogotá > Bogotá","2 SUPERVISOR","NO APLICA","5 NO SE TIENE ESTE TIPO DE SEGUIMIENTO EN EL CONTRATO","NO APLICA","11 NO SE DILIGENCIA INFORMACIÓN PARA ESTE FORMULARIO EN ESTE PERÍODO DE REPORTE",17956156,"CARLOS ANDRES TOVAR OROZCO","SECRETARIO GENERAL","SECRETARIA GENERAL","NO",80111600,"POLIZA","Calidad del servicio - Cumplimiento del contrato",null,"2024-01-30","2024-01-30","2024-01-30","2024-01-30","2024-12-29",330,{"$f":"DATEDIF('BASE 2023 FPS'!$BF247-1,'BASE 2023 FPS'!$BG247,\"m\")","v":11}]
[2024,"CPS-265-2024",null,null,"F5.1","2 CONTRATACIÓN DIRECTA","CPS-265-2024","14 PRESTACIÓN DE SERVICIOS","PROFESIONALES","CARLOS ALFONSO REYES","Formación requerida en una (1) carrera profesional "," Economía, Administración, Contaduría y afines","1 PERSONA NATURAL","3 CÉDULA DE CIUDADANÍA",14234202,14234202,null,"11 NO SE DILIGENCIA INFORMACIÓN PARA ESTE FORMULARIO EN ESTE PERÍODO DE REPORTE","NO APLICA","NO APLICA","NO APLICA","LUZ FANY VACA GUTIERREZ",1024,"2024-01-13",null,null,null,null,null,"OFICINA ASESORA JURÍDICA","OFICINA ASESORA JURÍDICA","PRESTAR LOS SERVICIOS PROFESIONALES PARA APOYAR LAS ACTIVIDADES RELACIONADAS CON LOS ASUNTOS ADMINISTRATIVOS DE LA OFICINA ASESORA JURÍDICA DEL FONDO DE PASIVO SOCIAL DE FERROCARRILES NACIONALES DE COLOMBIA ",{"$f":"LEFT('BASE 2023 FPS'!$AF248,390)","v":"PRESTAR LOS SERVICIOS PROFESIONALES PARA APOYAR LAS ACTIVIDADES RELACIONADAS CON LOS ASUNTOS ADMINISTRATIVOS DE LA OFICINA ASESORA JURÍDICA DEL FONDO DE PASIVO SOCIAL DE FERROCARRILES NACIONALES DE COLOMBIA "},7172250,78894750,"2024-01-30",1,1,"COLOMBIA > Distrito Capital de Bogotá > Bogotá","COLOMBIA > Distrito Capital de Bogotá > Bogotá","2 SUPERVISOR","NO APLICA","5 NO SE TIENE ESTE TIPO DE SEGUIMIENTO EN EL CONTRATO","NO APLICA","11 NO SE DILIGENCIA INFORMACIÓN PARA ESTE FORMULARIO EN ESTE PERÍODO DE REPORTE",65767422,"ANDREA ALDANA TRUJILLO","OFICINA ASESORA JURÍDICA","OFICINA ASESORA JURÍDICA","NO",80111600,"POLIZA","Calidad del servicio - Cumplimiento del contrato",null,"2024-01-30","2024-01-30","2024-01-30","2024-01-30","2024-12-29",330,{"$f":"DATEDIF('BASE 2023 FPS'!$BF248-1,'BASE 2023 FPS'!$BG248,\"m\")","v":11}]
[2024,"CPS-266-2024",null,null,"F5.1","2 CONTRATACIÓN DIRECTA","CPS-266-2024","14 PRESTACIÓN DE SERVICIOS","PROFESIONALES","YURENA ARIZA HERNANDEZ","Formación requerida en una (1) carrera profesional "," Ciencias Sociales y Humanas","1 PERSONA NATURAL","3 CÉDULA DE CIUDADANÍA",1143363701,1143363701,null,"11 NO SE DILIGENCIA INFORMACIÓN PARA ESTE FORMULARIO EN ESTE PERÍODO DE REPORTE","NO APLICA","NO APLICA","NO APLICA","LUZ FANY VACA GUTIERREZ",1024,"2024-01-13",null,null,null,null,null,"OFICINA ASESORA JURÍDICA CAJANAL","OFICINA ASESORA JURÍDICA CAJANAL","PRESTAR LOS SERVICIOS PROFESIONALES EN ASUNTOS RELACIONES CON LOS PROCESOS DE JURISDICCION COACTIVA DE CONFORMIDAD CON LAS DISPOSICIONES CONTENIDAS EN EL DECRETO N°. 494 DE 2019 - CONVENIO 511 EN LA OFICINA ASESORA JURIDICA DEL FONDO DE PASIVO SOCIAL DE FERROCARRILES NACIONALES DE COLOMBIA. ",{"$f":"LEFT('BASE 2023 FPS'!$AF249,390)","v":"PRESTAR LOS SERVICIOS PROFESIONALES EN ASUNTOS RELACIONES CON LOS PROCESOS DE JURISDICCION COACTIVA DE CONFORMIDAD CON LAS DISPOSICIONES CONTENIDAS EN EL DECRETO N°. 494 DE 2019 - CONVENIO 511 EN LA OFICINA ASESORA JURIDICA DEL FONDO DE PASIVO SOCIAL DE FERROCARRILES NACIONALES DE COLOMBIA. "},6096412,67060532,"2024-01-31",1,1,"COLOMBIA > Distrito Capital de Bogotá > Bogotá","COLOMBIA > Distrito Capital de Bogotá > Bogotá","2 SUPERVISOR","NO APLICA","5 NO SE TIENE ESTE TIPO DE SEGUIMIENTO EN EL CONTRATO","NO APLICA","11 NO SE DILIGENCIA INFORMACIÓN PARA ESTE FORMULARIO EN ESTE PERÍODO DE REPORTE",65767422,"ANDREA ALDANA TRUJILLO","OFICINA ASESORA JURÍDICA CAJANAL","OFICINA ASESORA JURÍDICA CAJANAL","NO",80111600,"POLIZA","Calidad del servicio - Cumplimiento del contrato",null,"2024-01-31","2024-01-31","2024-01-31","2024-01-31","2024-05-30",120,{"$f":"DATEDIF('BASE 2023 FPS'!$BF249-1,'BASE 2023 FPS'!$BG249,\"m\")","v":4}]